Workbook

Sheet Control
B2: W/R Season | E2: Bend Bridge Pulse Protection | H2: Delta Excess Buffer Days
B3: Start | C3: End | E3: On/Off | F3: On | H3: Days | I3: 0
B4: 9.01 | C4: 6.14 | E4: Start (WY) | F4: 1.01
B5: Constraint | C5: On/Off | E5: End (WY) | F5: 12.3
B6: Delta Condition | C6: On | E6: Bend Trigger | F6: 8000
E7: Trib Trigger | F7: 2500
E8: Pulse Length (days) | F8: 7
E9: Pulse Offramp | F9: 29000
E10: Offramp Div. Threshold | F10: 25000
B12: Point of Diversion/Bypass Location Parameters
D13: Minimum Bypass Flow (cfs) | G13: Diversion Capacity (cfs)
B14: Month | C14: Month # | D14: Red Bluff | E14: Hamilton | F14: Wilkins | G14: Red Bluff | H14: Hamilton
B15: Jan | C15: 1 | D15: 3250 | E15: 4000 | F15: 10700 | G15: 2200 | H15: 2000
B16: Feb | C16: 2 | D16: 3250 | E16: 4000 | F16: 10700 | G16: 2200 | H16: 2000
B17: Mar | C17: 3 | D17: 3250 | E17: 4000 | F17: 10700 | G17: 2200 | H17: 2000
B18: Apr | C18: 4 | D18: 3250 | E18: 4000 | F18: 10700 | G18: 2200 | H18: 2000
B19: May | C19: 5 | D19: 3250 | E19: 4000 | F19: 10700 | G19: 2200 | H19: 2000
B20: Jun | C20: 6 | D20: 3250 | E20: 4000 | F20: 10700 | G20: 2200 | H20: 2000
B21: Jul | C21: 7 | D21: 3250 | E21: 4000 | F21: 5000 | G21: 2200 | H21: 2000
B22: Aug | C22: 8 | D22: 3250 | E22: 4000 | F22: 5000 | G22: 2200 | H22: 2000
B23: Sep | C23: 9 | D23: 3250 | E23: 4000 | F23: 5000 | G23: 2200 | H23: 2000
B24: Oct | C24: 10 | D24: 3250 | E24: 4000 | F24: 10700 | G24: 2200 | H24: 2000
B25: Nov | C25: 11 | D25: 3250 | E25: 4000 | F25: 10700 | G25: 2200 | H25: 2000
B26: Dec | C26: 12 | D26: 3250 | E26: 4000 | F26: 10700 | G26: 2200 | H26: 2000
A29: Lists, etc.
A30: On
A31: Off
A33: cfs_2_AF | B33: 1.98347
A34: AF_2_cfs | B34: =1/B33 -> 0.5041669398

Sheet Calc
W1: =IF(Control!F3="On",1,0) -> 1
H2: Column # | I2: 1 | J2: 2 | K2: =J2+1 -> 3 | L2: =K2+1 -> 4 | M2: =L2+1 -> 5 | N2: =M2+1 -> 6 | O2: =N2+1 -> 7 | P2: =O2+1 -> 8 | Q2: =P2+1 -> 9 | R2: =Q2+1 -> 10 | S2: 11 | T2: 12 | U2: 13 | V2: 14 | W2: 15 | X2: 16 | Y2: 17 | Z2: 18 | AA2: 19 | AB2: 20 | AC2: 21 | AD2: 22 | AE2: 23 | AF2: 24 | AG2: 25 | AH2: 26 | AI2: 27 | AJ2: 28 | AK2: 29
H3: Max | I3: =MAX(I11:I236) ->  | J3: =MAX(J11:J236) ->  | K3: =MAX(K11:K236) ->  | Q3: =MAX(Q11:Q236) ->  | X3: =MAX(X11:X236) -> 3250 | AA3: 4000 | AD3: 10700 | AF3: =_xlfn.MAXIFS(AF11:AF236,AF11:AF236,"<>#N/A") -> 35000 | AG3: =_xlfn.MAXIFS(AG11:AG236,AG11:AG236,"<>#N/A") -> 
H4: Min | I4: =MIN(I11:I236) ->  | J4: =MIN(J11:J236) ->  | K4: =MIN(K11:K236) ->  | Q4: =MIN(Q11:Q236) ->  | X4: =MIN(X11:X236) -> 3250 | AA4: 4000 | AD4: 10700 | AF4: =_xlfn.MINIFS(AF11:AF236,AF11:AF236,"<>#N/A") -> -1000 | AG4: =_xlfn.MINIFS(AG11:AG236,AG11:AG236,"<>#N/A") -> 
H5: Average | I5: =AVERAGE(I11:I236) ->  | J5: =AVERAGE(J11:J236) ->  | K5: =AVERAGE(K11:K236) ->  | Q5: =AVERAGE(Q11:Q236) ->  | X5: =AVERAGE(X11:X236) -> 3250 | AA5: 4000 | AD5: 10700 | AF5: =AVERAGEIFS(AF11:AF236,AF11:AF236,"<>#N/A") -> 18970.80292 | AG5: =AVERAGEIFS(AG11:AG236,AG11:AG236,"<>#N/A") -> 
H6: Count > 0 | I6: =COUNTIF(I$11:I$236,">0") -> 135 | J6: =COUNTIF(J$11:J$236,">0") -> 131 | K6: 133 | L6: 135 | M6: 135 | N6: 135 | O6: 135 | P6: 131 | Q6: 133 | R6: 1 | S6: 71 | T6: 7 | U6: 73 | V6: 0 | W6: 102 | X6: 226 | Y6: 135 | Z6: 135 | AA6: 226 | AB6: 98 | AC6: 135 | AD6: 226 | AE6: 35 | AF6: 76 | AG6: 29 | AH6: 29 | AI6: 29 | AJ6: 25 | AK6: 29
AL7: =IFERROR(CONCATENATE("Potential WY Diversion through ",TEXT(TODAY()-1,"mm/dd"),": ",TEXT(SUMIF(AL11:AL236,"<"&TODAY(),$AK$11:$AK$236)*1.98347,"#,0")," acre-feet",". Forecasted potential diversion for ",TEXT(TODAY(),"mm/dd")," through ", TEXT(TODAY()+30,"mm/dd"),": ",TEXT((SUMIF(AL11:AL236,"<>#N/A",$AK$11:$AK$236)-SUMIF(AL11:AL236,"<"&TODAY(),$AK$11:$AK$236))*1.98347,"#,0")," acre-feet."),"Forecast Needs To Be Updated!") -> Forecast Needs To Be Updated!
H8: Reach | I8: Bend Bridge | X8: Red Bluff | Z8: Hamilton City | AC8: Wilkins Slough | AF8: Delta | AG8: Availability Calculations | AI8: Diversion Calculations | AL8: Plotting
H9: Parameter | I9: Flow | J9: Frcst 3-day Avg Flow | K9: Moving Avg 3-day Flow | L9: Cow Creek | M9: Cottonwood Creek | N9: Battle Creek | O9: Total Tributary Flow | P9: Frcst 3-day Average Tributary Flow | Q9: Moving Avg 3-day Tributary Flow | R9: Pulse Trigger | S9: Pulse Offramp | T9: Pulse Length | U9: Pulse Offramp Reset | V9: High-Flow Diversions | W9: Diversions Limitation | X9: Bypass Rqmt | Y9: Potential Water Available | Z9: Flow | AA9: Bypass Rqmt | AB9: Potential Water Available | AC9: Flow | AD9: Bypass Rqmt | AE9: Potential Water Available | AF9: Outflow Reqmt | AG9: Potential Water Available @ Red Bluff | AH9: Potential Water Available @ Hamilton | AI9: TCC Diversion | AJ9: GCID Diversion | AK9: Total Diversion | AL9: Date | AM9: Label Dummy | AN9: Obs/For Labels | AO9: Forecast Line | AP9: Available | AQ9: Pulse Protection
A10: Forecast | B10: WY | C10: WY.Month | D10: Month | E10: Day | F10: Month.Day | G10: WY Mth.Day | H10: Date / Units | I10: cfs | J10: cfs | K10: cfs | L10: cfs | M10: cfs | N10: cfs | O10: cfs | P10: cfs | Q10: cfs | R10: Binary | S10: Binary | T10: Count | U10: Binary | V10: cfs | W10: cfs | X10: cfs | Y10: cfs | Z10: cfs | AA10: cfs | AB10: cfs | AC10: cfs | AD10: cfs | AE10: cfs | AF10: cfs | AG10: cfs | AH10: cfs | AI10: cfs | AJ10: cfs | AK10: cfs
A11: =IF(H11>TODAY()+29,3,IF(H11>TODAY()+4,2,IF(H11>=TODAY(),1,0))) -> 0 | B11: =IF(D11>9,YEAR(H11)+1,YEAR(H11)) -> 2023 | C11: =IF(D11>9,D11-9,D11+3) -> 2 | D11: =MONTH(H11) -> 11 | E11: =DAY(H11) -> 1 | F11: =D11+E11/100 -> 11.01 | G11: =C11+E11/100 -> 2.01 | H11: 2022-11-01 | I11: =CHOOSE($A11+1,_xlfn.IFNA(INDEX(USGS!Y:Y,MATCH($H11,USGS!X:X,0)),I10),AVERAGEIF(CNRFC!AR:AR,$H11,CNRFC!AN:AN),AVERAGEIF(Ensemble!GC:GC,$H11,Ensemble!GF:GF),"-") -> 4370 | J11: =IF(A11>2,"-",AVERAGE(I11:I13)) -> 4383.333333 | K11: =I11 -> 4370 | L11: =CHOOSE($A11+1,_xlfn.IFNA(INDEX(USGS!D:D,MATCH($H11,USGS!C:C,0)),I10),AVERAGEIF(CNRFC!AI:AI,$H11,CNRFC!AE:AE),AVERAGEIF(Ensemble!AR:AR,$H11,Ensemble!AT:AT),"-") -> 40.4 | M11: =CHOOSE($A11+1,_xlfn.IFNA(INDEX(USGS!K:K,MATCH($H11,USGS!J:J,0)),I10),AVERAGEIF(CNRFC!Q:Q,$H11,CNRFC!M:M),AVERAGEIF(Ensemble!CM:CM,$H11,Ensemble!CO:CO),"-") -> 33.3 | N11: =CHOOSE($A11+1,_xlfn.IFNA(INDEX(USGS!R:R,MATCH($H11,USGS!Q:Q,0)),I10),AVERAGEIF(CNRFC!Z:Z,$H11,CNRFC!V:V),AVERAGEIF(Ensemble!EH:EH,$H11,Ensemble!EJ:EJ),"-") -> 192 | O11: =IF(A11>2,"-",SUM(L11:N11)) -> 265.7 | P11: =IF(A11>2,"-",AVERAGE(O11:O13)) -> 287.6666667 | Q11: =O11 -> 265.7 | R11: 0 | S11: 0 | T11: 0 | U11: 1 | V11: 0 | W11: =CHOOSE($W$1+1,99999,IF(AND(G11>=Control!$F$4,G11<=Control!$F$5),IF(T11<>0,V11,99999),0)) -> 99999 | X11: =INDEX(Control!$D$15:$D$26,D11) -> 3250 | Y11: =IF(A11>2,"-",MAX(I11-X11,0)) -> 1120 | Z11: =CHOOSE($A11+1,IF(ISBLANK(INDEX(CDEC!G:G,MATCH($H11,CDEC!J:J,0))),Z10,_xlfn.IFNA(INDEX(CDEC!G:G,MATCH($H11,CDEC!J:J,0)),Z10)),AVERAGEIF(CNRFC!BA:BA,$H11,CNRFC!AW:AW),AVERAGEIF(Ensemble!JT:JT,$H11,Ensemble!JW:JW),"-") -> 3737 | AA11: =INDEX(Control!$E$15:$E$26,D11) -> 4000 | AB11: =IF(A11>2,"-",MAX(Z11-AA11,0)) -> 0 | AC11: =CHOOSE($A11+1,_xlfn.IFNA(INDEX(USGS!AH:AH,MATCH($H11,USGS!AE:AE,0)),I10),AVERAGEIF(CNRFC!H:H,$H11,CNRFC!D:D),AVERAGEIF(Ensemble!HY:HY,$H11,Ensemble!IA:IA),"-") -> 3240 | AD11: =INDEX(Control!$F$15:$F$26,D11) -> 10700 | AE11: =IF(A11>2,"-",MAX(AC11-AD11,0)) -> 0 | AF11: -1000 | AG11: =MIN(W11,Y11,AE11)*MAX(MIN(AF11,1),0) -> 0 | AH11: =MIN(W11,AB11,AE11)*MAX(MIN(AF11,1),0) -> 0 | AI11: =MIN(INDEX(Control!$G$15:$G$26,D11),AG11) -> 0 | AJ11: =MIN(MAX(AH11-AI11,0),INDEX(Control!$H$15:$H$26,D11)) -> 0 | AK11: =SUM(AI11:AJ11) -> 0 | AL11: =IF(A11=3,NA(),H11) -> 2022-11-01 | AM11: =IF(AO11=50000,30000,"") ->  | AN11: =IF(AO11=50000,"<--- Observed Forecast --->","") ->  | AO11: =IF(AL11=TODAY(),50000,NA()) ->  | AP11: =MAX(AG11:AH11) -> 0 | AQ11: =MIN(T11,1)*50000 -> 0
A12: 0 | B12: 2023 | C12: =IF(D12>9,D12-9,D12+3) -> 2 | D12: =MONTH(H12) -> 11 | E12: =DAY(H12) -> 2 | F12: =D12+E12/100 -> 11.02 | G12: =C12+E12/100 -> 2.02 | H12: =H11+1 -> 2022-11-02 | I12: =CHOOSE($A12+1,_xlfn.IFNA(INDEX(USGS!Y:Y,MATCH($H12,USGS!X:X,0)),I11),AVERAGEIF(CNRFC!AR:AR,$H12,CNRFC!AN:AN),AVERAGEIF(Ensemble!GC:GC,$H12,Ensemble!GF:GF),"-") -> 4400 | J12: =IF(A12>2,"-",AVERAGE(I12:I14)) -> 4383.333333 | K12: =AVERAGE(I11:I12) -> 4385 | L12: =CHOOSE($A12+1,_xlfn.IFNA(INDEX(USGS!D:D,MATCH($H12,USGS!C:C,0)),I11),AVERAGEIF(CNRFC!AI:AI,$H12,CNRFC!AE:AE),AVERAGEIF(Ensemble!AR:AR,$H12,Ensemble!AT:AT),"-") -> 73 | M12: =CHOOSE($A12+1,_xlfn.IFNA(INDEX(USGS!K:K,MATCH($H12,USGS!J:J,0)),I11),AVERAGEIF(CNRFC!Q:Q,$H12,CNRFC!M:M),AVERAGEIF(Ensemble!CM:CM,$H12,Ensemble!CO:CO),"-") -> 35 | N12: =CHOOSE($A12+1,_xlfn.IFNA(INDEX(USGS!R:R,MATCH($H12,USGS!Q:Q,0)),I11),AVERAGEIF(CNRFC!Z:Z,$H12,CNRFC!V:V),AVERAGEIF(Ensemble!EH:EH,$H12,Ensemble!EJ:EJ),"-") -> 195 | O12: 303 | P12: =IF(A12>2,"-",AVERAGE(O12:O14)) -> 293.5 | Q12: =AVERAGE(O11:O12) -> 284.35 | R12: =IF(AND(J12>Control!$F$6,P12>Control!$F$7,U11=1),1,0) -> 0 | S12: =IF(AND(T11>0,T11<Control!$F$8),0,IF(AND(K12<Control!$F$6-500,Q12<Control!$F$7),1,0))*(1-R12) -> 1 | T12: =IF(AND(T11<Control!$F$8,T11>0),T11+1,IF(AND(R12=1,U11=1),1,0)) -> 0 | U12: 1 | V12: 0 | W12: =CHOOSE($W$1+1,99999,IF(AND(G12>=Control!$F$4,G12<=Control!$F$5),IF(T12<>0,V12,99999),0)) -> 99999 | X12: =INDEX(Control!$D$15:$D$26,D12) -> 3250 | Y12: =IF(A12>2,"-",MAX(I12-X12,0)) -> 1150 | Z12: =CHOOSE($A12+1,IF(ISBLANK(INDEX(CDEC!G:G,MATCH($H12,CDEC!J:J,0))),Z11,_xlfn.IFNA(INDEX(CDEC!G:G,MATCH($H12,CDEC!J:J,0)),Z11)),AVERAGEIF(CNRFC!BA:BA,$H12,CNRFC!AW:AW),AVERAGEIF(Ensemble!JT:JT,$H12,Ensemble!JW:JW),"-") -> 3961 | AA12: =INDEX(Control!$E$15:$E$26,D12) -> 4000 | AB12: =IF(A12>2,"-",MAX(Z12-AA12,0)) -> 0 | AC12: =CHOOSE($A12+1,_xlfn.IFNA(INDEX(USGS!AH:AH,MATCH($H12,USGS!AE:AE,0)),I11),AVERAGEIF(CNRFC!H:H,$H12,CNRFC!D:D),AVERAGEIF(Ensemble!HY:HY,$H12,Ensemble!IA:IA),"-") -> 3210 | AD12: =INDEX(Control!$F$15:$F$26,D12) -> 10700 | AE12: =IF(A12>2,"-",MAX(AC12-AD12,0)) -> 0 | AF12: -1000 | AG12: =MIN(W12,Y12,AE12)*MAX(MIN(AF12,1),0) -> 0 | AH12: =MIN(W12,AB12,AE12)*MAX(MIN(AF12,1),0) -> 0 | AI12: =MIN(INDEX(Control!$G$15:$G$26,D12),AG12) -> 0 | AJ12: =MIN(MAX(AH12-AI12,0),INDEX(Control!$H$15:$H$26,D12)) -> 0 | AK12: =SUM(AI12:AJ12) -> 0 | AL12: =IF(A12=3,NA(),H12) -> 2022-11-02 | AN12: =IF(AO12=50000,"<--- Observed Forecast --->","") ->  | AO12: =IF(AL12=TODAY(),50000,NA()) ->  | AP12: =MAX(AG12:AH12) -> 0 | AQ12: =MIN(T12,1)*50000 -> 0
A13: 0 | B13: 2023 | C13: 2 | D13: 11 | E13: 3 | F13: 11.03 | G13: 2.03 | H13: =H12+1 -> 2022-11-03 | I13: =CHOOSE($A13+1,_xlfn.IFNA(INDEX(USGS!Y:Y,MATCH($H13,USGS!X:X,0)),I12),AVERAGEIF(CNRFC!AR:AR,$H13,CNRFC!AN:AN),AVERAGEIF(Ensemble!GC:GC,$H13,Ensemble!GF:GF),"-") -> 4380 | J13: 4390 | K13: =IF(A13>2,"-",AVERAGE(I11:I13)) -> 4383.333333 | L13: =CHOOSE($A13+1,_xlfn.IFNA(INDEX(USGS!D:D,MATCH($H13,USGS!C:C,0)),I12),AVERAGEIF(CNRFC!AI:AI,$H13,CNRFC!AE:AE),AVERAGEIF(Ensemble!AR:AR,$H13,Ensemble!AT:AT),"-") -> 67.1 | M13: =CHOOSE($A13+1,_xlfn.IFNA(INDEX(USGS!K:K,MATCH($H13,USGS!J:J,0)),I12),AVERAGEIF(CNRFC!Q:Q,$H13,CNRFC!M:M),AVERAGEIF(Ensemble!CM:CM,$H13,Ensemble!CO:CO),"-") -> 38.2 | N13: =CHOOSE($A13+1,_xlfn.IFNA(INDEX(USGS!R:R,MATCH($H13,USGS!Q:Q,0)),I12),AVERAGEIF(CNRFC!Z:Z,$H13,CNRFC!V:V),AVERAGEIF(Ensemble!EH:EH,$H13,Ensemble!EJ:EJ),"-") -> 189 | O13: 294.3 | P13: 289.5666667 | Q13: =IF(A13>2,"-",AVERAGE(O11:O13)) -> 287.6666667 | R13: =IF(AND(J13>Control!$F$6,P13>Control!$F$7,U12=1),1,0) -> 0 | S13: =IF(AND(T12>0,T12<Control!$F$8),0,IF(AND(K13<Control!$F$6-500,Q13<Control!$F$7),1,0))*(1-R13) -> 1 | T13: =IF(AND(T12<Control!$F$8,T12>0),T12+1,IF(AND(R13=1,U12=1),1,0)) -> 0 | U13: 1 | V13: 0 | W13: =CHOOSE($W$1+1,99999,IF(AND(G13>=Control!$F$4,G13<=Control!$F$5),IF(T13<>0,V13,99999),0)) -> 99999 | X13: =INDEX(Control!$D$15:$D$26,D13) -> 3250 | Y13: 1130 | Z13: =CHOOSE($A13+1,IF(ISBLANK(INDEX(CDEC!G:G,MATCH($H13,CDEC!J:J,0))),Z12,_xlfn.IFNA(INDEX(CDEC!G:G,MATCH($H13,CDEC!J:J,0)),Z12)),AVERAGEIF(CNRFC!BA:BA,$H13,CNRFC!AW:AW),AVERAGEIF(Ensemble!JT:JT,$H13,Ensemble!JW:JW),"-") -> 3953 | AA13: =INDEX(Control!$E$15:$E$26,D13) -> 4000 | AB13: 0 | AC13: =CHOOSE($A13+1,_xlfn.IFNA(INDEX(USGS!AH:AH,MATCH($H13,USGS!AE:AE,0)),I12),AVERAGEIF(CNRFC!H:H,$H13,CNRFC!D:D),AVERAGEIF(Ensemble!HY:HY,$H13,Ensemble!IA:IA),"-") -> 3370 | AD13: =INDEX(Control!$F$15:$F$26,D13) -> 10700 | AE13: 0 | AF13: -1000 | AG13: 0 | AH13: 0 | AI13: =MIN(INDEX(Control!$G$15:$G$26,D13),AG13) -> 0 | AJ13: =MIN(MAX(AH13-AI13,0),INDEX(Control!$H$15:$H$26,D13)) -> 0 | AK13: 0 | AL13: 2022-11-03 | AP13: 0 | AQ13: 0
A14: 0 | B14: 2023 | C14: 2 | D14: 11 | E14: 4 | F14: 11.04 | G14: 2.04 | H14: 2022-11-04 | I14: =CHOOSE($A14+1,_xlfn.IFNA(INDEX(USGS!Y:Y,MATCH($H14,USGS!X:X,0)),I13),AVERAGEIF(CNRFC!AR:AR,$H14,CNRFC!AN:AN),AVERAGEIF(Ensemble!GC:GC,$H14,Ensemble!GF:GF),"-") -> 4370 | J14: 4400 | K14: =IF(A14>2,"-",AVERAGE(I12:I14)) -> 4383.333333 | L14: =CHOOSE($A14+1,_xlfn.IFNA(INDEX(USGS!D:D,MATCH($H14,USGS!C:C,0)),I13),AVERAGEIF(CNRFC!AI:AI,$H14,CNRFC!AE:AE),AVERAGEIF(Ensemble!AR:AR,$H14,Ensemble!AT:AT),"-") -> 60.6 | M14: =CHOOSE($A14+1,_xlfn.IFNA(INDEX(USGS!K:K,MATCH($H14,USGS!J:J,0)),I13),AVERAGEIF(CNRFC!Q:Q,$H14,CNRFC!M:M),AVERAGEIF(Ensemble!CM:CM,$H14,Ensemble!CO:CO),"-") -> 38.6 | N14: =CHOOSE($A14+1,_xlfn.IFNA(INDEX(USGS!R:R,MATCH($H14,USGS!Q:Q,0)),I13),AVERAGEIF(CNRFC!Z:Z,$H14,CNRFC!V:V),AVERAGEIF(Ensemble!EH:EH,$H14,Ensemble!EJ:EJ),"-") -> 184 | O14: 283.2 | P14: 298.5 | Q14: =IF(A14>2,"-",AVERAGE(O12:O14)) -> 293.5 | R14: =IF(AND(J14>Control!$F$6,P14>Control!$F$7,U13=1),1,0) -> 0 | S14: =IF(AND(T13>0,T13<Control!$F$8),0,IF(AND(K14<Control!$F$6-500,Q14<Control!$F$7),1,0))*(1-R14) -> 1 | T14: =IF(AND(T13<Control!$F$8,T13>0),T13+1,IF(AND(R14=1,U13=1),1,0)) -> 0 | U14: 1 | V14: 0 | W14: =CHOOSE($W$1+1,99999,IF(AND(G14>=Control!$F$4,G14<=Control!$F$5),IF(T14<>0,V14,99999),0)) -> 99999 | X14: =INDEX(Control!$D$15:$D$26,D14) -> 3250 | Y14: 1120 | Z14: =CHOOSE($A14+1,IF(ISBLANK(INDEX(CDEC!G:G,MATCH($H14,CDEC!J:J,0))),Z13,_xlfn.IFNA(INDEX(CDEC!G:G,MATCH($H14,CDEC!J:J,0)),Z13)),AVERAGEIF(CNRFC!BA:BA,$H14,CNRFC!AW:AW),AVERAGEIF(Ensemble!JT:JT,$H14,Ensemble!JW:JW),"-") -> 3999 | AA14: =INDEX(Control!$E$15:$E$26,D14) -> 4000 | AB14: 0 | AC14: =CHOOSE($A14+1,_xlfn.IFNA(INDEX(USGS!AH:AH,MATCH($H14,USGS!AE:AE,0)),I13),AVERAGEIF(CNRFC!H:H,$H14,CNRFC!D:D),AVERAGEIF(Ensemble!HY:HY,$H14,Ensemble!IA:IA),"-") -> 3400 | AD14: =INDEX(Control!$F$15:$F$26,D14) -> 10700 | AE14: 0 | AF14: -1000 | AG14: 0 | AH14: 0 | AI14: =MIN(INDEX(Control!$G$15:$G$26,D14),AG14) -> 0 | AJ14: =MIN(MAX(AH14-AI14,0),INDEX(Control!$H$15:$H$26,D14)) -> 0 | AK14: 0 | AL14: 2022-11-04 | AP14: 0 | AQ14: 0
A15: 0 | B15: 2023 | C15: 2 | D15: 11 | E15: 5 | F15: 11.05 | G15: 2.05 | H15: 2022-11-05 | I15: =CHOOSE($A15+1,_xlfn.IFNA(INDEX(USGS!Y:Y,MATCH($H15,USGS!X:X,0)),I14),AVERAGEIF(CNRFC!AR:AR,$H15,CNRFC!AN:AN),AVERAGEIF(Ensemble!GC:GC,$H15,Ensemble!GF:GF),"-") -> 4420 | J15: 4456.666667 | K15: 4390 | L15: =CHOOSE($A15+1,_xlfn.IFNA(INDEX(USGS!D:D,MATCH($H15,USGS!C:C,0)),I14),AVERAGEIF(CNRFC!AI:AI,$H15,CNRFC!AE:AE),AVERAGEIF(Ensemble!AR:AR,$H15,Ensemble!AT:AT),"-") -> 61.5 | M15: =CHOOSE($A15+1,_xlfn.IFNA(INDEX(USGS!K:K,MATCH($H15,USGS!J:J,0)),I14),AVERAGEIF(CNRFC!Q:Q,$H15,CNRFC!M:M),AVERAGEIF(Ensemble!CM:CM,$H15,Ensemble!CO:CO),"-") -> 40.7 | N15: =CHOOSE($A15+1,_xlfn.IFNA(INDEX(USGS!R:R,MATCH($H15,USGS!Q:Q,0)),I14),AVERAGEIF(CNRFC!Z:Z,$H15,CNRFC!V:V),AVERAGEIF(Ensemble!EH:EH,$H15,Ensemble!EJ:EJ),"-") -> 189 | O15: 291.2 | P15: 327.2333333 | Q15: 289.5666667 | R15: =IF(AND(J15>Control!$F$6,P15>Control!$F$7,U14=1),1,0) -> 0 | S15: =IF(AND(T14>0,T14<Control!$F$8),0,IF(AND(K15<Control!$F$6-500,Q15<Control!$F$7),1,0))*(1-R15) -> 1 | T15: =IF(AND(T14<Control!$F$8,T14>0),T14+1,IF(AND(R15=1,U14=1),1,0)) -> 0 | U15: 1 | V15: 0 | W15: =CHOOSE($W$1+1,99999,IF(AND(G15>=Control!$F$4,G15<=Control!$F$5),IF(T15<>0,V15,99999),0)) -> 99999 | X15: =INDEX(Control!$D$15:$D$26,D15) -> 3250 | Y15: 1170 | Z15: =CHOOSE($A15+1,IF(ISBLANK(INDEX(CDEC!G:G,MATCH($H15,CDEC!J:J,0))),Z14,_xlfn.IFNA(INDEX(CDEC!G:G,MATCH($H15,CDEC!J:J,0)),Z14)),AVERAGEIF(CNRFC!BA:BA,$H15,CNRFC!AW:AW),AVERAGEIF(Ensemble!JT:JT,$H15,Ensemble!JW:JW),"-") -> 4080 | AA15: =INDEX(Control!$E$15:$E$26,D15) -> 4000 | AB15: 80 | AC15: =CHOOSE($A15+1,_xlfn.IFNA(INDEX(USGS!AH:AH,MATCH($H15,USGS!AE:AE,0)),I14),AVERAGEIF(CNRFC!H:H,$H15,CNRFC!D:D),AVERAGEIF(Ensemble!HY:HY,$H15,Ensemble!IA:IA),"-") -> 3410 | AD15: =INDEX(Control!$F$15:$F$26,D15) -> 10700 | AE15: 0 | AF15: -1000 | AG15: 0 | AH15: 0 | AI15: =MIN(INDEX(Control!$G$15:$G$26,D15),AG15) -> 0 | AJ15: =MIN(MAX(AH15-AI15,0),INDEX(Control!$H$15:$H$26,D15)) -> 0 | AK15: 0 | AL15: 2022-11-05 | AP15: 0 | AQ15: 0
A16: 0 | B16: 2023 | C16: 2 | D16: 11 | E16: 6 | F16: 11.06 | G16: 2.06 | H16: 2022-11-06 | I16: =CHOOSE($A16+1,_xlfn.IFNA(INDEX(USGS!Y:Y,MATCH($H16,USGS!X:X,0)),I15),AVERAGEIF(CNRFC!AR:AR,$H16,CNRFC!AN:AN),AVERAGEIF(Ensemble!GC:GC,$H16,Ensemble!GF:GF),"-") -> 4410 | J16: 4560 | K16: 4400 | L16: =CHOOSE($A16+1,_xlfn.IFNA(INDEX(USGS!D:D,MATCH($H16,USGS!C:C,0)),I15),AVERAGEIF(CNRFC!AI:AI,$H16,CNRFC!AE:AE),AVERAGEIF(Ensemble!AR:AR,$H16,Ensemble!AT:AT),"-") -> 78.7 | M16: =CHOOSE($A16+1,_xlfn.IFNA(INDEX(USGS!K:K,MATCH($H16,USGS!J:J,0)),I15),AVERAGEIF(CNRFC!Q:Q,$H16,CNRFC!M:M),AVERAGEIF(Ensemble!CM:CM,$H16,Ensemble!CO:CO),"-") -> 45.4 | N16: =CHOOSE($A16+1,_xlfn.IFNA(INDEX(USGS!R:R,MATCH($H16,USGS!Q:Q,0)),I15),AVERAGEIF(CNRFC!Z:Z,$H16,CNRFC!V:V),AVERAGEIF(Ensemble!EH:EH,$H16,Ensemble!EJ:EJ),"-") -> 197 | O16: 321.1 | P16: 377.1 | Q16: 298.5 | R16: =IF(AND(J16>Control!$F$6,P16>Control!$F$7,U15=1),1,0) -> 0 | S16: =IF(AND(T15>0,T15<Control!$F$8),0,IF(AND(K16<Control!$F$6-500,Q16<Control!$F$7),1,0))*(1-R16) -> 1 | T16: =IF(AND(T15<Control!$F$8,T15>0),T15+1,IF(AND(R16=1,U15=1),1,0)) -> 0 | U16: 1 | V16: 0 | W16: =CHOOSE($W$1+1,99999,IF(AND(G16>=Control!$F$4,G16<=Control!$F$5),IF(T16<>0,V16,99999),0)) -> 99999 | X16: =INDEX(Control!$D$15:$D$26,D16) -> 3250 | Y16: 1160 | Z16: =CHOOSE($A16+1,IF(ISBLANK(INDEX(CDEC!G:G,MATCH($H16,CDEC!J:J,0))),Z15,_xlfn.IFNA(INDEX(CDEC!G:G,MATCH($H16,CDEC!J:J,0)),Z15)),AVERAGEIF(CNRFC!BA:BA,$H16,CNRFC!AW:AW),AVERAGEIF(Ensemble!JT:JT,$H16,Ensemble!JW:JW),"-") -> 4176 | AA16: =INDEX(Control!$E$15:$E$26,D16) -> 4000 | AB16: 176 | AC16: =CHOOSE($A16+1,_xlfn.IFNA(INDEX(USGS!AH:AH,MATCH($H16,USGS!AE:AE,0)),I15),AVERAGEIF(CNRFC!H:H,$H16,CNRFC!D:D),AVERAGEIF(Ensemble!HY:HY,$H16,Ensemble!IA:IA),"-") -> 3450 | AD16: =INDEX(Control!$F$15:$F$26,D16) -> 10700 | AE16: 0 | AF16: -1000 | AG16: 0 | AH16: 0 | AI16: =MIN(INDEX(Control!$G$15:$G$26,D16),AG16) -> 0 | AJ16: =MIN(MAX(AH16-AI16,0),INDEX(Control!$H$15:$H$26,D16)) -> 0 | AK16: 0 | AL16: 2022-11-06 | AP16: 0 | AQ16: 0
A17: 0 | B17: 2023 | C17: 2 | D17: 11 | E17: 7 | F17: 11.07 | G17: 2.07 | H17: 2022-11-07 | I17: =CHOOSE($A17+1,_xlfn.IFNA(INDEX(USGS!Y:Y,MATCH($H17,USGS!X:X,0)),I16),AVERAGEIF(CNRFC!AR:AR,$H17,CNRFC!AN:AN),AVERAGEIF(Ensemble!GC:GC,$H17,Ensemble!GF:GF),"-") -> 4540 | J17: 4653.333333 | K17: 4456.666667 | L17: =CHOOSE($A17+1,_xlfn.IFNA(INDEX(USGS!D:D,MATCH($H17,USGS!C:C,0)),I16),AVERAGEIF(CNRFC!AI:AI,$H17,CNRFC!AE:AE),AVERAGEIF(Ensemble!AR:AR,$H17,Ensemble!AT:AT),"-") -> 107 | M17: =CHOOSE($A17+1,_xlfn.IFNA(INDEX(USGS!K:K,MATCH($H17,USGS!J:J,0)),I16),AVERAGEIF(CNRFC!Q:Q,$H17,CNRFC!M:M),AVERAGEIF(Ensemble!CM:CM,$H17,Ensemble!CO:CO),"-") -> 51.4 | N17: =CHOOSE($A17+1,_xlfn.IFNA(INDEX(USGS!R:R,MATCH($H17,USGS!Q:Q,0)),I16),AVERAGEIF(CNRFC!Z:Z,$H17,CNRFC!V:V),AVERAGEIF(Ensemble!EH:EH,$H17,Ensemble!EJ:EJ),"-") -> 211 | O17: 369.4 | P17: 463.4 | Q17: 327.2333333 | R17: =IF(AND(J17>Control!$F$6,P17>Control!$F$7,U16=1),1,0) -> 0 | S17: =IF(AND(T16>0,T16<Control!$F$8),0,IF(AND(K17<Control!$F$6-500,Q17<Control!$F$7),1,0))*(1-R17) -> 1 | T17: =IF(AND(T16<Control!$F$8,T16>0),T16+1,IF(AND(R17=1,U16=1),1,0)) -> 0 | U17: =IF(F17=9.01,1,IF(SUM(S11:S17)=7,1,U16))*(1-R17) -> 1 | V17: =IF(A17<3,IF(AND(T17>0,OR(I17>Control!$F$9,SUM(V11:V16)>0)),MAX(I17-Control!$F$10,0),0),0) -> 0 | W17: =CHOOSE($W$1+1,99999,IF(AND(G17>=Control!$F$4,G17<=Control!$F$5),IF(T17<>0,V17,99999),0)) -> 99999 | X17: =INDEX(Control!$D$15:$D$26,D17) -> 3250 | Y17: 1290 | Z17: =CHOOSE($A17+1,IF(ISBLANK(INDEX(CDEC!G:G,MATCH($H17,CDEC!J:J,0))),Z16,_xlfn.IFNA(INDEX(CDEC!G:G,MATCH($H17,CDEC!J:J,0)),Z16)),AVERAGEIF(CNRFC!BA:BA,$H17,CNRFC!AW:AW),AVERAGEIF(Ensemble!JT:JT,$H17,Ensemble!JW:JW),"-") -> 4360 | AA17: =INDEX(Control!$E$15:$E$26,D17) -> 4000 | AB17: 360 | AC17: =CHOOSE($A17+1,_xlfn.IFNA(INDEX(USGS!AH:AH,MATCH($H17,USGS!AE:AE,0)),I16),AVERAGEIF(CNRFC!H:H,$H17,CNRFC!D:D),AVERAGEIF(Ensemble!HY:HY,$H17,Ensemble!IA:IA),"-") -> 3540 | AD17: =INDEX(Control!$F$15:$F$26,D17) -> 10700 | AE17: 0 | AF17: -1000 | AG17: 0 | AH17: 0 | AI17: =MIN(INDEX(Control!$G$15:$G$26,D17),AG17) -> 0 | AJ17: =MIN(MAX(AH17-AI17,0),INDEX(Control!$H$15:$H$26,D17)) -> 0 | AK17: 0 | AL17: 2022-11-07 | AP17: 0 | AQ17: 0
A18: 0 | B18: 2023 | C18: 2 | D18: 11 | E18: 8 | F18: 11.08 | G18: 2.08 | H18: 2022-11-08 | I18: =CHOOSE($A18+1,_xlfn.IFNA(INDEX(USGS!Y:Y,MATCH($H18,USGS!X:X,0)),I17),AVERAGEIF(CNRFC!AR:AR,$H18,CNRFC!AN:AN),AVERAGEIF(Ensemble!GC:GC,$H18,Ensemble!GF:GF),"-") -> 4730 | J18: 4556.666667 | K18: 4560 | L18: =CHOOSE($A18+1,_xlfn.IFNA(INDEX(USGS!D:D,MATCH($H18,USGS!C:C,0)),I17),AVERAGEIF(CNRFC!AI:AI,$H18,CNRFC!AE:AE),AVERAGEIF(Ensemble!AR:AR,$H18,Ensemble!AT:AT),"-") -> 144 | M18: =CHOOSE($A18+1,_xlfn.IFNA(INDEX(USGS!K:K,MATCH($H18,USGS!J:J,0)),I17),AVERAGEIF(CNRFC!Q:Q,$H18,CNRFC!M:M),AVERAGEIF(Ensemble!CM:CM,$H18,Ensemble!CO:CO),"-") -> 65.8 | N18: =CHOOSE($A18+1,_xlfn.IFNA(INDEX(USGS!R:R,MATCH($H18,USGS!Q:Q,0)),I17),AVERAGEIF(CNRFC!Z:Z,$H18,CNRFC!V:V),AVERAGEIF(Ensemble!EH:EH,$H18,Ensemble!EJ:EJ),"-") -> 231 | O18: 440.8 | P18: 480.8333333 | Q18: 377.1 | R18: =IF(AND(J18>Control!$F$6,P18>Control!$F$7,U17=1),1,0) -> 0 | S18: =IF(AND(T17>0,T17<Control!$F$8),0,IF(AND(K18<Control!$F$6-500,Q18<Control!$F$7),1,0))*(1-R18) -> 1 | T18: =IF(AND(T17<Control!$F$8,T17>0),T17+1,IF(AND(R18=1,U17=1),1,0)) -> 0 | U18: 1 | V18: =IF(A18<3,IF(AND(T18>0,OR(I18>Control!$F$9,SUM(V12:V17)>0)),MAX(I18-Control!$F$10,0),0),0) -> 0 | W18: =CHOOSE($W$1+1,99999,IF(AND(G18>=Control!$F$4,G18<=Control!$F$5),IF(T18<>0,V18,99999),0)) -> 99999 | X18: =INDEX(Control!$D$15:$D$26,D18) -> 3250 | Y18: 1480 | Z18: =CHOOSE($A18+1,IF(ISBLANK(INDEX(CDEC!G:G,MATCH($H18,CDEC!J:J,0))),Z17,_xlfn.IFNA(INDEX(CDEC!G:G,MATCH($H18,CDEC!J:J,0)),Z17)),AVERAGEIF(CNRFC!BA:BA,$H18,CNRFC!AW:AW),AVERAGEIF(Ensemble!JT:JT,$H18,Ensemble!JW:JW),"-") -> 4634 | AA18: =INDEX(Control!$E$15:$E$26,D18) -> 4000 | AB18: 634 | AC18: =CHOOSE($A18+1,_xlfn.IFNA(INDEX(USGS!AH:AH,MATCH($H18,USGS!AE:AE,0)),I17),AVERAGEIF(CNRFC!H:H,$H18,CNRFC!D:D),AVERAGEIF(Ensemble!HY:HY,$H18,Ensemble!IA:IA),"-") -> 3710 | AD18: =INDEX(Control!$F$15:$F$26,D18) -> 10700 | AE18: 0 | AF18: -1000 | AG18: 0 | AH18: 0 | AI18: =MIN(INDEX(Control!$G$15:$G$26,D18),AG18) -> 0 | AJ18: =MIN(MAX(AH18-AI18,0),INDEX(Control!$H$15:$H$26,D18)) -> 0 | AK18: 0 | AL18: 2022-11-08 | AP18: 0 | AQ18: 0
A19: 0 | B19: 2023 | C19: 2 | D19: 11 | E19: 9 | F19: 11.09 | G19: 2.09 | H19: 2022-11-09 | I19: =CHOOSE($A19+1,_xlfn.IFNA(INDEX(USGS!Y:Y,MATCH($H19,USGS!X:X,0)),I18),AVERAGEIF(CNRFC!AR:AR,$H19,CNRFC!AN:AN),AVERAGEIF(Ensemble!GC:GC,$H19,Ensemble!GF:GF),"-") -> 4690 | J19: 4346.666667 | K19: 4653.333333 | L19: =CHOOSE($A19+1,_xlfn.IFNA(INDEX(USGS!D:D,MATCH($H19,USGS!C:C,0)),I18),AVERAGEIF(CNRFC!AI:AI,$H19,CNRFC!AE:AE),AVERAGEIF(Ensemble!AR:AR,$H19,Ensemble!AT:AT),"-") -> 208 | M19: =CHOOSE($A19+1,_xlfn.IFNA(INDEX(USGS!K:K,MATCH($H19,USGS!J:J,0)),I18),AVERAGEIF(CNRFC!Q:Q,$H19,CNRFC!M:M),AVERAGEIF(Ensemble!CM:CM,$H19,Ensemble!CO:CO),"-") -> 109 | N19: =CHOOSE($A19+1,_xlfn.IFNA(INDEX(USGS!R:R,MATCH($H19,USGS!Q:Q,0)),I18),AVERAGEIF(CNRFC!Z:Z,$H19,CNRFC!V:V),AVERAGEIF(Ensemble!EH:EH,$H19,Ensemble!EJ:EJ),"-") -> 263 | O19: 580 | P19: 454.9333333 | Q19: 463.4 | R19: =IF(AND(J19>Control!$F$6,P19>Control!$F$7,U18=1),1,0) -> 0 | S19: =IF(AND(T18>0,T18<Control!$F$8),0,IF(AND(K19<Control!$F$6-500,Q19<Control!$F$7),1,0))*(1-R19) -> 1 | T19: =IF(AND(T18<Control!$F$8,T18>0),T18+1,IF(AND(R19=1,U18=1),1,0)) -> 0 | U19: 1 | V19: =IF(A19<3,IF(AND(T19>0,OR(I19>Control!$F$9,SUM(V13:V18)>0)),MAX(I19-Control!$F$10,0),0),0) -> 0 | W19: =CHOOSE($W$1+1,99999,IF(AND(G19>=Control!$F$4,G19<=Control!$F$5),IF(T19<>0,V19,99999),0)) -> 99999 | X19: =INDEX(Control!$D$15:$D$26,D19) -> 3250 | Y19: 1440 | Z19: =CHOOSE($A19+1,IF(ISBLANK(INDEX(CDEC!G:G,MATCH($H19,CDEC!J:J,0))),Z18,_xlfn.IFNA(INDEX(CDEC!G:G,MATCH($H19,CDEC!J:J,0)),Z18)),AVERAGEIF(CNRFC!BA:BA,$H19,CNRFC!AW:AW),AVERAGEIF(Ensemble!JT:JT,$H19,Ensemble!JW:JW),"-") -> 5017 | AA19: =INDEX(Control!$E$15:$E$26,D19) -> 4000 | AB19: 1017 | AC19: =CHOOSE($A19+1,_xlfn.IFNA(INDEX(USGS!AH:AH,MATCH($H19,USGS!AE:AE,0)),I18),AVERAGEIF(CNRFC!H:H,$H19,CNRFC!D:D),AVERAGEIF(Ensemble!HY:HY,$H19,Ensemble!IA:IA),"-") -> 3920 | AD19: =INDEX(Control!$F$15:$F$26,D19) -> 10700 | AE19: 0 | AF19: -1000 | AG19: 0 | AH19: 0 | AI19: =MIN(INDEX(Control!$G$15:$G$26,D19),AG19) -> 0 | AJ19: =MIN(MAX(AH19-AI19,0),INDEX(Control!$H$15:$H$26,D19)) -> 0 | AK19: 0 | AL19: 2022-11-09 | AP19: 0 | AQ19: 0
A20: 0 | B20: 2023 | C20: 2 | D20: 11 | E20: 10 | F20: 11.1 | G20: 2.1 | H20: 2022-11-10 | I20: =CHOOSE($A20+1,_xlfn.IFNA(INDEX(USGS!Y:Y,MATCH($H20,USGS!X:X,0)),I19),AVERAGEIF(CNRFC!AR:AR,$H20,CNRFC!AN:AN),AVERAGEIF(Ensemble!GC:GC,$H20,Ensemble!GF:GF),"-") -> 4250 | J20: 4146.666667 | K20: 4556.666667 | L20: =CHOOSE($A20+1,_xlfn.IFNA(INDEX(USGS!D:D,MATCH($H20,USGS!C:C,0)),I19),AVERAGEIF(CNRFC!AI:AI,$H20,CNRFC!AE:AE),AVERAGEIF(Ensemble!AR:AR,$H20,Ensemble!AT:AT),"-") -> 116 | M20: =CHOOSE($A20+1,_xlfn.IFNA(INDEX(USGS!K:K,MATCH($H20,USGS!J:J,0)),I19),AVERAGEIF(CNRFC!Q:Q,$H20,CNRFC!M:M),AVERAGEIF(Ensemble!CM:CM,$H20,Ensemble!CO:CO),"-") -> 96.7 | N20: =CHOOSE($A20+1,_xlfn.IFNA(INDEX(USGS!R:R,MATCH($H20,USGS!Q:Q,0)),I19),AVERAGEIF(CNRFC!Z:Z,$H20,CNRFC!V:V),AVERAGEIF(Ensemble!EH:EH,$H20,Ensemble!EJ:EJ),"-") -> 209 | O20: 421.7 | P20: 377.2 | Q20: 480.8333333 | R20: =IF(AND(J20>Control!$F$6,P20>Control!$F$7,U19=1),1,0) -> 0 | S20: =IF(AND(T19>0,T19<Control!$F$8),0,IF(AND(K20<Control!$F$6-500,Q20<Control!$F$7),1,0))*(1-R20) -> 1 | T20: =IF(AND(T19<Control!$F$8,T19>0),T19+1,IF(AND(R20=1,U19=1),1,0)) -> 0 | U20: 1 | V20: =IF(A20<3,IF(AND(T20>0,OR(I20>Control!$F$9,SUM(V14:V19)>0)),MAX(I20-Control!$F$10,0),0),0) -> 0 | W20: =CHOOSE($W$1+1,99999,IF(AND(G20>=Control!$F$4,G20<=Control!$F$5),IF(T20<>0,V20,99999),0)) -> 99999 | X20: =INDEX(Control!$D$15:$D$26,D20) -> 3250 | Y20: 1000 | Z20: =CHOOSE($A20+1,IF(ISBLANK(INDEX(CDEC!G:G,MATCH($H20,CDEC!J:J,0))),Z19,_xlfn.IFNA(INDEX(CDEC!G:G,MATCH($H20,CDEC!J:J,0)),Z19)),AVERAGEIF(CNRFC!BA:BA,$H20,CNRFC!AW:AW),AVERAGEIF(Ensemble!JT:JT,$H20,Ensemble!JW:JW),"-") -> 4724 | AA20: =INDEX(Control!$E$15:$E$26,D20) -> 4000 | AB20: 724 | AC20: =CHOOSE($A20+1,_xlfn.IFNA(INDEX(USGS!AH:AH,MATCH($H20,USGS!AE:AE,0)),I19),AVERAGEIF(CNRFC!H:H,$H20,CNRFC!D:D),AVERAGEIF(Ensemble!HY:HY,$H20,Ensemble!IA:IA),"-") -> 4110 | AD20: =INDEX(Control!$F$15:$F$26,D20) -> 10700 | AE20: 0 | AF20: -1000 | AG20: 0 | AH20: 0 | AI20: =MIN(INDEX(Control!$G$15:$G$26,D20),AG20) -> 0 | AJ20: =MIN(MAX(AH20-AI20,0),INDEX(Control!$H$15:$H$26,D20)) -> 0 | AK20: 0 | AL20: 2022-11-10 | AP20: 0 | AQ20: 0
A21: 0 | B21: 2023 | C21: 2 | D21: 11 | E21: 11 | F21: 11.11 | G21: 2.11 | H21: 2022-11-11 | I21: =CHOOSE($A21+1,_xlfn.IFNA(INDEX(USGS!Y:Y,MATCH($H21,USGS!X:X,0)),I20),AVERAGEIF(CNRFC!AR:AR,$H21,CNRFC!AN:AN),AVERAGEIF(Ensemble!GC:GC,$H21,Ensemble!GF:GF),"-") -> 4100 | J21: 4093.333333 | K21: 4346.666667 | L21: =CHOOSE($A21+1,_xlfn.IFNA(INDEX(USGS!D:D,MATCH($H21,USGS!C:C,0)),I20),AVERAGEIF(CNRFC!AI:AI,$H21,CNRFC!AE:AE),AVERAGEIF(Ensemble!AR:AR,$H21,Ensemble!AT:AT),"-") -> 85.6 | M21: =CHOOSE($A21+1,_xlfn.IFNA(INDEX(USGS!K:K,MATCH($H21,USGS!J:J,0)),I20),AVERAGEIF(CNRFC!Q:Q,$H21,CNRFC!M:M),AVERAGEIF(Ensemble!CM:CM,$H21,Ensemble!CO:CO),"-") -> 79.5 | N21: =CHOOSE($A21+1,_xlfn.IFNA(INDEX(USGS!R:R,MATCH($H21,USGS!Q:Q,0)),I20),AVERAGEIF(CNRFC!Z:Z,$H21,CNRFC!V:V),AVERAGEIF(Ensemble!EH:EH,$H21,Ensemble!EJ:EJ),"-") -> 198 | O21: 363.1 | P21: 350.5333333 | Q21: 454.9333333 | R21: =IF(AND(J21>Control!$F$6,P21>Control!$F$7,U20=1),1,0) -> 0 | S21: =IF(AND(T20>0,T20<Control!$F$8),0,IF(AND(K21<Control!$F$6-500,Q21<Control!$F$7),1,0))*(1-R21) -> 1 | T21: =IF(AND(T20<Control!$F$8,T20>0),T20+1,IF(AND(R21=1,U20=1),1,0)) -> 0 | U21: 1 | V21: =IF(A21<3,IF(AND(T21>0,OR(I21>Control!$F$9,SUM(V15:V20)>0)),MAX(I21-Control!$F$10,0),0),0) -> 0 | W21: =CHOOSE($W$1+1,99999,IF(AND(G21>=Control!$F$4,G21<=Control!$F$5),IF(T21<>0,V21,99999),0)) -> 99999 | X21: =INDEX(Control!$D$15:$D$26,D21) -> 3250 | Y21: 850 | Z21: =CHOOSE($A21+1,IF(ISBLANK(INDEX(CDEC!G:G,MATCH($H21,CDEC!J:J,0))),Z20,_xlfn.IFNA(INDEX(CDEC!G:G,MATCH($H21,CDEC!J:J,0)),Z20)),AVERAGEIF(CNRFC!BA:BA,$H21,CNRFC!AW:AW),AVERAGEIF(Ensemble!JT:JT,$H21,Ensemble!JW:JW),"-") -> 4139 | AA21: =INDEX(Control!$E$15:$E$26,D21) -> 4000 | AB21: 139 | AC21: =CHOOSE($A21+1,_xlfn.IFNA(INDEX(USGS!AH:AH,MATCH($H21,USGS!AE:AE,0)),I20),AVERAGEIF(CNRFC!H:H,$H21,CNRFC!D:D),AVERAGEIF(Ensemble!HY:HY,$H21,Ensemble!IA:IA),"-") -> 4070 | AD21: =INDEX(Control!$F$15:$F$26,D21) -> 10700 | AE21: 0 | AF21: -1000 | AG21: 0 | AH21: 0 | AI21: =MIN(INDEX(Control!$G$15:$G$26,D21),AG21) -> 0 | AJ21: =MIN(MAX(AH21-AI21,0),INDEX(Control!$H$15:$H$26,D21)) -> 0 | AK21: 0 | AL21: 2022-11-11 | AP21: 0 | AQ21: 0
A22: 0 | B22: 2023 | C22: 2 | D22: 11 | E22: 12 | F22: 11.12 | G22: 2.12 | H22: 2022-11-12 | I22: =CHOOSE($A22+1,_xlfn.IFNA(INDEX(USGS!Y:Y,MATCH($H22,USGS!X:X,0)),I21),AVERAGEIF(CNRFC!AR:AR,$H22,CNRFC!AN:AN),AVERAGEIF(Ensemble!GC:GC,$H22,Ensemble!GF:GF),"-") -> 4090 | J22: 4083.333333 | K22: 4146.666667 | L22: =CHOOSE($A22+1,_xlfn.IFNA(INDEX(USGS!D:D,MATCH($H22,USGS!C:C,0)),I21),AVERAGEIF(CNRFC!AI:AI,$H22,CNRFC!AE:AE),AVERAGEIF(Ensemble!AR:AR,$H22,Ensemble!AT:AT),"-") -> 79.7 | M22: =CHOOSE($A22+1,_xlfn.IFNA(INDEX(USGS!K:K,MATCH($H22,USGS!J:J,0)),I21),AVERAGEIF(CNRFC!Q:Q,$H22,CNRFC!M:M),AVERAGEIF(Ensemble!CM:CM,$H22,Ensemble!CO:CO),"-") -> 71.1 | N22: =CHOOSE($A22+1,_xlfn.IFNA(INDEX(USGS!R:R,MATCH($H22,USGS!Q:Q,0)),I21),AVERAGEIF(CNRFC!Z:Z,$H22,CNRFC!V:V),AVERAGEIF(Ensemble!EH:EH,$H22,Ensemble!EJ:EJ),"-") -> 196 | O22: 346.8 | P22: 338.7 | Q22: 377.2 | R22: =IF(AND(J22>Control!$F$6,P22>Control!$F$7,U21=1),1,0) -> 0 | S22: =IF(AND(T21>0,T21<Control!$F$8),0,IF(AND(K22<Control!$F$6-500,Q22<Control!$F$7),1,0))*(1-R22) -> 1 | T22: =IF(AND(T21<Control!$F$8,T21>0),T21+1,IF(AND(R22=1,U21=1),1,0)) -> 0 | U22: 1 | V22: =IF(A22<3,IF(AND(T22>0,OR(I22>Control!$F$9,SUM(V16:V21)>0)),MAX(I22-Control!$F$10,0),0),0) -> 0 | W22: =CHOOSE($W$1+1,99999,IF(AND(G22>=Control!$F$4,G22<=Control!$F$5),IF(T22<>0,V22,99999),0)) -> 99999 | X22: =INDEX(Control!$D$15:$D$26,D22) -> 3250 | Y22: 840 | Z22: =CHOOSE($A22+1,IF(ISBLANK(INDEX(CDEC!G:G,MATCH($H22,CDEC!J:J,0))),Z21,_xlfn.IFNA(INDEX(CDEC!G:G,MATCH($H22,CDEC!J:J,0)),Z21)),AVERAGEIF(CNRFC!BA:BA,$H22,CNRFC!AW:AW),AVERAGEIF(Ensemble!JT:JT,$H22,Ensemble!JW:JW),"-") -> 3897 | AA22: =INDEX(Control!$E$15:$E$26,D22) -> 4000 | AB22: 0 | AC22: =CHOOSE($A22+1,_xlfn.IFNA(INDEX(USGS!AH:AH,MATCH($H22,USGS!AE:AE,0)),I21),AVERAGEIF(CNRFC!H:H,$H22,CNRFC!D:D),AVERAGEIF(Ensemble!HY:HY,$H22,Ensemble!IA:IA),"-") -> 3740 | AD22: =INDEX(Control!$F$15:$F$26,D22) -> 10700 | AE22: 0 | AF22: -1000 | AG22: 0 | AH22: 0 | AI22: =MIN(INDEX(Control!$G$15:$G$26,D22),AG22) -> 0 | AJ22: =MIN(MAX(AH22-AI22,0),INDEX(Control!$H$15:$H$26,D22)) -> 0 | AK22: 0 | AL22: 2022-11-12 | AP22: 0 | AQ22: 0
A23: 0 | B23: 2023 | C23: 2 | D23: 11 | E23: 13 | F23: 11.13 | G23: 2.13 | H23: 2022-11-13 | I23: =CHOOSE($A23+1,_xlfn.IFNA(INDEX(USGS!Y:Y,MATCH($H23,USGS!X:X,0)),I22),AVERAGEIF(CNRFC!AR:AR,$H23,CNRFC!AN:AN),AVERAGEIF(Ensemble!GC:GC,$H23,Ensemble!GF:GF),"-") -> 4090 | J23: 4063.333333 | K23: 4093.333333 | L23: =CHOOSE($A23+1,_xlfn.IFNA(INDEX(USGS!D:D,MATCH($H23,USGS!C:C,0)),I22),AVERAGEIF(CNRFC!AI:AI,$H23,CNRFC!AE:AE),AVERAGEIF(Ensemble!AR:AR,$H23,Ensemble!AT:AT),"-") -> 84.2 | M23: =CHOOSE($A23+1,_xlfn.IFNA(INDEX(USGS!K:K,MATCH($H23,USGS!J:J,0)),I22),AVERAGEIF(CNRFC!Q:Q,$H23,CNRFC!M:M),AVERAGEIF(Ensemble!CM:CM,$H23,Ensemble!CO:CO),"-") -> 65.5 | N23: =CHOOSE($A23+1,_xlfn.IFNA(INDEX(USGS!R:R,MATCH($H23,USGS!Q:Q,0)),I22),AVERAGEIF(CNRFC!Z:Z,$H23,CNRFC!V:V),AVERAGEIF(Ensemble!EH:EH,$H23,Ensemble!EJ:EJ),"-") -> 192 | O23: 341.7 | P23: 329.7 | Q23: 350.5333333 | R23: =IF(AND(J23>Control!$F$6,P23>Control!$F$7,U22=1),1,0) -> 0 | S23: =IF(AND(T22>0,T22<Control!$F$8),0,IF(AND(K23<Control!$F$6-500,Q23<Control!$F$7),1,0))*(1-R23) -> 1 | T23: =IF(AND(T22<Control!$F$8,T22>0),T22+1,IF(AND(R23=1,U22=1),1,0)) -> 0 | U23: 1 | V23: =IF(A23<3,IF(AND(T23>0,OR(I23>Control!$F$9,SUM(V17:V22)>0)),MAX(I23-Control!$F$10,0),0),0) -> 0 | W23: =CHOOSE($W$1+1,99999,IF(AND(G23>=Control!$F$4,G23<=Control!$F$5),IF(T23<>0,V23,99999),0)) -> 99999 | X23: =INDEX(Control!$D$15:$D$26,D23) -> 3250 | Y23: 840 | Z23: =CHOOSE($A23+1,IF(ISBLANK(INDEX(CDEC!G:G,MATCH($H23,CDEC!J:J,0))),Z22,_xlfn.IFNA(INDEX(CDEC!G:G,MATCH($H23,CDEC!J:J,0)),Z22)),AVERAGEIF(CNRFC!BA:BA,$H23,CNRFC!AW:AW),AVERAGEIF(Ensemble!JT:JT,$H23,Ensemble!JW:JW),"-") -> 3924 | AA23: =INDEX(Control!$E$15:$E$26,D23) -> 4000 | AB23: 0 | AC23: =CHOOSE($A23+1,_xlfn.IFNA(INDEX(USGS!AH:AH,MATCH($H23,USGS!AE:AE,0)),I22),AVERAGEIF(CNRFC!H:H,$H23,CNRFC!D:D),AVERAGEIF(Ensemble!HY:HY,$H23,Ensemble!IA:IA),"-") -> 3450 | AD23: =INDEX(Control!$F$15:$F$26,D23) -> 10700 | AE23: 0 | AF23: -1000 | AG23: 0 | AH23: 0 | AI23: =MIN(INDEX(Control!$G$15:$G$26,D23),AG23) -> 0 | AJ23: =MIN(MAX(AH23-AI23,0),INDEX(Control!$H$15:$H$26,D23)) -> 0 | AK23: 0 | AL23: 2022-11-13 | AP23: 0 | AQ23: 0
A24: 0 | B24: 2023 | C24: 2 | D24: 11 | E24: 14 | F24: 11.14 | G24: 2.14 | H24: 2022-11-14 | I24: =CHOOSE($A24+1,_xlfn.IFNA(INDEX(USGS!Y:Y,MATCH($H24,USGS!X:X,0)),I23),AVERAGEIF(CNRFC!AR:AR,$H24,CNRFC!AN:AN),AVERAGEIF(Ensemble!GC:GC,$H24,Ensemble!GF:GF),"-") -> 4070 | J24: 4016.666667 | K24: 4083.333333 | L24: =CHOOSE($A24+1,_xlfn.IFNA(INDEX(USGS!D:D,MATCH($H24,USGS!C:C,0)),I23),AVERAGEIF(CNRFC!AI:AI,$H24,CNRFC!AE:AE),AVERAGEIF(Ensemble!AR:AR,$H24,Ensemble!AT:AT),"-") -> 74.4 | M24: =CHOOSE($A24+1,_xlfn.IFNA(INDEX(USGS!K:K,MATCH($H24,USGS!J:J,0)),I23),AVERAGEIF(CNRFC!Q:Q,$H24,CNRFC!M:M),AVERAGEIF(Ensemble!CM:CM,$H24,Ensemble!CO:CO),"-") -> 62.2 | N24: =CHOOSE($A24+1,_xlfn.IFNA(INDEX(USGS!R:R,MATCH($H24,USGS!Q:Q,0)),I23),AVERAGEIF(CNRFC!Z:Z,$H24,CNRFC!V:V),AVERAGEIF(Ensemble!EH:EH,$H24,Ensemble!EJ:EJ),"-") -> 191 | O24: 327.6 | P24: 321.4666667 | Q24: 338.7 | R24: =IF(AND(J24>Control!$F$6,P24>Control!$F$7,U23=1),1,0) -> 0 | S24: =IF(AND(T23>0,T23<Control!$F$8),0,IF(AND(K24<Control!$F$6-500,Q24<Control!$F$7),1,0))*(1-R24) -> 1 | T24: =IF(AND(T23<Control!$F$8,T23>0),T23+1,IF(AND(R24=1,U23=1),1,0)) -> 0 | U24: 1 | V24: =IF(A24<3,IF(AND(T24>0,OR(I24>Control!$F$9,SUM(V18:V23)>0)),MAX(I24-Control!$F$10,0),0),0) -> 0 | W24: =CHOOSE($W$1+1,99999,IF(AND(G24>=Control!$F$4,G24<=Control!$F$5),IF(T24<>0,V24,99999),0)) -> 99999 | X24: =INDEX(Control!$D$15:$D$26,D24) -> 3250 | Y24: 820 | Z24: =CHOOSE($A24+1,IF(ISBLANK(INDEX(CDEC!G:G,MATCH($H24,CDEC!J:J,0))),Z23,_xlfn.IFNA(INDEX(CDEC!G:G,MATCH($H24,CDEC!J:J,0)),Z23)),AVERAGEIF(CNRFC!BA:BA,$H24,CNRFC!AW:AW),AVERAGEIF(Ensemble!JT:JT,$H24,Ensemble!JW:JW),"-") -> 3901 | AA24: =INDEX(Control!$E$15:$E$26,D24) -> 4000 | AB24: 0 | AC24: =CHOOSE($A24+1,_xlfn.IFNA(INDEX(USGS!AH:AH,MATCH($H24,USGS!AE:AE,0)),I23),AVERAGEIF(CNRFC!H:H,$H24,CNRFC!D:D),AVERAGEIF(Ensemble!HY:HY,$H24,Ensemble!IA:IA),"-") -> 3450 | AD24: =INDEX(Control!$F$15:$F$26,D24) -> 10700 | AE24: 0 | AF24: -1000 | AG24: 0 | AH24: 0 | AI24: =MIN(INDEX(Control!$G$15:$G$26,D24),AG24) -> 0 | AJ24: =MIN(MAX(AH24-AI24,0),INDEX(Control!$H$15:$H$26,D24)) -> 0 | AK24: 0 | AL24: 2022-11-14 | AP24: 0 | AQ24: 0
A25: 0 | B25: 2023 | C25: 2 | D25: 11 | E25: 15 | F25: 11.15 | G25: 2.15 | H25: 2022-11-15 | I25: =CHOOSE($A25+1,_xlfn.IFNA(INDEX(USGS!Y:Y,MATCH($H25,USGS!X:X,0)),I24),AVERAGEIF(CNRFC!AR:AR,$H25,CNRFC!AN:AN),AVERAGEIF(Ensemble!GC:GC,$H25,Ensemble!GF:GF),"-") -> 4030 | J25: 3953.333333 | K25: 4063.333333 | L25: =CHOOSE($A25+1,_xlfn.IFNA(INDEX(USGS!D:D,MATCH($H25,USGS!C:C,0)),I24),AVERAGEIF(CNRFC!AI:AI,$H25,CNRFC!AE:AE),AVERAGEIF(Ensemble!AR:AR,$H25,Ensemble!AT:AT),"-") -> 69.4 | M25: =CHOOSE($A25+1,_xlfn.IFNA(INDEX(USGS!K:K,MATCH($H25,USGS!J:J,0)),I24),AVERAGEIF(CNRFC!Q:Q,$H25,CNRFC!M:M),AVERAGEIF(Ensemble!CM:CM,$H25,Ensemble!CO:CO),"-") -> 60.4 | N25: =CHOOSE($A25+1,_xlfn.IFNA(INDEX(USGS!R:R,MATCH($H25,USGS!Q:Q,0)),I24),AVERAGEIF(CNRFC!Z:Z,$H25,CNRFC!V:V),AVERAGEIF(Ensemble!EH:EH,$H25,Ensemble!EJ:EJ),"-") -> 190 | O25: 319.8 | P25: 317.1666667 | Q25: 329.7 | R25: =IF(AND(J25>Control!$F$6,P25>Control!$F$7,U24=1),1,0) -> 0 | S25: =IF(AND(T24>0,T24<Control!$F$8),0,IF(AND(K25<Control!$F$6-500,Q25<Control!$F$7),1,0))*(1-R25) -> 1 | T25: =IF(AND(T24<Control!$F$8,T24>0),T24+1,IF(AND(R25=1,U24=1),1,0)) -> 0 | U25: 1 | V25: =IF(A25<3,IF(AND(T25>0,OR(I25>Control!$F$9,SUM(V19:V24)>0)),MAX(I25-Control!$F$10,0),0),0) -> 0 | W25: =CHOOSE($W$1+1,99999,IF(AND(G25>=Control!$F$4,G25<=Control!$F$5),IF(T25<>0,V25,99999),0)) -> 99999 | X25: =INDEX(Control!$D$15:$D$26,D25) -> 3250 | Y25: 780 | Z25: =CHOOSE($A25+1,IF(ISBLANK(INDEX(CDEC!G:G,MATCH($H25,CDEC!J:J,0))),Z24,_xlfn.IFNA(INDEX(CDEC!G:G,MATCH($H25,CDEC!J:J,0)),Z24)),AVERAGEIF(CNRFC!BA:BA,$H25,CNRFC!AW:AW),AVERAGEIF(Ensemble!JT:JT,$H25,Ensemble!JW:JW),"-") -> 3873 | AA25: =INDEX(Control!$E$15:$E$26,D25) -> 4000 | AB25: 0 | AC25: =CHOOSE($A25+1,_xlfn.IFNA(INDEX(USGS!AH:AH,MATCH($H25,USGS!AE:AE,0)),I24),AVERAGEIF(CNRFC!H:H,$H25,CNRFC!D:D),AVERAGEIF(Ensemble!HY:HY,$H25,Ensemble!IA:IA),"-") -> 3410 | AD25: =INDEX(Control!$F$15:$F$26,D25) -> 10700 | AE25: 0 | AF25: -1000 | AG25: 0 | AH25: 0 | AI25: =MIN(INDEX(Control!$G$15:$G$26,D25),AG25) -> 0 | AJ25: =MIN(MAX(AH25-AI25,0),INDEX(Control!$H$15:$H$26,D25)) -> 0 | AK25: 0 | AL25: 2022-11-15 | AP25: 0 | AQ25: 0
A26: 0 | B26: 2023 | C26: 2 | D26: 11 | E26: 16 | F26: 11.16 | G26: 2.16 | H26: 2022-11-16 | I26: =CHOOSE($A26+1,_xlfn.IFNA(INDEX(USGS!Y:Y,MATCH($H26,USGS!X:X,0)),I25),AVERAGEIF(CNRFC!AR:AR,$H26,CNRFC!AN:AN),AVERAGEIF(Ensemble!GC:GC,$H26,Ensemble!GF:GF),"-") -> 3950 | J26: 3870 | K26: 4016.666667 | L26: =CHOOSE($A26+1,_xlfn.IFNA(INDEX(USGS!D:D,MATCH($H26,USGS!C:C,0)),I25),AVERAGEIF(CNRFC!AI:AI,$H26,CNRFC!AE:AE),AVERAGEIF(Ensemble!AR:AR,$H26,Ensemble!AT:AT),"-") -> 66.4 | M26: =CHOOSE($A26+1,_xlfn.IFNA(INDEX(USGS!K:K,MATCH($H26,USGS!J:J,0)),I25),AVERAGEIF(CNRFC!Q:Q,$H26,CNRFC!M:M),AVERAGEIF(Ensemble!CM:CM,$H26,Ensemble!CO:CO),"-") -> 57.6 | N26: =CHOOSE($A26+1,_xlfn.IFNA(INDEX(USGS!R:R,MATCH($H26,USGS!Q:Q,0)),I25),AVERAGEIF(CNRFC!Z:Z,$H26,CNRFC!V:V),AVERAGEIF(Ensemble!EH:EH,$H26,Ensemble!EJ:EJ),"-") -> 193 | O26: 317 | P26: 315.8666667 | Q26: 321.4666667 | R26: =IF(AND(J26>Control!$F$6,P26>Control!$F$7,U25=1),1,0) -> 0 | S26: =IF(AND(T25>0,T25<Control!$F$8),0,IF(AND(K26<Control!$F$6-500,Q26<Control!$F$7),1,0))*(1-R26) -> 1 | T26: =IF(AND(T25<Control!$F$8,T25>0),T25+1,IF(AND(R26=1,U25=1),1,0)) -> 0 | U26: 1 | V26: =IF(A26<3,IF(AND(T26>0,OR(I26>Control!$F$9,SUM(V20:V25)>0)),MAX(I26-Control!$F$10,0),0),0) -> 0 | W26: =CHOOSE($W$1+1,99999,IF(AND(G26>=Control!$F$4,G26<=Control!$F$5),IF(T26<>0,V26,99999),0)) -> 99999 | X26: =INDEX(Control!$D$15:$D$26,D26) -> 3250 | Y26: 700 | Z26: =CHOOSE($A26+1,IF(ISBLANK(INDEX(CDEC!G:G,MATCH($H26,CDEC!J:J,0))),Z25,_xlfn.IFNA(INDEX(CDEC!G:G,MATCH($H26,CDEC!J:J,0)),Z25)),AVERAGEIF(CNRFC!BA:BA,$H26,CNRFC!AW:AW),AVERAGEIF(Ensemble!JT:JT,$H26,Ensemble!JW:JW),"-") -> 3795 | AA26: =INDEX(Control!$E$15:$E$26,D26) -> 4000 | AB26: 0 | AC26: =CHOOSE($A26+1,_xlfn.IFNA(INDEX(USGS!AH:AH,MATCH($H26,USGS!AE:AE,0)),I25),AVERAGEIF(CNRFC!H:H,$H26,CNRFC!D:D),AVERAGEIF(Ensemble!HY:HY,$H26,Ensemble!IA:IA),"-") -> 3400 | AD26: =INDEX(Control!$F$15:$F$26,D26) -> 10700 | AE26: 0 | AF26: -1000 | AG26: 0 | AH26: 0 | AI26: =MIN(INDEX(Control!$G$15:$G$26,D26),AG26) -> 0 | AJ26: =MIN(MAX(AH26-AI26,0),INDEX(Control!$H$15:$H$26,D26)) -> 0 | AK26: 0 | AL26: 2022-11-16 | AP26: 0 | AQ26: 0
A27: 0 | B27: 2023 | C27: 2 | D27: 11 | E27: 17 | F27: 11.17 | G27: 2.17 | H27: 2022-11-17 | I27: =CHOOSE($A27+1,_xlfn.IFNA(INDEX(USGS!Y:Y,MATCH($H27,USGS!X:X,0)),I26),AVERAGEIF(CNRFC!AR:AR,$H27,CNRFC!AN:AN),AVERAGEIF(Ensemble!GC:GC,$H27,Ensemble!GF:GF),"-") -> 3880 | J27: 3793.333333 | K27: 3953.333333 | L27: =CHOOSE($A27+1,_xlfn.IFNA(INDEX(USGS!D:D,MATCH($H27,USGS!C:C,0)),I26),AVERAGEIF(CNRFC!AI:AI,$H27,CNRFC!AE:AE),AVERAGEIF(Ensemble!AR:AR,$H27,Ensemble!AT:AT),"-") -> 66.2 | M27: =CHOOSE($A27+1,_xlfn.IFNA(INDEX(USGS!K:K,MATCH($H27,USGS!J:J,0)),I26),AVERAGEIF(CNRFC!Q:Q,$H27,CNRFC!M:M),AVERAGEIF(Ensemble!CM:CM,$H27,Ensemble!CO:CO),"-") -> 56.5 | N27: =CHOOSE($A27+1,_xlfn.IFNA(INDEX(USGS!R:R,MATCH($H27,USGS!Q:Q,0)),I26),AVERAGEIF(CNRFC!Z:Z,$H27,CNRFC!V:V),AVERAGEIF(Ensemble!EH:EH,$H27,Ensemble!EJ:EJ),"-") -> 192 | O27: 314.7 | P27: 312.5333333 | Q27: 317.1666667 | R27: =IF(AND(J27>Control!$F$6,P27>Control!$F$7,U26=1),1,0) -> 0 | S27: =IF(AND(T26>0,T26<Control!$F$8),0,IF(AND(K27<Control!$F$6-500,Q27<Control!$F$7),1,0))*(1-R27) -> 1 | T27: =IF(AND(T26<Control!$F$8,T26>0),T26+1,IF(AND(R27=1,U26=1),1,0)) -> 0 | U27: 1 | V27: =IF(A27<3,IF(AND(T27>0,OR(I27>Control!$F$9,SUM(V21:V26)>0)),MAX(I27-Control!$F$10,0),0),0) -> 0 | W27: =CHOOSE($W$1+1,99999,IF(AND(G27>=Control!$F$4,G27<=Control!$F$5),IF(T27<>0,V27,99999),0)) -> 99999 | X27: =INDEX(Control!$D$15:$D$26,D27) -> 3250 | Y27: 630 | Z27: =CHOOSE($A27+1,IF(ISBLANK(INDEX(CDEC!G:G,MATCH($H27,CDEC!J:J,0))),Z26,_xlfn.IFNA(INDEX(CDEC!G:G,MATCH($H27,CDEC!J:J,0)),Z26)),AVERAGEIF(CNRFC!BA:BA,$H27,CNRFC!AW:AW),AVERAGEIF(Ensemble!JT:JT,$H27,Ensemble!JW:JW),"-") -> 3698 | AA27: =INDEX(Control!$E$15:$E$26,D27) -> 4000 | AB27: 0 | AC27: =CHOOSE($A27+1,_xlfn.IFNA(INDEX(USGS!AH:AH,MATCH($H27,USGS!AE:AE,0)),I26),AVERAGEIF(CNRFC!H:H,$H27,CNRFC!D:D),AVERAGEIF(Ensemble!HY:HY,$H27,Ensemble!IA:IA),"-") -> 3370 | AD27: =INDEX(Control!$F$15:$F$26,D27) -> 10700 | AE27: 0 | AF27: -1000 | AG27: 0 | AH27: 0 | AI27: =MIN(INDEX(Control!$G$15:$G$26,D27),AG27) -> 0 | AJ27: =MIN(MAX(AH27-AI27,0),INDEX(Control!$H$15:$H$26,D27)) -> 0 | AK27: 0 | AL27: 2022-11-17 | AP27: 0 | AQ27: 0
A28: 0 | B28: 2023 | C28: 2 | D28: 11 | E28: 18 | F28: 11.18 | G28: 2.18 | H28: 2022-11-18 | I28: =CHOOSE($A28+1,_xlfn.IFNA(INDEX(USGS!Y:Y,MATCH($H28,USGS!X:X,0)),I27),AVERAGEIF(CNRFC!AR:AR,$H28,CNRFC!AN:AN),AVERAGEIF(Ensemble!GC:GC,$H28,Ensemble!GF:GF),"-") -> 3780 | J28: 3730 | K28: 3870 | L28: =CHOOSE($A28+1,_xlfn.IFNA(INDEX(USGS!D:D,MATCH($H28,USGS!C:C,0)),I27),AVERAGEIF(CNRFC!AI:AI,$H28,CNRFC!AE:AE),AVERAGEIF(Ensemble!AR:AR,$H28,Ensemble!AT:AT),"-") -> 66.4 | M28: =CHOOSE($A28+1,_xlfn.IFNA(INDEX(USGS!K:K,MATCH($H28,USGS!J:J,0)),I27),AVERAGEIF(CNRFC!Q:Q,$H28,CNRFC!M:M),AVERAGEIF(Ensemble!CM:CM,$H28,Ensemble!CO:CO),"-") -> 55.5 | N28: =CHOOSE($A28+1,_xlfn.IFNA(INDEX(USGS!R:R,MATCH($H28,USGS!Q:Q,0)),I27),AVERAGEIF(CNRFC!Z:Z,$H28,CNRFC!V:V),AVERAGEIF(Ensemble!EH:EH,$H28,Ensemble!EJ:EJ),"-") -> 194 | O28: 315.9 | P28: 309.3333333 | Q28: 315.8666667 | R28: =IF(AND(J28>Control!$F$6,P28>Control!$F$7,U27=1),1,0) -> 0 | S28: =IF(AND(T27>0,T27<Control!$F$8),0,IF(AND(K28<Control!$F$6-500,Q28<Control!$F$7),1,0))*(1-R28) -> 1 | T28: =IF(AND(T27<Control!$F$8,T27>0),T27+1,IF(AND(R28=1,U27=1),1,0)) -> 0 | U28: 1 | V28: =IF(A28<3,IF(AND(T28>0,OR(I28>Control!$F$9,SUM(V22:V27)>0)),MAX(I28-Control!$F$10,0),0),0) -> 0 | W28: =CHOOSE($W$1+1,99999,IF(AND(G28>=Control!$F$4,G28<=Control!$F$5),IF(T28<>0,V28,99999),0)) -> 99999 | X28: =INDEX(Control!$D$15:$D$26,D28) -> 3250 | Y28: 530 | Z28: =CHOOSE($A28+1,IF(ISBLANK(INDEX(CDEC!G:G,MATCH($H28,CDEC!J:J,0))),Z27,_xlfn.IFNA(INDEX(CDEC!G:G,MATCH($H28,CDEC!J:J,0)),Z27)),AVERAGEIF(CNRFC!BA:BA,$H28,CNRFC!AW:AW),AVERAGEIF(Ensemble!JT:JT,$H28,Ensemble!JW:JW),"-") -> 3575 | AA28: =INDEX(Control!$E$15:$E$26,D28) -> 4000 | AB28: 0 | AC28: =CHOOSE($A28+1,_xlfn.IFNA(INDEX(USGS!AH:AH,MATCH($H28,USGS!AE:AE,0)),I27),AVERAGEIF(CNRFC!H:H,$H28,CNRFC!D:D),AVERAGEIF(Ensemble!HY:HY,$H28,Ensemble!IA:IA),"-") -> 3330 | AD28: =INDEX(Control!$F$15:$F$26,D28) -> 10700 | AE28: 0 | AF28: -1000 | AG28: 0 | AH28: 0 | AI28: =MIN(INDEX(Control!$G$15:$G$26,D28),AG28) -> 0 | AJ28: =MIN(MAX(AH28-AI28,0),INDEX(Control!$H$15:$H$26,D28)) -> 0 | AK28: 0 | AL28: 2022-11-18 | AP28: 0 | AQ28: 0
A29: 0 | B29: 2023 | C29: 2 | D29: 11 | E29: 19 | F29: 11.19 | G29: 2.19 | H29: 2022-11-19 | I29: =CHOOSE($A29+1,_xlfn.IFNA(INDEX(USGS!Y:Y,MATCH($H29,USGS!X:X,0)),I28),AVERAGEIF(CNRFC!AR:AR,$H29,CNRFC!AN:AN),AVERAGEIF(Ensemble!GC:GC,$H29,Ensemble!GF:GF),"-") -> 3720 | J29: 3700 | K29: 3793.333333 | L29: =CHOOSE($A29+1,_xlfn.IFNA(INDEX(USGS!D:D,MATCH($H29,USGS!C:C,0)),I28),AVERAGEIF(CNRFC!AI:AI,$H29,CNRFC!AE:AE),AVERAGEIF(Ensemble!AR:AR,$H29,Ensemble!AT:AT),"-") -> 63.1 | M29: =CHOOSE($A29+1,_xlfn.IFNA(INDEX(USGS!K:K,MATCH($H29,USGS!J:J,0)),I28),AVERAGEIF(CNRFC!Q:Q,$H29,CNRFC!M:M),AVERAGEIF(Ensemble!CM:CM,$H29,Ensemble!CO:CO),"-") -> 53.9 | N29: =CHOOSE($A29+1,_xlfn.IFNA(INDEX(USGS!R:R,MATCH($H29,USGS!Q:Q,0)),I28),AVERAGEIF(CNRFC!Z:Z,$H29,CNRFC!V:V),AVERAGEIF(Ensemble!EH:EH,$H29,Ensemble!EJ:EJ),"-") -> 190 | O29: 307 | P29: 307.3 | Q29: 312.5333333 | R29: =IF(AND(J29>Control!$F$6,P29>Control!$F$7,U28=1),1,0) -> 0 | S29: =IF(AND(T28>0,T28<Control!$F$8),0,IF(AND(K29<Control!$F$6-500,Q29<Control!$F$7),1,0))*(1-R29) -> 1 | T29: =IF(AND(T28<Control!$F$8,T28>0),T28+1,IF(AND(R29=1,U28=1),1,0)) -> 0 | U29: 1 | V29: =IF(A29<3,IF(AND(T29>0,OR(I29>Control!$F$9,SUM(V23:V28)>0)),MAX(I29-Control!$F$10,0),0),0) -> 0 | W29: =CHOOSE($W$1+1,99999,IF(AND(G29>=Control!$F$4,G29<=Control!$F$5),IF(T29<>0,V29,99999),0)) -> 99999 | X29: =INDEX(Control!$D$15:$D$26,D29) -> 3250 | Y29: 470 | Z29: =CHOOSE($A29+1,IF(ISBLANK(INDEX(CDEC!G:G,MATCH($H29,CDEC!J:J,0))),Z28,_xlfn.IFNA(INDEX(CDEC!G:G,MATCH($H29,CDEC!J:J,0)),Z28)),AVERAGEIF(CNRFC!BA:BA,$H29,CNRFC!AW:AW),AVERAGEIF(Ensemble!JT:JT,$H29,Ensemble!JW:JW),"-") -> 3411 | AA29: =INDEX(Control!$E$15:$E$26,D29) -> 4000 | AB29: 0 | AC29: =CHOOSE($A29+1,_xlfn.IFNA(INDEX(USGS!AH:AH,MATCH($H29,USGS!AE:AE,0)),I28),AVERAGEIF(CNRFC!H:H,$H29,CNRFC!D:D),AVERAGEIF(Ensemble!HY:HY,$H29,Ensemble!IA:IA),"-") -> 3260 | AD29: =INDEX(Control!$F$15:$F$26,D29) -> 10700 | AE29: 0 | AF29: -1000 | AG29: 0 | AH29: 0 | AI29: =MIN(INDEX(Control!$G$15:$G$26,D29),AG29) -> 0 | AJ29: =MIN(MAX(AH29-AI29,0),INDEX(Control!$H$15:$H$26,D29)) -> 0 | AK29: 0 | AL29: 2022-11-19 | AP29: 0 | AQ29: 0
A30: 0 | B30: 2023 | C30: 2 | D30: 11 | E30: 20 | F30: 11.2 | G30: 2.2 | H30: 2022-11-20 | I30: =CHOOSE($A30+1,_xlfn.IFNA(INDEX(USGS!Y:Y,MATCH($H30,USGS!X:X,0)),I29),AVERAGEIF(CNRFC!AR:AR,$H30,CNRFC!AN:AN),AVERAGEIF(Ensemble!GC:GC,$H30,Ensemble!GF:GF),"-") -> 3690 | J30: 3686.666667 | K30: 3730 | L30: =CHOOSE($A30+1,_xlfn.IFNA(INDEX(USGS!D:D,MATCH($H30,USGS!C:C,0)),I29),AVERAGEIF(CNRFC!AI:AI,$H30,CNRFC!AE:AE),AVERAGEIF(Ensemble!AR:AR,$H30,Ensemble!AT:AT),"-") -> 64.6 | M30: =CHOOSE($A30+1,_xlfn.IFNA(INDEX(USGS!K:K,MATCH($H30,USGS!J:J,0)),I29),AVERAGEIF(CNRFC!Q:Q,$H30,CNRFC!M:M),AVERAGEIF(Ensemble!CM:CM,$H30,Ensemble!CO:CO),"-") -> 53.5 | N30: =CHOOSE($A30+1,_xlfn.IFNA(INDEX(USGS!R:R,MATCH($H30,USGS!Q:Q,0)),I29),AVERAGEIF(CNRFC!Z:Z,$H30,CNRFC!V:V),AVERAGEIF(Ensemble!EH:EH,$H30,Ensemble!EJ:EJ),"-") -> 187 | O30: 305.1 | P30: 308.6 | Q30: 309.3333333 | R30: =IF(AND(J30>Control!$F$6,P30>Control!$F$7,U29=1),1,0) -> 0 | S30: =IF(AND(T29>0,T29<Control!$F$8),0,IF(AND(K30<Control!$F$6-500,Q30<Control!$F$7),1,0))*(1-R30) -> 1 | T30: =IF(AND(T29<Control!$F$8,T29>0),T29+1,IF(AND(R30=1,U29=1),1,0)) -> 0 | U30: 1 | V30: =IF(A30<3,IF(AND(T30>0,OR(I30>Control!$F$9,SUM(V24:V29)>0)),MAX(I30-Control!$F$10,0),0),0) -> 0 | W30: =CHOOSE($W$1+1,99999,IF(AND(G30>=Control!$F$4,G30<=Control!$F$5),IF(T30<>0,V30,99999),0)) -> 99999 | X30: =INDEX(Control!$D$15:$D$26,D30) -> 3250 | Y30: 440 | Z30: =CHOOSE($A30+1,IF(ISBLANK(INDEX(CDEC!G:G,MATCH($H30,CDEC!J:J,0))),Z29,_xlfn.IFNA(INDEX(CDEC!G:G,MATCH($H30,CDEC!J:J,0)),Z29)),AVERAGEIF(CNRFC!BA:BA,$H30,CNRFC!AW:AW),AVERAGEIF(Ensemble!JT:JT,$H30,Ensemble!JW:JW),"-") -> 3409 | AA30: =INDEX(Control!$E$15:$E$26,D30) -> 4000 | AB30: 0 | AC30: =CHOOSE($A30+1,_xlfn.IFNA(INDEX(USGS!AH:AH,MATCH($H30,USGS!AE:AE,0)),I29),AVERAGEIF(CNRFC!H:H,$H30,CNRFC!D:D),AVERAGEIF(Ensemble!HY:HY,$H30,Ensemble!IA:IA),"-") -> 3190 | AD30: =INDEX(Control!$F$15:$F$26,D30) -> 10700 | AE30: 0 | AF30: -1000 | AG30: 0 | AH30: 0 | AI30: =MIN(INDEX(Control!$G$15:$G$26,D30),AG30) -> 0 | AJ30: =MIN(MAX(AH30-AI30,0),INDEX(Control!$H$15:$H$26,D30)) -> 0 | AK30: 0 | AL30: 2022-11-20 | AP30: 0 | AQ30: 0
A31: 0 | B31: 2023 | C31: 2 | D31: 11 | E31: 21 | F31: 11.21 | G31: 2.21 | H31: 2022-11-21 | I31: =CHOOSE($A31+1,_xlfn.IFNA(INDEX(USGS!Y:Y,MATCH($H31,USGS!X:X,0)),I30),AVERAGEIF(CNRFC!AR:AR,$H31,CNRFC!AN:AN),AVERAGEIF(Ensemble!GC:GC,$H31,Ensemble!GF:GF),"-") -> 3690 | J31: 3686.666667 | K31: 3700 | L31: =CHOOSE($A31+1,_xlfn.IFNA(INDEX(USGS!D:D,MATCH($H31,USGS!C:C,0)),I30),AVERAGEIF(CNRFC!AI:AI,$H31,CNRFC!AE:AE),AVERAGEIF(Ensemble!AR:AR,$H31,Ensemble!AT:AT),"-") -> 67.4 | M31: =CHOOSE($A31+1,_xlfn.IFNA(INDEX(USGS!K:K,MATCH($H31,USGS!J:J,0)),I30),AVERAGEIF(CNRFC!Q:Q,$H31,CNRFC!M:M),AVERAGEIF(Ensemble!CM:CM,$H31,Ensemble!CO:CO),"-") -> 54.4 | N31: =CHOOSE($A31+1,_xlfn.IFNA(INDEX(USGS!R:R,MATCH($H31,USGS!Q:Q,0)),I30),AVERAGEIF(CNRFC!Z:Z,$H31,CNRFC!V:V),AVERAGEIF(Ensemble!EH:EH,$H31,Ensemble!EJ:EJ),"-") -> 188 | O31: 309.8 | P31: 311.3666667 | Q31: 307.3 | R31: =IF(AND(J31>Control!$F$6,P31>Control!$F$7,U30=1),1,0) -> 0 | S31: =IF(AND(T30>0,T30<Control!$F$8),0,IF(AND(K31<Control!$F$6-500,Q31<Control!$F$7),1,0))*(1-R31) -> 1 | T31: =IF(AND(T30<Control!$F$8,T30>0),T30+1,IF(AND(R31=1,U30=1),1,0)) -> 0 | U31: 1 | V31: =IF(A31<3,IF(AND(T31>0,OR(I31>Control!$F$9,SUM(V25:V30)>0)),MAX(I31-Control!$F$10,0),0),0) -> 0 | W31: =CHOOSE($W$1+1,99999,IF(AND(G31>=Control!$F$4,G31<=Control!$F$5),IF(T31<>0,V31,99999),0)) -> 99999 | X31: =INDEX(Control!$D$15:$D$26,D31) -> 3250 | Y31: 440 | Z31: =CHOOSE($A31+1,IF(ISBLANK(INDEX(CDEC!G:G,MATCH($H31,CDEC!J:J,0))),Z30,_xlfn.IFNA(INDEX(CDEC!G:G,MATCH($H31,CDEC!J:J,0)),Z30)),AVERAGEIF(CNRFC!BA:BA,$H31,CNRFC!AW:AW),AVERAGEIF(Ensemble!JT:JT,$H31,Ensemble!JW:JW),"-") -> 3409 | AA31: =INDEX(Control!$E$15:$E$26,D31) -> 4000 | AB31: 0 | AC31: =CHOOSE($A31+1,_xlfn.IFNA(INDEX(USGS!AH:AH,MATCH($H31,USGS!AE:AE,0)),I30),AVERAGEIF(CNRFC!H:H,$H31,CNRFC!D:D),AVERAGEIF(Ensemble!HY:HY,$H31,Ensemble!IA:IA),"-") -> 3140 | AD31: =INDEX(Control!$F$15:$F$26,D31) -> 10700 | AE31: 0 | AF31: -1000 | AG31: 0 | AH31: 0 | AI31: =MIN(INDEX(Control!$G$15:$G$26,D31),AG31) -> 0 | AJ31: =MIN(MAX(AH31-AI31,0),INDEX(Control!$H$15:$H$26,D31)) -> 0 | AK31: 0 | AL31: 2022-11-21 | AP31: 0 | AQ31: 0
A32: 0 | B32: 2023 | C32: 2 | D32: 11 | E32: 22 | F32: 11.22 | G32: 2.22 | H32: 2022-11-22 | I32: =CHOOSE($A32+1,_xlfn.IFNA(INDEX(USGS!Y:Y,MATCH($H32,USGS!X:X,0)),I31),AVERAGEIF(CNRFC!AR:AR,$H32,CNRFC!AN:AN),AVERAGEIF(Ensemble!GC:GC,$H32,Ensemble!GF:GF),"-") -> 3680 | J32: 3686.666667 | K32: 3686.666667 | L32: =CHOOSE($A32+1,_xlfn.IFNA(INDEX(USGS!D:D,MATCH($H32,USGS!C:C,0)),I31),AVERAGEIF(CNRFC!AI:AI,$H32,CNRFC!AE:AE),AVERAGEIF(Ensemble!AR:AR,$H32,Ensemble!AT:AT),"-") -> 68.2 | M32: =CHOOSE($A32+1,_xlfn.IFNA(INDEX(USGS!K:K,MATCH($H32,USGS!J:J,0)),I31),AVERAGEIF(CNRFC!Q:Q,$H32,CNRFC!M:M),AVERAGEIF(Ensemble!CM:CM,$H32,Ensemble!CO:CO),"-") -> 54.7 | N32: =CHOOSE($A32+1,_xlfn.IFNA(INDEX(USGS!R:R,MATCH($H32,USGS!Q:Q,0)),I31),AVERAGEIF(CNRFC!Z:Z,$H32,CNRFC!V:V),AVERAGEIF(Ensemble!EH:EH,$H32,Ensemble!EJ:EJ),"-") -> 188 | O32: 310.9 | P32: 312.7666667 | Q32: 308.6 | R32: =IF(AND(J32>Control!$F$6,P32>Control!$F$7,U31=1),1,0) -> 0 | S32: =IF(AND(T31>0,T31<Control!$F$8),0,IF(AND(K32<Control!$F$6-500,Q32<Control!$F$7),1,0))*(1-R32) -> 1 | T32: =IF(AND(T31<Control!$F$8,T31>0),T31+1,IF(AND(R32=1,U31=1),1,0)) -> 0 | U32: 1 | V32: =IF(A32<3,IF(AND(T32>0,OR(I32>Control!$F$9,SUM(V26:V31)>0)),MAX(I32-Control!$F$10,0),0),0) -> 0 | W32: =CHOOSE($W$1+1,99999,IF(AND(G32>=Control!$F$4,G32<=Control!$F$5),IF(T32<>0,V32,99999),0)) -> 99999 | X32: =INDEX(Control!$D$15:$D$26,D32) -> 3250 | Y32: 430 | Z32: =CHOOSE($A32+1,IF(ISBLANK(INDEX(CDEC!G:G,MATCH($H32,CDEC!J:J,0))),Z31,_xlfn.IFNA(INDEX(CDEC!G:G,MATCH($H32,CDEC!J:J,0)),Z31)),AVERAGEIF(CNRFC!BA:BA,$H32,CNRFC!AW:AW),AVERAGEIF(Ensemble!JT:JT,$H32,Ensemble!JW:JW),"-") -> 3284 | AA32: =INDEX(Control!$E$15:$E$26,D32) -> 4000 | AB32: 0 | AC32: =CHOOSE($A32+1,_xlfn.IFNA(INDEX(USGS!AH:AH,MATCH($H32,USGS!AE:AE,0)),I31),AVERAGEIF(CNRFC!H:H,$H32,CNRFC!D:D),AVERAGEIF(Ensemble!HY:HY,$H32,Ensemble!IA:IA),"-") -> 3120 | AD32: =INDEX(Control!$F$15:$F$26,D32) -> 10700 | AE32: 0 | AF32: -1000 | AG32: 0 | AH32: 0 | AI32: =MIN(INDEX(Control!$G$15:$G$26,D32),AG32) -> 0 | AJ32: =MIN(MAX(AH32-AI32,0),INDEX(Control!$H$15:$H$26,D32)) -> 0 | AK32: 0 | AL32: 2022-11-22 | AP32: 0 | AQ32: 0
A33: 0 | B33: 2023 | C33: 2 | D33: 11 | E33: 23 | F33: 11.23 | G33: 2.23 | H33: 2022-11-23 | I33: =CHOOSE($A33+1,_xlfn.IFNA(INDEX(USGS!Y:Y,MATCH($H33,USGS!X:X,0)),I32),AVERAGEIF(CNRFC!AR:AR,$H33,CNRFC!AN:AN),AVERAGEIF(Ensemble!GC:GC,$H33,Ensemble!GF:GF),"-") -> 3690 | J33: 3690 | K33: 3686.666667 | L33: =CHOOSE($A33+1,_xlfn.IFNA(INDEX(USGS!D:D,MATCH($H33,USGS!C:C,0)),I32),AVERAGEIF(CNRFC!AI:AI,$H33,CNRFC!AE:AE),AVERAGEIF(Ensemble!AR:AR,$H33,Ensemble!AT:AT),"-") -> 68.4 | M33: =CHOOSE($A33+1,_xlfn.IFNA(INDEX(USGS!K:K,MATCH($H33,USGS!J:J,0)),I32),AVERAGEIF(CNRFC!Q:Q,$H33,CNRFC!M:M),AVERAGEIF(Ensemble!CM:CM,$H33,Ensemble!CO:CO),"-") -> 53 | N33: =CHOOSE($A33+1,_xlfn.IFNA(INDEX(USGS!R:R,MATCH($H33,USGS!Q:Q,0)),I32),AVERAGEIF(CNRFC!Z:Z,$H33,CNRFC!V:V),AVERAGEIF(Ensemble!EH:EH,$H33,Ensemble!EJ:EJ),"-") -> 192 | O33: 313.4 | P33: 314.0333333 | Q33: 311.3666667 | R33: =IF(AND(J33>Control!$F$6,P33>Control!$F$7,U32=1),1,0) -> 0 | S33: =IF(AND(T32>0,T32<Control!$F$8),0,IF(AND(K33<Control!$F$6-500,Q33<Control!$F$7),1,0))*(1-R33) -> 1 | T33: =IF(AND(T32<Control!$F$8,T32>0),T32+1,IF(AND(R33=1,U32=1),1,0)) -> 0 | U33: 1 | V33: =IF(A33<3,IF(AND(T33>0,OR(I33>Control!$F$9,SUM(V27:V32)>0)),MAX(I33-Control!$F$10,0),0),0) -> 0 | W33: =CHOOSE($W$1+1,99999,IF(AND(G33>=Control!$F$4,G33<=Control!$F$5),IF(T33<>0,V33,99999),0)) -> 99999 | X33: =INDEX(Control!$D$15:$D$26,D33) -> 3250 | Y33: 440 | Z33: =CHOOSE($A33+1,IF(ISBLANK(INDEX(CDEC!G:G,MATCH($H33,CDEC!J:J,0))),Z32,_xlfn.IFNA(INDEX(CDEC!G:G,MATCH($H33,CDEC!J:J,0)),Z32)),AVERAGEIF(CNRFC!BA:BA,$H33,CNRFC!AW:AW),AVERAGEIF(Ensemble!JT:JT,$H33,Ensemble!JW:JW),"-") -> 3261 | AA33: =INDEX(Control!$E$15:$E$26,D33) -> 4000 | AB33: 0 | AC33: =CHOOSE($A33+1,_xlfn.IFNA(INDEX(USGS!AH:AH,MATCH($H33,USGS!AE:AE,0)),I32),AVERAGEIF(CNRFC!H:H,$H33,CNRFC!D:D),AVERAGEIF(Ensemble!HY:HY,$H33,Ensemble!IA:IA),"-") -> 3080 | AD33: =INDEX(Control!$F$15:$F$26,D33) -> 10700 | AE33: 0 | AF33: -1000 | AG33: 0 | AH33: 0 | AI33: =MIN(INDEX(Control!$G$15:$G$26,D33),AG33) -> 0 | AJ33: =MIN(MAX(AH33-AI33,0),INDEX(Control!$H$15:$H$26,D33)) -> 0 | AK33: 0 | AL33: 2022-11-23 | AP33: 0 | AQ33: 0
A34: 0 | B34: 2023 | C34: 2 | D34: 11 | E34: 24 | F34: 11.24 | G34: 2.24 | H34: 2022-11-24 | I34: =CHOOSE($A34+1,_xlfn.IFNA(INDEX(USGS!Y:Y,MATCH($H34,USGS!X:X,0)),I33),AVERAGEIF(CNRFC!AR:AR,$H34,CNRFC!AN:AN),AVERAGEIF(Ensemble!GC:GC,$H34,Ensemble!GF:GF),"-") -> 3690 | J34: 3693.333333 | K34: 3686.666667 | L34: =CHOOSE($A34+1,_xlfn.IFNA(INDEX(USGS!D:D,MATCH($H34,USGS!C:C,0)),I33),AVERAGEIF(CNRFC!AI:AI,$H34,CNRFC!AE:AE),AVERAGEIF(Ensemble!AR:AR,$H34,Ensemble!AT:AT),"-") -> 68.3 | M34: =CHOOSE($A34+1,_xlfn.IFNA(INDEX(USGS!K:K,MATCH($H34,USGS!J:J,0)),I33),AVERAGEIF(CNRFC!Q:Q,$H34,CNRFC!M:M),AVERAGEIF(Ensemble!CM:CM,$H34,Ensemble!CO:CO),"-") -> 50.7 | N34: =CHOOSE($A34+1,_xlfn.IFNA(INDEX(USGS!R:R,MATCH($H34,USGS!Q:Q,0)),I33),AVERAGEIF(CNRFC!Z:Z,$H34,CNRFC!V:V),AVERAGEIF(Ensemble!EH:EH,$H34,Ensemble!EJ:EJ),"-") -> 195 | O34: 314 | P34: 315.2333333 | Q34: 312.7666667 | R34: =IF(AND(J34>Control!$F$6,P34>Control!$F$7,U33=1),1,0) -> 0 | S34: =IF(AND(T33>0,T33<Control!$F$8),0,IF(AND(K34<Control!$F$6-500,Q34<Control!$F$7),1,0))*(1-R34) -> 1 | T34: =IF(AND(T33<Control!$F$8,T33>0),T33+1,IF(AND(R34=1,U33=1),1,0)) -> 0 | U34: 1 | V34: =IF(A34<3,IF(AND(T34>0,OR(I34>Control!$F$9,SUM(V28:V33)>0)),MAX(I34-Control!$F$10,0),0),0) -> 0 | W34: =CHOOSE($W$1+1,99999,IF(AND(G34>=Control!$F$4,G34<=Control!$F$5),IF(T34<>0,V34,99999),0)) -> 99999 | X34: =INDEX(Control!$D$15:$D$26,D34) -> 3250 | Y34: 440 | Z34: =CHOOSE($A34+1,IF(ISBLANK(INDEX(CDEC!G:G,MATCH($H34,CDEC!J:J,0))),Z33,_xlfn.IFNA(INDEX(CDEC!G:G,MATCH($H34,CDEC!J:J,0)),Z33)),AVERAGEIF(CNRFC!BA:BA,$H34,CNRFC!AW:AW),AVERAGEIF(Ensemble!JT:JT,$H34,Ensemble!JW:JW),"-") -> 3403 | AA34: =INDEX(Control!$E$15:$E$26,D34) -> 4000 | AB34: 0 | AC34: =CHOOSE($A34+1,_xlfn.IFNA(INDEX(USGS!AH:AH,MATCH($H34,USGS!AE:AE,0)),I33),AVERAGEIF(CNRFC!H:H,$H34,CNRFC!D:D),AVERAGEIF(Ensemble!HY:HY,$H34,Ensemble!IA:IA),"-") -> 3060 | AD34: =INDEX(Control!$F$15:$F$26,D34) -> 10700 | AE34: 0 | AF34: -1000 | AG34: 0 | AH34: 0 | AI34: =MIN(INDEX(Control!$G$15:$G$26,D34),AG34) -> 0 | AJ34: =MIN(MAX(AH34-AI34,0),INDEX(Control!$H$15:$H$26,D34)) -> 0 | AK34: 0 | AL34: 2022-11-24 | AP34: 0 | AQ34: 0
A35: 0 | B35: 2023 | C35: 2 | D35: 11 | E35: 25 | F35: 11.25 | G35: 2.25 | H35: 2022-11-25 | I35: =CHOOSE($A35+1,_xlfn.IFNA(INDEX(USGS!Y:Y,MATCH($H35,USGS!X:X,0)),I34),AVERAGEIF(CNRFC!AR:AR,$H35,CNRFC!AN:AN),AVERAGEIF(Ensemble!GC:GC,$H35,Ensemble!GF:GF),"-") -> 3690 | J35: 3696.666667 | K35: 3690 | L35: =CHOOSE($A35+1,_xlfn.IFNA(INDEX(USGS!D:D,MATCH($H35,USGS!C:C,0)),I34),AVERAGEIF(CNRFC!AI:AI,$H35,CNRFC!AE:AE),AVERAGEIF(Ensemble!AR:AR,$H35,Ensemble!AT:AT),"-") -> 67.6 | M35: =CHOOSE($A35+1,_xlfn.IFNA(INDEX(USGS!K:K,MATCH($H35,USGS!J:J,0)),I34),AVERAGEIF(CNRFC!Q:Q,$H35,CNRFC!M:M),AVERAGEIF(Ensemble!CM:CM,$H35,Ensemble!CO:CO),"-") -> 50.1 | N35: =CHOOSE($A35+1,_xlfn.IFNA(INDEX(USGS!R:R,MATCH($H35,USGS!Q:Q,0)),I34),AVERAGEIF(CNRFC!Z:Z,$H35,CNRFC!V:V),AVERAGEIF(Ensemble!EH:EH,$H35,Ensemble!EJ:EJ),"-") -> 197 | O35: 314.7 | P35: 315.9666667 | Q35: 314.0333333 | R35: =IF(AND(J35>Control!$F$6,P35>Control!$F$7,U34=1),1,0) -> 0 | S35: =IF(AND(T34>0,T34<Control!$F$8),0,IF(AND(K35<Control!$F$6-500,Q35<Control!$F$7),1,0))*(1-R35) -> 1 | T35: =IF(AND(T34<Control!$F$8,T34>0),T34+1,IF(AND(R35=1,U34=1),1,0)) -> 0 | U35: 1 | V35: =IF(A35<3,IF(AND(T35>0,OR(I35>Control!$F$9,SUM(V29:V34)>0)),MAX(I35-Control!$F$10,0),0),0) -> 0 | W35: =CHOOSE($W$1+1,99999,IF(AND(G35>=Control!$F$4,G35<=Control!$F$5),IF(T35<>0,V35,99999),0)) -> 99999 | X35: =INDEX(Control!$D$15:$D$26,D35) -> 3250 | Y35: 440 | Z35: =CHOOSE($A35+1,IF(ISBLANK(INDEX(CDEC!G:G,MATCH($H35,CDEC!J:J,0))),Z34,_xlfn.IFNA(INDEX(CDEC!G:G,MATCH($H35,CDEC!J:J,0)),Z34)),AVERAGEIF(CNRFC!BA:BA,$H35,CNRFC!AW:AW),AVERAGEIF(Ensemble!JT:JT,$H35,Ensemble!JW:JW),"-") -> 3406 | AA35: =INDEX(Control!$E$15:$E$26,D35) -> 4000 | AB35: 0 | AC35: =CHOOSE($A35+1,_xlfn.IFNA(INDEX(USGS!AH:AH,MATCH($H35,USGS!AE:AE,0)),I34),AVERAGEIF(CNRFC!H:H,$H35,CNRFC!D:D),AVERAGEIF(Ensemble!HY:HY,$H35,Ensemble!IA:IA),"-") -> 3110 | AD35: =INDEX(Control!$F$15:$F$26,D35) -> 10700 | AE35: 0 | AF35: -1000 | AG35: 0 | AH35: 0 | AI35: =MIN(INDEX(Control!$G$15:$G$26,D35),AG35) -> 0 | AJ35: =MIN(MAX(AH35-AI35,0),INDEX(Control!$H$15:$H$26,D35)) -> 0 | AK35: 0 | AL35: 2022-11-25 | AP35: 0 | AQ35: 0
A36: 0 | B36: 2023 | C36: 2 | D36: 11 | E36: 26 | F36: 11.26 | G36: 2.26 | H36: 2022-11-26 | I36: =CHOOSE($A36+1,_xlfn.IFNA(INDEX(USGS!Y:Y,MATCH($H36,USGS!X:X,0)),I35),AVERAGEIF(CNRFC!AR:AR,$H36,CNRFC!AN:AN),AVERAGEIF(Ensemble!GC:GC,$H36,Ensemble!GF:GF),"-") -> 3700 | J36: 3696.666667 | K36: 3693.333333 | L36: =CHOOSE($A36+1,_xlfn.IFNA(INDEX(USGS!D:D,MATCH($H36,USGS!C:C,0)),I35),AVERAGEIF(CNRFC!AI:AI,$H36,CNRFC!AE:AE),AVERAGEIF(Ensemble!AR:AR,$H36,Ensemble!AT:AT),"-") -> 68.5 | M36: =CHOOSE($A36+1,_xlfn.IFNA(INDEX(USGS!K:K,MATCH($H36,USGS!J:J,0)),I35),AVERAGEIF(CNRFC!Q:Q,$H36,CNRFC!M:M),AVERAGEIF(Ensemble!CM:CM,$H36,Ensemble!CO:CO),"-") -> 50.5 | N36: =CHOOSE($A36+1,_xlfn.IFNA(INDEX(USGS!R:R,MATCH($H36,USGS!Q:Q,0)),I35),AVERAGEIF(CNRFC!Z:Z,$H36,CNRFC!V:V),AVERAGEIF(Ensemble!EH:EH,$H36,Ensemble!EJ:EJ),"-") -> 198 | O36: 317 | P36: 316.7 | Q36: 315.2333333 | R36: =IF(AND(J36>Control!$F$6,P36>Control!$F$7,U35=1),1,0) -> 0 | S36: =IF(AND(T35>0,T35<Control!$F$8),0,IF(AND(K36<Control!$F$6-500,Q36<Control!$F$7),1,0))*(1-R36) -> 1 | T36: =IF(AND(T35<Control!$F$8,T35>0),T35+1,IF(AND(R36=1,U35=1),1,0)) -> 0 | U36: 1 | V36: =IF(A36<3,IF(AND(T36>0,OR(I36>Control!$F$9,SUM(V30:V35)>0)),MAX(I36-Control!$F$10,0),0),0) -> 0 | W36: =CHOOSE($W$1+1,99999,IF(AND(G36>=Control!$F$4,G36<=Control!$F$5),IF(T36<>0,V36,99999),0)) -> 99999 | X36: =INDEX(Control!$D$15:$D$26,D36) -> 3250 | Y36: 450 | Z36: =CHOOSE($A36+1,IF(ISBLANK(INDEX(CDEC!G:G,MATCH($H36,CDEC!J:J,0))),Z35,_xlfn.IFNA(INDEX(CDEC!G:G,MATCH($H36,CDEC!J:J,0)),Z35)),AVERAGEIF(CNRFC!BA:BA,$H36,CNRFC!AW:AW),AVERAGEIF(Ensemble!JT:JT,$H36,Ensemble!JW:JW),"-") -> 3406 | AA36: =INDEX(Control!$E$15:$E$26,D36) -> 4000 | AB36: 0 | AC36: =CHOOSE($A36+1,_xlfn.IFNA(INDEX(USGS!AH:AH,MATCH($H36,USGS!AE:AE,0)),I35),AVERAGEIF(CNRFC!H:H,$H36,CNRFC!D:D),AVERAGEIF(Ensemble!HY:HY,$H36,Ensemble!IA:IA),"-") -> 3140 | AD36: =INDEX(Control!$F$15:$F$26,D36) -> 10700 | AE36: 0 | AF36: -1000 | AG36: 0 | AH36: 0 | AI36: =MIN(INDEX(Control!$G$15:$G$26,D36),AG36) -> 0 | AJ36: =MIN(MAX(AH36-AI36,0),INDEX(Control!$H$15:$H$26,D36)) -> 0 | AK36: 0 | AL36: 2022-11-26 | AP36: 0 | AQ36: 0
A37: 0 | B37: 2023 | C37: 2 | D37: 11 | E37: 27 | F37: 11.27 | G37: 2.27 | H37: 2022-11-27 | I37: =CHOOSE($A37+1,_xlfn.IFNA(INDEX(USGS!Y:Y,MATCH($H37,USGS!X:X,0)),I36),AVERAGEIF(CNRFC!AR:AR,$H37,CNRFC!AN:AN),AVERAGEIF(Ensemble!GC:GC,$H37,Ensemble!GF:GF),"-") -> 3700 | J37: 3690 | K37: 3696.666667 | L37: =CHOOSE($A37+1,_xlfn.IFNA(INDEX(USGS!D:D,MATCH($H37,USGS!C:C,0)),I36),AVERAGEIF(CNRFC!AI:AI,$H37,CNRFC!AE:AE),AVERAGEIF(Ensemble!AR:AR,$H37,Ensemble!AT:AT),"-") -> 66.7 | M37: =CHOOSE($A37+1,_xlfn.IFNA(INDEX(USGS!K:K,MATCH($H37,USGS!J:J,0)),I36),AVERAGEIF(CNRFC!Q:Q,$H37,CNRFC!M:M),AVERAGEIF(Ensemble!CM:CM,$H37,Ensemble!CO:CO),"-") -> 50.5 | N37: =CHOOSE($A37+1,_xlfn.IFNA(INDEX(USGS!R:R,MATCH($H37,USGS!Q:Q,0)),I36),AVERAGEIF(CNRFC!Z:Z,$H37,CNRFC!V:V),AVERAGEIF(Ensemble!EH:EH,$H37,Ensemble!EJ:EJ),"-") -> 199 | O37: 316.2 | P37: 316.0333333 | Q37: 315.9666667 | R37: =IF(AND(J37>Control!$F$6,P37>Control!$F$7,U36=1),1,0) -> 0 | S37: =IF(AND(T36>0,T36<Control!$F$8),0,IF(AND(K37<Control!$F$6-500,Q37<Control!$F$7),1,0))*(1-R37) -> 1 | T37: =IF(AND(T36<Control!$F$8,T36>0),T36+1,IF(AND(R37=1,U36=1),1,0)) -> 0 | U37: 1 | V37: =IF(A37<3,IF(AND(T37>0,OR(I37>Control!$F$9,SUM(V31:V36)>0)),MAX(I37-Control!$F$10,0),0),0) -> 0 | W37: =CHOOSE($W$1+1,99999,IF(AND(G37>=Control!$F$4,G37<=Control!$F$5),IF(T37<>0,V37,99999),0)) -> 99999 | X37: =INDEX(Control!$D$15:$D$26,D37) -> 3250 | Y37: 450 | Z37: =CHOOSE($A37+1,IF(ISBLANK(INDEX(CDEC!G:G,MATCH($H37,CDEC!J:J,0))),Z36,_xlfn.IFNA(INDEX(CDEC!G:G,MATCH($H37,CDEC!J:J,0)),Z36)),AVERAGEIF(CNRFC!BA:BA,$H37,CNRFC!AW:AW),AVERAGEIF(Ensemble!JT:JT,$H37,Ensemble!JW:JW),"-") -> 3406 | AA37: =INDEX(Control!$E$15:$E$26,D37) -> 4000 | AB37: 0 | AC37: =CHOOSE($A37+1,_xlfn.IFNA(INDEX(USGS!AH:AH,MATCH($H37,USGS!AE:AE,0)),I36),AVERAGEIF(CNRFC!H:H,$H37,CNRFC!D:D),AVERAGEIF(Ensemble!HY:HY,$H37,Ensemble!IA:IA),"-") -> 3160 | AD37: =INDEX(Control!$F$15:$F$26,D37) -> 10700 | AE37: 0 | AF37: -1000 | AG37: 0 | AH37: 0 | AI37: =MIN(INDEX(Control!$G$15:$G$26,D37),AG37) -> 0 | AJ37: =MIN(MAX(AH37-AI37,0),INDEX(Control!$H$15:$H$26,D37)) -> 0 | AK37: 0 | AL37: 2022-11-27 | AP37: 0 | AQ37: 0
A38: 0 | B38: 2023 | C38: 2 | D38: 11 | E38: 28 | F38: 11.28 | G38: 2.28 | H38: 2022-11-28 | I38: =CHOOSE($A38+1,_xlfn.IFNA(INDEX(USGS!Y:Y,MATCH($H38,USGS!X:X,0)),I37),AVERAGEIF(CNRFC!AR:AR,$H38,CNRFC!AN:AN),AVERAGEIF(Ensemble!GC:GC,$H38,Ensemble!GF:GF),"-") -> 3690 | J38: 3680 | K38: 3696.666667 | L38: =CHOOSE($A38+1,_xlfn.IFNA(INDEX(USGS!D:D,MATCH($H38,USGS!C:C,0)),I37),AVERAGEIF(CNRFC!AI:AI,$H38,CNRFC!AE:AE),AVERAGEIF(Ensemble!AR:AR,$H38,Ensemble!AT:AT),"-") -> 68.6 | M38: =CHOOSE($A38+1,_xlfn.IFNA(INDEX(USGS!K:K,MATCH($H38,USGS!J:J,0)),I37),AVERAGEIF(CNRFC!Q:Q,$H38,CNRFC!M:M),AVERAGEIF(Ensemble!CM:CM,$H38,Ensemble!CO:CO),"-") -> 50.3 | N38: =CHOOSE($A38+1,_xlfn.IFNA(INDEX(USGS!R:R,MATCH($H38,USGS!Q:Q,0)),I37),AVERAGEIF(CNRFC!Z:Z,$H38,CNRFC!V:V),AVERAGEIF(Ensemble!EH:EH,$H38,Ensemble!EJ:EJ),"-") -> 198 | O38: 316.9 | P38: 315.9666667 | Q38: 316.7 | R38: =IF(AND(J38>Control!$F$6,P38>Control!$F$7,U37=1),1,0) -> 0 | S38: =IF(AND(T37>0,T37<Control!$F$8),0,IF(AND(K38<Control!$F$6-500,Q38<Control!$F$7),1,0))*(1-R38) -> 1 | T38: =IF(AND(T37<Control!$F$8,T37>0),T37+1,IF(AND(R38=1,U37=1),1,0)) -> 0 | U38: =IF(F38=9.01,1,IF(SUM(S32:S38)=7,1,U37))*(1-R38) -> 1 | V38: =IF(A38<3,IF(AND(T38>0,OR(I38>Control!$F$9,SUM(V32:V37)>0)),MAX(I38-Control!$F$10,0),0),0) -> 0 | W38: =CHOOSE($W$1+1,99999,IF(AND(G38>=Control!$F$4,G38<=Control!$F$5),IF(T38<>0,V38,99999),0)) -> 99999 | X38: =INDEX(Control!$D$15:$D$26,D38) -> 3250 | Y38: 440 | Z38: =CHOOSE($A38+1,IF(ISBLANK(INDEX(CDEC!G:G,MATCH($H38,CDEC!J:J,0))),Z37,_xlfn.IFNA(INDEX(CDEC!G:G,MATCH($H38,CDEC!J:J,0)),Z37)),AVERAGEIF(CNRFC!BA:BA,$H38,CNRFC!AW:AW),AVERAGEIF(Ensemble!JT:JT,$H38,Ensemble!JW:JW),"-") -> 3426 | AA38: =INDEX(Control!$E$15:$E$26,D38) -> 4000 | AB38: 0 | AC38: =CHOOSE($A38+1,_xlfn.IFNA(INDEX(USGS!AH:AH,MATCH($H38,USGS!AE:AE,0)),I37),AVERAGEIF(CNRFC!H:H,$H38,CNRFC!D:D),AVERAGEIF(Ensemble!HY:HY,$H38,Ensemble!IA:IA),"-") -> 3170 | AD38: =INDEX(Control!$F$15:$F$26,D38) -> 10700 | AE38: 0 | AF38: -1000 | AG38: 0 | AH38: 0 | AI38: =MIN(INDEX(Control!$G$15:$G$26,D38),AG38) -> 0 | AJ38: =MIN(MAX(AH38-AI38,0),INDEX(Control!$H$15:$H$26,D38)) -> 0 | AK38: 0 | AL38: 2022-11-28 | AP38: 0 | AQ38: 0
A39: 0 | B39: 2023 | C39: 2 | D39: 11 | E39: 29 | F39: 11.29 | G39: 2.29 | H39: 2022-11-29 | I39: =CHOOSE($A39+1,_xlfn.IFNA(INDEX(USGS!Y:Y,MATCH($H39,USGS!X:X,0)),I38),AVERAGEIF(CNRFC!AR:AR,$H39,CNRFC!AN:AN),AVERAGEIF(Ensemble!GC:GC,$H39,Ensemble!GF:GF),"-") -> 3680 | J39: 3723.333333 | K39: 3690 | L39: =CHOOSE($A39+1,_xlfn.IFNA(INDEX(USGS!D:D,MATCH($H39,USGS!C:C,0)),I38),AVERAGEIF(CNRFC!AI:AI,$H39,CNRFC!AE:AE),AVERAGEIF(Ensemble!AR:AR,$H39,Ensemble!AT:AT),"-") -> 68.6 | M39: =CHOOSE($A39+1,_xlfn.IFNA(INDEX(USGS!K:K,MATCH($H39,USGS!J:J,0)),I38),AVERAGEIF(CNRFC!Q:Q,$H39,CNRFC!M:M),AVERAGEIF(Ensemble!CM:CM,$H39,Ensemble!CO:CO),"-") -> 49.4 | N39: =CHOOSE($A39+1,_xlfn.IFNA(INDEX(USGS!R:R,MATCH($H39,USGS!Q:Q,0)),I38),AVERAGEIF(CNRFC!Z:Z,$H39,CNRFC!V:V),AVERAGEIF(Ensemble!EH:EH,$H39,Ensemble!EJ:EJ),"-") -> 197 | O39: 315 | P39: 365.9 | Q39: 316.0333333 | R39: =IF(AND(J39>Control!$F$6,P39>Control!$F$7,U38=1),1,0) -> 0 | S39: =IF(AND(T38>0,T38<Control!$F$8),0,IF(AND(K39<Control!$F$6-500,Q39<Control!$F$7),1,0))*(1-R39) -> 1 | T39: =IF(AND(T38<Control!$F$8,T38>0),T38+1,IF(AND(R39=1,U38=1),1,0)) -> 0 | U39: 1 | V39: =IF(A39<3,IF(AND(T39>0,OR(I39>Control!$F$9,SUM(V33:V38)>0)),MAX(I39-Control!$F$10,0),0),0) -> 0 | W39: =CHOOSE($W$1+1,99999,IF(AND(G39>=Control!$F$4,G39<=Control!$F$5),IF(T39<>0,V39,99999),0)) -> 99999 | X39: =INDEX(Control!$D$15:$D$26,D39) -> 3250 | Y39: 430 | Z39: =CHOOSE($A39+1,IF(ISBLANK(INDEX(CDEC!G:G,MATCH($H39,CDEC!J:J,0))),Z38,_xlfn.IFNA(INDEX(CDEC!G:G,MATCH($H39,CDEC!J:J,0)),Z38)),AVERAGEIF(CNRFC!BA:BA,$H39,CNRFC!AW:AW),AVERAGEIF(Ensemble!JT:JT,$H39,Ensemble!JW:JW),"-") -> 3295 | AA39: =INDEX(Control!$E$15:$E$26,D39) -> 4000 | AB39: 0 | AC39: =CHOOSE($A39+1,_xlfn.IFNA(INDEX(USGS!AH:AH,MATCH($H39,USGS!AE:AE,0)),I38),AVERAGEIF(CNRFC!H:H,$H39,CNRFC!D:D),AVERAGEIF(Ensemble!HY:HY,$H39,Ensemble!IA:IA),"-") -> 3170 | AD39: =INDEX(Control!$F$15:$F$26,D39) -> 10700 | AE39: 0 | AF39: -1000 | AG39: 0 | AH39: 0 | AI39: =MIN(INDEX(Control!$G$15:$G$26,D39),AG39) -> 0 | AJ39: =MIN(MAX(AH39-AI39,0),INDEX(Control!$H$15:$H$26,D39)) -> 0 | AK39: 0 | AL39: 2022-11-29 | AP39: 0 | AQ39: 0
A40: 0 | B40: 2023 | C40: 2 | D40: 11 | E40: 30 | F40: 11.3 | G40: 2.3 | H40: 2022-11-30 | I40: =CHOOSE($A40+1,_xlfn.IFNA(INDEX(USGS!Y:Y,MATCH($H40,USGS!X:X,0)),I39),AVERAGEIF(CNRFC!AR:AR,$H40,CNRFC!AN:AN),AVERAGEIF(Ensemble!GC:GC,$H40,Ensemble!GF:GF),"-") -> 3670 | J40: 3783.333333 | K40: 3680 | L40: =CHOOSE($A40+1,_xlfn.IFNA(INDEX(USGS!D:D,MATCH($H40,USGS!C:C,0)),I39),AVERAGEIF(CNRFC!AI:AI,$H40,CNRFC!AE:AE),AVERAGEIF(Ensemble!AR:AR,$H40,Ensemble!AT:AT),"-") -> 68.5 | M40: =CHOOSE($A40+1,_xlfn.IFNA(INDEX(USGS!K:K,MATCH($H40,USGS!J:J,0)),I39),AVERAGEIF(CNRFC!Q:Q,$H40,CNRFC!M:M),AVERAGEIF(Ensemble!CM:CM,$H40,Ensemble!CO:CO),"-") -> 49.5 | N40: =CHOOSE($A40+1,_xlfn.IFNA(INDEX(USGS!R:R,MATCH($H40,USGS!Q:Q,0)),I39),AVERAGEIF(CNRFC!Z:Z,$H40,CNRFC!V:V),AVERAGEIF(Ensemble!EH:EH,$H40,Ensemble!EJ:EJ),"-") -> 198 | O40: 316 | P40: 416.8333333 | Q40: 315.9666667 | R40: =IF(AND(J40>Control!$F$6,P40>Control!$F$7,U39=1),1,0) -> 0 | S40: =IF(AND(T39>0,T39<Control!$F$8),0,IF(AND(K40<Control!$F$6-500,Q40<Control!$F$7),1,0))*(1-R40) -> 1 | T40: =IF(AND(T39<Control!$F$8,T39>0),T39+1,IF(AND(R40=1,U39=1),1,0)) -> 0 | U40: 1 | V40: =IF(A40<3,IF(AND(T40>0,OR(I40>Control!$F$9,SUM(V34:V39)>0)),MAX(I40-Control!$F$10,0),0),0) -> 0 | W40: =CHOOSE($W$1+1,99999,IF(AND(G40>=Control!$F$4,G40<=Control!$F$5),IF(T40<>0,V40,99999),0)) -> 99999 | X40: =INDEX(Control!$D$15:$D$26,D40) -> 3250 | Y40: 420 | Z40: =CHOOSE($A40+1,IF(ISBLANK(INDEX(CDEC!G:G,MATCH($H40,CDEC!J:J,0))),Z39,_xlfn.IFNA(INDEX(CDEC!G:G,MATCH($H40,CDEC!J:J,0)),Z39)),AVERAGEIF(CNRFC!BA:BA,$H40,CNRFC!AW:AW),AVERAGEIF(Ensemble!JT:JT,$H40,Ensemble!JW:JW),"-") -> 3278 | AA40: =INDEX(Control!$E$15:$E$26,D40) -> 4000 | AB40: 0 | AC40: =CHOOSE($A40+1,_xlfn.IFNA(INDEX(USGS!AH:AH,MATCH($H40,USGS!AE:AE,0)),I39),AVERAGEIF(CNRFC!H:H,$H40,CNRFC!D:D),AVERAGEIF(Ensemble!HY:HY,$H40,Ensemble!IA:IA),"-") -> 3160 | AD40: =INDEX(Control!$F$15:$F$26,D40) -> 10700 | AE40: 0 | AF40: -1000 | AG40: 0 | AH40: 0 | AI40: =MIN(INDEX(Control!$G$15:$G$26,D40),AG40) -> 0 | AJ40: =MIN(MAX(AH40-AI40,0),INDEX(Control!$H$15:$H$26,D40)) -> 0 | AK40: 0 | AL40: 2022-11-30 | AP40: 0 | AQ40: 0
A41: 0 | B41: 2023 | C41: 3 | D41: 12 | E41: 1 | F41: 12.01 | G41: 3.01 | H41: 2022-12-01 | I41: =CHOOSE($A41+1,_xlfn.IFNA(INDEX(USGS!Y:Y,MATCH($H41,USGS!X:X,0)),I40),AVERAGEIF(CNRFC!AR:AR,$H41,CNRFC!AN:AN),AVERAGEIF(Ensemble!GC:GC,$H41,Ensemble!GF:GF),"-") -> 3820 | J41: 3816.666667 | K41: 3723.333333 | L41: =CHOOSE($A41+1,_xlfn.IFNA(INDEX(USGS!D:D,MATCH($H41,USGS!C:C,0)),I40),AVERAGEIF(CNRFC!AI:AI,$H41,CNRFC!AE:AE),AVERAGEIF(Ensemble!AR:AR,$H41,Ensemble!AT:AT),"-") -> 144 | M41: =CHOOSE($A41+1,_xlfn.IFNA(INDEX(USGS!K:K,MATCH($H41,USGS!J:J,0)),I40),AVERAGEIF(CNRFC!Q:Q,$H41,CNRFC!M:M),AVERAGEIF(Ensemble!CM:CM,$H41,Ensemble!CO:CO),"-") -> 58.7 | N41: =CHOOSE($A41+1,_xlfn.IFNA(INDEX(USGS!R:R,MATCH($H41,USGS!Q:Q,0)),I40),AVERAGEIF(CNRFC!Z:Z,$H41,CNRFC!V:V),AVERAGEIF(Ensemble!EH:EH,$H41,Ensemble!EJ:EJ),"-") -> 264 | O41: 466.7 | P41: 444 | Q41: 365.9 | R41: =IF(AND(J41>Control!$F$6,P41>Control!$F$7,U40=1),1,0) -> 0 | S41: =IF(AND(T40>0,T40<Control!$F$8),0,IF(AND(K41<Control!$F$6-500,Q41<Control!$F$7),1,0))*(1-R41) -> 1 | T41: =IF(AND(T40<Control!$F$8,T40>0),T40+1,IF(AND(R41=1,U40=1),1,0)) -> 0 | U41: 1 | V41: =IF(A41<3,IF(AND(T41>0,OR(I41>Control!$F$9,SUM(V35:V40)>0)),MAX(I41-Control!$F$10,0),0),0) -> 0 | W41: =CHOOSE($W$1+1,99999,IF(AND(G41>=Control!$F$4,G41<=Control!$F$5),IF(T41<>0,V41,99999),0)) -> 99999 | X41: =INDEX(Control!$D$15:$D$26,D41) -> 3250 | Y41: 570 | Z41: =CHOOSE($A41+1,IF(ISBLANK(INDEX(CDEC!G:G,MATCH($H41,CDEC!J:J,0))),Z40,_xlfn.IFNA(INDEX(CDEC!G:G,MATCH($H41,CDEC!J:J,0)),Z40)),AVERAGEIF(CNRFC!BA:BA,$H41,CNRFC!AW:AW),AVERAGEIF(Ensemble!JT:JT,$H41,Ensemble!JW:JW),"-") -> 3525 | AA41: =INDEX(Control!$E$15:$E$26,D41) -> 4000 | AB41: 0 | AC41: =CHOOSE($A41+1,_xlfn.IFNA(INDEX(USGS!AH:AH,MATCH($H41,USGS!AE:AE,0)),I40),AVERAGEIF(CNRFC!H:H,$H41,CNRFC!D:D),AVERAGEIF(Ensemble!HY:HY,$H41,Ensemble!IA:IA),"-") -> 3200 | AD41: =INDEX(Control!$F$15:$F$26,D41) -> 10700 | AE41: 0 | AF41: -1000 | AG41: 0 | AH41: 0 | AI41: =MIN(INDEX(Control!$G$15:$G$26,D41),AG41) -> 0 | AJ41: =MIN(MAX(AH41-AI41,0),INDEX(Control!$H$15:$H$26,D41)) -> 0 | AK41: 0 | AL41: 2022-12-01 | AP41: 0 | AQ41: 0
A42: 0 | B42: 2023 | C42: 3 | D42: 12 | E42: 2 | F42: 12.02 | G42: 3.02 | H42: 2022-12-02 | I42: =CHOOSE($A42+1,_xlfn.IFNA(INDEX(USGS!Y:Y,MATCH($H42,USGS!X:X,0)),I41),AVERAGEIF(CNRFC!AR:AR,$H42,CNRFC!AN:AN),AVERAGEIF(Ensemble!GC:GC,$H42,Ensemble!GF:GF),"-") -> 3860 | J42: 3846.666667 | K42: 3783.333333 | L42: =CHOOSE($A42+1,_xlfn.IFNA(INDEX(USGS!D:D,MATCH($H42,USGS!C:C,0)),I41),AVERAGEIF(CNRFC!AI:AI,$H42,CNRFC!AE:AE),AVERAGEIF(Ensemble!AR:AR,$H42,Ensemble!AT:AT),"-") -> 170 | M42: =CHOOSE($A42+1,_xlfn.IFNA(INDEX(USGS!K:K,MATCH($H42,USGS!J:J,0)),I41),AVERAGEIF(CNRFC!Q:Q,$H42,CNRFC!M:M),AVERAGEIF(Ensemble!CM:CM,$H42,Ensemble!CO:CO),"-") -> 64.8 | N42: =CHOOSE($A42+1,_xlfn.IFNA(INDEX(USGS!R:R,MATCH($H42,USGS!Q:Q,0)),I41),AVERAGEIF(CNRFC!Z:Z,$H42,CNRFC!V:V),AVERAGEIF(Ensemble!EH:EH,$H42,Ensemble!EJ:EJ),"-") -> 233 | O42: 467.8 | P42: 484.4 | Q42: 416.8333333 | R42: =IF(AND(J42>Control!$F$6,P42>Control!$F$7,U41=1),1,0) -> 0 | S42: =IF(AND(T41>0,T41<Control!$F$8),0,IF(AND(K42<Control!$F$6-500,Q42<Control!$F$7),1,0))*(1-R42) -> 1 | T42: =IF(AND(T41<Control!$F$8,T41>0),T41+1,IF(AND(R42=1,U41=1),1,0)) -> 0 | U42: 1 | V42: =IF(A42<3,IF(AND(T42>0,OR(I42>Control!$F$9,SUM(V36:V41)>0)),MAX(I42-Control!$F$10,0),0),0) -> 0 | W42: =CHOOSE($W$1+1,99999,IF(AND(G42>=Control!$F$4,G42<=Control!$F$5),IF(T42<>0,V42,99999),0)) -> 99999 | X42: =INDEX(Control!$D$15:$D$26,D42) -> 3250 | Y42: 610 | Z42: =CHOOSE($A42+1,IF(ISBLANK(INDEX(CDEC!G:G,MATCH($H42,CDEC!J:J,0))),Z41,_xlfn.IFNA(INDEX(CDEC!G:G,MATCH($H42,CDEC!J:J,0)),Z41)),AVERAGEIF(CNRFC!BA:BA,$H42,CNRFC!AW:AW),AVERAGEIF(Ensemble!JT:JT,$H42,Ensemble!JW:JW),"-") -> 3836 | AA42: =INDEX(Control!$E$15:$E$26,D42) -> 4000 | AB42: 0 | AC42: =CHOOSE($A42+1,_xlfn.IFNA(INDEX(USGS!AH:AH,MATCH($H42,USGS!AE:AE,0)),I41),AVERAGEIF(CNRFC!H:H,$H42,CNRFC!D:D),AVERAGEIF(Ensemble!HY:HY,$H42,Ensemble!IA:IA),"-") -> 3300 | AD42: =INDEX(Control!$F$15:$F$26,D42) -> 10700 | AE42: 0 | AF42: -1000 | AG42: 0 | AH42: 0 | AI42: =MIN(INDEX(Control!$G$15:$G$26,D42),AG42) -> 0 | AJ42: =MIN(MAX(AH42-AI42,0),INDEX(Control!$H$15:$H$26,D42)) -> 0 | AK42: 0 | AL42: 2022-12-02 | AP42: 0 | AQ42: 0
A43: 0 | B43: 2023 | C43: 3 | D43: 12 | E43: 3 | F43: 12.03 | G43: 3.03 | H43: 2022-12-03 | I43: =CHOOSE($A43+1,_xlfn.IFNA(INDEX(USGS!Y:Y,MATCH($H43,USGS!X:X,0)),I42),AVERAGEIF(CNRFC!AR:AR,$H43,CNRFC!AN:AN),AVERAGEIF(Ensemble!GC:GC,$H43,Ensemble!GF:GF),"-") -> 3770 | J43: 4086.666667 | K43: 3816.666667 | L43: =CHOOSE($A43+1,_xlfn.IFNA(INDEX(USGS!D:D,MATCH($H43,USGS!C:C,0)),I42),AVERAGEIF(CNRFC!AI:AI,$H43,CNRFC!AE:AE),AVERAGEIF(Ensemble!AR:AR,$H43,Ensemble!AT:AT),"-") -> 104 | M43: =CHOOSE($A43+1,_xlfn.IFNA(INDEX(USGS!K:K,MATCH($H43,USGS!J:J,0)),I42),AVERAGEIF(CNRFC!Q:Q,$H43,CNRFC!M:M),AVERAGEIF(Ensemble!CM:CM,$H43,Ensemble!CO:CO),"-") -> 73.5 | N43: =CHOOSE($A43+1,_xlfn.IFNA(INDEX(USGS!R:R,MATCH($H43,USGS!Q:Q,0)),I42),AVERAGEIF(CNRFC!Z:Z,$H43,CNRFC!V:V),AVERAGEIF(Ensemble!EH:EH,$H43,Ensemble!EJ:EJ),"-") -> 220 | O43: 397.5 | P43: 671.5666667 | Q43: 444 | R43: =IF(AND(J43>Control!$F$6,P43>Control!$F$7,U42=1),1,0) -> 0 | S43: =IF(AND(T42>0,T42<Control!$F$8),0,IF(AND(K43<Control!$F$6-500,Q43<Control!$F$7),1,0))*(1-R43) -> 1 | T43: =IF(AND(T42<Control!$F$8,T42>0),T42+1,IF(AND(R43=1,U42=1),1,0)) -> 0 | U43: 1 | V43: =IF(A43<3,IF(AND(T43>0,OR(I43>Control!$F$9,SUM(V37:V42)>0)),MAX(I43-Control!$F$10,0),0),0) -> 0 | W43: =CHOOSE($W$1+1,99999,IF(AND(G43>=Control!$F$4,G43<=Control!$F$5),IF(T43<>0,V43,99999),0)) -> 99999 | X43: =INDEX(Control!$D$15:$D$26,D43) -> 3250 | Y43: 520 | Z43: =CHOOSE($A43+1,IF(ISBLANK(INDEX(CDEC!G:G,MATCH($H43,CDEC!J:J,0))),Z42,_xlfn.IFNA(INDEX(CDEC!G:G,MATCH($H43,CDEC!J:J,0)),Z42)),AVERAGEIF(CNRFC!BA:BA,$H43,CNRFC!AW:AW),AVERAGEIF(Ensemble!JT:JT,$H43,Ensemble!JW:JW),"-") -> 3749 | AA43: =INDEX(Control!$E$15:$E$26,D43) -> 4000 | AB43: 0 | AC43: =CHOOSE($A43+1,_xlfn.IFNA(INDEX(USGS!AH:AH,MATCH($H43,USGS!AE:AE,0)),I42),AVERAGEIF(CNRFC!H:H,$H43,CNRFC!D:D),AVERAGEIF(Ensemble!HY:HY,$H43,Ensemble!IA:IA),"-") -> 3500 | AD43: =INDEX(Control!$F$15:$F$26,D43) -> 10700 | AE43: 0 | AF43: -1000 | AG43: 0 | AH43: 0 | AI43: =MIN(INDEX(Control!$G$15:$G$26,D43),AG43) -> 0 | AJ43: =MIN(MAX(AH43-AI43,0),INDEX(Control!$H$15:$H$26,D43)) -> 0 | AK43: 0 | AL43: 2022-12-03 | AP43: 0 | AQ43: 0
A44: 0 | B44: 2023 | C44: 3 | D44: 12 | E44: 4 | F44: 12.04 | G44: 3.04 | H44: 2022-12-04 | I44: =CHOOSE($A44+1,_xlfn.IFNA(INDEX(USGS!Y:Y,MATCH($H44,USGS!X:X,0)),I43),AVERAGEIF(CNRFC!AR:AR,$H44,CNRFC!AN:AN),AVERAGEIF(Ensemble!GC:GC,$H44,Ensemble!GF:GF),"-") -> 3910 | J44: 4523.333333 | K44: 3846.666667 | L44: =CHOOSE($A44+1,_xlfn.IFNA(INDEX(USGS!D:D,MATCH($H44,USGS!C:C,0)),I43),AVERAGEIF(CNRFC!AI:AI,$H44,CNRFC!AE:AE),AVERAGEIF(Ensemble!AR:AR,$H44,Ensemble!AT:AT),"-") -> 192 | M44: =CHOOSE($A44+1,_xlfn.IFNA(INDEX(USGS!K:K,MATCH($H44,USGS!J:J,0)),I43),AVERAGEIF(CNRFC!Q:Q,$H44,CNRFC!M:M),AVERAGEIF(Ensemble!CM:CM,$H44,Ensemble!CO:CO),"-") -> 71.9 | N44: =CHOOSE($A44+1,_xlfn.IFNA(INDEX(USGS!R:R,MATCH($H44,USGS!Q:Q,0)),I43),AVERAGEIF(CNRFC!Z:Z,$H44,CNRFC!V:V),AVERAGEIF(Ensemble!EH:EH,$H44,Ensemble!EJ:EJ),"-") -> 324 | O44: 587.9 | P44: 982.6666667 | Q44: 484.4 | R44: =IF(AND(J44>Control!$F$6,P44>Control!$F$7,U43=1),1,0) -> 0 | S44: =IF(AND(T43>0,T43<Control!$F$8),0,IF(AND(K44<Control!$F$6-500,Q44<Control!$F$7),1,0))*(1-R44) -> 1 | T44: =IF(AND(T43<Control!$F$8,T43>0),T43+1,IF(AND(R44=1,U43=1),1,0)) -> 0 | U44: 1 | V44: =IF(A44<3,IF(AND(T44>0,OR(I44>Control!$F$9,SUM(V38:V43)>0)),MAX(I44-Control!$F$10,0),0),0) -> 0 | W44: =CHOOSE($W$1+1,99999,IF(AND(G44>=Control!$F$4,G44<=Control!$F$5),IF(T44<>0,V44,99999),0)) -> 99999 | X44: =INDEX(Control!$D$15:$D$26,D44) -> 3250 | Y44: 660 | Z44: =CHOOSE($A44+1,IF(ISBLANK(INDEX(CDEC!G:G,MATCH($H44,CDEC!J:J,0))),Z43,_xlfn.IFNA(INDEX(CDEC!G:G,MATCH($H44,CDEC!J:J,0)),Z43)),AVERAGEIF(CNRFC!BA:BA,$H44,CNRFC!AW:AW),AVERAGEIF(Ensemble!JT:JT,$H44,Ensemble!JW:JW),"-") -> 4300 | AA44: =INDEX(Control!$E$15:$E$26,D44) -> 4000 | AB44: 300 | AC44: =CHOOSE($A44+1,_xlfn.IFNA(INDEX(USGS!AH:AH,MATCH($H44,USGS!AE:AE,0)),I43),AVERAGEIF(CNRFC!H:H,$H44,CNRFC!D:D),AVERAGEIF(Ensemble!HY:HY,$H44,Ensemble!IA:IA),"-") -> 3790 | AD44: =INDEX(Control!$F$15:$F$26,D44) -> 10700 | AE44: 0 | AF44: -1000 | AG44: 0 | AH44: 0 | AI44: =MIN(INDEX(Control!$G$15:$G$26,D44),AG44) -> 0 | AJ44: =MIN(MAX(AH44-AI44,0),INDEX(Control!$H$15:$H$26,D44)) -> 0 | AK44: 0 | AL44: 2022-12-04 | AP44: 0 | AQ44: 0
A45: 0 | B45: 2023 | C45: 3 | D45: 12 | E45: 5 | F45: 12.05 | G45: 3.05 | H45: 2022-12-05 | I45: =CHOOSE($A45+1,_xlfn.IFNA(INDEX(USGS!Y:Y,MATCH($H45,USGS!X:X,0)),I44),AVERAGEIF(CNRFC!AR:AR,$H45,CNRFC!AN:AN),AVERAGEIF(Ensemble!GC:GC,$H45,Ensemble!GF:GF),"-") -> 4580 | J45: 4600 | K45: 4086.666667 | L45: =CHOOSE($A45+1,_xlfn.IFNA(INDEX(USGS!D:D,MATCH($H45,USGS!C:C,0)),I44),AVERAGEIF(CNRFC!AI:AI,$H45,CNRFC!AE:AE),AVERAGEIF(Ensemble!AR:AR,$H45,Ensemble!AT:AT),"-") -> 489 | M45: =CHOOSE($A45+1,_xlfn.IFNA(INDEX(USGS!K:K,MATCH($H45,USGS!J:J,0)),I44),AVERAGEIF(CNRFC!Q:Q,$H45,CNRFC!M:M),AVERAGEIF(Ensemble!CM:CM,$H45,Ensemble!CO:CO),"-") -> 72.3 | N45: =CHOOSE($A45+1,_xlfn.IFNA(INDEX(USGS!R:R,MATCH($H45,USGS!Q:Q,0)),I44),AVERAGEIF(CNRFC!Z:Z,$H45,CNRFC!V:V),AVERAGEIF(Ensemble!EH:EH,$H45,Ensemble!EJ:EJ),"-") -> 468 | O45: 1029.3 | P45: 979.2333333 | Q45: 671.5666667 | R45: =IF(AND(J45>Control!$F$6,P45>Control!$F$7,U44=1),1,0) -> 0 | S45: =IF(AND(T44>0,T44<Control!$F$8),0,IF(AND(K45<Control!$F$6-500,Q45<Control!$F$7),1,0))*(1-R45) -> 1 | T45: =IF(AND(T44<Control!$F$8,T44>0),T44+1,IF(AND(R45=1,U44=1),1,0)) -> 0 | U45: 1 | V45: =IF(A45<3,IF(AND(T45>0,OR(I45>Control!$F$9,SUM(V39:V44)>0)),MAX(I45-Control!$F$10,0),0),0) -> 0 | W45: =CHOOSE($W$1+1,99999,IF(AND(G45>=Control!$F$4,G45<=Control!$F$5),IF(T45<>0,V45,99999),0)) -> 99999 | X45: =INDEX(Control!$D$15:$D$26,D45) -> 3250 | Y45: 1330 | Z45: =CHOOSE($A45+1,IF(ISBLANK(INDEX(CDEC!G:G,MATCH($H45,CDEC!J:J,0))),Z44,_xlfn.IFNA(INDEX(CDEC!G:G,MATCH($H45,CDEC!J:J,0)),Z44)),AVERAGEIF(CNRFC!BA:BA,$H45,CNRFC!AW:AW),AVERAGEIF(Ensemble!JT:JT,$H45,Ensemble!JW:JW),"-") -> 5240 | AA45: =INDEX(Control!$E$15:$E$26,D45) -> 4000 | AB45: 1240 | AC45: =CHOOSE($A45+1,_xlfn.IFNA(INDEX(USGS!AH:AH,MATCH($H45,USGS!AE:AE,0)),I44),AVERAGEIF(CNRFC!H:H,$H45,CNRFC!D:D),AVERAGEIF(Ensemble!HY:HY,$H45,Ensemble!IA:IA),"-") -> 4100 | AD45: =INDEX(Control!$F$15:$F$26,D45) -> 10700 | AE45: 0 | AF45: -1000 | AG45: 0 | AH45: 0 | AI45: =MIN(INDEX(Control!$G$15:$G$26,D45),AG45) -> 0 | AJ45: =MIN(MAX(AH45-AI45,0),INDEX(Control!$H$15:$H$26,D45)) -> 0 | AK45: 0 | AL45: 2022-12-05 | AP45: 0 | AQ45: 0
A46: 0 | B46: 2023 | C46: 3 | D46: 12 | E46: 6 | F46: 12.06 | G46: 3.06 | H46: 2022-12-06 | I46: =CHOOSE($A46+1,_xlfn.IFNA(INDEX(USGS!Y:Y,MATCH($H46,USGS!X:X,0)),I45),AVERAGEIF(CNRFC!AR:AR,$H46,CNRFC!AN:AN),AVERAGEIF(Ensemble!GC:GC,$H46,Ensemble!GF:GF),"-") -> 5080 | J46: 4406.666667 | K46: 4523.333333 | L46: =CHOOSE($A46+1,_xlfn.IFNA(INDEX(USGS!D:D,MATCH($H46,USGS!C:C,0)),I45),AVERAGEIF(CNRFC!AI:AI,$H46,CNRFC!AE:AE),AVERAGEIF(Ensemble!AR:AR,$H46,Ensemble!AT:AT),"-") -> 579 | M46: =CHOOSE($A46+1,_xlfn.IFNA(INDEX(USGS!K:K,MATCH($H46,USGS!J:J,0)),I45),AVERAGEIF(CNRFC!Q:Q,$H46,CNRFC!M:M),AVERAGEIF(Ensemble!CM:CM,$H46,Ensemble!CO:CO),"-") -> 73.8 | N46: =CHOOSE($A46+1,_xlfn.IFNA(INDEX(USGS!R:R,MATCH($H46,USGS!Q:Q,0)),I45),AVERAGEIF(CNRFC!Z:Z,$H46,CNRFC!V:V),AVERAGEIF(Ensemble!EH:EH,$H46,Ensemble!EJ:EJ),"-") -> 678 | O46: 1330.8 | P46: 793.5666667 | Q46: 982.6666667 | R46: =IF(AND(J46>Control!$F$6,P46>Control!$F$7,U45=1),1,0) -> 0 | S46: =IF(AND(T45>0,T45<Control!$F$8),0,IF(AND(K46<Control!$F$6-500,Q46<Control!$F$7),1,0))*(1-R46) -> 1 | T46: =IF(AND(T45<Control!$F$8,T45>0),T45+1,IF(AND(R46=1,U45=1),1,0)) -> 0 | U46: 1 | V46: =IF(A46<3,IF(AND(T46>0,OR(I46>Control!$F$9,SUM(V40:V45)>0)),MAX(I46-Control!$F$10,0),0),0) -> 0 | W46: =CHOOSE($W$1+1,99999,IF(AND(G46>=Control!$F$4,G46<=Control!$F$5),IF(T46<>0,V46,99999),0)) -> 99999 | X46: =INDEX(Control!$D$15:$D$26,D46) -> 3250 | Y46: 1830 | Z46: =CHOOSE($A46+1,IF(ISBLANK(INDEX(CDEC!G:G,MATCH($H46,CDEC!J:J,0))),Z45,_xlfn.IFNA(INDEX(CDEC!G:G,MATCH($H46,CDEC!J:J,0)),Z45)),AVERAGEIF(CNRFC!BA:BA,$H46,CNRFC!AW:AW),AVERAGEIF(Ensemble!JT:JT,$H46,Ensemble!JW:JW),"-") -> 8012 | AA46: =INDEX(Control!$E$15:$E$26,D46) -> 4000 | AB46: 4012 | AC46: =CHOOSE($A46+1,_xlfn.IFNA(INDEX(USGS!AH:AH,MATCH($H46,USGS!AE:AE,0)),I45),AVERAGEIF(CNRFC!H:H,$H46,CNRFC!D:D),AVERAGEIF(Ensemble!HY:HY,$H46,Ensemble!IA:IA),"-") -> 4840 | AD46: =INDEX(Control!$F$15:$F$26,D46) -> 10700 | AE46: 0 | AF46: -1000 | AG46: 0 | AH46: 0 | AI46: =MIN(INDEX(Control!$G$15:$G$26,D46),AG46) -> 0 | AJ46: =MIN(MAX(AH46-AI46,0),INDEX(Control!$H$15:$H$26,D46)) -> 0 | AK46: 0 | AL46: 2022-12-06 | AP46: 0 | AQ46: 0
A47: 0 | B47: 2023 | C47: 3 | D47: 12 | E47: 7 | F47: 12.07 | G47: 3.07 | H47: 2022-12-07 | I47: =CHOOSE($A47+1,_xlfn.IFNA(INDEX(USGS!Y:Y,MATCH($H47,USGS!X:X,0)),I46),AVERAGEIF(CNRFC!AR:AR,$H47,CNRFC!AN:AN),AVERAGEIF(Ensemble!GC:GC,$H47,Ensemble!GF:GF),"-") -> 4140 | J47: 4046.666667 | K47: 4600 | L47: =CHOOSE($A47+1,_xlfn.IFNA(INDEX(USGS!D:D,MATCH($H47,USGS!C:C,0)),I46),AVERAGEIF(CNRFC!AI:AI,$H47,CNRFC!AE:AE),AVERAGEIF(Ensemble!AR:AR,$H47,Ensemble!AT:AT),"-") -> 215 | M47: =CHOOSE($A47+1,_xlfn.IFNA(INDEX(USGS!K:K,MATCH($H47,USGS!J:J,0)),I46),AVERAGEIF(CNRFC!Q:Q,$H47,CNRFC!M:M),AVERAGEIF(Ensemble!CM:CM,$H47,Ensemble!CO:CO),"-") -> 80.6 | N47: =CHOOSE($A47+1,_xlfn.IFNA(INDEX(USGS!R:R,MATCH($H47,USGS!Q:Q,0)),I46),AVERAGEIF(CNRFC!Z:Z,$H47,CNRFC!V:V),AVERAGEIF(Ensemble!EH:EH,$H47,Ensemble!EJ:EJ),"-") -> 282 | O47: 577.6 | P47: 758.7 | Q47: 979.2333333 | R47: =IF(AND(J47>Control!$F$6,P47>Control!$F$7,U46=1),1,0) -> 0 | S47: =IF(AND(T46>0,T46<Control!$F$8),0,IF(AND(K47<Control!$F$6-500,Q47<Control!$F$7),1,0))*(1-R47) -> 1 | T47: =IF(AND(T46<Control!$F$8,T46>0),T46+1,IF(AND(R47=1,U46=1),1,0)) -> 0 | U47: 1 | V47: =IF(A47<3,IF(AND(T47>0,OR(I47>Control!$F$9,SUM(V41:V46)>0)),MAX(I47-Control!$F$10,0),0),0) -> 0 | W47: =CHOOSE($W$1+1,99999,IF(AND(G47>=Control!$F$4,G47<=Control!$F$5),IF(T47<>0,V47,99999),0)) -> 99999 | X47: =INDEX(Control!$D$15:$D$26,D47) -> 3250 | Y47: 890 | Z47: =CHOOSE($A47+1,IF(ISBLANK(INDEX(CDEC!G:G,MATCH($H47,CDEC!J:J,0))),Z46,_xlfn.IFNA(INDEX(CDEC!G:G,MATCH($H47,CDEC!J:J,0)),Z46)),AVERAGEIF(CNRFC!BA:BA,$H47,CNRFC!AW:AW),AVERAGEIF(Ensemble!JT:JT,$H47,Ensemble!JW:JW),"-") -> 5681 | AA47: =INDEX(Control!$E$15:$E$26,D47) -> 4000 | AB47: 1681 | AC47: =CHOOSE($A47+1,_xlfn.IFNA(INDEX(USGS!AH:AH,MATCH($H47,USGS!AE:AE,0)),I46),AVERAGEIF(CNRFC!H:H,$H47,CNRFC!D:D),AVERAGEIF(Ensemble!HY:HY,$H47,Ensemble!IA:IA),"-") -> 6520 | AD47: =INDEX(Control!$F$15:$F$26,D47) -> 10700 | AE47: 0 | AF47: -1000 | AG47: 0 | AH47: 0 | AI47: =MIN(INDEX(Control!$G$15:$G$26,D47),AG47) -> 0 | AJ47: =MIN(MAX(AH47-AI47,0),INDEX(Control!$H$15:$H$26,D47)) -> 0 | AK47: 0 | AL47: 2022-12-07 | AP47: 0 | AQ47: 0
A48: 0 | B48: 2023 | C48: 3 | D48: 12 | E48: 8 | F48: 12.08 | G48: 3.08 | H48: 2022-12-08 | I48: =CHOOSE($A48+1,_xlfn.IFNA(INDEX(USGS!Y:Y,MATCH($H48,USGS!X:X,0)),I47),AVERAGEIF(CNRFC!AR:AR,$H48,CNRFC!AN:AN),AVERAGEIF(Ensemble!GC:GC,$H48,Ensemble!GF:GF),"-") -> 4000 | J48: 4000 | K48: 4406.666667 | L48: =CHOOSE($A48+1,_xlfn.IFNA(INDEX(USGS!D:D,MATCH($H48,USGS!C:C,0)),I47),AVERAGEIF(CNRFC!AI:AI,$H48,CNRFC!AE:AE),AVERAGEIF(Ensemble!AR:AR,$H48,Ensemble!AT:AT),"-") -> 155 | M48: =CHOOSE($A48+1,_xlfn.IFNA(INDEX(USGS!K:K,MATCH($H48,USGS!J:J,0)),I47),AVERAGEIF(CNRFC!Q:Q,$H48,CNRFC!M:M),AVERAGEIF(Ensemble!CM:CM,$H48,Ensemble!CO:CO),"-") -> 82.3 | N48: =CHOOSE($A48+1,_xlfn.IFNA(INDEX(USGS!R:R,MATCH($H48,USGS!Q:Q,0)),I47),AVERAGEIF(CNRFC!Z:Z,$H48,CNRFC!V:V),AVERAGEIF(Ensemble!EH:EH,$H48,Ensemble!EJ:EJ),"-") -> 235 | O48: 472.3 | P48: 2511.5 | Q48: 793.5666667 | R48: =IF(AND(J48>Control!$F$6,P48>Control!$F$7,U47=1),1,0) -> 0 | S48: =IF(AND(T47>0,T47<Control!$F$8),0,IF(AND(K48<Control!$F$6-500,Q48<Control!$F$7),1,0))*(1-R48) -> 1 | T48: =IF(AND(T47<Control!$F$8,T47>0),T47+1,IF(AND(R48=1,U47=1),1,0)) -> 0 | U48: 1 | V48: =IF(A48<3,IF(AND(T48>0,OR(I48>Control!$F$9,SUM(V42:V47)>0)),MAX(I48-Control!$F$10,0),0),0) -> 0 | W48: =CHOOSE($W$1+1,99999,IF(AND(G48>=Control!$F$4,G48<=Control!$F$5),IF(T48<>0,V48,99999),0)) -> 99999 | X48: =INDEX(Control!$D$15:$D$26,D48) -> 3250 | Y48: 750 | Z48: =CHOOSE($A48+1,IF(ISBLANK(INDEX(CDEC!G:G,MATCH($H48,CDEC!J:J,0))),Z47,_xlfn.IFNA(INDEX(CDEC!G:G,MATCH($H48,CDEC!J:J,0)),Z47)),AVERAGEIF(CNRFC!BA:BA,$H48,CNRFC!AW:AW),AVERAGEIF(Ensemble!JT:JT,$H48,Ensemble!JW:JW),"-") -> 4310 | AA48: =INDEX(Control!$E$15:$E$26,D48) -> 4000 | AB48: 310 | AC48: =CHOOSE($A48+1,_xlfn.IFNA(INDEX(USGS!AH:AH,MATCH($H48,USGS!AE:AE,0)),I47),AVERAGEIF(CNRFC!H:H,$H48,CNRFC!D:D),AVERAGEIF(Ensemble!HY:HY,$H48,Ensemble!IA:IA),"-") -> 6250 | AD48: =INDEX(Control!$F$15:$F$26,D48) -> 10700 | AE48: 0 | AF48: -1000 | AG48: 0 | AH48: 0 | AI48: =MIN(INDEX(Control!$G$15:$G$26,D48),AG48) -> 0 | AJ48: =MIN(MAX(AH48-AI48,0),INDEX(Control!$H$15:$H$26,D48)) -> 0 | AK48: 0 | AL48: 2022-12-08 | AP48: 0 | AQ48: 0
A49: 0 | B49: 2023 | C49: 3 | D49: 12 | E49: 9 | F49: 12.09 | G49: 3.09 | H49: 2022-12-09 | I49: =CHOOSE($A49+1,_xlfn.IFNA(INDEX(USGS!Y:Y,MATCH($H49,USGS!X:X,0)),I48),AVERAGEIF(CNRFC!AR:AR,$H49,CNRFC!AN:AN),AVERAGEIF(Ensemble!GC:GC,$H49,Ensemble!GF:GF),"-") -> 4000 | J49: 6200 | K49: 4046.666667 | L49: =CHOOSE($A49+1,_xlfn.IFNA(INDEX(USGS!D:D,MATCH($H49,USGS!C:C,0)),I48),AVERAGEIF(CNRFC!AI:AI,$H49,CNRFC!AE:AE),AVERAGEIF(Ensemble!AR:AR,$H49,Ensemble!AT:AT),"-") -> 744 | M49: =CHOOSE($A49+1,_xlfn.IFNA(INDEX(USGS!K:K,MATCH($H49,USGS!J:J,0)),I48),AVERAGEIF(CNRFC!Q:Q,$H49,CNRFC!M:M),AVERAGEIF(Ensemble!CM:CM,$H49,Ensemble!CO:CO),"-") -> 94.2 | N49: =CHOOSE($A49+1,_xlfn.IFNA(INDEX(USGS!R:R,MATCH($H49,USGS!Q:Q,0)),I48),AVERAGEIF(CNRFC!Z:Z,$H49,CNRFC!V:V),AVERAGEIF(Ensemble!EH:EH,$H49,Ensemble!EJ:EJ),"-") -> 388 | O49: 1226.2 | P49: 3817.4 | Q49: 758.7 | R49: =IF(AND(J49>Control!$F$6,P49>Control!$F$7,U48=1),1,0) -> 0 | S49: =IF(AND(T48>0,T48<Control!$F$8),0,IF(AND(K49<Control!$F$6-500,Q49<Control!$F$7),1,0))*(1-R49) -> 1 | T49: =IF(AND(T48<Control!$F$8,T48>0),T48+1,IF(AND(R49=1,U48=1),1,0)) -> 0 | U49: 1 | V49: =IF(A49<3,IF(AND(T49>0,OR(I49>Control!$F$9,SUM(V43:V48)>0)),MAX(I49-Control!$F$10,0),0),0) -> 0 | W49: =CHOOSE($W$1+1,99999,IF(AND(G49>=Control!$F$4,G49<=Control!$F$5),IF(T49<>0,V49,99999),0)) -> 99999 | X49: =INDEX(Control!$D$15:$D$26,D49) -> 3250 | Y49: 750 | Z49: =CHOOSE($A49+1,IF(ISBLANK(INDEX(CDEC!G:G,MATCH($H49,CDEC!J:J,0))),Z48,_xlfn.IFNA(INDEX(CDEC!G:G,MATCH($H49,CDEC!J:J,0)),Z48)),AVERAGEIF(CNRFC!BA:BA,$H49,CNRFC!AW:AW),AVERAGEIF(Ensemble!JT:JT,$H49,Ensemble!JW:JW),"-") -> 4668 | AA49: =INDEX(Control!$E$15:$E$26,D49) -> 4000 | AB49: 668 | AC49: =CHOOSE($A49+1,_xlfn.IFNA(INDEX(USGS!AH:AH,MATCH($H49,USGS!AE:AE,0)),I48),AVERAGEIF(CNRFC!H:H,$H49,CNRFC!D:D),AVERAGEIF(Ensemble!HY:HY,$H49,Ensemble!IA:IA),"-") -> 4820 | AD49: =INDEX(Control!$F$15:$F$26,D49) -> 10700 | AE49: 0 | AF49: -1000 | AG49: 0 | AH49: 0 | AI49: =MIN(INDEX(Control!$G$15:$G$26,D49),AG49) -> 0 | AJ49: =MIN(MAX(AH49-AI49,0),INDEX(Control!$H$15:$H$26,D49)) -> 0 | AK49: 0 | AL49: 2022-12-09 | AP49: 0 | AQ49: 0
A50: 0 | B50: 2023 | C50: 3 | D50: 12 | E50: 10 | F50: 12.1 | G50: 3.1 | H50: 2022-12-10 | I50: =CHOOSE($A50+1,_xlfn.IFNA(INDEX(USGS!Y:Y,MATCH($H50,USGS!X:X,0)),I49),AVERAGEIF(CNRFC!AR:AR,$H50,CNRFC!AN:AN),AVERAGEIF(Ensemble!GC:GC,$H50,Ensemble!GF:GF),"-") -> 4000 | J50: 6693.333333 | K50: 4000 | L50: =CHOOSE($A50+1,_xlfn.IFNA(INDEX(USGS!D:D,MATCH($H50,USGS!C:C,0)),I49),AVERAGEIF(CNRFC!AI:AI,$H50,CNRFC!AE:AE),AVERAGEIF(Ensemble!AR:AR,$H50,Ensemble!AT:AT),"-") -> 4440 | M50: =CHOOSE($A50+1,_xlfn.IFNA(INDEX(USGS!K:K,MATCH($H50,USGS!J:J,0)),I49),AVERAGEIF(CNRFC!Q:Q,$H50,CNRFC!M:M),AVERAGEIF(Ensemble!CM:CM,$H50,Ensemble!CO:CO),"-") -> 126 | N50: =CHOOSE($A50+1,_xlfn.IFNA(INDEX(USGS!R:R,MATCH($H50,USGS!Q:Q,0)),I49),AVERAGEIF(CNRFC!Z:Z,$H50,CNRFC!V:V),AVERAGEIF(Ensemble!EH:EH,$H50,Ensemble!EJ:EJ),"-") -> 1270 | O50: 5836 | P50: 3916.666667 | Q50: 2511.5 | R50: =IF(AND(J50>Control!$F$6,P50>Control!$F$7,U49=1),1,0) -> 0 | S50: =IF(AND(T49>0,T49<Control!$F$8),0,IF(AND(K50<Control!$F$6-500,Q50<Control!$F$7),1,0))*(1-R50) -> 0 | T50: =IF(AND(T49<Control!$F$8,T49>0),T49+1,IF(AND(R50=1,U49=1),1,0)) -> 0 | U50: 1 | V50: =IF(A50<3,IF(AND(T50>0,OR(I50>Control!$F$9,SUM(V44:V49)>0)),MAX(I50-Control!$F$10,0),0),0) -> 0 | W50: =CHOOSE($W$1+1,99999,IF(AND(G50>=Control!$F$4,G50<=Control!$F$5),IF(T50<>0,V50,99999),0)) -> 99999 | X50: =INDEX(Control!$D$15:$D$26,D50) -> 3250 | Y50: 750 | Z50: =CHOOSE($A50+1,IF(ISBLANK(INDEX(CDEC!G:G,MATCH($H50,CDEC!J:J,0))),Z49,_xlfn.IFNA(INDEX(CDEC!G:G,MATCH($H50,CDEC!J:J,0)),Z49)),AVERAGEIF(CNRFC!BA:BA,$H50,CNRFC!AW:AW),AVERAGEIF(Ensemble!JT:JT,$H50,Ensemble!JW:JW),"-") -> 8672 | AA50: =INDEX(Control!$E$15:$E$26,D50) -> 4000 | AB50: 4672 | AC50: =CHOOSE($A50+1,_xlfn.IFNA(INDEX(USGS!AH:AH,MATCH($H50,USGS!AE:AE,0)),I49),AVERAGEIF(CNRFC!H:H,$H50,CNRFC!D:D),AVERAGEIF(Ensemble!HY:HY,$H50,Ensemble!IA:IA),"-") -> 4520 | AD50: =INDEX(Control!$F$15:$F$26,D50) -> 10700 | AE50: 0 | AF50: -1000 | AG50: 0 | AH50: 0 | AI50: =MIN(INDEX(Control!$G$15:$G$26,D50),AG50) -> 0 | AJ50: =MIN(MAX(AH50-AI50,0),INDEX(Control!$H$15:$H$26,D50)) -> 0 | AK50: 0 | AL50: 2022-12-10 | AP50: 0 | AQ50: 0
A51: 0 | B51: 2023 | C51: 3 | D51: 12 | E51: 11 | F51: 12.11 | G51: 3.11 | H51: 2022-12-11 | I51: =CHOOSE($A51+1,_xlfn.IFNA(INDEX(USGS!Y:Y,MATCH($H51,USGS!X:X,0)),I50),AVERAGEIF(CNRFC!AR:AR,$H51,CNRFC!AN:AN),AVERAGEIF(Ensemble!GC:GC,$H51,Ensemble!GF:GF),"-") -> 10600 | J51: 6886.666667 | K51: 6200 | L51: =CHOOSE($A51+1,_xlfn.IFNA(INDEX(USGS!D:D,MATCH($H51,USGS!C:C,0)),I50),AVERAGEIF(CNRFC!AI:AI,$H51,CNRFC!AE:AE),AVERAGEIF(Ensemble!AR:AR,$H51,Ensemble!AT:AT),"-") -> 3290 | M51: =CHOOSE($A51+1,_xlfn.IFNA(INDEX(USGS!K:K,MATCH($H51,USGS!J:J,0)),I50),AVERAGEIF(CNRFC!Q:Q,$H51,CNRFC!M:M),AVERAGEIF(Ensemble!CM:CM,$H51,Ensemble!CO:CO),"-") -> 340 | N51: =CHOOSE($A51+1,_xlfn.IFNA(INDEX(USGS!R:R,MATCH($H51,USGS!Q:Q,0)),I50),AVERAGEIF(CNRFC!Z:Z,$H51,CNRFC!V:V),AVERAGEIF(Ensemble!EH:EH,$H51,Ensemble!EJ:EJ),"-") -> 760 | O51: 4390 | P51: 2280.666667 | Q51: 3817.4 | R51: =IF(AND(J51>Control!$F$6,P51>Control!$F$7,U50=1),1,0) -> 0 | S51: =IF(AND(T50>0,T50<Control!$F$8),0,IF(AND(K51<Control!$F$6-500,Q51<Control!$F$7),1,0))*(1-R51) -> 0 | T51: =IF(AND(T50<Control!$F$8,T50>0),T50+1,IF(AND(R51=1,U50=1),1,0)) -> 0 | U51: 1 | V51: =IF(A51<3,IF(AND(T51>0,OR(I51>Control!$F$9,SUM(V45:V50)>0)),MAX(I51-Control!$F$10,0),0),0) -> 0 | W51: =CHOOSE($W$1+1,99999,IF(AND(G51>=Control!$F$4,G51<=Control!$F$5),IF(T51<>0,V51,99999),0)) -> 99999 | X51: =INDEX(Control!$D$15:$D$26,D51) -> 3250 | Y51: 7350 | Z51: =CHOOSE($A51+1,IF(ISBLANK(INDEX(CDEC!G:G,MATCH($H51,CDEC!J:J,0))),Z50,_xlfn.IFNA(INDEX(CDEC!G:G,MATCH($H51,CDEC!J:J,0)),Z50)),AVERAGEIF(CNRFC!BA:BA,$H51,CNRFC!AW:AW),AVERAGEIF(Ensemble!JT:JT,$H51,Ensemble!JW:JW),"-") -> 18286 | AA51: =INDEX(Control!$E$15:$E$26,D51) -> 4000 | AB51: 14286 | AC51: =CHOOSE($A51+1,_xlfn.IFNA(INDEX(USGS!AH:AH,MATCH($H51,USGS!AE:AE,0)),I50),AVERAGEIF(CNRFC!H:H,$H51,CNRFC!D:D),AVERAGEIF(Ensemble!HY:HY,$H51,Ensemble!IA:IA),"-") -> 6650 | AD51: =INDEX(Control!$F$15:$F$26,D51) -> 10700 | AE51: 0 | AF51: -1000 | AG51: 0 | AH51: 0 | AI51: =MIN(INDEX(Control!$G$15:$G$26,D51),AG51) -> 0 | AJ51: =MIN(MAX(AH51-AI51,0),INDEX(Control!$H$15:$H$26,D51)) -> 0 | AK51: 0 | AL51: 2022-12-11 | AP51: 0 | AQ51: 0
A52: 0 | B52: 2023 | C52: 3 | D52: 12 | E52: 12 | F52: 12.12 | G52: 3.12 | H52: 2022-12-12 | I52: =CHOOSE($A52+1,_xlfn.IFNA(INDEX(USGS!Y:Y,MATCH($H52,USGS!X:X,0)),I51),AVERAGEIF(CNRFC!AR:AR,$H52,CNRFC!AN:AN),AVERAGEIF(Ensemble!GC:GC,$H52,Ensemble!GF:GF),"-") -> 5480 | J52: 4786.666667 | K52: 6693.333333 | L52: =CHOOSE($A52+1,_xlfn.IFNA(INDEX(USGS!D:D,MATCH($H52,USGS!C:C,0)),I51),AVERAGEIF(CNRFC!AI:AI,$H52,CNRFC!AE:AE),AVERAGEIF(Ensemble!AR:AR,$H52,Ensemble!AT:AT),"-") -> 793 | M52: =CHOOSE($A52+1,_xlfn.IFNA(INDEX(USGS!K:K,MATCH($H52,USGS!J:J,0)),I51),AVERAGEIF(CNRFC!Q:Q,$H52,CNRFC!M:M),AVERAGEIF(Ensemble!CM:CM,$H52,Ensemble!CO:CO),"-") -> 298 | N52: =CHOOSE($A52+1,_xlfn.IFNA(INDEX(USGS!R:R,MATCH($H52,USGS!Q:Q,0)),I51),AVERAGEIF(CNRFC!Z:Z,$H52,CNRFC!V:V),AVERAGEIF(Ensemble!EH:EH,$H52,Ensemble!EJ:EJ),"-") -> 433 | O52: 1524 | P52: 1052.333333 | Q52: 3916.666667 | R52: =IF(AND(J52>Control!$F$6,P52>Control!$F$7,U51=1),1,0) -> 0 | S52: =IF(AND(T51>0,T51<Control!$F$8),0,IF(AND(K52<Control!$F$6-500,Q52<Control!$F$7),1,0))*(1-R52) -> 0 | T52: =IF(AND(T51<Control!$F$8,T51>0),T51+1,IF(AND(R52=1,U51=1),1,0)) -> 0 | U52: 1 | V52: =IF(A52<3,IF(AND(T52>0,OR(I52>Control!$F$9,SUM(V46:V51)>0)),MAX(I52-Control!$F$10,0),0),0) -> 0 | W52: =CHOOSE($W$1+1,99999,IF(AND(G52>=Control!$F$4,G52<=Control!$F$5),IF(T52<>0,V52,99999),0)) -> 99999 | X52: =INDEX(Control!$D$15:$D$26,D52) -> 3250 | Y52: 2230 | Z52: =CHOOSE($A52+1,IF(ISBLANK(INDEX(CDEC!G:G,MATCH($H52,CDEC!J:J,0))),Z51,_xlfn.IFNA(INDEX(CDEC!G:G,MATCH($H52,CDEC!J:J,0)),Z51)),AVERAGEIF(CNRFC!BA:BA,$H52,CNRFC!AW:AW),AVERAGEIF(Ensemble!JT:JT,$H52,Ensemble!JW:JW),"-") -> 8947 | AA52: =INDEX(Control!$E$15:$E$26,D52) -> 4000 | AB52: 4947 | AC52: =CHOOSE($A52+1,_xlfn.IFNA(INDEX(USGS!AH:AH,MATCH($H52,USGS!AE:AE,0)),I51),AVERAGEIF(CNRFC!H:H,$H52,CNRFC!D:D),AVERAGEIF(Ensemble!HY:HY,$H52,Ensemble!IA:IA),"-") -> 13200 | AD52: =INDEX(Control!$F$15:$F$26,D52) -> 10700 | AE52: 2500 | AF52: -1000 | AG52: 0 | AH52: 0 | AI52: =MIN(INDEX(Control!$G$15:$G$26,D52),AG52) -> 0 | AJ52: =MIN(MAX(AH52-AI52,0),INDEX(Control!$H$15:$H$26,D52)) -> 0 | AK52: 0 | AL52: 2022-12-12 | AP52: 0 | AQ52: 0
A53: 0 | B53: 2023 | C53: 3 | D53: 12 | E53: 13 | F53: 12.13 | G53: 3.13 | H53: 2022-12-13 | I53: =CHOOSE($A53+1,_xlfn.IFNA(INDEX(USGS!Y:Y,MATCH($H53,USGS!X:X,0)),I52),AVERAGEIF(CNRFC!AR:AR,$H53,CNRFC!AN:AN),AVERAGEIF(Ensemble!GC:GC,$H53,Ensemble!GF:GF),"-") -> 4580 | J53: 4340 | K53: 6886.666667 | L53: =CHOOSE($A53+1,_xlfn.IFNA(INDEX(USGS!D:D,MATCH($H53,USGS!C:C,0)),I52),AVERAGEIF(CNRFC!AI:AI,$H53,CNRFC!AE:AE),AVERAGEIF(Ensemble!AR:AR,$H53,Ensemble!AT:AT),"-") -> 396 | M53: =CHOOSE($A53+1,_xlfn.IFNA(INDEX(USGS!K:K,MATCH($H53,USGS!J:J,0)),I52),AVERAGEIF(CNRFC!Q:Q,$H53,CNRFC!M:M),AVERAGEIF(Ensemble!CM:CM,$H53,Ensemble!CO:CO),"-") -> 224 | N53: =CHOOSE($A53+1,_xlfn.IFNA(INDEX(USGS!R:R,MATCH($H53,USGS!Q:Q,0)),I52),AVERAGEIF(CNRFC!Z:Z,$H53,CNRFC!V:V),AVERAGEIF(Ensemble!EH:EH,$H53,Ensemble!EJ:EJ),"-") -> 308 | O53: 928 | P53: 745 | Q53: 2280.666667 | R53: =IF(AND(J53>Control!$F$6,P53>Control!$F$7,U52=1),1,0) -> 0 | S53: =IF(AND(T52>0,T52<Control!$F$8),0,IF(AND(K53<Control!$F$6-500,Q53<Control!$F$7),1,0))*(1-R53) -> 1 | T53: =IF(AND(T52<Control!$F$8,T52>0),T52+1,IF(AND(R53=1,U52=1),1,0)) -> 0 | U53: 1 | V53: =IF(A53<3,IF(AND(T53>0,OR(I53>Control!$F$9,SUM(V47:V52)>0)),MAX(I53-Control!$F$10,0),0),0) -> 0 | W53: =CHOOSE($W$1+1,99999,IF(AND(G53>=Control!$F$4,G53<=Control!$F$5),IF(T53<>0,V53,99999),0)) -> 99999 | X53: =INDEX(Control!$D$15:$D$26,D53) -> 3250 | Y53: 1330 | Z53: =CHOOSE($A53+1,IF(ISBLANK(INDEX(CDEC!G:G,MATCH($H53,CDEC!J:J,0))),Z52,_xlfn.IFNA(INDEX(CDEC!G:G,MATCH($H53,CDEC!J:J,0)),Z52)),AVERAGEIF(CNRFC!BA:BA,$H53,CNRFC!AW:AW),AVERAGEIF(Ensemble!JT:JT,$H53,Ensemble!JW:JW),"-") -> 5780 | AA53: =INDEX(Control!$E$15:$E$26,D53) -> 4000 | AB53: 1780 | AC53: =CHOOSE($A53+1,_xlfn.IFNA(INDEX(USGS!AH:AH,MATCH($H53,USGS!AE:AE,0)),I52),AVERAGEIF(CNRFC!H:H,$H53,CNRFC!D:D),AVERAGEIF(Ensemble!HY:HY,$H53,Ensemble!IA:IA),"-") -> 11100 | AD53: =INDEX(Control!$F$15:$F$26,D53) -> 10700 | AE53: 400 | AF53: -1000 | AG53: 0 | AH53: 0 | AI53: =MIN(INDEX(Control!$G$15:$G$26,D53),AG53) -> 0 | AJ53: =MIN(MAX(AH53-AI53,0),INDEX(Control!$H$15:$H$26,D53)) -> 0 | AK53: 0 | AL53: 2022-12-13 | AP53: 0 | AQ53: 0
A54: 0 | B54: 2023 | C54: 3 | D54: 12 | E54: 14 | F54: 12.14 | G54: 3.14 | H54: 2022-12-14 | I54: =CHOOSE($A54+1,_xlfn.IFNA(INDEX(USGS!Y:Y,MATCH($H54,USGS!X:X,0)),I53),AVERAGEIF(CNRFC!AR:AR,$H54,CNRFC!AN:AN),AVERAGEIF(Ensemble!GC:GC,$H54,Ensemble!GF:GF),"-") -> 4300 | J54: 4146.666667 | K54: 4786.666667 | L54: =CHOOSE($A54+1,_xlfn.IFNA(INDEX(USGS!D:D,MATCH($H54,USGS!C:C,0)),I53),AVERAGEIF(CNRFC!AI:AI,$H54,CNRFC!AE:AE),AVERAGEIF(Ensemble!AR:AR,$H54,Ensemble!AT:AT),"-") -> 269 | M54: =CHOOSE($A54+1,_xlfn.IFNA(INDEX(USGS!K:K,MATCH($H54,USGS!J:J,0)),I53),AVERAGEIF(CNRFC!Q:Q,$H54,CNRFC!M:M),AVERAGEIF(Ensemble!CM:CM,$H54,Ensemble!CO:CO),"-") -> 167 | N54: =CHOOSE($A54+1,_xlfn.IFNA(INDEX(USGS!R:R,MATCH($H54,USGS!Q:Q,0)),I53),AVERAGEIF(CNRFC!Z:Z,$H54,CNRFC!V:V),AVERAGEIF(Ensemble!EH:EH,$H54,Ensemble!EJ:EJ),"-") -> 269 | O54: 705 | P54: 616.3333333 | Q54: 1052.333333 | R54: =IF(AND(J54>Control!$F$6,P54>Control!$F$7,U53=1),1,0) -> 0 | S54: =IF(AND(T53>0,T53<Control!$F$8),0,IF(AND(K54<Control!$F$6-500,Q54<Control!$F$7),1,0))*(1-R54) -> 1 | T54: =IF(AND(T53<Control!$F$8,T53>0),T53+1,IF(AND(R54=1,U53=1),1,0)) -> 0 | U54: 1 | V54: =IF(A54<3,IF(AND(T54>0,OR(I54>Control!$F$9,SUM(V48:V53)>0)),MAX(I54-Control!$F$10,0),0),0) -> 0 | W54: =CHOOSE($W$1+1,99999,IF(AND(G54>=Control!$F$4,G54<=Control!$F$5),IF(T54<>0,V54,99999),0)) -> 99999 | X54: =INDEX(Control!$D$15:$D$26,D54) -> 3250 | Y54: 1050 | Z54: =CHOOSE($A54+1,IF(ISBLANK(INDEX(CDEC!G:G,MATCH($H54,CDEC!J:J,0))),Z53,_xlfn.IFNA(INDEX(CDEC!G:G,MATCH($H54,CDEC!J:J,0)),Z53)),AVERAGEIF(CNRFC!BA:BA,$H54,CNRFC!AW:AW),AVERAGEIF(Ensemble!JT:JT,$H54,Ensemble!JW:JW),"-") -> 4627 | AA54: =INDEX(Control!$E$15:$E$26,D54) -> 4000 | AB54: 627 | AC54: =CHOOSE($A54+1,_xlfn.IFNA(INDEX(USGS!AH:AH,MATCH($H54,USGS!AE:AE,0)),I53),AVERAGEIF(CNRFC!H:H,$H54,CNRFC!D:D),AVERAGEIF(Ensemble!HY:HY,$H54,Ensemble!IA:IA),"-") -> 7640 | AD54: =INDEX(Control!$F$15:$F$26,D54) -> 10700 | AE54: 0 | AF54: -1000 | AG54: 0 | AH54: 0 | AI54: =MIN(INDEX(Control!$G$15:$G$26,D54),AG54) -> 0 | AJ54: =MIN(MAX(AH54-AI54,0),INDEX(Control!$H$15:$H$26,D54)) -> 0 | AK54: 0 | AL54: 2022-12-14 | AP54: 0 | AQ54: 0
A55: 0 | B55: 2023 | C55: 3 | D55: 12 | E55: 15 | F55: 12.15 | G55: 3.15 | H55: 2022-12-15 | I55: =CHOOSE($A55+1,_xlfn.IFNA(INDEX(USGS!Y:Y,MATCH($H55,USGS!X:X,0)),I54),AVERAGEIF(CNRFC!AR:AR,$H55,CNRFC!AN:AN),AVERAGEIF(Ensemble!GC:GC,$H55,Ensemble!GF:GF),"-") -> 4140 | J55: 4036.666667 | K55: 4340 | L55: =CHOOSE($A55+1,_xlfn.IFNA(INDEX(USGS!D:D,MATCH($H55,USGS!C:C,0)),I54),AVERAGEIF(CNRFC!AI:AI,$H55,CNRFC!AE:AE),AVERAGEIF(Ensemble!AR:AR,$H55,Ensemble!AT:AT),"-") -> 209 | M55: =CHOOSE($A55+1,_xlfn.IFNA(INDEX(USGS!K:K,MATCH($H55,USGS!J:J,0)),I54),AVERAGEIF(CNRFC!Q:Q,$H55,CNRFC!M:M),AVERAGEIF(Ensemble!CM:CM,$H55,Ensemble!CO:CO),"-") -> 140 | N55: =CHOOSE($A55+1,_xlfn.IFNA(INDEX(USGS!R:R,MATCH($H55,USGS!Q:Q,0)),I54),AVERAGEIF(CNRFC!Z:Z,$H55,CNRFC!V:V),AVERAGEIF(Ensemble!EH:EH,$H55,Ensemble!EJ:EJ),"-") -> 253 | O55: 602 | P55: 549.6666667 | Q55: 745 | R55: =IF(AND(J55>Control!$F$6,P55>Control!$F$7,U54=1),1,0) -> 0 | S55: =IF(AND(T54>0,T54<Control!$F$8),0,IF(AND(K55<Control!$F$6-500,Q55<Control!$F$7),1,0))*(1-R55) -> 1 | T55: =IF(AND(T54<Control!$F$8,T54>0),T54+1,IF(AND(R55=1,U54=1),1,0)) -> 0 | U55: 1 | V55: =IF(A55<3,IF(AND(T55>0,OR(I55>Control!$F$9,SUM(V49:V54)>0)),MAX(I55-Control!$F$10,0),0),0) -> 0 | W55: =CHOOSE($W$1+1,99999,IF(AND(G55>=Control!$F$4,G55<=Control!$F$5),IF(T55<>0,V55,99999),0)) -> 99999 | X55: =INDEX(Control!$D$15:$D$26,D55) -> 3250 | Y55: 890 | Z55: =CHOOSE($A55+1,IF(ISBLANK(INDEX(CDEC!G:G,MATCH($H55,CDEC!J:J,0))),Z54,_xlfn.IFNA(INDEX(CDEC!G:G,MATCH($H55,CDEC!J:J,0)),Z54)),AVERAGEIF(CNRFC!BA:BA,$H55,CNRFC!AW:AW),AVERAGEIF(Ensemble!JT:JT,$H55,Ensemble!JW:JW),"-") -> 4077 | AA55: =INDEX(Control!$E$15:$E$26,D55) -> 4000 | AB55: 77 | AC55: =CHOOSE($A55+1,_xlfn.IFNA(INDEX(USGS!AH:AH,MATCH($H55,USGS!AE:AE,0)),I54),AVERAGEIF(CNRFC!H:H,$H55,CNRFC!D:D),AVERAGEIF(Ensemble!HY:HY,$H55,Ensemble!IA:IA),"-") -> 5710 | AD55: =INDEX(Control!$F$15:$F$26,D55) -> 10700 | AE55: 0 | AF55: -1000 | AG55: 0 | AH55: 0 | AI55: =MIN(INDEX(Control!$G$15:$G$26,D55),AG55) -> 0 | AJ55: =MIN(MAX(AH55-AI55,0),INDEX(Control!$H$15:$H$26,D55)) -> 0 | AK55: 0 | AL55: 2022-12-15 | AP55: 0 | AQ55: 0
A56: 0 | B56: 2023 | C56: 3 | D56: 12 | E56: 16 | F56: 12.16 | G56: 3.16 | H56: 2022-12-16 | I56: =CHOOSE($A56+1,_xlfn.IFNA(INDEX(USGS!Y:Y,MATCH($H56,USGS!X:X,0)),I55),AVERAGEIF(CNRFC!AR:AR,$H56,CNRFC!AN:AN),AVERAGEIF(Ensemble!GC:GC,$H56,Ensemble!GF:GF),"-") -> 4000 | J56: 3966.666667 | K56: 4146.666667 | L56: =CHOOSE($A56+1,_xlfn.IFNA(INDEX(USGS!D:D,MATCH($H56,USGS!C:C,0)),I55),AVERAGEIF(CNRFC!AI:AI,$H56,CNRFC!AE:AE),AVERAGEIF(Ensemble!AR:AR,$H56,Ensemble!AT:AT),"-") -> 174 | M56: =CHOOSE($A56+1,_xlfn.IFNA(INDEX(USGS!K:K,MATCH($H56,USGS!J:J,0)),I55),AVERAGEIF(CNRFC!Q:Q,$H56,CNRFC!M:M),AVERAGEIF(Ensemble!CM:CM,$H56,Ensemble!CO:CO),"-") -> 125 | N56: =CHOOSE($A56+1,_xlfn.IFNA(INDEX(USGS!R:R,MATCH($H56,USGS!Q:Q,0)),I55),AVERAGEIF(CNRFC!Z:Z,$H56,CNRFC!V:V),AVERAGEIF(Ensemble!EH:EH,$H56,Ensemble!EJ:EJ),"-") -> 243 | O56: 542 | P56: 509.3333333 | Q56: 616.3333333 | R56: =IF(AND(J56>Control!$F$6,P56>Control!$F$7,U55=1),1,0) -> 0 | S56: =IF(AND(T55>0,T55<Control!$F$8),0,IF(AND(K56<Control!$F$6-500,Q56<Control!$F$7),1,0))*(1-R56) -> 1 | T56: =IF(AND(T55<Control!$F$8,T55>0),T55+1,IF(AND(R56=1,U55=1),1,0)) -> 0 | U56: 1 | V56: =IF(A56<3,IF(AND(T56>0,OR(I56>Control!$F$9,SUM(V50:V55)>0)),MAX(I56-Control!$F$10,0),0),0) -> 0 | W56: =CHOOSE($W$1+1,99999,IF(AND(G56>=Control!$F$4,G56<=Control!$F$5),IF(T56<>0,V56,99999),0)) -> 99999 | X56: =INDEX(Control!$D$15:$D$26,D56) -> 3250 | Y56: 750 | Z56: =CHOOSE($A56+1,IF(ISBLANK(INDEX(CDEC!G:G,MATCH($H56,CDEC!J:J,0))),Z55,_xlfn.IFNA(INDEX(CDEC!G:G,MATCH($H56,CDEC!J:J,0)),Z55)),AVERAGEIF(CNRFC!BA:BA,$H56,CNRFC!AW:AW),AVERAGEIF(Ensemble!JT:JT,$H56,Ensemble!JW:JW),"-") -> 3800 | AA56: =INDEX(Control!$E$15:$E$26,D56) -> 4000 | AB56: 0 | AC56: =CHOOSE($A56+1,_xlfn.IFNA(INDEX(USGS!AH:AH,MATCH($H56,USGS!AE:AE,0)),I55),AVERAGEIF(CNRFC!H:H,$H56,CNRFC!D:D),AVERAGEIF(Ensemble!HY:HY,$H56,Ensemble!IA:IA),"-") -> 4510 | AD56: =INDEX(Control!$F$15:$F$26,D56) -> 10700 | AE56: 0 | AF56: -1000 | AG56: 0 | AH56: 0 | AI56: =MIN(INDEX(Control!$G$15:$G$26,D56),AG56) -> 0 | AJ56: =MIN(MAX(AH56-AI56,0),INDEX(Control!$H$15:$H$26,D56)) -> 0 | AK56: 0 | AL56: 2022-12-16 | AP56: 0 | AQ56: 0
A57: 0 | B57: 2023 | C57: 3 | D57: 12 | E57: 17 | F57: 12.17 | G57: 3.17 | H57: 2022-12-17 | I57: =CHOOSE($A57+1,_xlfn.IFNA(INDEX(USGS!Y:Y,MATCH($H57,USGS!X:X,0)),I56),AVERAGEIF(CNRFC!AR:AR,$H57,CNRFC!AN:AN),AVERAGEIF(Ensemble!GC:GC,$H57,Ensemble!GF:GF),"-") -> 3970 | J57: 3930 | K57: 4036.666667 | L57: =CHOOSE($A57+1,_xlfn.IFNA(INDEX(USGS!D:D,MATCH($H57,USGS!C:C,0)),I56),AVERAGEIF(CNRFC!AI:AI,$H57,CNRFC!AE:AE),AVERAGEIF(Ensemble!AR:AR,$H57,Ensemble!AT:AT),"-") -> 153 | M57: =CHOOSE($A57+1,_xlfn.IFNA(INDEX(USGS!K:K,MATCH($H57,USGS!J:J,0)),I56),AVERAGEIF(CNRFC!Q:Q,$H57,CNRFC!M:M),AVERAGEIF(Ensemble!CM:CM,$H57,Ensemble!CO:CO),"-") -> 116 | N57: =CHOOSE($A57+1,_xlfn.IFNA(INDEX(USGS!R:R,MATCH($H57,USGS!Q:Q,0)),I56),AVERAGEIF(CNRFC!Z:Z,$H57,CNRFC!V:V),AVERAGEIF(Ensemble!EH:EH,$H57,Ensemble!EJ:EJ),"-") -> 236 | O57: 505 | P57: 482.6666667 | Q57: 549.6666667 | R57: =IF(AND(J57>Control!$F$6,P57>Control!$F$7,U56=1),1,0) -> 0 | S57: =IF(AND(T56>0,T56<Control!$F$8),0,IF(AND(K57<Control!$F$6-500,Q57<Control!$F$7),1,0))*(1-R57) -> 1 | T57: =IF(AND(T56<Control!$F$8,T56>0),T56+1,IF(AND(R57=1,U56=1),1,0)) -> 0 | U57: 1 | V57: =IF(A57<3,IF(AND(T57>0,OR(I57>Control!$F$9,SUM(V51:V56)>0)),MAX(I57-Control!$F$10,0),0),0) -> 0 | W57: =CHOOSE($W$1+1,99999,IF(AND(G57>=Control!$F$4,G57<=Control!$F$5),IF(T57<>0,V57,99999),0)) -> 99999 | X57: =INDEX(Control!$D$15:$D$26,D57) -> 3250 | Y57: 720 | Z57: =CHOOSE($A57+1,IF(ISBLANK(INDEX(CDEC!G:G,MATCH($H57,CDEC!J:J,0))),Z56,_xlfn.IFNA(INDEX(CDEC!G:G,MATCH($H57,CDEC!J:J,0)),Z56)),AVERAGEIF(CNRFC!BA:BA,$H57,CNRFC!AW:AW),AVERAGEIF(Ensemble!JT:JT,$H57,Ensemble!JW:JW),"-") -> 3650 | AA57: =INDEX(Control!$E$15:$E$26,D57) -> 4000 | AB57: 0 | AC57: =CHOOSE($A57+1,_xlfn.IFNA(INDEX(USGS!AH:AH,MATCH($H57,USGS!AE:AE,0)),I56),AVERAGEIF(CNRFC!H:H,$H57,CNRFC!D:D),AVERAGEIF(Ensemble!HY:HY,$H57,Ensemble!IA:IA),"-") -> 3930 | AD57: =INDEX(Control!$F$15:$F$26,D57) -> 10700 | AE57: 0 | AF57: -1000 | AG57: 0 | AH57: 0 | AI57: =MIN(INDEX(Control!$G$15:$G$26,D57),AG57) -> 0 | AJ57: =MIN(MAX(AH57-AI57,0),INDEX(Control!$H$15:$H$26,D57)) -> 0 | AK57: 0 | AL57: 2022-12-17 | AP57: 0 | AQ57: 0
A58: 0 | B58: 2023 | C58: 3 | D58: 12 | E58: 18 | F58: 12.18 | G58: 3.18 | H58: 2022-12-18 | I58: =CHOOSE($A58+1,_xlfn.IFNA(INDEX(USGS!Y:Y,MATCH($H58,USGS!X:X,0)),I57),AVERAGEIF(CNRFC!AR:AR,$H58,CNRFC!AN:AN),AVERAGEIF(Ensemble!GC:GC,$H58,Ensemble!GF:GF),"-") -> 3930 | J58: 3963.333333 | K58: 3966.666667 | L58: =CHOOSE($A58+1,_xlfn.IFNA(INDEX(USGS!D:D,MATCH($H58,USGS!C:C,0)),I57),AVERAGEIF(CNRFC!AI:AI,$H58,CNRFC!AE:AE),AVERAGEIF(Ensemble!AR:AR,$H58,Ensemble!AT:AT),"-") -> 139 | M58: =CHOOSE($A58+1,_xlfn.IFNA(INDEX(USGS!K:K,MATCH($H58,USGS!J:J,0)),I57),AVERAGEIF(CNRFC!Q:Q,$H58,CNRFC!M:M),AVERAGEIF(Ensemble!CM:CM,$H58,Ensemble!CO:CO),"-") -> 110 | N58: =CHOOSE($A58+1,_xlfn.IFNA(INDEX(USGS!R:R,MATCH($H58,USGS!Q:Q,0)),I57),AVERAGEIF(CNRFC!Z:Z,$H58,CNRFC!V:V),AVERAGEIF(Ensemble!EH:EH,$H58,Ensemble!EJ:EJ),"-") -> 232 | O58: 481 | P58: 465.3333333 | Q58: 509.3333333 | R58: =IF(AND(J58>Control!$F$6,P58>Control!$F$7,U57=1),1,0) -> 0 | S58: =IF(AND(T57>0,T57<Control!$F$8),0,IF(AND(K58<Control!$F$6-500,Q58<Control!$F$7),1,0))*(1-R58) -> 1 | T58: =IF(AND(T57<Control!$F$8,T57>0),T57+1,IF(AND(R58=1,U57=1),1,0)) -> 0 | U58: 1 | V58: =IF(A58<3,IF(AND(T58>0,OR(I58>Control!$F$9,SUM(V52:V57)>0)),MAX(I58-Control!$F$10,0),0),0) -> 0 | W58: =CHOOSE($W$1+1,99999,IF(AND(G58>=Control!$F$4,G58<=Control!$F$5),IF(T58<>0,V58,99999),0)) -> 99999 | X58: =INDEX(Control!$D$15:$D$26,D58) -> 3250 | Y58: 680 | Z58: =CHOOSE($A58+1,IF(ISBLANK(INDEX(CDEC!G:G,MATCH($H58,CDEC!J:J,0))),Z57,_xlfn.IFNA(INDEX(CDEC!G:G,MATCH($H58,CDEC!J:J,0)),Z57)),AVERAGEIF(CNRFC!BA:BA,$H58,CNRFC!AW:AW),AVERAGEIF(Ensemble!JT:JT,$H58,Ensemble!JW:JW),"-") -> 3569 | AA58: =INDEX(Control!$E$15:$E$26,D58) -> 4000 | AB58: 0 | AC58: =CHOOSE($A58+1,_xlfn.IFNA(INDEX(USGS!AH:AH,MATCH($H58,USGS!AE:AE,0)),I57),AVERAGEIF(CNRFC!H:H,$H58,CNRFC!D:D),AVERAGEIF(Ensemble!HY:HY,$H58,Ensemble!IA:IA),"-") -> 3750 | AD58: =INDEX(Control!$F$15:$F$26,D58) -> 10700 | AE58: 0 | AF58: -1000 | AG58: 0 | AH58: 0 | AI58: =MIN(INDEX(Control!$G$15:$G$26,D58),AG58) -> 0 | AJ58: =MIN(MAX(AH58-AI58,0),INDEX(Control!$H$15:$H$26,D58)) -> 0 | AK58: 0 | AL58: 2022-12-18 | AP58: 0 | AQ58: 0
A59: 0 | B59: 2023 | C59: 3 | D59: 12 | E59: 19 | F59: 12.19 | G59: 3.19 | H59: 2022-12-19 | I59: =CHOOSE($A59+1,_xlfn.IFNA(INDEX(USGS!Y:Y,MATCH($H59,USGS!X:X,0)),I58),AVERAGEIF(CNRFC!AR:AR,$H59,CNRFC!AN:AN),AVERAGEIF(Ensemble!GC:GC,$H59,Ensemble!GF:GF),"-") -> 3890 | J59: 4000 | K59: 3930 | L59: =CHOOSE($A59+1,_xlfn.IFNA(INDEX(USGS!D:D,MATCH($H59,USGS!C:C,0)),I58),AVERAGEIF(CNRFC!AI:AI,$H59,CNRFC!AE:AE),AVERAGEIF(Ensemble!AR:AR,$H59,Ensemble!AT:AT),"-") -> 127 | M59: =CHOOSE($A59+1,_xlfn.IFNA(INDEX(USGS!K:K,MATCH($H59,USGS!J:J,0)),I58),AVERAGEIF(CNRFC!Q:Q,$H59,CNRFC!M:M),AVERAGEIF(Ensemble!CM:CM,$H59,Ensemble!CO:CO),"-") -> 106 | N59: =CHOOSE($A59+1,_xlfn.IFNA(INDEX(USGS!R:R,MATCH($H59,USGS!Q:Q,0)),I58),AVERAGEIF(CNRFC!Z:Z,$H59,CNRFC!V:V),AVERAGEIF(Ensemble!EH:EH,$H59,Ensemble!EJ:EJ),"-") -> 229 | O59: 462 | P59: 455 | Q59: 482.6666667 | R59: =IF(AND(J59>Control!$F$6,P59>Control!$F$7,U58=1),1,0) -> 0 | S59: =IF(AND(T58>0,T58<Control!$F$8),0,IF(AND(K59<Control!$F$6-500,Q59<Control!$F$7),1,0))*(1-R59) -> 1 | T59: =IF(AND(T58<Control!$F$8,T58>0),T58+1,IF(AND(R59=1,U58=1),1,0)) -> 0 | U59: 1 | V59: =IF(A59<3,IF(AND(T59>0,OR(I59>Control!$F$9,SUM(V53:V58)>0)),MAX(I59-Control!$F$10,0),0),0) -> 0 | W59: =CHOOSE($W$1+1,99999,IF(AND(G59>=Control!$F$4,G59<=Control!$F$5),IF(T59<>0,V59,99999),0)) -> 99999 | X59: =INDEX(Control!$D$15:$D$26,D59) -> 3250 | Y59: 640 | Z59: =CHOOSE($A59+1,IF(ISBLANK(INDEX(CDEC!G:G,MATCH($H59,CDEC!J:J,0))),Z58,_xlfn.IFNA(INDEX(CDEC!G:G,MATCH($H59,CDEC!J:J,0)),Z58)),AVERAGEIF(CNRFC!BA:BA,$H59,CNRFC!AW:AW),AVERAGEIF(Ensemble!JT:JT,$H59,Ensemble!JW:JW),"-") -> 3530 | AA59: =INDEX(Control!$E$15:$E$26,D59) -> 4000 | AB59: 0 | AC59: =CHOOSE($A59+1,_xlfn.IFNA(INDEX(USGS!AH:AH,MATCH($H59,USGS!AE:AE,0)),I58),AVERAGEIF(CNRFC!H:H,$H59,CNRFC!D:D),AVERAGEIF(Ensemble!HY:HY,$H59,Ensemble!IA:IA),"-") -> 3600 | AD59: =INDEX(Control!$F$15:$F$26,D59) -> 10700 | AE59: 0 | AF59: -1000 | AG59: 0 | AH59: 0 | AI59: =MIN(INDEX(Control!$G$15:$G$26,D59),AG59) -> 0 | AJ59: =MIN(MAX(AH59-AI59,0),INDEX(Control!$H$15:$H$26,D59)) -> 0 | AK59: 0 | AL59: 2022-12-19 | AP59: 0 | AQ59: 0
A60: 0 | B60: 2023 | C60: 3 | D60: 12 | E60: 20 | F60: 12.2 | G60: 3.2 | H60: 2022-12-20 | I60: =CHOOSE($A60+1,_xlfn.IFNA(INDEX(USGS!Y:Y,MATCH($H60,USGS!X:X,0)),I59),AVERAGEIF(CNRFC!AR:AR,$H60,CNRFC!AN:AN),AVERAGEIF(Ensemble!GC:GC,$H60,Ensemble!GF:GF),"-") -> 4070 | J60: 3986.666667 | K60: 3963.333333 | L60: =CHOOSE($A60+1,_xlfn.IFNA(INDEX(USGS!D:D,MATCH($H60,USGS!C:C,0)),I59),AVERAGEIF(CNRFC!AI:AI,$H60,CNRFC!AE:AE),AVERAGEIF(Ensemble!AR:AR,$H60,Ensemble!AT:AT),"-") -> 120 | M60: =CHOOSE($A60+1,_xlfn.IFNA(INDEX(USGS!K:K,MATCH($H60,USGS!J:J,0)),I59),AVERAGEIF(CNRFC!Q:Q,$H60,CNRFC!M:M),AVERAGEIF(Ensemble!CM:CM,$H60,Ensemble!CO:CO),"-") -> 104 | N60: =CHOOSE($A60+1,_xlfn.IFNA(INDEX(USGS!R:R,MATCH($H60,USGS!Q:Q,0)),I59),AVERAGEIF(CNRFC!Z:Z,$H60,CNRFC!V:V),AVERAGEIF(Ensemble!EH:EH,$H60,Ensemble!EJ:EJ),"-") -> 229 | O60: 453 | P60: 449.6666667 | Q60: 465.3333333 | R60: =IF(AND(J60>Control!$F$6,P60>Control!$F$7,U59=1),1,0) -> 0 | S60: =IF(AND(T59>0,T59<Control!$F$8),0,IF(AND(K60<Control!$F$6-500,Q60<Control!$F$7),1,0))*(1-R60) -> 1 | T60: =IF(AND(T59<Control!$F$8,T59>0),T59+1,IF(AND(R60=1,U59=1),1,0)) -> 0 | U60: 1 | V60: =IF(A60<3,IF(AND(T60>0,OR(I60>Control!$F$9,SUM(V54:V59)>0)),MAX(I60-Control!$F$10,0),0),0) -> 0 | W60: =CHOOSE($W$1+1,99999,IF(AND(G60>=Control!$F$4,G60<=Control!$F$5),IF(T60<>0,V60,99999),0)) -> 99999 | X60: =INDEX(Control!$D$15:$D$26,D60) -> 3250 | Y60: 820 | Z60: =CHOOSE($A60+1,IF(ISBLANK(INDEX(CDEC!G:G,MATCH($H60,CDEC!J:J,0))),Z59,_xlfn.IFNA(INDEX(CDEC!G:G,MATCH($H60,CDEC!J:J,0)),Z59)),AVERAGEIF(CNRFC!BA:BA,$H60,CNRFC!AW:AW),AVERAGEIF(Ensemble!JT:JT,$H60,Ensemble!JW:JW),"-") -> 3517 | AA60: =INDEX(Control!$E$15:$E$26,D60) -> 4000 | AB60: 0 | AC60: =CHOOSE($A60+1,_xlfn.IFNA(INDEX(USGS!AH:AH,MATCH($H60,USGS!AE:AE,0)),I59),AVERAGEIF(CNRFC!H:H,$H60,CNRFC!D:D),AVERAGEIF(Ensemble!HY:HY,$H60,Ensemble!IA:IA),"-") -> 3460 | AD60: =INDEX(Control!$F$15:$F$26,D60) -> 10700 | AE60: 0 | AF60: -1000 | AG60: 0 | AH60: 0 | AI60: =MIN(INDEX(Control!$G$15:$G$26,D60),AG60) -> 0 | AJ60: =MIN(MAX(AH60-AI60,0),INDEX(Control!$H$15:$H$26,D60)) -> 0 | AK60: 0 | AL60: 2022-12-20 | AP60: 0 | AQ60: 0
A61: 0 | B61: 2023 | C61: 3 | D61: 12 | E61: 21 | F61: 12.21 | G61: 3.21 | H61: 2022-12-21 | I61: =CHOOSE($A61+1,_xlfn.IFNA(INDEX(USGS!Y:Y,MATCH($H61,USGS!X:X,0)),I60),AVERAGEIF(CNRFC!AR:AR,$H61,CNRFC!AN:AN),AVERAGEIF(Ensemble!GC:GC,$H61,Ensemble!GF:GF),"-") -> 4040 | J61: 3900 | K61: 4000 | L61: =CHOOSE($A61+1,_xlfn.IFNA(INDEX(USGS!D:D,MATCH($H61,USGS!C:C,0)),I60),AVERAGEIF(CNRFC!AI:AI,$H61,CNRFC!AE:AE),AVERAGEIF(Ensemble!AR:AR,$H61,Ensemble!AT:AT),"-") -> 117 | M61: =CHOOSE($A61+1,_xlfn.IFNA(INDEX(USGS!K:K,MATCH($H61,USGS!J:J,0)),I60),AVERAGEIF(CNRFC!Q:Q,$H61,CNRFC!M:M),AVERAGEIF(Ensemble!CM:CM,$H61,Ensemble!CO:CO),"-") -> 104 | N61: =CHOOSE($A61+1,_xlfn.IFNA(INDEX(USGS!R:R,MATCH($H61,USGS!Q:Q,0)),I60),AVERAGEIF(CNRFC!Z:Z,$H61,CNRFC!V:V),AVERAGEIF(Ensemble!EH:EH,$H61,Ensemble!EJ:EJ),"-") -> 229 | O61: 450 | P61: 455.6666667 | Q61: 455 | R61: =IF(AND(J61>Control!$F$6,P61>Control!$F$7,U60=1),1,0) -> 0 | S61: =IF(AND(T60>0,T60<Control!$F$8),0,IF(AND(K61<Control!$F$6-500,Q61<Control!$F$7),1,0))*(1-R61) -> 1 | T61: =IF(AND(T60<Control!$F$8,T60>0),T60+1,IF(AND(R61=1,U60=1),1,0)) -> 0 | U61: 1 | V61: =IF(A61<3,IF(AND(T61>0,OR(I61>Control!$F$9,SUM(V55:V60)>0)),MAX(I61-Control!$F$10,0),0),0) -> 0 | W61: =CHOOSE($W$1+1,99999,IF(AND(G61>=Control!$F$4,G61<=Control!$F$5),IF(T61<>0,V61,99999),0)) -> 99999 | X61: =INDEX(Control!$D$15:$D$26,D61) -> 3250 | Y61: 790 | Z61: =CHOOSE($A61+1,IF(ISBLANK(INDEX(CDEC!G:G,MATCH($H61,CDEC!J:J,0))),Z60,_xlfn.IFNA(INDEX(CDEC!G:G,MATCH($H61,CDEC!J:J,0)),Z60)),AVERAGEIF(CNRFC!BA:BA,$H61,CNRFC!AW:AW),AVERAGEIF(Ensemble!JT:JT,$H61,Ensemble!JW:JW),"-") -> 3733 | AA61: =INDEX(Control!$E$15:$E$26,D61) -> 4000 | AB61: 0 | AC61: =CHOOSE($A61+1,_xlfn.IFNA(INDEX(USGS!AH:AH,MATCH($H61,USGS!AE:AE,0)),I60),AVERAGEIF(CNRFC!H:H,$H61,CNRFC!D:D),AVERAGEIF(Ensemble!HY:HY,$H61,Ensemble!IA:IA),"-") -> 3380 | AD61: =INDEX(Control!$F$15:$F$26,D61) -> 10700 | AE61: 0 | AF61: -1000 | AG61: 0 | AH61: 0 | AI61: =MIN(INDEX(Control!$G$15:$G$26,D61),AG61) -> 0 | AJ61: =MIN(MAX(AH61-AI61,0),INDEX(Control!$H$15:$H$26,D61)) -> 0 | AK61: 0 | AL61: 2022-12-21 | AP61: 0 | AQ61: 0
A62: 0 | B62: 2023 | C62: 3 | D62: 12 | E62: 22 | F62: 12.22 | G62: 3.22 | H62: 2022-12-22 | I62: =CHOOSE($A62+1,_xlfn.IFNA(INDEX(USGS!Y:Y,MATCH($H62,USGS!X:X,0)),I61),AVERAGEIF(CNRFC!AR:AR,$H62,CNRFC!AN:AN),AVERAGEIF(Ensemble!GC:GC,$H62,Ensemble!GF:GF),"-") -> 3850 | J62: 3833.333333 | K62: 3986.666667 | L62: =CHOOSE($A62+1,_xlfn.IFNA(INDEX(USGS!D:D,MATCH($H62,USGS!C:C,0)),I61),AVERAGEIF(CNRFC!AI:AI,$H62,CNRFC!AE:AE),AVERAGEIF(Ensemble!AR:AR,$H62,Ensemble!AT:AT),"-") -> 114 | M62: =CHOOSE($A62+1,_xlfn.IFNA(INDEX(USGS!K:K,MATCH($H62,USGS!J:J,0)),I61),AVERAGEIF(CNRFC!Q:Q,$H62,CNRFC!M:M),AVERAGEIF(Ensemble!CM:CM,$H62,Ensemble!CO:CO),"-") -> 103 | N62: =CHOOSE($A62+1,_xlfn.IFNA(INDEX(USGS!R:R,MATCH($H62,USGS!Q:Q,0)),I61),AVERAGEIF(CNRFC!Z:Z,$H62,CNRFC!V:V),AVERAGEIF(Ensemble!EH:EH,$H62,Ensemble!EJ:EJ),"-") -> 229 | O62: 446 | P62: 479.3333333 | Q62: 449.6666667 | R62: =IF(AND(J62>Control!$F$6,P62>Control!$F$7,U61=1),1,0) -> 0 | S62: =IF(AND(T61>0,T61<Control!$F$8),0,IF(AND(K62<Control!$F$6-500,Q62<Control!$F$7),1,0))*(1-R62) -> 1 | T62: =IF(AND(T61<Control!$F$8,T61>0),T61+1,IF(AND(R62=1,U61=1),1,0)) -> 0 | U62: 1 | V62: =IF(A62<3,IF(AND(T62>0,OR(I62>Control!$F$9,SUM(V56:V61)>0)),MAX(I62-Control!$F$10,0),0),0) -> 0 | W62: =CHOOSE($W$1+1,99999,IF(AND(G62>=Control!$F$4,G62<=Control!$F$5),IF(T62<>0,V62,99999),0)) -> 99999 | X62: =INDEX(Control!$D$15:$D$26,D62) -> 3250 | Y62: 600 | Z62: =CHOOSE($A62+1,IF(ISBLANK(INDEX(CDEC!G:G,MATCH($H62,CDEC!J:J,0))),Z61,_xlfn.IFNA(INDEX(CDEC!G:G,MATCH($H62,CDEC!J:J,0)),Z61)),AVERAGEIF(CNRFC!BA:BA,$H62,CNRFC!AW:AW),AVERAGEIF(Ensemble!JT:JT,$H62,Ensemble!JW:JW),"-") -> 3691 | AA62: =INDEX(Control!$E$15:$E$26,D62) -> 4000 | AB62: 0 | AC62: =CHOOSE($A62+1,_xlfn.IFNA(INDEX(USGS!AH:AH,MATCH($H62,USGS!AE:AE,0)),I61),AVERAGEIF(CNRFC!H:H,$H62,CNRFC!D:D),AVERAGEIF(Ensemble!HY:HY,$H62,Ensemble!IA:IA),"-") -> 3560 | AD62: =INDEX(Control!$F$15:$F$26,D62) -> 10700 | AE62: 0 | AF62: -1000 | AG62: 0 | AH62: 0 | AI62: =MIN(INDEX(Control!$G$15:$G$26,D62),AG62) -> 0 | AJ62: =MIN(MAX(AH62-AI62,0),INDEX(Control!$H$15:$H$26,D62)) -> 0 | AK62: 0 | AL62: 2022-12-22 | AP62: 0 | AQ62: 0
A63: 0 | B63: 2023 | C63: 3 | D63: 12 | E63: 23 | F63: 12.23 | G63: 3.23 | H63: 2022-12-23 | I63: =CHOOSE($A63+1,_xlfn.IFNA(INDEX(USGS!Y:Y,MATCH($H63,USGS!X:X,0)),I62),AVERAGEIF(CNRFC!AR:AR,$H63,CNRFC!AN:AN),AVERAGEIF(Ensemble!GC:GC,$H63,Ensemble!GF:GF),"-") -> 3810 | J63: 3843.333333 | K63: 3900 | L63: =CHOOSE($A63+1,_xlfn.IFNA(INDEX(USGS!D:D,MATCH($H63,USGS!C:C,0)),I62),AVERAGEIF(CNRFC!AI:AI,$H63,CNRFC!AE:AE),AVERAGEIF(Ensemble!AR:AR,$H63,Ensemble!AT:AT),"-") -> 115 | M63: =CHOOSE($A63+1,_xlfn.IFNA(INDEX(USGS!K:K,MATCH($H63,USGS!J:J,0)),I62),AVERAGEIF(CNRFC!Q:Q,$H63,CNRFC!M:M),AVERAGEIF(Ensemble!CM:CM,$H63,Ensemble!CO:CO),"-") -> 125 | N63: =CHOOSE($A63+1,_xlfn.IFNA(INDEX(USGS!R:R,MATCH($H63,USGS!Q:Q,0)),I62),AVERAGEIF(CNRFC!Z:Z,$H63,CNRFC!V:V),AVERAGEIF(Ensemble!EH:EH,$H63,Ensemble!EJ:EJ),"-") -> 231 | O63: 471 | P63: 521.6666667 | Q63: 455.6666667 | R63: =IF(AND(J63>Control!$F$6,P63>Control!$F$7,U62=1),1,0) -> 0 | S63: =IF(AND(T62>0,T62<Control!$F$8),0,IF(AND(K63<Control!$F$6-500,Q63<Control!$F$7),1,0))*(1-R63) -> 1 | T63: =IF(AND(T62<Control!$F$8,T62>0),T62+1,IF(AND(R63=1,U62=1),1,0)) -> 0 | U63: 1 | V63: =IF(A63<3,IF(AND(T63>0,OR(I63>Control!$F$9,SUM(V57:V62)>0)),MAX(I63-Control!$F$10,0),0),0) -> 0 | W63: =CHOOSE($W$1+1,99999,IF(AND(G63>=Control!$F$4,G63<=Control!$F$5),IF(T63<>0,V63,99999),0)) -> 99999 | X63: =INDEX(Control!$D$15:$D$26,D63) -> 3250 | Y63: 560 | Z63: =CHOOSE($A63+1,IF(ISBLANK(INDEX(CDEC!G:G,MATCH($H63,CDEC!J:J,0))),Z62,_xlfn.IFNA(INDEX(CDEC!G:G,MATCH($H63,CDEC!J:J,0)),Z62)),AVERAGEIF(CNRFC!BA:BA,$H63,CNRFC!AW:AW),AVERAGEIF(Ensemble!JT:JT,$H63,Ensemble!JW:JW),"-") -> 3550 | AA63: =INDEX(Control!$E$15:$E$26,D63) -> 4000 | AB63: 0 | AC63: =CHOOSE($A63+1,_xlfn.IFNA(INDEX(USGS!AH:AH,MATCH($H63,USGS!AE:AE,0)),I62),AVERAGEIF(CNRFC!H:H,$H63,CNRFC!D:D),AVERAGEIF(Ensemble!HY:HY,$H63,Ensemble!IA:IA),"-") -> 3580 | AD63: =INDEX(Control!$F$15:$F$26,D63) -> 10700 | AE63: 0 | AF63: -1000 | AG63: 0 | AH63: 0 | AI63: =MIN(INDEX(Control!$G$15:$G$26,D63),AG63) -> 0 | AJ63: =MIN(MAX(AH63-AI63,0),INDEX(Control!$H$15:$H$26,D63)) -> 0 | AK63: 0 | AL63: 2022-12-23 | AP63: 0 | AQ63: 0
A64: 0 | B64: 2023 | C64: 3 | D64: 12 | E64: 24 | F64: 12.24 | G64: 3.24 | H64: 2022-12-24 | I64: =CHOOSE($A64+1,_xlfn.IFNA(INDEX(USGS!Y:Y,MATCH($H64,USGS!X:X,0)),I63),AVERAGEIF(CNRFC!AR:AR,$H64,CNRFC!AN:AN),AVERAGEIF(Ensemble!GC:GC,$H64,Ensemble!GF:GF),"-") -> 3840 | J64: 3906.666667 | K64: 3833.333333 | L64: =CHOOSE($A64+1,_xlfn.IFNA(INDEX(USGS!D:D,MATCH($H64,USGS!C:C,0)),I63),AVERAGEIF(CNRFC!AI:AI,$H64,CNRFC!AE:AE),AVERAGEIF(Ensemble!AR:AR,$H64,Ensemble!AT:AT),"-") -> 117 | M64: =CHOOSE($A64+1,_xlfn.IFNA(INDEX(USGS!K:K,MATCH($H64,USGS!J:J,0)),I63),AVERAGEIF(CNRFC!Q:Q,$H64,CNRFC!M:M),AVERAGEIF(Ensemble!CM:CM,$H64,Ensemble!CO:CO),"-") -> 175 | N64: =CHOOSE($A64+1,_xlfn.IFNA(INDEX(USGS!R:R,MATCH($H64,USGS!Q:Q,0)),I63),AVERAGEIF(CNRFC!Z:Z,$H64,CNRFC!V:V),AVERAGEIF(Ensemble!EH:EH,$H64,Ensemble!EJ:EJ),"-") -> 229 | O64: 521 | P64: 580.3333333 | Q64: 479.3333333 | R64: =IF(AND(J64>Control!$F$6,P64>Control!$F$7,U63=1),1,0) -> 0 | S64: =IF(AND(T63>0,T63<Control!$F$8),0,IF(AND(K64<Control!$F$6-500,Q64<Control!$F$7),1,0))*(1-R64) -> 1 | T64: =IF(AND(T63<Control!$F$8,T63>0),T63+1,IF(AND(R64=1,U63=1),1,0)) -> 0 | U64: 1 | V64: =IF(A64<3,IF(AND(T64>0,OR(I64>Control!$F$9,SUM(V58:V63)>0)),MAX(I64-Control!$F$10,0),0),0) -> 0 | W64: =CHOOSE($W$1+1,99999,IF(AND(G64>=Control!$F$4,G64<=Control!$F$5),IF(T64<>0,V64,99999),0)) -> 99999 | X64: =INDEX(Control!$D$15:$D$26,D64) -> 3250 | Y64: 590 | Z64: =CHOOSE($A64+1,IF(ISBLANK(INDEX(CDEC!G:G,MATCH($H64,CDEC!J:J,0))),Z63,_xlfn.IFNA(INDEX(CDEC!G:G,MATCH($H64,CDEC!J:J,0)),Z63)),AVERAGEIF(CNRFC!BA:BA,$H64,CNRFC!AW:AW),AVERAGEIF(Ensemble!JT:JT,$H64,Ensemble!JW:JW),"-") -> 3730 | AA64: =INDEX(Control!$E$15:$E$26,D64) -> 4000 | AB64: 0 | AC64: =CHOOSE($A64+1,_xlfn.IFNA(INDEX(USGS!AH:AH,MATCH($H64,USGS!AE:AE,0)),I63),AVERAGEIF(CNRFC!H:H,$H64,CNRFC!D:D),AVERAGEIF(Ensemble!HY:HY,$H64,Ensemble!IA:IA),"-") -> 3510 | AD64: =INDEX(Control!$F$15:$F$26,D64) -> 10700 | AE64: 0 | AF64: -1000 | AG64: 0 | AH64: 0 | AI64: =MIN(INDEX(Control!$G$15:$G$26,D64),AG64) -> 0 | AJ64: =MIN(MAX(AH64-AI64,0),INDEX(Control!$H$15:$H$26,D64)) -> 0 | AK64: 0 | AL64: 2022-12-24 | AP64: 0 | AQ64: 0
A65: 0 | B65: 2023 | C65: 3 | D65: 12 | E65: 25 | F65: 12.25 | G65: 3.25 | H65: 2022-12-25 | I65: =CHOOSE($A65+1,_xlfn.IFNA(INDEX(USGS!Y:Y,MATCH($H65,USGS!X:X,0)),I64),AVERAGEIF(CNRFC!AR:AR,$H65,CNRFC!AN:AN),AVERAGEIF(Ensemble!GC:GC,$H65,Ensemble!GF:GF),"-") -> 3880 | J65: 6693.333333 | K65: 3843.333333 | L65: =CHOOSE($A65+1,_xlfn.IFNA(INDEX(USGS!D:D,MATCH($H65,USGS!C:C,0)),I64),AVERAGEIF(CNRFC!AI:AI,$H65,CNRFC!AE:AE),AVERAGEIF(Ensemble!AR:AR,$H65,Ensemble!AT:AT),"-") -> 116 | M65: =CHOOSE($A65+1,_xlfn.IFNA(INDEX(USGS!K:K,MATCH($H65,USGS!J:J,0)),I64),AVERAGEIF(CNRFC!Q:Q,$H65,CNRFC!M:M),AVERAGEIF(Ensemble!CM:CM,$H65,Ensemble!CO:CO),"-") -> 228 | N65: =CHOOSE($A65+1,_xlfn.IFNA(INDEX(USGS!R:R,MATCH($H65,USGS!Q:Q,0)),I64),AVERAGEIF(CNRFC!Z:Z,$H65,CNRFC!V:V),AVERAGEIF(Ensemble!EH:EH,$H65,Ensemble!EJ:EJ),"-") -> 229 | O65: 573 | P65: 2638.666667 | Q65: 521.6666667 | R65: =IF(AND(J65>Control!$F$6,P65>Control!$F$7,U64=1),1,0) -> 0 | S65: =IF(AND(T64>0,T64<Control!$F$8),0,IF(AND(K65<Control!$F$6-500,Q65<Control!$F$7),1,0))*(1-R65) -> 1 | T65: =IF(AND(T64<Control!$F$8,T64>0),T64+1,IF(AND(R65=1,U64=1),1,0)) -> 0 | U65: 1 | V65: =IF(A65<3,IF(AND(T65>0,OR(I65>Control!$F$9,SUM(V59:V64)>0)),MAX(I65-Control!$F$10,0),0),0) -> 0 | W65: =CHOOSE($W$1+1,99999,IF(AND(G65>=Control!$F$4,G65<=Control!$F$5),IF(T65<>0,V65,99999),0)) -> 99999 | X65: =INDEX(Control!$D$15:$D$26,D65) -> 3250 | Y65: 630 | Z65: =CHOOSE($A65+1,IF(ISBLANK(INDEX(CDEC!G:G,MATCH($H65,CDEC!J:J,0))),Z64,_xlfn.IFNA(INDEX(CDEC!G:G,MATCH($H65,CDEC!J:J,0)),Z64)),AVERAGEIF(CNRFC!BA:BA,$H65,CNRFC!AW:AW),AVERAGEIF(Ensemble!JT:JT,$H65,Ensemble!JW:JW),"-") -> 3863 | AA65: =INDEX(Control!$E$15:$E$26,D65) -> 4000 | AB65: 0 | AC65: =CHOOSE($A65+1,_xlfn.IFNA(INDEX(USGS!AH:AH,MATCH($H65,USGS!AE:AE,0)),I64),AVERAGEIF(CNRFC!H:H,$H65,CNRFC!D:D),AVERAGEIF(Ensemble!HY:HY,$H65,Ensemble!IA:IA),"-") -> 3560 | AD65: =INDEX(Control!$F$15:$F$26,D65) -> 10700 | AE65: 0 | AF65: -1000 | AG65: 0 | AH65: 0 | AI65: =MIN(INDEX(Control!$G$15:$G$26,D65),AG65) -> 0 | AJ65: =MIN(MAX(AH65-AI65,0),INDEX(Control!$H$15:$H$26,D65)) -> 0 | AK65: 0 | AL65: 2022-12-25 | AP65: 0 | AQ65: 0
A66: 0 | B66: 2023 | C66: 3 | D66: 12 | E66: 26 | F66: 12.26 | G66: 3.26 | H66: 2022-12-26 | I66: =CHOOSE($A66+1,_xlfn.IFNA(INDEX(USGS!Y:Y,MATCH($H66,USGS!X:X,0)),I65),AVERAGEIF(CNRFC!AR:AR,$H66,CNRFC!AN:AN),AVERAGEIF(Ensemble!GC:GC,$H66,Ensemble!GF:GF),"-") -> 4000 | J66: 8653.333333 | K66: 3906.666667 | L66: =CHOOSE($A66+1,_xlfn.IFNA(INDEX(USGS!D:D,MATCH($H66,USGS!C:C,0)),I65),AVERAGEIF(CNRFC!AI:AI,$H66,CNRFC!AE:AE),AVERAGEIF(Ensemble!AR:AR,$H66,Ensemble!AT:AT),"-") -> 120 | M66: =CHOOSE($A66+1,_xlfn.IFNA(INDEX(USGS!K:K,MATCH($H66,USGS!J:J,0)),I65),AVERAGEIF(CNRFC!Q:Q,$H66,CNRFC!M:M),AVERAGEIF(Ensemble!CM:CM,$H66,Ensemble!CO:CO),"-") -> 296 | N66: =CHOOSE($A66+1,_xlfn.IFNA(INDEX(USGS!R:R,MATCH($H66,USGS!Q:Q,0)),I65),AVERAGEIF(CNRFC!Z:Z,$H66,CNRFC!V:V),AVERAGEIF(Ensemble!EH:EH,$H66,Ensemble!EJ:EJ),"-") -> 231 | O66: 647 | P66: 3786 | Q66: 580.3333333 | R66: =IF(AND(J66>Control!$F$6,P66>Control!$F$7,U65=1),1,0) -> 1 | S66: =IF(AND(T65>0,T65<Control!$F$8),0,IF(AND(K66<Control!$F$6-500,Q66<Control!$F$7),1,0))*(1-R66) -> 0 | T66: =IF(AND(T65<Control!$F$8,T65>0),T65+1,IF(AND(R66=1,U65=1),1,0)) -> 1 | U66: 0 | V66: =IF(A66<3,IF(AND(T66>0,OR(I66>Control!$F$9,SUM(V60:V65)>0)),MAX(I66-Control!$F$10,0),0),0) -> 0 | W66: =CHOOSE($W$1+1,99999,IF(AND(G66>=Control!$F$4,G66<=Control!$F$5),IF(T66<>0,V66,99999),0)) -> 0 | X66: =INDEX(Control!$D$15:$D$26,D66) -> 3250 | Y66: 750 | Z66: =CHOOSE($A66+1,IF(ISBLANK(INDEX(CDEC!G:G,MATCH($H66,CDEC!J:J,0))),Z65,_xlfn.IFNA(INDEX(CDEC!G:G,MATCH($H66,CDEC!J:J,0)),Z65)),AVERAGEIF(CNRFC!BA:BA,$H66,CNRFC!AW:AW),AVERAGEIF(Ensemble!JT:JT,$H66,Ensemble!JW:JW),"-") -> 3978 | AA66: =INDEX(Control!$E$15:$E$26,D66) -> 4000 | AB66: 0 | AC66: =CHOOSE($A66+1,_xlfn.IFNA(INDEX(USGS!AH:AH,MATCH($H66,USGS!AE:AE,0)),I65),AVERAGEIF(CNRFC!H:H,$H66,CNRFC!D:D),AVERAGEIF(Ensemble!HY:HY,$H66,Ensemble!IA:IA),"-") -> 3690 | AD66: =INDEX(Control!$F$15:$F$26,D66) -> 10700 | AE66: 0 | AF66: -1000 | AG66: 0 | AH66: 0 | AI66: =MIN(INDEX(Control!$G$15:$G$26,D66),AG66) -> 0 | AJ66: =MIN(MAX(AH66-AI66,0),INDEX(Control!$H$15:$H$26,D66)) -> 0 | AK66: 0 | AL66: 2022-12-26 | AP66: 0 | AQ66: 50000
A67: 0 | B67: 2023 | C67: 3 | D67: 12 | E67: 27 | F67: 12.27 | G67: 3.27 | H67: 2022-12-27 | I67: =CHOOSE($A67+1,_xlfn.IFNA(INDEX(USGS!Y:Y,MATCH($H67,USGS!X:X,0)),I66),AVERAGEIF(CNRFC!AR:AR,$H67,CNRFC!AN:AN),AVERAGEIF(Ensemble!GC:GC,$H67,Ensemble!GF:GF),"-") -> 12200 | J67: 10213.33333 | K67: 6693.333333 | L67: =CHOOSE($A67+1,_xlfn.IFNA(INDEX(USGS!D:D,MATCH($H67,USGS!C:C,0)),I66),AVERAGEIF(CNRFC!AI:AI,$H67,CNRFC!AE:AE),AVERAGEIF(Ensemble!AR:AR,$H67,Ensemble!AT:AT),"-") -> 4310 | M67: =CHOOSE($A67+1,_xlfn.IFNA(INDEX(USGS!K:K,MATCH($H67,USGS!J:J,0)),I66),AVERAGEIF(CNRFC!Q:Q,$H67,CNRFC!M:M),AVERAGEIF(Ensemble!CM:CM,$H67,Ensemble!CO:CO),"-") -> 1800 | N67: =CHOOSE($A67+1,_xlfn.IFNA(INDEX(USGS!R:R,MATCH($H67,USGS!Q:Q,0)),I66),AVERAGEIF(CNRFC!Z:Z,$H67,CNRFC!V:V),AVERAGEIF(Ensemble!EH:EH,$H67,Ensemble!EJ:EJ),"-") -> 586 | O67: 6696 | P67: 4770.333333 | Q67: 2638.666667 | R67: =IF(AND(J67>Control!$F$6,P67>Control!$F$7,U66=1),1,0) -> 0 | S67: =IF(AND(T66>0,T66<Control!$F$8),0,IF(AND(K67<Control!$F$6-500,Q67<Control!$F$7),1,0))*(1-R67) -> 0 | T67: =IF(AND(T66<Control!$F$8,T66>0),T66+1,IF(AND(R67=1,U66=1),1,0)) -> 2 | U67: 0 | V67: =IF(A67<3,IF(AND(T67>0,OR(I67>Control!$F$9,SUM(V61:V66)>0)),MAX(I67-Control!$F$10,0),0),0) -> 0 | W67: =CHOOSE($W$1+1,99999,IF(AND(G67>=Control!$F$4,G67<=Control!$F$5),IF(T67<>0,V67,99999),0)) -> 0 | X67: =INDEX(Control!$D$15:$D$26,D67) -> 3250 | Y67: 8950 | Z67: =CHOOSE($A67+1,IF(ISBLANK(INDEX(CDEC!G:G,MATCH($H67,CDEC!J:J,0))),Z66,_xlfn.IFNA(INDEX(CDEC!G:G,MATCH($H67,CDEC!J:J,0)),Z66)),AVERAGEIF(CNRFC!BA:BA,$H67,CNRFC!AW:AW),AVERAGEIF(Ensemble!JT:JT,$H67,Ensemble!JW:JW),"-") -> 9661 | AA67: =INDEX(Control!$E$15:$E$26,D67) -> 4000 | AB67: 5661 | AC67: =CHOOSE($A67+1,_xlfn.IFNA(INDEX(USGS!AH:AH,MATCH($H67,USGS!AE:AE,0)),I66),AVERAGEIF(CNRFC!H:H,$H67,CNRFC!D:D),AVERAGEIF(Ensemble!HY:HY,$H67,Ensemble!IA:IA),"-") -> 4110 | AD67: =INDEX(Control!$F$15:$F$26,D67) -> 10700 | AE67: 0 | AF67: -1000 | AG67: 0 | AH67: 0 | AI67: =MIN(INDEX(Control!$G$15:$G$26,D67),AG67) -> 0 | AJ67: =MIN(MAX(AH67-AI67,0),INDEX(Control!$H$15:$H$26,D67)) -> 0 | AK67: 0 | AL67: 2022-12-27 | AP67: 0 | AQ67: 50000
A68: 0 | B68: 2023 | C68: 3 | D68: 12 | E68: 28 | F68: 12.28 | G68: 3.28 | H68: 2022-12-28 | I68: =CHOOSE($A68+1,_xlfn.IFNA(INDEX(USGS!Y:Y,MATCH($H68,USGS!X:X,0)),I67),AVERAGEIF(CNRFC!AR:AR,$H68,CNRFC!AN:AN),AVERAGEIF(Ensemble!GC:GC,$H68,Ensemble!GF:GF),"-") -> 9760 | J68: 15013.33333 | K68: 8653.333333 | L68: =CHOOSE($A68+1,_xlfn.IFNA(INDEX(USGS!D:D,MATCH($H68,USGS!C:C,0)),I67),AVERAGEIF(CNRFC!AI:AI,$H68,CNRFC!AE:AE),AVERAGEIF(Ensemble!AR:AR,$H68,Ensemble!AT:AT),"-") -> 1040 | M68: =CHOOSE($A68+1,_xlfn.IFNA(INDEX(USGS!K:K,MATCH($H68,USGS!J:J,0)),I67),AVERAGEIF(CNRFC!Q:Q,$H68,CNRFC!M:M),AVERAGEIF(Ensemble!CM:CM,$H68,Ensemble!CO:CO),"-") -> 2400 | N68: =CHOOSE($A68+1,_xlfn.IFNA(INDEX(USGS!R:R,MATCH($H68,USGS!Q:Q,0)),I67),AVERAGEIF(CNRFC!Z:Z,$H68,CNRFC!V:V),AVERAGEIF(Ensemble!EH:EH,$H68,Ensemble!EJ:EJ),"-") -> 575 | O68: 4015 | P68: 9038.333333 | Q68: 3786 | R68: =IF(AND(J68>Control!$F$6,P68>Control!$F$7,U67=1),1,0) -> 0 | S68: =IF(AND(T67>0,T67<Control!$F$8),0,IF(AND(K68<Control!$F$6-500,Q68<Control!$F$7),1,0))*(1-R68) -> 0 | T68: =IF(AND(T67<Control!$F$8,T67>0),T67+1,IF(AND(R68=1,U67=1),1,0)) -> 3 | U68: 0 | V68: =IF(A68<3,IF(AND(T68>0,OR(I68>Control!$F$9,SUM(V62:V67)>0)),MAX(I68-Control!$F$10,0),0),0) -> 0 | W68: =CHOOSE($W$1+1,99999,IF(AND(G68>=Control!$F$4,G68<=Control!$F$5),IF(T68<>0,V68,99999),0)) -> 0 | X68: =INDEX(Control!$D$15:$D$26,D68) -> 3250 | Y68: 6510 | Z68: =CHOOSE($A68+1,IF(ISBLANK(INDEX(CDEC!G:G,MATCH($H68,CDEC!J:J,0))),Z67,_xlfn.IFNA(INDEX(CDEC!G:G,MATCH($H68,CDEC!J:J,0)),Z67)),AVERAGEIF(CNRFC!BA:BA,$H68,CNRFC!AW:AW),AVERAGEIF(Ensemble!JT:JT,$H68,Ensemble!JW:JW),"-") -> 18446 | AA68: =INDEX(Control!$E$15:$E$26,D68) -> 4000 | AB68: 14446 | AC68: =CHOOSE($A68+1,_xlfn.IFNA(INDEX(USGS!AH:AH,MATCH($H68,USGS!AE:AE,0)),I67),AVERAGEIF(CNRFC!H:H,$H68,CNRFC!D:D),AVERAGEIF(Ensemble!HY:HY,$H68,Ensemble!IA:IA),"-") -> 6800 | AD68: =INDEX(Control!$F$15:$F$26,D68) -> 10700 | AE68: 0 | AF68: -1000 | AG68: 0 | AH68: 0 | AI68: =MIN(INDEX(Control!$G$15:$G$26,D68),AG68) -> 0 | AJ68: =MIN(MAX(AH68-AI68,0),INDEX(Control!$H$15:$H$26,D68)) -> 0 | AK68: 0 | AL68: 2022-12-28 | AP68: 0 | AQ68: 50000
A69: 0 | B69: 2023 | C69: 3 | D69: 12 | E69: 29 | F69: 12.29 | G69: 3.29 | H69: 2022-12-29 | I69: =CHOOSE($A69+1,_xlfn.IFNA(INDEX(USGS!Y:Y,MATCH($H69,USGS!X:X,0)),I68),AVERAGEIF(CNRFC!AR:AR,$H69,CNRFC!AN:AN),AVERAGEIF(Ensemble!GC:GC,$H69,Ensemble!GF:GF),"-") -> 8680 | J69: 19893.33333 | K69: 10213.33333 | L69: =CHOOSE($A69+1,_xlfn.IFNA(INDEX(USGS!D:D,MATCH($H69,USGS!C:C,0)),I68),AVERAGEIF(CNRFC!AI:AI,$H69,CNRFC!AE:AE),AVERAGEIF(Ensemble!AR:AR,$H69,Ensemble!AT:AT),"-") -> 1640 | M69: =CHOOSE($A69+1,_xlfn.IFNA(INDEX(USGS!K:K,MATCH($H69,USGS!J:J,0)),I68),AVERAGEIF(CNRFC!Q:Q,$H69,CNRFC!M:M),AVERAGEIF(Ensemble!CM:CM,$H69,Ensemble!CO:CO),"-") -> 1240 | N69: =CHOOSE($A69+1,_xlfn.IFNA(INDEX(USGS!R:R,MATCH($H69,USGS!Q:Q,0)),I68),AVERAGEIF(CNRFC!Z:Z,$H69,CNRFC!V:V),AVERAGEIF(Ensemble!EH:EH,$H69,Ensemble!EJ:EJ),"-") -> 720 | O69: 3600 | P69: 12290 | Q69: 4770.333333 | R69: =IF(AND(J69>Control!$F$6,P69>Control!$F$7,U68=1),1,0) -> 0 | S69: =IF(AND(T68>0,T68<Control!$F$8),0,IF(AND(K69<Control!$F$6-500,Q69<Control!$F$7),1,0))*(1-R69) -> 0 | T69: =IF(AND(T68<Control!$F$8,T68>0),T68+1,IF(AND(R69=1,U68=1),1,0)) -> 4 | U69: 0 | V69: =IF(A69<3,IF(AND(T69>0,OR(I69>Control!$F$9,SUM(V63:V68)>0)),MAX(I69-Control!$F$10,0),0),0) -> 0 | W69: =CHOOSE($W$1+1,99999,IF(AND(G69>=Control!$F$4,G69<=Control!$F$5),IF(T69<>0,V69,99999),0)) -> 0 | X69: =INDEX(Control!$D$15:$D$26,D69) -> 3250 | Y69: 5430 | Z69: =CHOOSE($A69+1,IF(ISBLANK(INDEX(CDEC!G:G,MATCH($H69,CDEC!J:J,0))),Z68,_xlfn.IFNA(INDEX(CDEC!G:G,MATCH($H69,CDEC!J:J,0)),Z68)),AVERAGEIF(CNRFC!BA:BA,$H69,CNRFC!AW:AW),AVERAGEIF(Ensemble!JT:JT,$H69,Ensemble!JW:JW),"-") -> 11190 | AA69: =INDEX(Control!$E$15:$E$26,D69) -> 4000 | AB69: 7190 | AC69: =CHOOSE($A69+1,_xlfn.IFNA(INDEX(USGS!AH:AH,MATCH($H69,USGS!AE:AE,0)),I68),AVERAGEIF(CNRFC!H:H,$H69,CNRFC!D:D),AVERAGEIF(Ensemble!HY:HY,$H69,Ensemble!IA:IA),"-") -> 13800 | AD69: =INDEX(Control!$F$15:$F$26,D69) -> 10700 | AE69: 3100 | AF69: -1000 | AG69: 0 | AH69: 0 | AI69: =MIN(INDEX(Control!$G$15:$G$26,D69),AG69) -> 0 | AJ69: =MIN(MAX(AH69-AI69,0),INDEX(Control!$H$15:$H$26,D69)) -> 0 | AK69: 0 | AL69: 2022-12-29 | AP69: 0 | AQ69: 50000
A70: 0 | B70: 2023 | C70: 3 | D70: 12 | E70: 30 | F70: 12.3 | G70: 3.3 | H70: 2022-12-30 | I70: =CHOOSE($A70+1,_xlfn.IFNA(INDEX(USGS!Y:Y,MATCH($H70,USGS!X:X,0)),I69),AVERAGEIF(CNRFC!AR:AR,$H70,CNRFC!AN:AN),AVERAGEIF(Ensemble!GC:GC,$H70,Ensemble!GF:GF),"-") -> 26600 | J70: 20700 | K70: 15013.33333 | L70: =CHOOSE($A70+1,_xlfn.IFNA(INDEX(USGS!D:D,MATCH($H70,USGS!C:C,0)),I69),AVERAGEIF(CNRFC!AI:AI,$H70,CNRFC!AE:AE),AVERAGEIF(Ensemble!AR:AR,$H70,Ensemble!AT:AT),"-") -> 12800 | M70: =CHOOSE($A70+1,_xlfn.IFNA(INDEX(USGS!K:K,MATCH($H70,USGS!J:J,0)),I69),AVERAGEIF(CNRFC!Q:Q,$H70,CNRFC!M:M),AVERAGEIF(Ensemble!CM:CM,$H70,Ensemble!CO:CO),"-") -> 3230 | N70: =CHOOSE($A70+1,_xlfn.IFNA(INDEX(USGS!R:R,MATCH($H70,USGS!Q:Q,0)),I69),AVERAGEIF(CNRFC!Z:Z,$H70,CNRFC!V:V),AVERAGEIF(Ensemble!EH:EH,$H70,Ensemble!EJ:EJ),"-") -> 3470 | O70: 19500 | P70: 12722 | Q70: 9038.333333 | R70: =IF(AND(J70>Control!$F$6,P70>Control!$F$7,U69=1),1,0) -> 0 | S70: =IF(AND(T69>0,T69<Control!$F$8),0,IF(AND(K70<Control!$F$6-500,Q70<Control!$F$7),1,0))*(1-R70) -> 0 | T70: =IF(AND(T69<Control!$F$8,T69>0),T69+1,IF(AND(R70=1,U69=1),1,0)) -> 5 | U70: 0 | V70: =IF(A70<3,IF(AND(T70>0,OR(I70>Control!$F$9,SUM(V64:V69)>0)),MAX(I70-Control!$F$10,0),0),0) -> 0 | W70: =CHOOSE($W$1+1,99999,IF(AND(G70>=Control!$F$4,G70<=Control!$F$5),IF(T70<>0,V70,99999),0)) -> 0 | X70: =INDEX(Control!$D$15:$D$26,D70) -> 3250 | Y70: 23350 | Z70: =CHOOSE($A70+1,IF(ISBLANK(INDEX(CDEC!G:G,MATCH($H70,CDEC!J:J,0))),Z69,_xlfn.IFNA(INDEX(CDEC!G:G,MATCH($H70,CDEC!J:J,0)),Z69)),AVERAGEIF(CNRFC!BA:BA,$H70,CNRFC!AW:AW),AVERAGEIF(Ensemble!JT:JT,$H70,Ensemble!JW:JW),"-") -> 22579 | AA70: =INDEX(Control!$E$15:$E$26,D70) -> 4000 | AB70: 18579 | AC70: =CHOOSE($A70+1,_xlfn.IFNA(INDEX(USGS!AH:AH,MATCH($H70,USGS!AE:AE,0)),I69),AVERAGEIF(CNRFC!H:H,$H70,CNRFC!D:D),AVERAGEIF(Ensemble!HY:HY,$H70,Ensemble!IA:IA),"-") -> 12400 | AD70: =INDEX(Control!$F$15:$F$26,D70) -> 10700 | AE70: 1700 | AF70: -1000 | AG70: 0 | AH70: 0 | AI70: =MIN(INDEX(Control!$G$15:$G$26,D70),AG70) -> 0 | AJ70: =MIN(MAX(AH70-AI70,0),INDEX(Control!$H$15:$H$26,D70)) -> 0 | AK70: 0 | AL70: 2022-12-30 | AP70: 0 | AQ70: 50000
A71: 0 | B71: 2023 | C71: 3 | D71: 12 | E71: 31 | F71: 12.31 | G71: 3.31 | H71: 2022-12-31 | I71: =CHOOSE($A71+1,_xlfn.IFNA(INDEX(USGS!Y:Y,MATCH($H71,USGS!X:X,0)),I70),AVERAGEIF(CNRFC!AR:AR,$H71,CNRFC!AN:AN),AVERAGEIF(Ensemble!GC:GC,$H71,Ensemble!GF:GF),"-") -> 24400 | J71: 14463.33333 | K71: 19893.33333 | L71: =CHOOSE($A71+1,_xlfn.IFNA(INDEX(USGS!D:D,MATCH($H71,USGS!C:C,0)),I70),AVERAGEIF(CNRFC!AI:AI,$H71,CNRFC!AE:AE),AVERAGEIF(Ensemble!AR:AR,$H71,Ensemble!AT:AT),"-") -> 4490 | M71: =CHOOSE($A71+1,_xlfn.IFNA(INDEX(USGS!K:K,MATCH($H71,USGS!J:J,0)),I70),AVERAGEIF(CNRFC!Q:Q,$H71,CNRFC!M:M),AVERAGEIF(Ensemble!CM:CM,$H71,Ensemble!CO:CO),"-") -> 7670 | N71: =CHOOSE($A71+1,_xlfn.IFNA(INDEX(USGS!R:R,MATCH($H71,USGS!Q:Q,0)),I70),AVERAGEIF(CNRFC!Z:Z,$H71,CNRFC!V:V),AVERAGEIF(Ensemble!EH:EH,$H71,Ensemble!EJ:EJ),"-") -> 1610 | O71: 13770 | P71: 7185 | Q71: 12290 | R71: =IF(AND(J71>Control!$F$6,P71>Control!$F$7,U70=1),1,0) -> 0 | S71: =IF(AND(T70>0,T70<Control!$F$8),0,IF(AND(K71<Control!$F$6-500,Q71<Control!$F$7),1,0))*(1-R71) -> 0 | T71: =IF(AND(T70<Control!$F$8,T70>0),T70+1,IF(AND(R71=1,U70=1),1,0)) -> 6 | U71: 0 | V71: =IF(A71<3,IF(AND(T71>0,OR(I71>Control!$F$9,SUM(V65:V70)>0)),MAX(I71-Control!$F$10,0),0),0) -> 0 | W71: =CHOOSE($W$1+1,99999,IF(AND(G71>=Control!$F$4,G71<=Control!$F$5),IF(T71<>0,V71,99999),0)) -> 0 | X71: =INDEX(Control!$D$15:$D$26,D71) -> 3250 | Y71: 21150 | Z71: =CHOOSE($A71+1,IF(ISBLANK(INDEX(CDEC!G:G,MATCH($H71,CDEC!J:J,0))),Z70,_xlfn.IFNA(INDEX(CDEC!G:G,MATCH($H71,CDEC!J:J,0)),Z70)),AVERAGEIF(CNRFC!BA:BA,$H71,CNRFC!AW:AW),AVERAGEIF(Ensemble!JT:JT,$H71,Ensemble!JW:JW),"-") -> 51893 | AA71: =INDEX(Control!$E$15:$E$26,D71) -> 4000 | AB71: 47893 | AC71: =CHOOSE($A71+1,_xlfn.IFNA(INDEX(USGS!AH:AH,MATCH($H71,USGS!AE:AE,0)),I70),AVERAGEIF(CNRFC!H:H,$H71,CNRFC!D:D),AVERAGEIF(Ensemble!HY:HY,$H71,Ensemble!IA:IA),"-") -> 17400 | AD71: =INDEX(Control!$F$15:$F$26,D71) -> 10700 | AE71: 6700 | AF71: -1000 | AG71: 0 | AH71: 0 | AI71: =MIN(INDEX(Control!$G$15:$G$26,D71),AG71) -> 0 | AJ71: =MIN(MAX(AH71-AI71,0),INDEX(Control!$H$15:$H$26,D71)) -> 0 | AK71: 0 | AL71: 2022-12-31 | AP71: 0 | AQ71: 50000
A72: 0 | B72: 2023 | C72: 4 | D72: 1 | E72: 1 | F72: 1.01 | G72: 4.01 | H72: 2023-01-01 | I72: =CHOOSE($A72+1,_xlfn.IFNA(INDEX(USGS!Y:Y,MATCH($H72,USGS!X:X,0)),I71),AVERAGEIF(CNRFC!AR:AR,$H72,CNRFC!AN:AN),AVERAGEIF(Ensemble!GC:GC,$H72,Ensemble!GF:GF),"-") -> 11100 | J72: 8783.333333 | K72: 20700 | L72: =CHOOSE($A72+1,_xlfn.IFNA(INDEX(USGS!D:D,MATCH($H72,USGS!C:C,0)),I71),AVERAGEIF(CNRFC!AI:AI,$H72,CNRFC!AE:AE),AVERAGEIF(Ensemble!AR:AR,$H72,Ensemble!AT:AT),"-") -> 1510 | M72: =CHOOSE($A72+1,_xlfn.IFNA(INDEX(USGS!K:K,MATCH($H72,USGS!J:J,0)),I71),AVERAGEIF(CNRFC!Q:Q,$H72,CNRFC!M:M),AVERAGEIF(Ensemble!CM:CM,$H72,Ensemble!CO:CO),"-") -> 2630 | N72: =CHOOSE($A72+1,_xlfn.IFNA(INDEX(USGS!R:R,MATCH($H72,USGS!Q:Q,0)),I71),AVERAGEIF(CNRFC!Z:Z,$H72,CNRFC!V:V),AVERAGEIF(Ensemble!EH:EH,$H72,Ensemble!EJ:EJ),"-") -> 756 | O72: 4896 | P72: 3435 | Q72: 12722 | R72: =IF(AND(J72>Control!$F$6,P72>Control!$F$7,U71=1),1,0) -> 0 | S72: =IF(AND(T71>0,T71<Control!$F$8),0,IF(AND(K72<Control!$F$6-500,Q72<Control!$F$7),1,0))*(1-R72) -> 0 | T72: =IF(AND(T71<Control!$F$8,T71>0),T71+1,IF(AND(R72=1,U71=1),1,0)) -> 7 | U72: 0 | V72: =IF(A72<3,IF(AND(T72>0,OR(I72>Control!$F$9,SUM(V66:V71)>0)),MAX(I72-Control!$F$10,0),0),0) -> 0 | W72: =CHOOSE($W$1+1,99999,IF(AND(G72>=Control!$F$4,G72<=Control!$F$5),IF(T72<>0,V72,99999),0)) -> 0 | X72: =INDEX(Control!$D$15:$D$26,D72) -> 3250 | Y72: 7850 | Z72: =CHOOSE($A72+1,IF(ISBLANK(INDEX(CDEC!G:G,MATCH($H72,CDEC!J:J,0))),Z71,_xlfn.IFNA(INDEX(CDEC!G:G,MATCH($H72,CDEC!J:J,0)),Z71)),AVERAGEIF(CNRFC!BA:BA,$H72,CNRFC!AW:AW),AVERAGEIF(Ensemble!JT:JT,$H72,Ensemble!JW:JW),"-") -> 23030 | AA72: =INDEX(Control!$E$15:$E$26,D72) -> 4000 | AB72: 19030 | AC72: =CHOOSE($A72+1,_xlfn.IFNA(INDEX(USGS!AH:AH,MATCH($H72,USGS!AE:AE,0)),I71),AVERAGEIF(CNRFC!H:H,$H72,CNRFC!D:D),AVERAGEIF(Ensemble!HY:HY,$H72,Ensemble!IA:IA),"-") -> 24700 | AD72: =INDEX(Control!$F$15:$F$26,D72) -> 10700 | AE72: 14000 | AF72: 35000 | AG72: 0 | AH72: 0 | AI72: =MIN(INDEX(Control!$G$15:$G$26,D72),AG72) -> 0 | AJ72: =MIN(MAX(AH72-AI72,0),INDEX(Control!$H$15:$H$26,D72)) -> 0 | AK72: 0 | AL72: 2023-01-01 | AP72: 0 | AQ72: 50000 | AS72: 94759
A73: 0 | B73: 2023 | C73: 4 | D73: 1 | E73: 2 | F73: 1.02 | G73: 4.02 | H73: 2023-01-02 | I73: =CHOOSE($A73+1,_xlfn.IFNA(INDEX(USGS!Y:Y,MATCH($H73,USGS!X:X,0)),I72),AVERAGEIF(CNRFC!AR:AR,$H73,CNRFC!AN:AN),AVERAGEIF(Ensemble!GC:GC,$H73,Ensemble!GF:GF),"-") -> 7890 | J73: 7570 | K73: 14463.33333 | L73: =CHOOSE($A73+1,_xlfn.IFNA(INDEX(USGS!D:D,MATCH($H73,USGS!C:C,0)),I72),AVERAGEIF(CNRFC!AI:AI,$H73,CNRFC!AE:AE),AVERAGEIF(Ensemble!AR:AR,$H73,Ensemble!AT:AT),"-") -> 881 | M73: =CHOOSE($A73+1,_xlfn.IFNA(INDEX(USGS!K:K,MATCH($H73,USGS!J:J,0)),I72),AVERAGEIF(CNRFC!Q:Q,$H73,CNRFC!M:M),AVERAGEIF(Ensemble!CM:CM,$H73,Ensemble!CO:CO),"-") -> 1420 | N73: =CHOOSE($A73+1,_xlfn.IFNA(INDEX(USGS!R:R,MATCH($H73,USGS!Q:Q,0)),I72),AVERAGEIF(CNRFC!Z:Z,$H73,CNRFC!V:V),AVERAGEIF(Ensemble!EH:EH,$H73,Ensemble!EJ:EJ),"-") -> 588 | O73: 2889 | P73: 2921.666667 | Q73: 7185 | R73: =IF(AND(J73>Control!$F$6,P73>Control!$F$7,U72=1),1,0) -> 0 | S73: =IF(AND(T72>0,T72<Control!$F$8),0,IF(AND(K73<Control!$F$6-500,Q73<Control!$F$7),1,0))*(1-R73) -> 0 | T73: =IF(AND(T72<Control!$F$8,T72>0),T72+1,IF(AND(R73=1,U72=1),1,0)) -> 0 | U73: 0 | V73: =IF(A73<3,IF(AND(T73>0,OR(I73>Control!$F$9,SUM(V67:V72)>0)),MAX(I73-Control!$F$10,0),0),0) -> 0 | W73: =CHOOSE($W$1+1,99999,IF(AND(G73>=Control!$F$4,G73<=Control!$F$5),IF(T73<>0,V73,99999),0)) -> 99999 | X73: =INDEX(Control!$D$15:$D$26,D73) -> 3250 | Y73: 4640 | Z73: =CHOOSE($A73+1,IF(ISBLANK(INDEX(CDEC!G:G,MATCH($H73,CDEC!J:J,0))),Z72,_xlfn.IFNA(INDEX(CDEC!G:G,MATCH($H73,CDEC!J:J,0)),Z72)),AVERAGEIF(CNRFC!BA:BA,$H73,CNRFC!AW:AW),AVERAGEIF(Ensemble!JT:JT,$H73,Ensemble!JW:JW),"-") -> 12966 | AA73: =INDEX(Control!$E$15:$E$26,D73) -> 4000 | AB73: 8966 | AC73: =CHOOSE($A73+1,_xlfn.IFNA(INDEX(USGS!AH:AH,MATCH($H73,USGS!AE:AE,0)),I72),AVERAGEIF(CNRFC!H:H,$H73,CNRFC!D:D),AVERAGEIF(Ensemble!HY:HY,$H73,Ensemble!IA:IA),"-") -> 23300 | AD73: =INDEX(Control!$F$15:$F$26,D73) -> 10700 | AE73: 12600 | AF73: 35000 | AG73: 4640 | AH73: 8966 | AI73: =MIN(INDEX(Control!$G$15:$G$26,D73),AG73) -> 2200 | AJ73: =MIN(MAX(AH73-AI73,0),INDEX(Control!$H$15:$H$26,D73)) -> 2000 | AK73: 4200 | AL73: 2023-01-02 | AP73: 8966 | AQ73: 0 | AS73: 80152
A74: 0 | B74: 2023 | C74: 4 | D74: 1 | E74: 3 | F74: 1.03 | G74: 4.03 | H74: 2023-01-03 | I74: =CHOOSE($A74+1,_xlfn.IFNA(INDEX(USGS!Y:Y,MATCH($H74,USGS!X:X,0)),I73),AVERAGEIF(CNRFC!AR:AR,$H74,CNRFC!AN:AN),AVERAGEIF(Ensemble!GC:GC,$H74,Ensemble!GF:GF),"-") -> 7360 | J74: 12873.33333 | K74: 8783.333333 | L74: =CHOOSE($A74+1,_xlfn.IFNA(INDEX(USGS!D:D,MATCH($H74,USGS!C:C,0)),I73),AVERAGEIF(CNRFC!AI:AI,$H74,CNRFC!AE:AE),AVERAGEIF(Ensemble!AR:AR,$H74,Ensemble!AT:AT),"-") -> 847 | M74: =CHOOSE($A74+1,_xlfn.IFNA(INDEX(USGS!K:K,MATCH($H74,USGS!J:J,0)),I73),AVERAGEIF(CNRFC!Q:Q,$H74,CNRFC!M:M),AVERAGEIF(Ensemble!CM:CM,$H74,Ensemble!CO:CO),"-") -> 1070 | N74: =CHOOSE($A74+1,_xlfn.IFNA(INDEX(USGS!R:R,MATCH($H74,USGS!Q:Q,0)),I73),AVERAGEIF(CNRFC!Z:Z,$H74,CNRFC!V:V),AVERAGEIF(Ensemble!EH:EH,$H74,Ensemble!EJ:EJ),"-") -> 603 | O74: 2520 | P74: 7678.666667 | Q74: 3435 | R74: =IF(AND(J74>Control!$F$6,P74>Control!$F$7,U73=1),1,0) -> 0 | S74: =IF(AND(T73>0,T73<Control!$F$8),0,IF(AND(K74<Control!$F$6-500,Q74<Control!$F$7),1,0))*(1-R74) -> 0 | T74: =IF(AND(T73<Control!$F$8,T73>0),T73+1,IF(AND(R74=1,U73=1),1,0)) -> 0 | U74: 0 | V74: =IF(A74<3,IF(AND(T74>0,OR(I74>Control!$F$9,SUM(V68:V73)>0)),MAX(I74-Control!$F$10,0),0),0) -> 0 | W74: =CHOOSE($W$1+1,99999,IF(AND(G74>=Control!$F$4,G74<=Control!$F$5),IF(T74<>0,V74,99999),0)) -> 99999 | X74: =INDEX(Control!$D$15:$D$26,D74) -> 3250 | Y74: 4110 | Z74: =CHOOSE($A74+1,IF(ISBLANK(INDEX(CDEC!G:G,MATCH($H74,CDEC!J:J,0))),Z73,_xlfn.IFNA(INDEX(CDEC!G:G,MATCH($H74,CDEC!J:J,0)),Z73)),AVERAGEIF(CNRFC!BA:BA,$H74,CNRFC!AW:AW),AVERAGEIF(Ensemble!JT:JT,$H74,Ensemble!JW:JW),"-") -> 10679 | AA74: =INDEX(Control!$E$15:$E$26,D74) -> 4000 | AB74: 6679 | AC74: =CHOOSE($A74+1,_xlfn.IFNA(INDEX(USGS!AH:AH,MATCH($H74,USGS!AE:AE,0)),I73),AVERAGEIF(CNRFC!H:H,$H74,CNRFC!D:D),AVERAGEIF(Ensemble!HY:HY,$H74,Ensemble!IA:IA),"-") -> 18500 | AD74: =INDEX(Control!$F$15:$F$26,D74) -> 10700 | AE74: 7800 | AF74: 35000 | AG74: 4110 | AH74: 6679 | AI74: =MIN(INDEX(Control!$G$15:$G$26,D74),AG74) -> 2200 | AJ74: =MIN(MAX(AH74-AI74,0),INDEX(Control!$H$15:$H$26,D74)) -> 2000 | AK74: 4200 | AL74: 2023-01-03 | AP74: 6679 | AQ74: 0 | AS74: 87400 | AT74: =AK74/AS74 -> 0.04805491991 | AV74: =SUM(AK74:AK84)/SUM(AS77:AS87) -> 0.03330601849
A75: =IF(H75>TODAY()+29,3,IF(H75>TODAY()+4,2,IF(H75>=TODAY(),1,0))) -> 0 | B75: =IF(D75>9,YEAR(H75)+1,YEAR(H75)) -> 2023 | C75: 4 | D75: 1 | E75: 4 | F75: 1.04 | G75: 4.04 | H75: 2023-01-04 | I75: =CHOOSE($A75+1,_xlfn.IFNA(INDEX(USGS!Y:Y,MATCH($H75,USGS!X:X,0)),I74),AVERAGEIF(CNRFC!AR:AR,$H75,CNRFC!AN:AN),AVERAGEIF(Ensemble!GC:GC,$H75,Ensemble!GF:GF),"-") -> 7460 | J75: 15886.66667 | K75: 7570 | L75: =CHOOSE($A75+1,_xlfn.IFNA(INDEX(USGS!D:D,MATCH($H75,USGS!C:C,0)),I74),AVERAGEIF(CNRFC!AI:AI,$H75,CNRFC!AE:AE),AVERAGEIF(Ensemble!AR:AR,$H75,Ensemble!AT:AT),"-") -> 1170 | M75: =CHOOSE($A75+1,_xlfn.IFNA(INDEX(USGS!K:K,MATCH($H75,USGS!J:J,0)),I74),AVERAGEIF(CNRFC!Q:Q,$H75,CNRFC!M:M),AVERAGEIF(Ensemble!CM:CM,$H75,Ensemble!CO:CO),"-") -> 1510 | N75: =CHOOSE($A75+1,_xlfn.IFNA(INDEX(USGS!R:R,MATCH($H75,USGS!Q:Q,0)),I74),AVERAGEIF(CNRFC!Z:Z,$H75,CNRFC!V:V),AVERAGEIF(Ensemble!EH:EH,$H75,Ensemble!EJ:EJ),"-") -> 676 | O75: =IF(A75>2,"-",SUM(L75:N75)) -> 3356 | P75: 9525.333333 | Q75: 2921.666667 | R75: =IF(AND(J75>Control!$F$6,P75>Control!$F$7,U74=1),1,0) -> 0 | S75: =IF(AND(T74>0,T74<Control!$F$8),0,IF(AND(K75<Control!$F$6-500,Q75<Control!$F$7),1,0))*(1-R75) -> 0 | T75: =IF(AND(T74<Control!$F$8,T74>0),T74+1,IF(AND(R75=1,U74=1),1,0)) -> 0 | U75: 0 | V75: =IF(A75<3,IF(AND(T75>0,OR(I75>Control!$F$9,SUM(V69:V74)>0)),MAX(I75-Control!$F$10,0),0),0) -> 0 | W75: =CHOOSE($W$1+1,99999,IF(AND(G75>=Control!$F$4,G75<=Control!$F$5),IF(T75<>0,V75,99999),0)) -> 99999 | X75: =INDEX(Control!$D$15:$D$26,D75) -> 3250 | Y75: 4210 | Z75: =CHOOSE($A75+1,IF(ISBLANK(INDEX(CDEC!G:G,MATCH($H75,CDEC!J:J,0))),Z74,_xlfn.IFNA(INDEX(CDEC!G:G,MATCH($H75,CDEC!J:J,0)),Z74)),AVERAGEIF(CNRFC!BA:BA,$H75,CNRFC!AW:AW),AVERAGEIF(Ensemble!JT:JT,$H75,Ensemble!JW:JW),"-") -> 9724 | AA75: =INDEX(Control!$E$15:$E$26,D75) -> 4000 | AB75: 5724 | AC75: =CHOOSE($A75+1,_xlfn.IFNA(INDEX(USGS!AH:AH,MATCH($H75,USGS!AE:AE,0)),I74),AVERAGEIF(CNRFC!H:H,$H75,CNRFC!D:D),AVERAGEIF(Ensemble!HY:HY,$H75,Ensemble!IA:IA),"-") -> 15100 | AD75: =INDEX(Control!$F$15:$F$26,D75) -> 10700 | AE75: =IF(A75>2,"-",MAX(AC75-AD75,0)) -> 4400 | AF75: 35000 | AG75: 4210 | AH75: 4400 | AI75: =MIN(INDEX(Control!$G$15:$G$26,D75),AG75) -> 2200 | AJ75: =MIN(MAX(AH75-AI75,0),INDEX(Control!$H$15:$H$26,D75)) -> 2000 | AK75: 4200 | AL75: 2023-01-04 | AM75: =IF(AO75=50000,30000,"") ->  | AP75: 4400 | AQ75: 0 | AS75: 87365 | AT75: =AK75/AS75 -> 0.04807417158
A76: 0 | B76: 2023 | C76: =IF(D76>9,D76-9,D76+3) -> 4 | D76: =MONTH(H76) -> 1 | E76: =DAY(H76) -> 5 | F76: =D76+E76/100 -> 1.05 | G76: =C76+E76/100 -> 4.05 | H76: 2023-01-05 | I76: =CHOOSE($A76+1,_xlfn.IFNA(INDEX(USGS!Y:Y,MATCH($H76,USGS!X:X,0)),I75),AVERAGEIF(CNRFC!AR:AR,$H76,CNRFC!AN:AN),AVERAGEIF(Ensemble!GC:GC,$H76,Ensemble!GF:GF),"-") -> 23800 | J76: =IF(A76>2,"-",AVERAGE(I76:I78)) -> 18233.33333 | K76: 12873.33333 | L76: =CHOOSE($A76+1,_xlfn.IFNA(INDEX(USGS!D:D,MATCH($H76,USGS!C:C,0)),I75),AVERAGEIF(CNRFC!AI:AI,$H76,CNRFC!AE:AE),AVERAGEIF(Ensemble!AR:AR,$H76,Ensemble!AT:AT),"-") -> 2930 | M76: =CHOOSE($A76+1,_xlfn.IFNA(INDEX(USGS!K:K,MATCH($H76,USGS!J:J,0)),I75),AVERAGEIF(CNRFC!Q:Q,$H76,CNRFC!M:M),AVERAGEIF(Ensemble!CM:CM,$H76,Ensemble!CO:CO),"-") -> 12700 | N76: =CHOOSE($A76+1,_xlfn.IFNA(INDEX(USGS!R:R,MATCH($H76,USGS!Q:Q,0)),I75),AVERAGEIF(CNRFC!Z:Z,$H76,CNRFC!V:V),AVERAGEIF(Ensemble!EH:EH,$H76,Ensemble!EJ:EJ),"-") -> 1530 | O76: 17160 | P76: =IF(A76>2,"-",AVERAGE(O76:O78)) -> 10993.66667 | Q76: 7678.666667 | R76: =IF(AND(J76>Control!$F$6,P76>Control!$F$7,U75=1),1,0) -> 0 | S76: =IF(AND(T75>0,T75<Control!$F$8),0,IF(AND(K76<Control!$F$6-500,Q76<Control!$F$7),1,0))*(1-R76) -> 0 | T76: =IF(AND(T75<Control!$F$8,T75>0),T75+1,IF(AND(R76=1,U75=1),1,0)) -> 0 | U76: 0 | V76: =IF(A76<3,IF(AND(T76>0,OR(I76>Control!$F$9,SUM(V70:V75)>0)),MAX(I76-Control!$F$10,0),0),0) -> 0 | W76: =CHOOSE($W$1+1,99999,IF(AND(G76>=Control!$F$4,G76<=Control!$F$5),IF(T76<>0,V76,99999),0)) -> 99999 | X76: =INDEX(Control!$D$15:$D$26,D76) -> 3250 | Y76: =IF(A76>2,"-",MAX(I76-X76,0)) -> 20550 | Z76: =CHOOSE($A76+1,IF(ISBLANK(INDEX(CDEC!G:G,MATCH($H76,CDEC!J:J,0))),Z75,_xlfn.IFNA(INDEX(CDEC!G:G,MATCH($H76,CDEC!J:J,0)),Z75)),AVERAGEIF(CNRFC!BA:BA,$H76,CNRFC!AW:AW),AVERAGEIF(Ensemble!JT:JT,$H76,Ensemble!JW:JW),"-") -> 35581 | AA76: =INDEX(Control!$E$15:$E$26,D76) -> 4000 | AB76: =IF(A76>2,"-",MAX(Z76-AA76,0)) -> 31581 | AC76: =CHOOSE($A76+1,_xlfn.IFNA(INDEX(USGS!AH:AH,MATCH($H76,USGS!AE:AE,0)),I75),AVERAGEIF(CNRFC!H:H,$H76,CNRFC!D:D),AVERAGEIF(Ensemble!HY:HY,$H76,Ensemble!IA:IA),"-") -> 14100 | AD76: =INDEX(Control!$F$15:$F$26,D76) -> 10700 | AE76: 3400 | AF76: 35000 | AG76: =MIN(W76,Y76,AE76)*MAX(MIN(AF76,1),0) -> 3400 | AH76: =MIN(W76,AB76,AE76)*MAX(MIN(AF76,1),0) -> 3400 | AI76: =MIN(INDEX(Control!$G$15:$G$26,D76),AG76) -> 2200 | AJ76: =MIN(MAX(AH76-AI76,0),INDEX(Control!$H$15:$H$26,D76)) -> 1200 | AK76: =SUM(AI76:AJ76) -> 3400 | AL76: =IF(A76=3,NA(),H76) -> 2023-01-05 | AN76: =IF(AO76=50000,"<--- Observed Forecast --->","") ->  | AO76: =IF(AL76=TODAY(),50000,NA()) ->  | AP76: =MAX(AG76:AH76) -> 3400 | AQ76: =MIN(T76,1)*50000 -> 0 | AS76: 83243 | AT76: 0.04084427519
A77: 0 | B77: 2023 | C77: 4 | D77: 1 | E77: 6 | F77: 1.06 | G77: 4.06 | H77: =H76+1 -> 2023-01-06 | I77: =CHOOSE($A77+1,_xlfn.IFNA(INDEX(USGS!Y:Y,MATCH($H77,USGS!X:X,0)),I76),AVERAGEIF(CNRFC!AR:AR,$H77,CNRFC!AN:AN),AVERAGEIF(Ensemble!GC:GC,$H77,Ensemble!GF:GF),"-") -> 16400 | J77: 21866.66667 | K77: 15886.66667 | L77: =CHOOSE($A77+1,_xlfn.IFNA(INDEX(USGS!D:D,MATCH($H77,USGS!C:C,0)),I76),AVERAGEIF(CNRFC!AI:AI,$H77,CNRFC!AE:AE),AVERAGEIF(Ensemble!AR:AR,$H77,Ensemble!AT:AT),"-") -> 2190 | M77: =CHOOSE($A77+1,_xlfn.IFNA(INDEX(USGS!K:K,MATCH($H77,USGS!J:J,0)),I76),AVERAGEIF(CNRFC!Q:Q,$H77,CNRFC!M:M),AVERAGEIF(Ensemble!CM:CM,$H77,Ensemble!CO:CO),"-") -> 4790 | N77: =CHOOSE($A77+1,_xlfn.IFNA(INDEX(USGS!R:R,MATCH($H77,USGS!Q:Q,0)),I76),AVERAGEIF(CNRFC!Z:Z,$H77,CNRFC!V:V),AVERAGEIF(Ensemble!EH:EH,$H77,Ensemble!EJ:EJ),"-") -> 1080 | O77: 8060 | P77: 12850.33333 | Q77: 9525.333333 | R77: =IF(AND(J77>Control!$F$6,P77>Control!$F$7,U76=1),1,0) -> 0 | S77: =IF(AND(T76>0,T76<Control!$F$8),0,IF(AND(K77<Control!$F$6-500,Q77<Control!$F$7),1,0))*(1-R77) -> 0 | T77: =IF(AND(T76<Control!$F$8,T76>0),T76+1,IF(AND(R77=1,U76=1),1,0)) -> 0 | U77: 0 | V77: =IF(A77<3,IF(AND(T77>0,OR(I77>Control!$F$9,SUM(V71:V76)>0)),MAX(I77-Control!$F$10,0),0),0) -> 0 | W77: =CHOOSE($W$1+1,99999,IF(AND(G77>=Control!$F$4,G77<=Control!$F$5),IF(T77<>0,V77,99999),0)) -> 99999 | X77: =INDEX(Control!$D$15:$D$26,D77) -> 3250 | Y77: 13150 | Z77: =CHOOSE($A77+1,IF(ISBLANK(INDEX(CDEC!G:G,MATCH($H77,CDEC!J:J,0))),Z76,_xlfn.IFNA(INDEX(CDEC!G:G,MATCH($H77,CDEC!J:J,0)),Z76)),AVERAGEIF(CNRFC!BA:BA,$H77,CNRFC!AW:AW),AVERAGEIF(Ensemble!JT:JT,$H77,Ensemble!JW:JW),"-") -> 32363 | AA77: =INDEX(Control!$E$15:$E$26,D77) -> 4000 | AB77: 28363 | AC77: =CHOOSE($A77+1,_xlfn.IFNA(INDEX(USGS!AH:AH,MATCH($H77,USGS!AE:AE,0)),I76),AVERAGEIF(CNRFC!H:H,$H77,CNRFC!D:D),AVERAGEIF(Ensemble!HY:HY,$H77,Ensemble!IA:IA),"-") -> 23200 | AD77: =INDEX(Control!$F$15:$F$26,D77) -> 10700 | AE77: 12500 | AF77: 35000 | AG77: 12500 | AH77: 12500 | AI77: =MIN(INDEX(Control!$G$15:$G$26,D77),AG77) -> 2200 | AJ77: =MIN(MAX(AH77-AI77,0),INDEX(Control!$H$15:$H$26,D77)) -> 2000 | AK77: 4200 | AL77: 2023-01-06 | AP77: 12500 | AQ77: 0 | AS77: 78140 | AT77: 0.05374968006
A78: 0 | B78: 2023 | C78: 4 | D78: 1 | E78: 7 | F78: 1.07 | G78: 4.07 | H78: 2023-01-07 | I78: =CHOOSE($A78+1,_xlfn.IFNA(INDEX(USGS!Y:Y,MATCH($H78,USGS!X:X,0)),I77),AVERAGEIF(CNRFC!AR:AR,$H78,CNRFC!AN:AN),AVERAGEIF(Ensemble!GC:GC,$H78,Ensemble!GF:GF),"-") -> 14500 | J78: 29966.66667 | K78: =IF(A78>2,"-",AVERAGE(I76:I78)) -> 18233.33333 | L78: =CHOOSE($A78+1,_xlfn.IFNA(INDEX(USGS!D:D,MATCH($H78,USGS!C:C,0)),I77),AVERAGEIF(CNRFC!AI:AI,$H78,CNRFC!AE:AE),AVERAGEIF(Ensemble!AR:AR,$H78,Ensemble!AT:AT),"-") -> 2620 | M78: =CHOOSE($A78+1,_xlfn.IFNA(INDEX(USGS!K:K,MATCH($H78,USGS!J:J,0)),I77),AVERAGEIF(CNRFC!Q:Q,$H78,CNRFC!M:M),AVERAGEIF(Ensemble!CM:CM,$H78,Ensemble!CO:CO),"-") -> 4370 | N78: =CHOOSE($A78+1,_xlfn.IFNA(INDEX(USGS!R:R,MATCH($H78,USGS!Q:Q,0)),I77),AVERAGEIF(CNRFC!Z:Z,$H78,CNRFC!V:V),AVERAGEIF(Ensemble!EH:EH,$H78,Ensemble!EJ:EJ),"-") -> 771 | O78: 7761 | P78: 18763.66667 | Q78: =IF(A78>2,"-",AVERAGE(O76:O78)) -> 10993.66667 | R78: =IF(AND(J78>Control!$F$6,P78>Control!$F$7,U77=1),1,0) -> 0 | S78: =IF(AND(T77>0,T77<Control!$F$8),0,IF(AND(K78<Control!$F$6-500,Q78<Control!$F$7),1,0))*(1-R78) -> 0 | T78: =IF(AND(T77<Control!$F$8,T77>0),T77+1,IF(AND(R78=1,U77=1),1,0)) -> 0 | U78: 0 | V78: =IF(A78<3,IF(AND(T78>0,OR(I78>Control!$F$9,SUM(V72:V77)>0)),MAX(I78-Control!$F$10,0),0),0) -> 0 | W78: =CHOOSE($W$1+1,99999,IF(AND(G78>=Control!$F$4,G78<=Control!$F$5),IF(T78<>0,V78,99999),0)) -> 99999 | X78: =INDEX(Control!$D$15:$D$26,D78) -> 3250 | Y78: 11250 | Z78: =CHOOSE($A78+1,IF(ISBLANK(INDEX(CDEC!G:G,MATCH($H78,CDEC!J:J,0))),Z77,_xlfn.IFNA(INDEX(CDEC!G:G,MATCH($H78,CDEC!J:J,0)),Z77)),AVERAGEIF(CNRFC!BA:BA,$H78,CNRFC!AW:AW),AVERAGEIF(Ensemble!JT:JT,$H78,Ensemble!JW:JW),"-") -> 20705 | AA78: =INDEX(Control!$E$15:$E$26,D78) -> 4000 | AB78: 16705 | AC78: =CHOOSE($A78+1,_xlfn.IFNA(INDEX(USGS!AH:AH,MATCH($H78,USGS!AE:AE,0)),I77),AVERAGEIF(CNRFC!H:H,$H78,CNRFC!D:D),AVERAGEIF(Ensemble!HY:HY,$H78,Ensemble!IA:IA),"-") -> 25200 | AD78: =INDEX(Control!$F$15:$F$26,D78) -> 10700 | AE78: 14500 | AF78: 35000 | AG78: 11250 | AH78: 14500 | AI78: =MIN(INDEX(Control!$G$15:$G$26,D78),AG78) -> 2200 | AJ78: =MIN(MAX(AH78-AI78,0),INDEX(Control!$H$15:$H$26,D78)) -> 2000 | AK78: 4200 | AL78: 2023-01-07 | AP78: 14500 | AQ78: 0 | AS78: 80924 | AT78: 0.05190054866
A79: 0 | B79: 2023 | C79: 4 | D79: 1 | E79: 8 | F79: 1.08 | G79: 4.08 | H79: 2023-01-08 | I79: =CHOOSE($A79+1,_xlfn.IFNA(INDEX(USGS!Y:Y,MATCH($H79,USGS!X:X,0)),I78),AVERAGEIF(CNRFC!AR:AR,$H79,CNRFC!AN:AN),AVERAGEIF(Ensemble!GC:GC,$H79,Ensemble!GF:GF),"-") -> 34700 | J79: 35400 | K79: 21866.66667 | L79: =CHOOSE($A79+1,_xlfn.IFNA(INDEX(USGS!D:D,MATCH($H79,USGS!C:C,0)),I78),AVERAGEIF(CNRFC!AI:AI,$H79,CNRFC!AE:AE),AVERAGEIF(Ensemble!AR:AR,$H79,Ensemble!AT:AT),"-") -> 7190 | M79: =CHOOSE($A79+1,_xlfn.IFNA(INDEX(USGS!K:K,MATCH($H79,USGS!J:J,0)),I78),AVERAGEIF(CNRFC!Q:Q,$H79,CNRFC!M:M),AVERAGEIF(Ensemble!CM:CM,$H79,Ensemble!CO:CO),"-") -> 13600 | N79: =CHOOSE($A79+1,_xlfn.IFNA(INDEX(USGS!R:R,MATCH($H79,USGS!Q:Q,0)),I78),AVERAGEIF(CNRFC!Z:Z,$H79,CNRFC!V:V),AVERAGEIF(Ensemble!EH:EH,$H79,Ensemble!EJ:EJ),"-") -> 1940 | O79: 22730 | P79: 21830 | Q79: 12850.33333 | R79: =IF(AND(J79>Control!$F$6,P79>Control!$F$7,U78=1),1,0) -> 0 | S79: =IF(AND(T78>0,T78<Control!$F$8),0,IF(AND(K79<Control!$F$6-500,Q79<Control!$F$7),1,0))*(1-R79) -> 0 | T79: =IF(AND(T78<Control!$F$8,T78>0),T78+1,IF(AND(R79=1,U78=1),1,0)) -> 0 | U79: 0 | V79: =IF(A79<3,IF(AND(T79>0,OR(I79>Control!$F$9,SUM(V73:V78)>0)),MAX(I79-Control!$F$10,0),0),0) -> 0 | W79: =CHOOSE($W$1+1,99999,IF(AND(G79>=Control!$F$4,G79<=Control!$F$5),IF(T79<>0,V79,99999),0)) -> 99999 | X79: =INDEX(Control!$D$15:$D$26,D79) -> 3250 | Y79: 31450 | Z79: =CHOOSE($A79+1,IF(ISBLANK(INDEX(CDEC!G:G,MATCH($H79,CDEC!J:J,0))),Z78,_xlfn.IFNA(INDEX(CDEC!G:G,MATCH($H79,CDEC!J:J,0)),Z78)),AVERAGEIF(CNRFC!BA:BA,$H79,CNRFC!AW:AW),AVERAGEIF(Ensemble!JT:JT,$H79,Ensemble!JW:JW),"-") -> 48422 | AA79: =INDEX(Control!$E$15:$E$26,D79) -> 4000 | AB79: 44422 | AC79: =CHOOSE($A79+1,_xlfn.IFNA(INDEX(USGS!AH:AH,MATCH($H79,USGS!AE:AE,0)),I78),AVERAGEIF(CNRFC!H:H,$H79,CNRFC!D:D),AVERAGEIF(Ensemble!HY:HY,$H79,Ensemble!IA:IA),"-") -> 24400 | AD79: =INDEX(Control!$F$15:$F$26,D79) -> 10700 | AE79: 13700 | AF79: 35000 | AG79: 13700 | AH79: 13700 | AI79: =MIN(INDEX(Control!$G$15:$G$26,D79),AG79) -> 2200 | AJ79: =MIN(MAX(AH79-AI79,0),INDEX(Control!$H$15:$H$26,D79)) -> 2000 | AK79: 4200 | AL79: 2023-01-08 | AP79: 13700 | AQ79: 0 | AS79: 86128 | AT79: 0.04876462939
A80: 0 | B80: 2023 | C80: 4 | D80: 1 | E80: 9 | F80: 1.09 | G80: 4.09 | H80: 2023-01-09 | I80: =CHOOSE($A80+1,_xlfn.IFNA(INDEX(USGS!Y:Y,MATCH($H80,USGS!X:X,0)),I79),AVERAGEIF(CNRFC!AR:AR,$H80,CNRFC!AN:AN),AVERAGEIF(Ensemble!GC:GC,$H80,Ensemble!GF:GF),"-") -> 40700 | J80: 33166.66667 | K80: 29966.66667 | L80: =CHOOSE($A80+1,_xlfn.IFNA(INDEX(USGS!D:D,MATCH($H80,USGS!C:C,0)),I79),AVERAGEIF(CNRFC!AI:AI,$H80,CNRFC!AE:AE),AVERAGEIF(Ensemble!AR:AR,$H80,Ensemble!AT:AT),"-") -> 8540 | M80: =CHOOSE($A80+1,_xlfn.IFNA(INDEX(USGS!K:K,MATCH($H80,USGS!J:J,0)),I79),AVERAGEIF(CNRFC!Q:Q,$H80,CNRFC!M:M),AVERAGEIF(Ensemble!CM:CM,$H80,Ensemble!CO:CO),"-") -> 14700 | N80: =CHOOSE($A80+1,_xlfn.IFNA(INDEX(USGS!R:R,MATCH($H80,USGS!Q:Q,0)),I79),AVERAGEIF(CNRFC!Z:Z,$H80,CNRFC!V:V),AVERAGEIF(Ensemble!EH:EH,$H80,Ensemble!EJ:EJ),"-") -> 2560 | O80: 25800 | P80: 19613.33333 | Q80: 18763.66667 | R80: =IF(AND(J80>Control!$F$6,P80>Control!$F$7,U79=1),1,0) -> 0 | S80: =IF(AND(T79>0,T79<Control!$F$8),0,IF(AND(K80<Control!$F$6-500,Q80<Control!$F$7),1,0))*(1-R80) -> 0 | T80: =IF(AND(T79<Control!$F$8,T79>0),T79+1,IF(AND(R80=1,U79=1),1,0)) -> 0 | U80: 0 | V80: =IF(A80<3,IF(AND(T80>0,OR(I80>Control!$F$9,SUM(V74:V79)>0)),MAX(I80-Control!$F$10,0),0),0) -> 0 | W80: =CHOOSE($W$1+1,99999,IF(AND(G80>=Control!$F$4,G80<=Control!$F$5),IF(T80<>0,V80,99999),0)) -> 99999 | X80: =INDEX(Control!$D$15:$D$26,D80) -> 3250 | Y80: 37450 | Z80: =CHOOSE($A80+1,IF(ISBLANK(INDEX(CDEC!G:G,MATCH($H80,CDEC!J:J,0))),Z79,_xlfn.IFNA(INDEX(CDEC!G:G,MATCH($H80,CDEC!J:J,0)),Z79)),AVERAGEIF(CNRFC!BA:BA,$H80,CNRFC!AW:AW),AVERAGEIF(Ensemble!JT:JT,$H80,Ensemble!JW:JW),"-") -> 65777 | AA80: =INDEX(Control!$E$15:$E$26,D80) -> 4000 | AB80: 61777 | AC80: =CHOOSE($A80+1,_xlfn.IFNA(INDEX(USGS!AH:AH,MATCH($H80,USGS!AE:AE,0)),I79),AVERAGEIF(CNRFC!H:H,$H80,CNRFC!D:D),AVERAGEIF(Ensemble!HY:HY,$H80,Ensemble!IA:IA),"-") -> 25700 | AD80: =INDEX(Control!$F$15:$F$26,D80) -> 10700 | AE80: 15000 | AF80: 35000 | AG80: 15000 | AH80: 15000 | AI80: =MIN(INDEX(Control!$G$15:$G$26,D80),AG80) -> 2200 | AJ80: =MIN(MAX(AH80-AI80,0),INDEX(Control!$H$15:$H$26,D80)) -> 2000 | AK80: 4200 | AL80: 2023-01-09 | AP80: 15000 | AQ80: 0 | AS80: 95980 | AT80: 0.04375911648
A81: 0 | B81: 2023 | C81: 4 | D81: 1 | E81: 10 | F81: 1.1 | G81: 4.1 | H81: 2023-01-10 | I81: =CHOOSE($A81+1,_xlfn.IFNA(INDEX(USGS!Y:Y,MATCH($H81,USGS!X:X,0)),I80),AVERAGEIF(CNRFC!AR:AR,$H81,CNRFC!AN:AN),AVERAGEIF(Ensemble!GC:GC,$H81,Ensemble!GF:GF),"-") -> 30800 | J81: 34800 | K81: 35400 | L81: =CHOOSE($A81+1,_xlfn.IFNA(INDEX(USGS!D:D,MATCH($H81,USGS!C:C,0)),I80),AVERAGEIF(CNRFC!AI:AI,$H81,CNRFC!AE:AE),AVERAGEIF(Ensemble!AR:AR,$H81,Ensemble!AT:AT),"-") -> 4630 | M81: =CHOOSE($A81+1,_xlfn.IFNA(INDEX(USGS!K:K,MATCH($H81,USGS!J:J,0)),I80),AVERAGEIF(CNRFC!Q:Q,$H81,CNRFC!M:M),AVERAGEIF(Ensemble!CM:CM,$H81,Ensemble!CO:CO),"-") -> 10500 | N81: =CHOOSE($A81+1,_xlfn.IFNA(INDEX(USGS!R:R,MATCH($H81,USGS!Q:Q,0)),I80),AVERAGEIF(CNRFC!Z:Z,$H81,CNRFC!V:V),AVERAGEIF(Ensemble!EH:EH,$H81,Ensemble!EJ:EJ),"-") -> 1830 | O81: 16960 | P81: 19710 | Q81: 21830 | R81: =IF(AND(J81>Control!$F$6,P81>Control!$F$7,U80=1),1,0) -> 0 | S81: =IF(AND(T80>0,T80<Control!$F$8),0,IF(AND(K81<Control!$F$6-500,Q81<Control!$F$7),1,0))*(1-R81) -> 0 | T81: =IF(AND(T80<Control!$F$8,T80>0),T80+1,IF(AND(R81=1,U80=1),1,0)) -> 0 | U81: 0 | V81: =IF(A81<3,IF(AND(T81>0,OR(I81>Control!$F$9,SUM(V75:V80)>0)),MAX(I81-Control!$F$10,0),0),0) -> 0 | W81: =CHOOSE($W$1+1,99999,IF(AND(G81>=Control!$F$4,G81<=Control!$F$5),IF(T81<>0,V81,99999),0)) -> 99999 | X81: =INDEX(Control!$D$15:$D$26,D81) -> 3250 | Y81: 27550 | Z81: =CHOOSE($A81+1,IF(ISBLANK(INDEX(CDEC!G:G,MATCH($H81,CDEC!J:J,0))),Z80,_xlfn.IFNA(INDEX(CDEC!G:G,MATCH($H81,CDEC!J:J,0)),Z80)),AVERAGEIF(CNRFC!BA:BA,$H81,CNRFC!AW:AW),AVERAGEIF(Ensemble!JT:JT,$H81,Ensemble!JW:JW),"-") -> 68721 | AA81: =INDEX(Control!$E$15:$E$26,D81) -> 4000 | AB81: 64721 | AC81: =CHOOSE($A81+1,_xlfn.IFNA(INDEX(USGS!AH:AH,MATCH($H81,USGS!AE:AE,0)),I80),AVERAGEIF(CNRFC!H:H,$H81,CNRFC!D:D),AVERAGEIF(Ensemble!HY:HY,$H81,Ensemble!IA:IA),"-") -> 26500 | AD81: =INDEX(Control!$F$15:$F$26,D81) -> 10700 | AE81: 15800 | AF81: 35000 | AG81: 15800 | AH81: 15800 | AI81: =MIN(INDEX(Control!$G$15:$G$26,D81),AG81) -> 2200 | AJ81: =MIN(MAX(AH81-AI81,0),INDEX(Control!$H$15:$H$26,D81)) -> 2000 | AK81: 4200 | AL81: 2023-01-10 | AP81: 15800 | AQ81: 0 | AS81: 111138 | AT81: 0.03779085461
A82: 0 | B82: 2023 | C82: 4 | D82: 1 | E82: 11 | F82: 1.11 | G82: 4.11 | H82: 2023-01-11 | I82: =CHOOSE($A82+1,_xlfn.IFNA(INDEX(USGS!Y:Y,MATCH($H82,USGS!X:X,0)),I81),AVERAGEIF(CNRFC!AR:AR,$H82,CNRFC!AN:AN),AVERAGEIF(Ensemble!GC:GC,$H82,Ensemble!GF:GF),"-") -> 28000 | J82: 33466.66667 | K82: 33166.66667 | L82: =CHOOSE($A82+1,_xlfn.IFNA(INDEX(USGS!D:D,MATCH($H82,USGS!C:C,0)),I81),AVERAGEIF(CNRFC!AI:AI,$H82,CNRFC!AE:AE),AVERAGEIF(Ensemble!AR:AR,$H82,Ensemble!AT:AT),"-") -> 4820 | M82: =CHOOSE($A82+1,_xlfn.IFNA(INDEX(USGS!K:K,MATCH($H82,USGS!J:J,0)),I81),AVERAGEIF(CNRFC!Q:Q,$H82,CNRFC!M:M),AVERAGEIF(Ensemble!CM:CM,$H82,Ensemble!CO:CO),"-") -> 9910 | N82: =CHOOSE($A82+1,_xlfn.IFNA(INDEX(USGS!R:R,MATCH($H82,USGS!Q:Q,0)),I81),AVERAGEIF(CNRFC!Z:Z,$H82,CNRFC!V:V),AVERAGEIF(Ensemble!EH:EH,$H82,Ensemble!EJ:EJ),"-") -> 1350 | O82: 16080 | P82: 19193.33333 | Q82: 19613.33333 | R82: =IF(AND(J82>Control!$F$6,P82>Control!$F$7,U81=1),1,0) -> 0 | S82: =IF(AND(T81>0,T81<Control!$F$8),0,IF(AND(K82<Control!$F$6-500,Q82<Control!$F$7),1,0))*(1-R82) -> 0 | T82: =IF(AND(T81<Control!$F$8,T81>0),T81+1,IF(AND(R82=1,U81=1),1,0)) -> 0 | U82: 0 | V82: =IF(A82<3,IF(AND(T82>0,OR(I82>Control!$F$9,SUM(V76:V81)>0)),MAX(I82-Control!$F$10,0),0),0) -> 0 | W82: =CHOOSE($W$1+1,99999,IF(AND(G82>=Control!$F$4,G82<=Control!$F$5),IF(T82<>0,V82,99999),0)) -> 99999 | X82: =INDEX(Control!$D$15:$D$26,D82) -> 3250 | Y82: 24750 | Z82: =CHOOSE($A82+1,IF(ISBLANK(INDEX(CDEC!G:G,MATCH($H82,CDEC!J:J,0))),Z81,_xlfn.IFNA(INDEX(CDEC!G:G,MATCH($H82,CDEC!J:J,0)),Z81)),AVERAGEIF(CNRFC!BA:BA,$H82,CNRFC!AW:AW),AVERAGEIF(Ensemble!JT:JT,$H82,Ensemble!JW:JW),"-") -> 48713 | AA82: =INDEX(Control!$E$15:$E$26,D82) -> 4000 | AB82: 44713 | AC82: =CHOOSE($A82+1,_xlfn.IFNA(INDEX(USGS!AH:AH,MATCH($H82,USGS!AE:AE,0)),I81),AVERAGEIF(CNRFC!H:H,$H82,CNRFC!D:D),AVERAGEIF(Ensemble!HY:HY,$H82,Ensemble!IA:IA),"-") -> 27000 | AD82: =INDEX(Control!$F$15:$F$26,D82) -> 10700 | AE82: 16300 | AF82: 35000 | AG82: 16300 | AH82: 16300 | AI82: =MIN(INDEX(Control!$G$15:$G$26,D82),AG82) -> 2200 | AJ82: =MIN(MAX(AH82-AI82,0),INDEX(Control!$H$15:$H$26,D82)) -> 2000 | AK82: 4200 | AL82: 2023-01-11 | AP82: 16300 | AQ82: 0 | AS82: 135184 | AT82: 0.03106876553
A83: 0 | B83: 2023 | C83: 4 | D83: 1 | E83: 12 | F83: 1.12 | G83: 4.12 | H83: 2023-01-12 | I83: =CHOOSE($A83+1,_xlfn.IFNA(INDEX(USGS!Y:Y,MATCH($H83,USGS!X:X,0)),I82),AVERAGEIF(CNRFC!AR:AR,$H83,CNRFC!AN:AN),AVERAGEIF(Ensemble!GC:GC,$H83,Ensemble!GF:GF),"-") -> 45600 | J83: 38300 | K83: 34800 | L83: =CHOOSE($A83+1,_xlfn.IFNA(INDEX(USGS!D:D,MATCH($H83,USGS!C:C,0)),I82),AVERAGEIF(CNRFC!AI:AI,$H83,CNRFC!AE:AE),AVERAGEIF(Ensemble!AR:AR,$H83,Ensemble!AT:AT),"-") -> 9180 | M83: =CHOOSE($A83+1,_xlfn.IFNA(INDEX(USGS!K:K,MATCH($H83,USGS!J:J,0)),I82),AVERAGEIF(CNRFC!Q:Q,$H83,CNRFC!M:M),AVERAGEIF(Ensemble!CM:CM,$H83,Ensemble!CO:CO),"-") -> 15100 | N83: =CHOOSE($A83+1,_xlfn.IFNA(INDEX(USGS!R:R,MATCH($H83,USGS!Q:Q,0)),I82),AVERAGEIF(CNRFC!Z:Z,$H83,CNRFC!V:V),AVERAGEIF(Ensemble!EH:EH,$H83,Ensemble!EJ:EJ),"-") -> 1810 | O83: 26090 | P83: =IF(A83>2,"-",AVERAGE(O83:O85)) -> 22640 | Q83: 19710 | R83: =IF(AND(J83>Control!$F$6,P83>Control!$F$7,U82=1),1,0) -> 0 | S83: =IF(AND(T82>0,T82<Control!$F$8),0,IF(AND(K83<Control!$F$6-500,Q83<Control!$F$7),1,0))*(1-R83) -> 0 | T83: =IF(AND(T82<Control!$F$8,T82>0),T82+1,IF(AND(R83=1,U82=1),1,0)) -> 0 | U83: 0 | V83: =IF(A83<3,IF(AND(T83>0,OR(I83>Control!$F$9,SUM(V77:V82)>0)),MAX(I83-Control!$F$10,0),0),0) -> 0 | W83: =CHOOSE($W$1+1,99999,IF(AND(G83>=Control!$F$4,G83<=Control!$F$5),IF(T83<>0,V83,99999),0)) -> 99999 | X83: =INDEX(Control!$D$15:$D$26,D83) -> 3250 | Y83: 42350 | Z83: =CHOOSE($A83+1,IF(ISBLANK(INDEX(CDEC!G:G,MATCH($H83,CDEC!J:J,0))),Z82,_xlfn.IFNA(INDEX(CDEC!G:G,MATCH($H83,CDEC!J:J,0)),Z82)),AVERAGEIF(CNRFC!BA:BA,$H83,CNRFC!AW:AW),AVERAGEIF(Ensemble!JT:JT,$H83,Ensemble!JW:JW),"-") -> 62621 | AA83: =INDEX(Control!$E$15:$E$26,D83) -> 4000 | AB83: 58621 | AC83: =CHOOSE($A83+1,_xlfn.IFNA(INDEX(USGS!AH:AH,MATCH($H83,USGS!AE:AE,0)),I82),AVERAGEIF(CNRFC!H:H,$H83,CNRFC!D:D),AVERAGEIF(Ensemble!HY:HY,$H83,Ensemble!IA:IA),"-") -> 27000 | AD83: =INDEX(Control!$F$15:$F$26,D83) -> 10700 | AE83: 16300 | AF83: 35000 | AG83: 16300 | AH83: 16300 | AI83: =MIN(INDEX(Control!$G$15:$G$26,D83),AG83) -> 2200 | AJ83: =MIN(MAX(AH83-AI83,0),INDEX(Control!$H$15:$H$26,D83)) -> 2000 | AK83: 4200 | AL83: 2023-01-12 | AP83: 16300 | AQ83: 0 | AS83: 149106 | AT83: 0.02816788057
A84: 0 | B84: 2023 | C84: 4 | D84: 1 | E84: 13 | F84: 1.13 | G84: 4.13 | H84: 2023-01-13 | I84: =CHOOSE($A84+1,_xlfn.IFNA(INDEX(USGS!Y:Y,MATCH($H84,USGS!X:X,0)),I83),AVERAGEIF(CNRFC!AR:AR,$H84,CNRFC!AN:AN),AVERAGEIF(Ensemble!GC:GC,$H84,Ensemble!GF:GF),"-") -> 26800 | J84: 35066.66667 | K84: 33466.66667 | L84: =CHOOSE($A84+1,_xlfn.IFNA(INDEX(USGS!D:D,MATCH($H84,USGS!C:C,0)),I83),AVERAGEIF(CNRFC!AI:AI,$H84,CNRFC!AE:AE),AVERAGEIF(Ensemble!AR:AR,$H84,Ensemble!AT:AT),"-") -> 4790 | M84: =CHOOSE($A84+1,_xlfn.IFNA(INDEX(USGS!K:K,MATCH($H84,USGS!J:J,0)),I83),AVERAGEIF(CNRFC!Q:Q,$H84,CNRFC!M:M),AVERAGEIF(Ensemble!CM:CM,$H84,Ensemble!CO:CO),"-") -> 8890 | N84: =CHOOSE($A84+1,_xlfn.IFNA(INDEX(USGS!R:R,MATCH($H84,USGS!Q:Q,0)),I83),AVERAGEIF(CNRFC!Z:Z,$H84,CNRFC!V:V),AVERAGEIF(Ensemble!EH:EH,$H84,Ensemble!EJ:EJ),"-") -> 1730 | O84: 15410 | P84: 19516.66667 | Q84: 19193.33333 | R84: =IF(AND(J84>Control!$F$6,P84>Control!$F$7,U83=1),1,0) -> 0 | S84: =IF(AND(T83>0,T83<Control!$F$8),0,IF(AND(K84<Control!$F$6-500,Q84<Control!$F$7),1,0))*(1-R84) -> 0 | T84: =IF(AND(T83<Control!$F$8,T83>0),T83+1,IF(AND(R84=1,U83=1),1,0)) -> 0 | U84: 0 | V84: =IF(A84<3,IF(AND(T84>0,OR(I84>Control!$F$9,SUM(V78:V83)>0)),MAX(I84-Control!$F$10,0),0),0) -> 0 | W84: =CHOOSE($W$1+1,99999,IF(AND(G84>=Control!$F$4,G84<=Control!$F$5),IF(T84<>0,V84,99999),0)) -> 99999 | X84: =INDEX(Control!$D$15:$D$26,D84) -> 3250 | Y84: 23550 | Z84: =CHOOSE($A84+1,IF(ISBLANK(INDEX(CDEC!G:G,MATCH($H84,CDEC!J:J,0))),Z83,_xlfn.IFNA(INDEX(CDEC!G:G,MATCH($H84,CDEC!J:J,0)),Z83)),AVERAGEIF(CNRFC!BA:BA,$H84,CNRFC!AW:AW),AVERAGEIF(Ensemble!JT:JT,$H84,Ensemble!JW:JW),"-") -> 52071 | AA84: =INDEX(Control!$E$15:$E$26,D84) -> 4000 | AB84: 48071 | AC84: =CHOOSE($A84+1,_xlfn.IFNA(INDEX(USGS!AH:AH,MATCH($H84,USGS!AE:AE,0)),I83),AVERAGEIF(CNRFC!H:H,$H84,CNRFC!D:D),AVERAGEIF(Ensemble!HY:HY,$H84,Ensemble!IA:IA),"-") -> 27100 | AD84: =INDEX(Control!$F$15:$F$26,D84) -> 10700 | AE84: 16400 | AF84: 35000 | AG84: 16400 | AH84: 16400 | AI84: =MIN(INDEX(Control!$G$15:$G$26,D84),AG84) -> 2200 | AJ84: =MIN(MAX(AH84-AI84,0),INDEX(Control!$H$15:$H$26,D84)) -> 2000 | AK84: 4200 | AL84: 2023-01-13 | AP84: 16400 | AQ84: 0 | AS84: 150780 | AT84: 0.0278551532
A85: 0 | B85: 2023 | C85: 4 | D85: 1 | E85: 14 | F85: 1.14 | G85: 4.14 | H85: 2023-01-14 | I85: =CHOOSE($A85+1,_xlfn.IFNA(INDEX(USGS!Y:Y,MATCH($H85,USGS!X:X,0)),I84),AVERAGEIF(CNRFC!AR:AR,$H85,CNRFC!AN:AN),AVERAGEIF(Ensemble!GC:GC,$H85,Ensemble!GF:GF),"-") -> 42500 | J85: 33766.66667 | K85: 38300 | L85: =CHOOSE($A85+1,_xlfn.IFNA(INDEX(USGS!D:D,MATCH($H85,USGS!C:C,0)),I84),AVERAGEIF(CNRFC!AI:AI,$H85,CNRFC!AE:AE),AVERAGEIF(Ensemble!AR:AR,$H85,Ensemble!AT:AT),"-") -> 6690 | M85: =CHOOSE($A85+1,_xlfn.IFNA(INDEX(USGS!K:K,MATCH($H85,USGS!J:J,0)),I84),AVERAGEIF(CNRFC!Q:Q,$H85,CNRFC!M:M),AVERAGEIF(Ensemble!CM:CM,$H85,Ensemble!CO:CO),"-") -> 17000 | N85: =CHOOSE($A85+1,_xlfn.IFNA(INDEX(USGS!R:R,MATCH($H85,USGS!Q:Q,0)),I84),AVERAGEIF(CNRFC!Z:Z,$H85,CNRFC!V:V),AVERAGEIF(Ensemble!EH:EH,$H85,Ensemble!EJ:EJ),"-") -> 2730 | O85: 26420 | P85: 17996.66667 | Q85: 22640 | R85: =IF(AND(J85>Control!$F$6,P85>Control!$F$7,U84=1),1,0) -> 0 | S85: =IF(AND(T84>0,T84<Control!$F$8),0,IF(AND(K85<Control!$F$6-500,Q85<Control!$F$7),1,0))*(1-R85) -> 0 | T85: =IF(AND(T84<Control!$F$8,T84>0),T84+1,IF(AND(R85=1,U84=1),1,0)) -> 0 | U85: 0 | V85: =IF(A85<3,IF(AND(T85>0,OR(I85>Control!$F$9,SUM(V79:V84)>0)),MAX(I85-Control!$F$10,0),0),0) -> 0 | W85: =CHOOSE($W$1+1,99999,IF(AND(G85>=Control!$F$4,G85<=Control!$F$5),IF(T85<>0,V85,99999),0)) -> 99999 | X85: =INDEX(Control!$D$15:$D$26,D85) -> 3250 | Y85: 39250 | Z85: =CHOOSE($A85+1,IF(ISBLANK(INDEX(CDEC!G:G,MATCH($H85,CDEC!J:J,0))),Z84,_xlfn.IFNA(INDEX(CDEC!G:G,MATCH($H85,CDEC!J:J,0)),Z84)),AVERAGEIF(CNRFC!BA:BA,$H85,CNRFC!AW:AW),AVERAGEIF(Ensemble!JT:JT,$H85,Ensemble!JW:JW),"-") -> 71866 | AA85: =INDEX(Control!$E$15:$E$26,D85) -> 4000 | AB85: 67866 | AC85: =CHOOSE($A85+1,_xlfn.IFNA(INDEX(USGS!AH:AH,MATCH($H85,USGS!AE:AE,0)),I84),AVERAGEIF(CNRFC!H:H,$H85,CNRFC!D:D),AVERAGEIF(Ensemble!HY:HY,$H85,Ensemble!IA:IA),"-") -> 27200 | AD85: =INDEX(Control!$F$15:$F$26,D85) -> 10700 | AE85: 16500 | AF85: 35000 | AG85: 16500 | AH85: 16500 | AI85: =MIN(INDEX(Control!$G$15:$G$26,D85),AG85) -> 2200 | AJ85: =MIN(MAX(AH85-AI85,0),INDEX(Control!$H$15:$H$26,D85)) -> 2000 | AK85: 4200 | AL85: 2023-01-14 | AP85: 16500 | AQ85: 0 | AS85: 144535 | AT85: 0.0290587055
A86: 0 | B86: 2023 | C86: 4 | D86: 1 | E86: 15 | F86: 1.15 | G86: 4.15 | H86: 2023-01-15 | I86: =CHOOSE($A86+1,_xlfn.IFNA(INDEX(USGS!Y:Y,MATCH($H86,USGS!X:X,0)),I85),AVERAGEIF(CNRFC!AR:AR,$H86,CNRFC!AN:AN),AVERAGEIF(Ensemble!GC:GC,$H86,Ensemble!GF:GF),"-") -> 35900 | J86: 24700 | K86: 35066.66667 | L86: =CHOOSE($A86+1,_xlfn.IFNA(INDEX(USGS!D:D,MATCH($H86,USGS!C:C,0)),I85),AVERAGEIF(CNRFC!AI:AI,$H86,CNRFC!AE:AE),AVERAGEIF(Ensemble!AR:AR,$H86,Ensemble!AT:AT),"-") -> 4220 | M86: =CHOOSE($A86+1,_xlfn.IFNA(INDEX(USGS!K:K,MATCH($H86,USGS!J:J,0)),I85),AVERAGEIF(CNRFC!Q:Q,$H86,CNRFC!M:M),AVERAGEIF(Ensemble!CM:CM,$H86,Ensemble!CO:CO),"-") -> 11000 | N86: =CHOOSE($A86+1,_xlfn.IFNA(INDEX(USGS!R:R,MATCH($H86,USGS!Q:Q,0)),I85),AVERAGEIF(CNRFC!Z:Z,$H86,CNRFC!V:V),AVERAGEIF(Ensemble!EH:EH,$H86,Ensemble!EJ:EJ),"-") -> 1500 | O86: 16720 | P86: 11371.33333 | Q86: 19516.66667 | R86: =IF(AND(J86>Control!$F$6,P86>Control!$F$7,U85=1),1,0) -> 0 | S86: =IF(AND(T85>0,T85<Control!$F$8),0,IF(AND(K86<Control!$F$6-500,Q86<Control!$F$7),1,0))*(1-R86) -> 0 | T86: =IF(AND(T85<Control!$F$8,T85>0),T85+1,IF(AND(R86=1,U85=1),1,0)) -> 0 | U86: 0 | V86: =IF(A86<3,IF(AND(T86>0,OR(I86>Control!$F$9,SUM(V80:V85)>0)),MAX(I86-Control!$F$10,0),0),0) -> 0 | W86: =CHOOSE($W$1+1,99999,IF(AND(G86>=Control!$F$4,G86<=Control!$F$5),IF(T86<>0,V86,99999),0)) -> 99999 | X86: =INDEX(Control!$D$15:$D$26,D86) -> 3250 | Y86: 32650 | Z86: =CHOOSE($A86+1,IF(ISBLANK(INDEX(CDEC!G:G,MATCH($H86,CDEC!J:J,0))),Z85,_xlfn.IFNA(INDEX(CDEC!G:G,MATCH($H86,CDEC!J:J,0)),Z85)),AVERAGEIF(CNRFC!BA:BA,$H86,CNRFC!AW:AW),AVERAGEIF(Ensemble!JT:JT,$H86,Ensemble!JW:JW),"-") -> 78180 | AA86: =INDEX(Control!$E$15:$E$26,D86) -> 4000 | AB86: 74180 | AC86: =CHOOSE($A86+1,_xlfn.IFNA(INDEX(USGS!AH:AH,MATCH($H86,USGS!AE:AE,0)),I85),AVERAGEIF(CNRFC!H:H,$H86,CNRFC!D:D),AVERAGEIF(Ensemble!HY:HY,$H86,Ensemble!IA:IA),"-") -> 27300 | AD86: =INDEX(Control!$F$15:$F$26,D86) -> 10700 | AE86: 16600 | AF86: 35000 | AG86: 16600 | AH86: 16600 | AI86: =MIN(INDEX(Control!$G$15:$G$26,D86),AG86) -> 2200 | AJ86: =MIN(MAX(AH86-AI86,0),INDEX(Control!$H$15:$H$26,D86)) -> 2000 | AK86: 4200 | AL86: 2023-01-15 | AP86: 16600 | AQ86: 0 | AS86: 158679 | AT86: 0.02646853081
A87: 0 | B87: 2023 | C87: 4 | D87: 1 | E87: 16 | F87: 1.16 | G87: 4.16 | H87: 2023-01-16 | I87: =CHOOSE($A87+1,_xlfn.IFNA(INDEX(USGS!Y:Y,MATCH($H87,USGS!X:X,0)),I86),AVERAGEIF(CNRFC!AR:AR,$H87,CNRFC!AN:AN),AVERAGEIF(Ensemble!GC:GC,$H87,Ensemble!GF:GF),"-") -> 22900 | J87: 16900 | K87: 33766.66667 | L87: =CHOOSE($A87+1,_xlfn.IFNA(INDEX(USGS!D:D,MATCH($H87,USGS!C:C,0)),I86),AVERAGEIF(CNRFC!AI:AI,$H87,CNRFC!AE:AE),AVERAGEIF(Ensemble!AR:AR,$H87,Ensemble!AT:AT),"-") -> 3320 | M87: =CHOOSE($A87+1,_xlfn.IFNA(INDEX(USGS!K:K,MATCH($H87,USGS!J:J,0)),I86),AVERAGEIF(CNRFC!Q:Q,$H87,CNRFC!M:M),AVERAGEIF(Ensemble!CM:CM,$H87,Ensemble!CO:CO),"-") -> 6290 | N87: =CHOOSE($A87+1,_xlfn.IFNA(INDEX(USGS!R:R,MATCH($H87,USGS!Q:Q,0)),I86),AVERAGEIF(CNRFC!Z:Z,$H87,CNRFC!V:V),AVERAGEIF(Ensemble!EH:EH,$H87,Ensemble!EJ:EJ),"-") -> 1240 | O87: 10850 | P87: 7488.666667 | Q87: 17996.66667 | R87: =IF(AND(J87>Control!$F$6,P87>Control!$F$7,U86=1),1,0) -> 0 | S87: =IF(AND(T86>0,T86<Control!$F$8),0,IF(AND(K87<Control!$F$6-500,Q87<Control!$F$7),1,0))*(1-R87) -> 0 | T87: =IF(AND(T86<Control!$F$8,T86>0),T86+1,IF(AND(R87=1,U86=1),1,0)) -> 0 | U87: 0 | V87: =IF(A87<3,IF(AND(T87>0,OR(I87>Control!$F$9,SUM(V81:V86)>0)),MAX(I87-Control!$F$10,0),0),0) -> 0 | W87: =CHOOSE($W$1+1,99999,IF(AND(G87>=Control!$F$4,G87<=Control!$F$5),IF(T87<>0,V87,99999),0)) -> 99999 | X87: =INDEX(Control!$D$15:$D$26,D87) -> 3250 | Y87: 19650 | Z87: =CHOOSE($A87+1,IF(ISBLANK(INDEX(CDEC!G:G,MATCH($H87,CDEC!J:J,0))),Z86,_xlfn.IFNA(INDEX(CDEC!G:G,MATCH($H87,CDEC!J:J,0)),Z86)),AVERAGEIF(CNRFC!BA:BA,$H87,CNRFC!AW:AW),AVERAGEIF(Ensemble!JT:JT,$H87,Ensemble!JW:JW),"-") -> 45078 | AA87: =INDEX(Control!$E$15:$E$26,D87) -> 4000 | AB87: 41078 | AC87: =CHOOSE($A87+1,_xlfn.IFNA(INDEX(USGS!AH:AH,MATCH($H87,USGS!AE:AE,0)),I86),AVERAGEIF(CNRFC!H:H,$H87,CNRFC!D:D),AVERAGEIF(Ensemble!HY:HY,$H87,Ensemble!IA:IA),"-") -> 27400 | AD87: =INDEX(Control!$F$15:$F$26,D87) -> 10700 | AE87: 16700 | AF87: 35000 | AG87: 16700 | AH87: 16700 | AI87: =MIN(INDEX(Control!$G$15:$G$26,D87),AG87) -> 2200 | AJ87: =MIN(MAX(AH87-AI87,0),INDEX(Control!$H$15:$H$26,D87)) -> 2000 | AK87: 4200 | AL87: 2023-01-16 | AP87: 16700 | AQ87: 0 | AS87: 172523 | AT87: 0.02434458014
A88: 0 | B88: 2023 | C88: 4 | D88: 1 | E88: 17 | F88: 1.17 | G88: 4.17 | H88: 2023-01-17 | I88: =CHOOSE($A88+1,_xlfn.IFNA(INDEX(USGS!Y:Y,MATCH($H88,USGS!X:X,0)),I87),AVERAGEIF(CNRFC!AR:AR,$H88,CNRFC!AN:AN),AVERAGEIF(Ensemble!GC:GC,$H88,Ensemble!GF:GF),"-") -> 15300 | J88: 13733.33333 | K88: 24700 | L88: =CHOOSE($A88+1,_xlfn.IFNA(INDEX(USGS!D:D,MATCH($H88,USGS!C:C,0)),I87),AVERAGEIF(CNRFC!AI:AI,$H88,CNRFC!AE:AE),AVERAGEIF(Ensemble!AR:AR,$H88,Ensemble!AT:AT),"-") -> 1740 | M88: =CHOOSE($A88+1,_xlfn.IFNA(INDEX(USGS!K:K,MATCH($H88,USGS!J:J,0)),I87),AVERAGEIF(CNRFC!Q:Q,$H88,CNRFC!M:M),AVERAGEIF(Ensemble!CM:CM,$H88,Ensemble!CO:CO),"-") -> 3960 | N88: =CHOOSE($A88+1,_xlfn.IFNA(INDEX(USGS!R:R,MATCH($H88,USGS!Q:Q,0)),I87),AVERAGEIF(CNRFC!Z:Z,$H88,CNRFC!V:V),AVERAGEIF(Ensemble!EH:EH,$H88,Ensemble!EJ:EJ),"-") -> 844 | O88: 6544 | P88: 5780 | Q88: 11371.33333 | R88: =IF(AND(J88>Control!$F$6,P88>Control!$F$7,U87=1),1,0) -> 0 | S88: =IF(AND(T87>0,T87<Control!$F$8),0,IF(AND(K88<Control!$F$6-500,Q88<Control!$F$7),1,0))*(1-R88) -> 0 | T88: =IF(AND(T87<Control!$F$8,T87>0),T87+1,IF(AND(R88=1,U87=1),1,0)) -> 0 | U88: 0 | V88: =IF(A88<3,IF(AND(T88>0,OR(I88>Control!$F$9,SUM(V82:V87)>0)),MAX(I88-Control!$F$10,0),0),0) -> 0 | W88: =CHOOSE($W$1+1,99999,IF(AND(G88>=Control!$F$4,G88<=Control!$F$5),IF(T88<>0,V88,99999),0)) -> 99999 | X88: =INDEX(Control!$D$15:$D$26,D88) -> 3250 | Y88: 12050 | Z88: =CHOOSE($A88+1,IF(ISBLANK(INDEX(CDEC!G:G,MATCH($H88,CDEC!J:J,0))),Z87,_xlfn.IFNA(INDEX(CDEC!G:G,MATCH($H88,CDEC!J:J,0)),Z87)),AVERAGEIF(CNRFC!BA:BA,$H88,CNRFC!AW:AW),AVERAGEIF(Ensemble!JT:JT,$H88,Ensemble!JW:JW),"-") -> 27417 | AA88: =INDEX(Control!$E$15:$E$26,D88) -> 4000 | AB88: 23417 | AC88: =CHOOSE($A88+1,_xlfn.IFNA(INDEX(USGS!AH:AH,MATCH($H88,USGS!AE:AE,0)),I87),AVERAGEIF(CNRFC!H:H,$H88,CNRFC!D:D),AVERAGEIF(Ensemble!HY:HY,$H88,Ensemble!IA:IA),"-") -> 27100 | AD88: =INDEX(Control!$F$15:$F$26,D88) -> 10700 | AE88: =IF(A88>2,"-",MAX(AC88-AD88,0)) -> 16400 | AF88: 35000 | AG88: 12050 | AH88: 16400 | AI88: =MIN(INDEX(Control!$G$15:$G$26,D88),AG88) -> 2200 | AJ88: =MIN(MAX(AH88-AI88,0),INDEX(Control!$H$15:$H$26,D88)) -> 2000 | AK88: 4200 | AL88: 2023-01-17 | AP88: 16400 | AQ88: 0
A89: 0 | B89: 2023 | C89: 4 | D89: 1 | E89: 18 | F89: 1.18 | G89: 4.18 | H89: 2023-01-18 | I89: =CHOOSE($A89+1,_xlfn.IFNA(INDEX(USGS!Y:Y,MATCH($H89,USGS!X:X,0)),I88),AVERAGEIF(CNRFC!AR:AR,$H89,CNRFC!AN:AN),AVERAGEIF(Ensemble!GC:GC,$H89,Ensemble!GF:GF),"-") -> 12500 | J89: 12133.33333 | K89: 16900 | L89: =CHOOSE($A89+1,_xlfn.IFNA(INDEX(USGS!D:D,MATCH($H89,USGS!C:C,0)),I88),AVERAGEIF(CNRFC!AI:AI,$H89,CNRFC!AE:AE),AVERAGEIF(Ensemble!AR:AR,$H89,Ensemble!AT:AT),"-") -> 1340 | M89: =CHOOSE($A89+1,_xlfn.IFNA(INDEX(USGS!K:K,MATCH($H89,USGS!J:J,0)),I88),AVERAGEIF(CNRFC!Q:Q,$H89,CNRFC!M:M),AVERAGEIF(Ensemble!CM:CM,$H89,Ensemble!CO:CO),"-") -> 2970 | N89: =CHOOSE($A89+1,_xlfn.IFNA(INDEX(USGS!R:R,MATCH($H89,USGS!Q:Q,0)),I88),AVERAGEIF(CNRFC!Z:Z,$H89,CNRFC!V:V),AVERAGEIF(Ensemble!EH:EH,$H89,Ensemble!EJ:EJ),"-") -> 762 | O89: 5072 | P89: 4908 | Q89: 7488.666667 | R89: =IF(AND(J89>Control!$F$6,P89>Control!$F$7,U88=1),1,0) -> 0 | S89: =IF(AND(T88>0,T88<Control!$F$8),0,IF(AND(K89<Control!$F$6-500,Q89<Control!$F$7),1,0))*(1-R89) -> 0 | T89: =IF(AND(T88<Control!$F$8,T88>0),T88+1,IF(AND(R89=1,U88=1),1,0)) -> 0 | U89: 0 | V89: =IF(A89<3,IF(AND(T89>0,OR(I89>Control!$F$9,SUM(V83:V88)>0)),MAX(I89-Control!$F$10,0),0),0) -> 0 | W89: =CHOOSE($W$1+1,99999,IF(AND(G89>=Control!$F$4,G89<=Control!$F$5),IF(T89<>0,V89,99999),0)) -> 99999 | X89: =INDEX(Control!$D$15:$D$26,D89) -> 3250 | Y89: 9250 | Z89: =CHOOSE($A89+1,IF(ISBLANK(INDEX(CDEC!G:G,MATCH($H89,CDEC!J:J,0))),Z88,_xlfn.IFNA(INDEX(CDEC!G:G,MATCH($H89,CDEC!J:J,0)),Z88)),AVERAGEIF(CNRFC!BA:BA,$H89,CNRFC!AW:AW),AVERAGEIF(Ensemble!JT:JT,$H89,Ensemble!JW:JW),"-") -> 19622 | AA89: =INDEX(Control!$E$15:$E$26,D89) -> 4000 | AB89: 15622 | AC89: =CHOOSE($A89+1,_xlfn.IFNA(INDEX(USGS!AH:AH,MATCH($H89,USGS!AE:AE,0)),I88),AVERAGEIF(CNRFC!H:H,$H89,CNRFC!D:D),AVERAGEIF(Ensemble!HY:HY,$H89,Ensemble!IA:IA),"-") -> 26100 | AD89: =INDEX(Control!$F$15:$F$26,D89) -> 10700 | AE89: =IF(A89>2,"-",MAX(AC89-AD89,0)) -> 15400 | AF89: 35000 | AG89: 9250 | AH89: 15400 | AI89: =MIN(INDEX(Control!$G$15:$G$26,D89),AG89) -> 2200 | AJ89: =MIN(MAX(AH89-AI89,0),INDEX(Control!$H$15:$H$26,D89)) -> 2000 | AK89: 4200 | AL89: 2023-01-18 | AP89: 15400 | AQ89: 0
A90: 0 | B90: 2023 | C90: 4 | D90: 1 | E90: 19 | F90: 1.19 | G90: 4.19 | H90: 2023-01-19 | I90: =CHOOSE($A90+1,_xlfn.IFNA(INDEX(USGS!Y:Y,MATCH($H90,USGS!X:X,0)),I89),AVERAGEIF(CNRFC!AR:AR,$H90,CNRFC!AN:AN),AVERAGEIF(Ensemble!GC:GC,$H90,Ensemble!GF:GF),"-") -> 13400 | J90: 11060 | K90: 13733.33333 | L90: =CHOOSE($A90+1,_xlfn.IFNA(INDEX(USGS!D:D,MATCH($H90,USGS!C:C,0)),I89),AVERAGEIF(CNRFC!AI:AI,$H90,CNRFC!AE:AE),AVERAGEIF(Ensemble!AR:AR,$H90,Ensemble!AT:AT),"-") -> 1850 | M90: =CHOOSE($A90+1,_xlfn.IFNA(INDEX(USGS!K:K,MATCH($H90,USGS!J:J,0)),I89),AVERAGEIF(CNRFC!Q:Q,$H90,CNRFC!M:M),AVERAGEIF(Ensemble!CM:CM,$H90,Ensemble!CO:CO),"-") -> 3020 | N90: =CHOOSE($A90+1,_xlfn.IFNA(INDEX(USGS!R:R,MATCH($H90,USGS!Q:Q,0)),I89),AVERAGEIF(CNRFC!Z:Z,$H90,CNRFC!V:V),AVERAGEIF(Ensemble!EH:EH,$H90,Ensemble!EJ:EJ),"-") -> 854 | O90: 5724 | P90: 4324.333333 | Q90: 5780 | R90: =IF(AND(J90>Control!$F$6,P90>Control!$F$7,U89=1),1,0) -> 0 | S90: =IF(AND(T89>0,T89<Control!$F$8),0,IF(AND(K90<Control!$F$6-500,Q90<Control!$F$7),1,0))*(1-R90) -> 0 | T90: =IF(AND(T89<Control!$F$8,T89>0),T89+1,IF(AND(R90=1,U89=1),1,0)) -> 0 | U90: 0 | V90: =IF(A90<3,IF(AND(T90>0,OR(I90>Control!$F$9,SUM(V84:V89)>0)),MAX(I90-Control!$F$10,0),0),0) -> 0 | W90: =CHOOSE($W$1+1,99999,IF(AND(G90>=Control!$F$4,G90<=Control!$F$5),IF(T90<>0,V90,99999),0)) -> 99999 | X90: =INDEX(Control!$D$15:$D$26,D90) -> 3250 | Y90: 10150 | Z90: =CHOOSE($A90+1,IF(ISBLANK(INDEX(CDEC!G:G,MATCH($H90,CDEC!J:J,0))),Z89,_xlfn.IFNA(INDEX(CDEC!G:G,MATCH($H90,CDEC!J:J,0)),Z89)),AVERAGEIF(CNRFC!BA:BA,$H90,CNRFC!AW:AW),AVERAGEIF(Ensemble!JT:JT,$H90,Ensemble!JW:JW),"-") -> 19829 | AA90: =INDEX(Control!$E$15:$E$26,D90) -> 4000 | AB90: 15829 | AC90: =CHOOSE($A90+1,_xlfn.IFNA(INDEX(USGS!AH:AH,MATCH($H90,USGS!AE:AE,0)),I89),AVERAGEIF(CNRFC!H:H,$H90,CNRFC!D:D),AVERAGEIF(Ensemble!HY:HY,$H90,Ensemble!IA:IA),"-") -> 25000 | AD90: =INDEX(Control!$F$15:$F$26,D90) -> 10700 | AE90: 14300 | AF90: 35000 | AG90: 10150 | AH90: 14300 | AI90: =MIN(INDEX(Control!$G$15:$G$26,D90),AG90) -> 2200 | AJ90: =MIN(MAX(AH90-AI90,0),INDEX(Control!$H$15:$H$26,D90)) -> 2000 | AK90: 4200 | AL90: 2023-01-19 | AP90: 14300 | AQ90: 0
A91: 0 | B91: 2023 | C91: 4 | D91: 1 | E91: 20 | F91: 1.2 | G91: 4.2 | H91: 2023-01-20 | I91: =CHOOSE($A91+1,_xlfn.IFNA(INDEX(USGS!Y:Y,MATCH($H91,USGS!X:X,0)),I90),AVERAGEIF(CNRFC!AR:AR,$H91,CNRFC!AN:AN),AVERAGEIF(Ensemble!GC:GC,$H91,Ensemble!GF:GF),"-") -> 10500 | J91: 9410 | K91: 12133.33333 | L91: =CHOOSE($A91+1,_xlfn.IFNA(INDEX(USGS!D:D,MATCH($H91,USGS!C:C,0)),I90),AVERAGEIF(CNRFC!AI:AI,$H91,CNRFC!AE:AE),AVERAGEIF(Ensemble!AR:AR,$H91,Ensemble!AT:AT),"-") -> 1080 | M91: =CHOOSE($A91+1,_xlfn.IFNA(INDEX(USGS!K:K,MATCH($H91,USGS!J:J,0)),I90),AVERAGEIF(CNRFC!Q:Q,$H91,CNRFC!M:M),AVERAGEIF(Ensemble!CM:CM,$H91,Ensemble!CO:CO),"-") -> 2210 | N91: =CHOOSE($A91+1,_xlfn.IFNA(INDEX(USGS!R:R,MATCH($H91,USGS!Q:Q,0)),I90),AVERAGEIF(CNRFC!Z:Z,$H91,CNRFC!V:V),AVERAGEIF(Ensemble!EH:EH,$H91,Ensemble!EJ:EJ),"-") -> 638 | O91: 3928 | P91: 3407.333333 | Q91: 4908 | R91: =IF(AND(J91>Control!$F$6,P91>Control!$F$7,U90=1),1,0) -> 0 | S91: =IF(AND(T90>0,T90<Control!$F$8),0,IF(AND(K91<Control!$F$6-500,Q91<Control!$F$7),1,0))*(1-R91) -> 0 | T91: =IF(AND(T90<Control!$F$8,T90>0),T90+1,IF(AND(R91=1,U90=1),1,0)) -> 0 | U91: 0 | V91: =IF(A91<3,IF(AND(T91>0,OR(I91>Control!$F$9,SUM(V85:V90)>0)),MAX(I91-Control!$F$10,0),0),0) -> 0 | W91: =CHOOSE($W$1+1,99999,IF(AND(G91>=Control!$F$4,G91<=Control!$F$5),IF(T91<>0,V91,99999),0)) -> 99999 | X91: =INDEX(Control!$D$15:$D$26,D91) -> 3250 | Y91: 7250 | Z91: =CHOOSE($A91+1,IF(ISBLANK(INDEX(CDEC!G:G,MATCH($H91,CDEC!J:J,0))),Z90,_xlfn.IFNA(INDEX(CDEC!G:G,MATCH($H91,CDEC!J:J,0)),Z90)),AVERAGEIF(CNRFC!BA:BA,$H91,CNRFC!AW:AW),AVERAGEIF(Ensemble!JT:JT,$H91,Ensemble!JW:JW),"-") -> 16018 | AA91: =INDEX(Control!$E$15:$E$26,D91) -> 4000 | AB91: 12018 | AC91: =CHOOSE($A91+1,_xlfn.IFNA(INDEX(USGS!AH:AH,MATCH($H91,USGS!AE:AE,0)),I90),AVERAGEIF(CNRFC!H:H,$H91,CNRFC!D:D),AVERAGEIF(Ensemble!HY:HY,$H91,Ensemble!IA:IA),"-") -> 24200 | AD91: =INDEX(Control!$F$15:$F$26,D91) -> 10700 | AE91: 13500 | AF91: 35000 | AG91: 7250 | AH91: 12018 | AI91: =MIN(INDEX(Control!$G$15:$G$26,D91),AG91) -> 2200 | AJ91: =MIN(MAX(AH91-AI91,0),INDEX(Control!$H$15:$H$26,D91)) -> 2000 | AK91: 4200 | AL91: 2023-01-20 | AP91: 12018 | AQ91: 0
A92: 0 | B92: 2023 | C92: 4 | D92: 1 | E92: 21 | F92: 1.21 | G92: 4.21 | H92: 2023-01-21 | I92: =CHOOSE($A92+1,_xlfn.IFNA(INDEX(USGS!Y:Y,MATCH($H92,USGS!X:X,0)),I91),AVERAGEIF(CNRFC!AR:AR,$H92,CNRFC!AN:AN),AVERAGEIF(Ensemble!GC:GC,$H92,Ensemble!GF:GF),"-") -> 9280 | J92: 8493.333333 | K92: 11060 | L92: =CHOOSE($A92+1,_xlfn.IFNA(INDEX(USGS!D:D,MATCH($H92,USGS!C:C,0)),I91),AVERAGEIF(CNRFC!AI:AI,$H92,CNRFC!AE:AE),AVERAGEIF(Ensemble!AR:AR,$H92,Ensemble!AT:AT),"-") -> 850 | M92: =CHOOSE($A92+1,_xlfn.IFNA(INDEX(USGS!K:K,MATCH($H92,USGS!J:J,0)),I91),AVERAGEIF(CNRFC!Q:Q,$H92,CNRFC!M:M),AVERAGEIF(Ensemble!CM:CM,$H92,Ensemble!CO:CO),"-") -> 1890 | N92: =CHOOSE($A92+1,_xlfn.IFNA(INDEX(USGS!R:R,MATCH($H92,USGS!Q:Q,0)),I91),AVERAGEIF(CNRFC!Z:Z,$H92,CNRFC!V:V),AVERAGEIF(Ensemble!EH:EH,$H92,Ensemble!EJ:EJ),"-") -> 581 | O92: 3321 | P92: 2992.333333 | Q92: 4324.333333 | R92: =IF(AND(J92>Control!$F$6,P92>Control!$F$7,U91=1),1,0) -> 0 | S92: =IF(AND(T91>0,T91<Control!$F$8),0,IF(AND(K92<Control!$F$6-500,Q92<Control!$F$7),1,0))*(1-R92) -> 0 | T92: =IF(AND(T91<Control!$F$8,T91>0),T91+1,IF(AND(R92=1,U91=1),1,0)) -> 0 | U92: 0 | V92: =IF(A92<3,IF(AND(T92>0,OR(I92>Control!$F$9,SUM(V86:V91)>0)),MAX(I92-Control!$F$10,0),0),0) -> 0 | W92: =CHOOSE($W$1+1,99999,IF(AND(G92>=Control!$F$4,G92<=Control!$F$5),IF(T92<>0,V92,99999),0)) -> 99999 | X92: =INDEX(Control!$D$15:$D$26,D92) -> 3250 | Y92: 6030 | Z92: =CHOOSE($A92+1,IF(ISBLANK(INDEX(CDEC!G:G,MATCH($H92,CDEC!J:J,0))),Z91,_xlfn.IFNA(INDEX(CDEC!G:G,MATCH($H92,CDEC!J:J,0)),Z91)),AVERAGEIF(CNRFC!BA:BA,$H92,CNRFC!AW:AW),AVERAGEIF(Ensemble!JT:JT,$H92,Ensemble!JW:JW),"-") -> 13262 | AA92: =INDEX(Control!$E$15:$E$26,D92) -> 4000 | AB92: 9262 | AC92: =CHOOSE($A92+1,_xlfn.IFNA(INDEX(USGS!AH:AH,MATCH($H92,USGS!AE:AE,0)),I91),AVERAGEIF(CNRFC!H:H,$H92,CNRFC!D:D),AVERAGEIF(Ensemble!HY:HY,$H92,Ensemble!IA:IA),"-") -> 22800 | AD92: =INDEX(Control!$F$15:$F$26,D92) -> 10700 | AE92: 12100 | AF92: 35000 | AG92: 6030 | AH92: 9262 | AI92: =MIN(INDEX(Control!$G$15:$G$26,D92),AG92) -> 2200 | AJ92: =MIN(MAX(AH92-AI92,0),INDEX(Control!$H$15:$H$26,D92)) -> 2000 | AK92: =SUM(AI92:AJ92) -> 4200 | AL92: 2023-01-21 | AP92: 9262 | AQ92: 0
A93: 0 | B93: 2023 | C93: 4 | D93: 1 | E93: 22 | F93: 1.22 | G93: 4.22 | H93: 2023-01-22 | I93: =CHOOSE($A93+1,_xlfn.IFNA(INDEX(USGS!Y:Y,MATCH($H93,USGS!X:X,0)),I92),AVERAGEIF(CNRFC!AR:AR,$H93,CNRFC!AN:AN),AVERAGEIF(Ensemble!GC:GC,$H93,Ensemble!GF:GF),"-") -> 8450 | J93: 7790 | K93: 9410 | L93: =CHOOSE($A93+1,_xlfn.IFNA(INDEX(USGS!D:D,MATCH($H93,USGS!C:C,0)),I92),AVERAGEIF(CNRFC!AI:AI,$H93,CNRFC!AE:AE),AVERAGEIF(Ensemble!AR:AR,$H93,Ensemble!AT:AT),"-") -> 714 | M93: =CHOOSE($A93+1,_xlfn.IFNA(INDEX(USGS!K:K,MATCH($H93,USGS!J:J,0)),I92),AVERAGEIF(CNRFC!Q:Q,$H93,CNRFC!M:M),AVERAGEIF(Ensemble!CM:CM,$H93,Ensemble!CO:CO),"-") -> 1700 | N93: =CHOOSE($A93+1,_xlfn.IFNA(INDEX(USGS!R:R,MATCH($H93,USGS!Q:Q,0)),I92),AVERAGEIF(CNRFC!Z:Z,$H93,CNRFC!V:V),AVERAGEIF(Ensemble!EH:EH,$H93,Ensemble!EJ:EJ),"-") -> 559 | O93: 2973 | P93: 2703.666667 | Q93: 3407.333333 | R93: =IF(AND(J93>Control!$F$6,P93>Control!$F$7,U92=1),1,0) -> 0 | S93: =IF(AND(T92>0,T92<Control!$F$8),0,IF(AND(K93<Control!$F$6-500,Q93<Control!$F$7),1,0))*(1-R93) -> 0 | T93: =IF(AND(T92<Control!$F$8,T92>0),T92+1,IF(AND(R93=1,U92=1),1,0)) -> 0 | U93: 0 | V93: =IF(A93<3,IF(AND(T93>0,OR(I93>Control!$F$9,SUM(V87:V92)>0)),MAX(I93-Control!$F$10,0),0),0) -> 0 | W93: =CHOOSE($W$1+1,99999,IF(AND(G93>=Control!$F$4,G93<=Control!$F$5),IF(T93<>0,V93,99999),0)) -> 99999 | X93: =INDEX(Control!$D$15:$D$26,D93) -> 3250 | Y93: 5200 | Z93: =CHOOSE($A93+1,IF(ISBLANK(INDEX(CDEC!G:G,MATCH($H93,CDEC!J:J,0))),Z92,_xlfn.IFNA(INDEX(CDEC!G:G,MATCH($H93,CDEC!J:J,0)),Z92)),AVERAGEIF(CNRFC!BA:BA,$H93,CNRFC!AW:AW),AVERAGEIF(Ensemble!JT:JT,$H93,Ensemble!JW:JW),"-") -> 11666 | AA93: =INDEX(Control!$E$15:$E$26,D93) -> 4000 | AB93: 7666 | AC93: =CHOOSE($A93+1,_xlfn.IFNA(INDEX(USGS!AH:AH,MATCH($H93,USGS!AE:AE,0)),I92),AVERAGEIF(CNRFC!H:H,$H93,CNRFC!D:D),AVERAGEIF(Ensemble!HY:HY,$H93,Ensemble!IA:IA),"-") -> 20600 | AD93: =INDEX(Control!$F$15:$F$26,D93) -> 10700 | AE93: 9900 | AF93: 35000 | AG93: 5200 | AH93: 7666 | AI93: =MIN(INDEX(Control!$G$15:$G$26,D93),AG93) -> 2200 | AJ93: =MIN(MAX(AH93-AI93,0),INDEX(Control!$H$15:$H$26,D93)) -> 2000 | AK93: 4200 | AL93: 2023-01-22 | AP93: 7666 | AQ93: 0
A94: 0 | B94: 2023 | C94: 4 | D94: 1 | E94: 23 | F94: 1.23 | G94: 4.23 | H94: 2023-01-23 | I94: =CHOOSE($A94+1,_xlfn.IFNA(INDEX(USGS!Y:Y,MATCH($H94,USGS!X:X,0)),I93),AVERAGEIF(CNRFC!AR:AR,$H94,CNRFC!AN:AN),AVERAGEIF(Ensemble!GC:GC,$H94,Ensemble!GF:GF),"-") -> 7750 | J94: 7170 | K94: 8493.333333 | L94: =CHOOSE($A94+1,_xlfn.IFNA(INDEX(USGS!D:D,MATCH($H94,USGS!C:C,0)),I93),AVERAGEIF(CNRFC!AI:AI,$H94,CNRFC!AE:AE),AVERAGEIF(Ensemble!AR:AR,$H94,Ensemble!AT:AT),"-") -> 606 | M94: =CHOOSE($A94+1,_xlfn.IFNA(INDEX(USGS!K:K,MATCH($H94,USGS!J:J,0)),I93),AVERAGEIF(CNRFC!Q:Q,$H94,CNRFC!M:M),AVERAGEIF(Ensemble!CM:CM,$H94,Ensemble!CO:CO),"-") -> 1550 | N94: =CHOOSE($A94+1,_xlfn.IFNA(INDEX(USGS!R:R,MATCH($H94,USGS!Q:Q,0)),I93),AVERAGEIF(CNRFC!Z:Z,$H94,CNRFC!V:V),AVERAGEIF(Ensemble!EH:EH,$H94,Ensemble!EJ:EJ),"-") -> 527 | O94: 2683 | P94: 2460.666667 | Q94: 2992.333333 | R94: =IF(AND(J94>Control!$F$6,P94>Control!$F$7,U93=1),1,0) -> 0 | S94: =IF(AND(T93>0,T93<Control!$F$8),0,IF(AND(K94<Control!$F$6-500,Q94<Control!$F$7),1,0))*(1-R94) -> 0 | T94: =IF(AND(T93<Control!$F$8,T93>0),T93+1,IF(AND(R94=1,U93=1),1,0)) -> 0 | U94: 0 | V94: =IF(A94<3,IF(AND(T94>0,OR(I94>Control!$F$9,SUM(V88:V93)>0)),MAX(I94-Control!$F$10,0),0),0) -> 0 | W94: =CHOOSE($W$1+1,99999,IF(AND(G94>=Control!$F$4,G94<=Control!$F$5),IF(T94<>0,V94,99999),0)) -> 99999 | X94: =INDEX(Control!$D$15:$D$26,D94) -> 3250 | Y94: 4500 | Z94: =CHOOSE($A94+1,IF(ISBLANK(INDEX(CDEC!G:G,MATCH($H94,CDEC!J:J,0))),Z93,_xlfn.IFNA(INDEX(CDEC!G:G,MATCH($H94,CDEC!J:J,0)),Z93)),AVERAGEIF(CNRFC!BA:BA,$H94,CNRFC!AW:AW),AVERAGEIF(Ensemble!JT:JT,$H94,Ensemble!JW:JW),"-") -> 10556 | AA94: =INDEX(Control!$E$15:$E$26,D94) -> 4000 | AB94: 6556 | AC94: =CHOOSE($A94+1,_xlfn.IFNA(INDEX(USGS!AH:AH,MATCH($H94,USGS!AE:AE,0)),I93),AVERAGEIF(CNRFC!H:H,$H94,CNRFC!D:D),AVERAGEIF(Ensemble!HY:HY,$H94,Ensemble!IA:IA),"-") -> 18100 | AD94: =INDEX(Control!$F$15:$F$26,D94) -> 10700 | AE94: 7400 | AF94: 35000 | AG94: 4500 | AH94: 6556 | AI94: =MIN(INDEX(Control!$G$15:$G$26,D94),AG94) -> 2200 | AJ94: =MIN(MAX(AH94-AI94,0),INDEX(Control!$H$15:$H$26,D94)) -> 2000 | AK94: 4200 | AL94: 2023-01-23 | AM94: =IF(AO94=50000,30000,"") ->  | AP94: 6556 | AQ94: 0
A95: 0 | B95: 2023 | C95: 4 | D95: 1 | E95: 24 | F95: 1.24 | G95: 4.24 | H95: 2023-01-24 | I95: =CHOOSE($A95+1,_xlfn.IFNA(INDEX(USGS!Y:Y,MATCH($H95,USGS!X:X,0)),I94),AVERAGEIF(CNRFC!AR:AR,$H95,CNRFC!AN:AN),AVERAGEIF(Ensemble!GC:GC,$H95,Ensemble!GF:GF),"-") -> 7170 | J95: 6616.666667 | K95: 7790 | L95: =CHOOSE($A95+1,_xlfn.IFNA(INDEX(USGS!D:D,MATCH($H95,USGS!C:C,0)),I94),AVERAGEIF(CNRFC!AI:AI,$H95,CNRFC!AE:AE),AVERAGEIF(Ensemble!AR:AR,$H95,Ensemble!AT:AT),"-") -> 529 | M95: =CHOOSE($A95+1,_xlfn.IFNA(INDEX(USGS!K:K,MATCH($H95,USGS!J:J,0)),I94),AVERAGEIF(CNRFC!Q:Q,$H95,CNRFC!M:M),AVERAGEIF(Ensemble!CM:CM,$H95,Ensemble!CO:CO),"-") -> 1420 | N95: =CHOOSE($A95+1,_xlfn.IFNA(INDEX(USGS!R:R,MATCH($H95,USGS!Q:Q,0)),I94),AVERAGEIF(CNRFC!Z:Z,$H95,CNRFC!V:V),AVERAGEIF(Ensemble!EH:EH,$H95,Ensemble!EJ:EJ),"-") -> 506 | O95: 2455 | P95: 2272 | Q95: 2703.666667 | R95: =IF(AND(J95>Control!$F$6,P95>Control!$F$7,U94=1),1,0) -> 0 | S95: =IF(AND(T94>0,T94<Control!$F$8),0,IF(AND(K95<Control!$F$6-500,Q95<Control!$F$7),1,0))*(1-R95) -> 0 | T95: =IF(AND(T94<Control!$F$8,T94>0),T94+1,IF(AND(R95=1,U94=1),1,0)) -> 0 | U95: 0 | V95: =IF(A95<3,IF(AND(T95>0,OR(I95>Control!$F$9,SUM(V89:V94)>0)),MAX(I95-Control!$F$10,0),0),0) -> 0 | W95: =CHOOSE($W$1+1,99999,IF(AND(G95>=Control!$F$4,G95<=Control!$F$5),IF(T95<>0,V95,99999),0)) -> 99999 | X95: =INDEX(Control!$D$15:$D$26,D95) -> 3250 | Y95: 3920 | Z95: =CHOOSE($A95+1,IF(ISBLANK(INDEX(CDEC!G:G,MATCH($H95,CDEC!J:J,0))),Z94,_xlfn.IFNA(INDEX(CDEC!G:G,MATCH($H95,CDEC!J:J,0)),Z94)),AVERAGEIF(CNRFC!BA:BA,$H95,CNRFC!AW:AW),AVERAGEIF(Ensemble!JT:JT,$H95,Ensemble!JW:JW),"-") -> 9752 | AA95: =INDEX(Control!$E$15:$E$26,D95) -> 4000 | AB95: 5752 | AC95: =CHOOSE($A95+1,_xlfn.IFNA(INDEX(USGS!AH:AH,MATCH($H95,USGS!AE:AE,0)),I94),AVERAGEIF(CNRFC!H:H,$H95,CNRFC!D:D),AVERAGEIF(Ensemble!HY:HY,$H95,Ensemble!IA:IA),"-") -> 16100 | AD95: =INDEX(Control!$F$15:$F$26,D95) -> 10700 | AE95: 5400 | AF95: 35000 | AG95: 3920 | AH95: 5400 | AI95: =MIN(INDEX(Control!$G$15:$G$26,D95),AG95) -> 2200 | AJ95: =MIN(MAX(AH95-AI95,0),INDEX(Control!$H$15:$H$26,D95)) -> 2000 | AK95: 4200 | AL95: 2023-01-24 | AM95: =IF(AO95=50000,30000,"") ->  | AP95: 5400 | AQ95: 0
A96: 0 | B96: 2023 | C96: 4 | D96: 1 | E96: 25 | F96: 1.25 | G96: 4.25 | H96: 2023-01-25 | I96: =CHOOSE($A96+1,_xlfn.IFNA(INDEX(USGS!Y:Y,MATCH($H96,USGS!X:X,0)),I95),AVERAGEIF(CNRFC!AR:AR,$H96,CNRFC!AN:AN),AVERAGEIF(Ensemble!GC:GC,$H96,Ensemble!GF:GF),"-") -> 6590 | J96: 6153.333333 | K96: 7170 | L96: =CHOOSE($A96+1,_xlfn.IFNA(INDEX(USGS!D:D,MATCH($H96,USGS!C:C,0)),I95),AVERAGEIF(CNRFC!AI:AI,$H96,CNRFC!AE:AE),AVERAGEIF(Ensemble!AR:AR,$H96,Ensemble!AT:AT),"-") -> 472 | M96: =CHOOSE($A96+1,_xlfn.IFNA(INDEX(USGS!K:K,MATCH($H96,USGS!J:J,0)),I95),AVERAGEIF(CNRFC!Q:Q,$H96,CNRFC!M:M),AVERAGEIF(Ensemble!CM:CM,$H96,Ensemble!CO:CO),"-") -> 1280 | N96: =CHOOSE($A96+1,_xlfn.IFNA(INDEX(USGS!R:R,MATCH($H96,USGS!Q:Q,0)),I95),AVERAGEIF(CNRFC!Z:Z,$H96,CNRFC!V:V),AVERAGEIF(Ensemble!EH:EH,$H96,Ensemble!EJ:EJ),"-") -> 492 | O96: 2244 | P96: 2111.666667 | Q96: 2460.666667 | R96: =IF(AND(J96>Control!$F$6,P96>Control!$F$7,U95=1),1,0) -> 0 | S96: =IF(AND(T95>0,T95<Control!$F$8),0,IF(AND(K96<Control!$F$6-500,Q96<Control!$F$7),1,0))*(1-R96) -> 1 | T96: =IF(AND(T95<Control!$F$8,T95>0),T95+1,IF(AND(R96=1,U95=1),1,0)) -> 0 | U96: 0 | V96: =IF(A96<3,IF(AND(T96>0,OR(I96>Control!$F$9,SUM(V90:V95)>0)),MAX(I96-Control!$F$10,0),0),0) -> 0 | W96: =CHOOSE($W$1+1,99999,IF(AND(G96>=Control!$F$4,G96<=Control!$F$5),IF(T96<>0,V96,99999),0)) -> 99999 | X96: =INDEX(Control!$D$15:$D$26,D96) -> 3250 | Y96: 3340 | Z96: =CHOOSE($A96+1,IF(ISBLANK(INDEX(CDEC!G:G,MATCH($H96,CDEC!J:J,0))),Z95,_xlfn.IFNA(INDEX(CDEC!G:G,MATCH($H96,CDEC!J:J,0)),Z95)),AVERAGEIF(CNRFC!BA:BA,$H96,CNRFC!AW:AW),AVERAGEIF(Ensemble!JT:JT,$H96,Ensemble!JW:JW),"-") -> 9142 | AA96: =INDEX(Control!$E$15:$E$26,D96) -> 4000 | AB96: 5142 | AC96: =CHOOSE($A96+1,_xlfn.IFNA(INDEX(USGS!AH:AH,MATCH($H96,USGS!AE:AE,0)),I95),AVERAGEIF(CNRFC!H:H,$H96,CNRFC!D:D),AVERAGEIF(Ensemble!HY:HY,$H96,Ensemble!IA:IA),"-") -> 14700 | AD96: =INDEX(Control!$F$15:$F$26,D96) -> 10700 | AE96: 4000 | AF96: 35000 | AG96: 3340 | AH96: 4000 | AI96: =MIN(INDEX(Control!$G$15:$G$26,D96),AG96) -> 2200 | AJ96: =MIN(MAX(AH96-AI96,0),INDEX(Control!$H$15:$H$26,D96)) -> 1800 | AK96: 4000 | AL96: 2023-01-25 | AN96: =IF(AO96=50000,"<--- Observed Forecast --->","") ->  | AP96: 4000 | AQ96: 0
A97: 0 | B97: 2023 | C97: 4 | D97: 1 | E97: 26 | F97: 1.26 | G97: 4.26 | H97: 2023-01-26 | I97: =CHOOSE($A97+1,_xlfn.IFNA(INDEX(USGS!Y:Y,MATCH($H97,USGS!X:X,0)),I96),AVERAGEIF(CNRFC!AR:AR,$H97,CNRFC!AN:AN),AVERAGEIF(Ensemble!GC:GC,$H97,Ensemble!GF:GF),"-") -> 6090 | J97: 5833.333333 | K97: 6616.666667 | L97: =CHOOSE($A97+1,_xlfn.IFNA(INDEX(USGS!D:D,MATCH($H97,USGS!C:C,0)),I96),AVERAGEIF(CNRFC!AI:AI,$H97,CNRFC!AE:AE),AVERAGEIF(Ensemble!AR:AR,$H97,Ensemble!AT:AT),"-") -> 427 | M97: =CHOOSE($A97+1,_xlfn.IFNA(INDEX(USGS!K:K,MATCH($H97,USGS!J:J,0)),I96),AVERAGEIF(CNRFC!Q:Q,$H97,CNRFC!M:M),AVERAGEIF(Ensemble!CM:CM,$H97,Ensemble!CO:CO),"-") -> 1210 | N97: =CHOOSE($A97+1,_xlfn.IFNA(INDEX(USGS!R:R,MATCH($H97,USGS!Q:Q,0)),I96),AVERAGEIF(CNRFC!Z:Z,$H97,CNRFC!V:V),AVERAGEIF(Ensemble!EH:EH,$H97,Ensemble!EJ:EJ),"-") -> 480 | O97: 2117 | P97: 2001 | Q97: 2272 | R97: =IF(AND(J97>Control!$F$6,P97>Control!$F$7,U96=1),1,0) -> 0 | S97: =IF(AND(T96>0,T96<Control!$F$8),0,IF(AND(K97<Control!$F$6-500,Q97<Control!$F$7),1,0))*(1-R97) -> 1 | T97: =IF(AND(T96<Control!$F$8,T96>0),T96+1,IF(AND(R97=1,U96=1),1,0)) -> 0 | U97: 0 | V97: =IF(A97<3,IF(AND(T97>0,OR(I97>Control!$F$9,SUM(V91:V96)>0)),MAX(I97-Control!$F$10,0),0),0) -> 0 | W97: =CHOOSE($W$1+1,99999,IF(AND(G97>=Control!$F$4,G97<=Control!$F$5),IF(T97<>0,V97,99999),0)) -> 99999 | X97: =INDEX(Control!$D$15:$D$26,D97) -> 3250 | Y97: 2840 | Z97: =CHOOSE($A97+1,IF(ISBLANK(INDEX(CDEC!G:G,MATCH($H97,CDEC!J:J,0))),Z96,_xlfn.IFNA(INDEX(CDEC!G:G,MATCH($H97,CDEC!J:J,0)),Z96)),AVERAGEIF(CNRFC!BA:BA,$H97,CNRFC!AW:AW),AVERAGEIF(Ensemble!JT:JT,$H97,Ensemble!JW:JW),"-") -> 8559 | AA97: =INDEX(Control!$E$15:$E$26,D97) -> 4000 | AB97: 4559 | AC97: =CHOOSE($A97+1,_xlfn.IFNA(INDEX(USGS!AH:AH,MATCH($H97,USGS!AE:AE,0)),I96),AVERAGEIF(CNRFC!H:H,$H97,CNRFC!D:D),AVERAGEIF(Ensemble!HY:HY,$H97,Ensemble!IA:IA),"-") -> 13700 | AD97: =INDEX(Control!$F$15:$F$26,D97) -> 10700 | AE97: 3000 | AF97: 35000 | AG97: 2840 | AH97: 3000 | AI97: =MIN(INDEX(Control!$G$15:$G$26,D97),AG97) -> 2200 | AJ97: =MIN(MAX(AH97-AI97,0),INDEX(Control!$H$15:$H$26,D97)) -> 800 | AK97: 3000 | AL97: 2023-01-26 | AP97: 3000 | AQ97: 0
A98: 0 | B98: 2023 | C98: 4 | D98: 1 | E98: 27 | F98: 1.27 | G98: 4.27 | H98: 2023-01-27 | I98: =CHOOSE($A98+1,_xlfn.IFNA(INDEX(USGS!Y:Y,MATCH($H98,USGS!X:X,0)),I97),AVERAGEIF(CNRFC!AR:AR,$H98,CNRFC!AN:AN),AVERAGEIF(Ensemble!GC:GC,$H98,Ensemble!GF:GF),"-") -> 5780 | J98: 5640 | K98: 6153.333333 | L98: =CHOOSE($A98+1,_xlfn.IFNA(INDEX(USGS!D:D,MATCH($H98,USGS!C:C,0)),I97),AVERAGEIF(CNRFC!AI:AI,$H98,CNRFC!AE:AE),AVERAGEIF(Ensemble!AR:AR,$H98,Ensemble!AT:AT),"-") -> 396 | M98: =CHOOSE($A98+1,_xlfn.IFNA(INDEX(USGS!K:K,MATCH($H98,USGS!J:J,0)),I97),AVERAGEIF(CNRFC!Q:Q,$H98,CNRFC!M:M),AVERAGEIF(Ensemble!CM:CM,$H98,Ensemble!CO:CO),"-") -> 1110 | N98: =CHOOSE($A98+1,_xlfn.IFNA(INDEX(USGS!R:R,MATCH($H98,USGS!Q:Q,0)),I97),AVERAGEIF(CNRFC!Z:Z,$H98,CNRFC!V:V),AVERAGEIF(Ensemble!EH:EH,$H98,Ensemble!EJ:EJ),"-") -> 468 | O98: 1974 | P98: 1917 | Q98: 2111.666667 | R98: =IF(AND(J98>Control!$F$6,P98>Control!$F$7,U97=1),1,0) -> 0 | S98: =IF(AND(T97>0,T97<Control!$F$8),0,IF(AND(K98<Control!$F$6-500,Q98<Control!$F$7),1,0))*(1-R98) -> 1 | T98: =IF(AND(T97<Control!$F$8,T97>0),T97+1,IF(AND(R98=1,U97=1),1,0)) -> 0 | U98: 0 | V98: =IF(A98<3,IF(AND(T98>0,OR(I98>Control!$F$9,SUM(V92:V97)>0)),MAX(I98-Control!$F$10,0),0),0) -> 0 | W98: =CHOOSE($W$1+1,99999,IF(AND(G98>=Control!$F$4,G98<=Control!$F$5),IF(T98<>0,V98,99999),0)) -> 99999 | X98: =INDEX(Control!$D$15:$D$26,D98) -> 3250 | Y98: 2530 | Z98: =CHOOSE($A98+1,IF(ISBLANK(INDEX(CDEC!G:G,MATCH($H98,CDEC!J:J,0))),Z97,_xlfn.IFNA(INDEX(CDEC!G:G,MATCH($H98,CDEC!J:J,0)),Z97)),AVERAGEIF(CNRFC!BA:BA,$H98,CNRFC!AW:AW),AVERAGEIF(Ensemble!JT:JT,$H98,Ensemble!JW:JW),"-") -> 8099 | AA98: =INDEX(Control!$E$15:$E$26,D98) -> 4000 | AB98: 4099 | AC98: =CHOOSE($A98+1,_xlfn.IFNA(INDEX(USGS!AH:AH,MATCH($H98,USGS!AE:AE,0)),I97),AVERAGEIF(CNRFC!H:H,$H98,CNRFC!D:D),AVERAGEIF(Ensemble!HY:HY,$H98,Ensemble!IA:IA),"-") -> 12700 | AD98: =INDEX(Control!$F$15:$F$26,D98) -> 10700 | AE98: 2000 | AF98: 35000 | AG98: 2000 | AH98: 2000 | AI98: =MIN(INDEX(Control!$G$15:$G$26,D98),AG98) -> 2000 | AJ98: =MIN(MAX(AH98-AI98,0),INDEX(Control!$H$15:$H$26,D98)) -> 0 | AK98: 2000 | AL98: 2023-01-27 | AP98: 2000 | AQ98: 0
A99: 0 | B99: 2023 | C99: 4 | D99: 1 | E99: 28 | F99: 1.28 | G99: 4.28 | H99: 2023-01-28 | I99: =CHOOSE($A99+1,_xlfn.IFNA(INDEX(USGS!Y:Y,MATCH($H99,USGS!X:X,0)),I98),AVERAGEIF(CNRFC!AR:AR,$H99,CNRFC!AN:AN),AVERAGEIF(Ensemble!GC:GC,$H99,Ensemble!GF:GF),"-") -> 5630 | J99: 5496.666667 | K99: 5833.333333 | L99: =CHOOSE($A99+1,_xlfn.IFNA(INDEX(USGS!D:D,MATCH($H99,USGS!C:C,0)),I98),AVERAGEIF(CNRFC!AI:AI,$H99,CNRFC!AE:AE),AVERAGEIF(Ensemble!AR:AR,$H99,Ensemble!AT:AT),"-") -> 374 | M99: =CHOOSE($A99+1,_xlfn.IFNA(INDEX(USGS!K:K,MATCH($H99,USGS!J:J,0)),I98),AVERAGEIF(CNRFC!Q:Q,$H99,CNRFC!M:M),AVERAGEIF(Ensemble!CM:CM,$H99,Ensemble!CO:CO),"-") -> 1080 | N99: =CHOOSE($A99+1,_xlfn.IFNA(INDEX(USGS!R:R,MATCH($H99,USGS!Q:Q,0)),I98),AVERAGEIF(CNRFC!Z:Z,$H99,CNRFC!V:V),AVERAGEIF(Ensemble!EH:EH,$H99,Ensemble!EJ:EJ),"-") -> 458 | O99: 1912 | P99: 1843.666667 | Q99: 2001 | R99: =IF(AND(J99>Control!$F$6,P99>Control!$F$7,U98=1),1,0) -> 0 | S99: =IF(AND(T98>0,T98<Control!$F$8),0,IF(AND(K99<Control!$F$6-500,Q99<Control!$F$7),1,0))*(1-R99) -> 1 | T99: =IF(AND(T98<Control!$F$8,T98>0),T98+1,IF(AND(R99=1,U98=1),1,0)) -> 0 | U99: 0 | V99: =IF(A99<3,IF(AND(T99>0,OR(I99>Control!$F$9,SUM(V93:V98)>0)),MAX(I99-Control!$F$10,0),0),0) -> 0 | W99: =CHOOSE($W$1+1,99999,IF(AND(G99>=Control!$F$4,G99<=Control!$F$5),IF(T99<>0,V99,99999),0)) -> 99999 | X99: =INDEX(Control!$D$15:$D$26,D99) -> 3250 | Y99: 2380 | Z99: =CHOOSE($A99+1,IF(ISBLANK(INDEX(CDEC!G:G,MATCH($H99,CDEC!J:J,0))),Z98,_xlfn.IFNA(INDEX(CDEC!G:G,MATCH($H99,CDEC!J:J,0)),Z98)),AVERAGEIF(CNRFC!BA:BA,$H99,CNRFC!AW:AW),AVERAGEIF(Ensemble!JT:JT,$H99,Ensemble!JW:JW),"-") -> 7812 | AA99: =INDEX(Control!$E$15:$E$26,D99) -> 4000 | AB99: 3812 | AC99: =CHOOSE($A99+1,_xlfn.IFNA(INDEX(USGS!AH:AH,MATCH($H99,USGS!AE:AE,0)),I98),AVERAGEIF(CNRFC!H:H,$H99,CNRFC!D:D),AVERAGEIF(Ensemble!HY:HY,$H99,Ensemble!IA:IA),"-") -> 11900 | AD99: =INDEX(Control!$F$15:$F$26,D99) -> 10700 | AE99: 1200 | AF99: 35000 | AG99: 1200 | AH99: 1200 | AI99: =MIN(INDEX(Control!$G$15:$G$26,D99),AG99) -> 1200 | AJ99: =MIN(MAX(AH99-AI99,0),INDEX(Control!$H$15:$H$26,D99)) -> 0 | AK99: 1200 | AL99: 2023-01-28 | AP99: 1200 | AQ99: 0
A100: 0 | B100: 2023 | C100: 4 | D100: 1 | E100: 29 | F100: 1.29 | G100: 4.29 | H100: 2023-01-29 | I100: =CHOOSE($A100+1,_xlfn.IFNA(INDEX(USGS!Y:Y,MATCH($H100,USGS!X:X,0)),I99),AVERAGEIF(CNRFC!AR:AR,$H100,CNRFC!AN:AN),AVERAGEIF(Ensemble!GC:GC,$H100,Ensemble!GF:GF),"-") -> 5510 | J100: 5353.333333 | K100: 5640 | L100: =CHOOSE($A100+1,_xlfn.IFNA(INDEX(USGS!D:D,MATCH($H100,USGS!C:C,0)),I99),AVERAGEIF(CNRFC!AI:AI,$H100,CNRFC!AE:AE),AVERAGEIF(Ensemble!AR:AR,$H100,Ensemble!AT:AT),"-") -> 352 | M100: =CHOOSE($A100+1,_xlfn.IFNA(INDEX(USGS!K:K,MATCH($H100,USGS!J:J,0)),I99),AVERAGEIF(CNRFC!Q:Q,$H100,CNRFC!M:M),AVERAGEIF(Ensemble!CM:CM,$H100,Ensemble!CO:CO),"-") -> 1050 | N100: =CHOOSE($A100+1,_xlfn.IFNA(INDEX(USGS!R:R,MATCH($H100,USGS!Q:Q,0)),I99),AVERAGEIF(CNRFC!Z:Z,$H100,CNRFC!V:V),AVERAGEIF(Ensemble!EH:EH,$H100,Ensemble!EJ:EJ),"-") -> 463 | O100: 1865 | P100: 1765.333333 | Q100: 1917 | R100: =IF(AND(J100>Control!$F$6,P100>Control!$F$7,U99=1),1,0) -> 0 | S100: =IF(AND(T99>0,T99<Control!$F$8),0,IF(AND(K100<Control!$F$6-500,Q100<Control!$F$7),1,0))*(1-R100) -> 1 | T100: =IF(AND(T99<Control!$F$8,T99>0),T99+1,IF(AND(R100=1,U99=1),1,0)) -> 0 | U100: 0 | V100: =IF(A100<3,IF(AND(T100>0,OR(I100>Control!$F$9,SUM(V94:V99)>0)),MAX(I100-Control!$F$10,0),0),0) -> 0 | W100: =CHOOSE($W$1+1,99999,IF(AND(G100>=Control!$F$4,G100<=Control!$F$5),IF(T100<>0,V100,99999),0)) -> 99999 | X100: =INDEX(Control!$D$15:$D$26,D100) -> 3250 | Y100: 2260 | Z100: =CHOOSE($A100+1,IF(ISBLANK(INDEX(CDEC!G:G,MATCH($H100,CDEC!J:J,0))),Z99,_xlfn.IFNA(INDEX(CDEC!G:G,MATCH($H100,CDEC!J:J,0)),Z99)),AVERAGEIF(CNRFC!BA:BA,$H100,CNRFC!AW:AW),AVERAGEIF(Ensemble!JT:JT,$H100,Ensemble!JW:JW),"-") -> 7618 | AA100: =INDEX(Control!$E$15:$E$26,D100) -> 4000 | AB100: 3618 | AC100: =CHOOSE($A100+1,_xlfn.IFNA(INDEX(USGS!AH:AH,MATCH($H100,USGS!AE:AE,0)),I99),AVERAGEIF(CNRFC!H:H,$H100,CNRFC!D:D),AVERAGEIF(Ensemble!HY:HY,$H100,Ensemble!IA:IA),"-") -> 11400 | AD100: =INDEX(Control!$F$15:$F$26,D100) -> 10700 | AE100: 700 | AF100: 35000 | AG100: 700 | AH100: 700 | AI100: =MIN(INDEX(Control!$G$15:$G$26,D100),AG100) -> 700 | AJ100: =MIN(MAX(AH100-AI100,0),INDEX(Control!$H$15:$H$26,D100)) -> 0 | AK100: 700 | AL100: 2023-01-29 | AP100: 700 | AQ100: 0
A101: 0 | B101: 2023 | C101: 4 | D101: 1 | E101: 30 | F101: 1.3 | G101: 4.3 | H101: 2023-01-30 | I101: =CHOOSE($A101+1,_xlfn.IFNA(INDEX(USGS!Y:Y,MATCH($H101,USGS!X:X,0)),I100),AVERAGEIF(CNRFC!AR:AR,$H101,CNRFC!AN:AN),AVERAGEIF(Ensemble!GC:GC,$H101,Ensemble!GF:GF),"-") -> 5350 | J101: 5226.666667 | K101: 5496.666667 | L101: =CHOOSE($A101+1,_xlfn.IFNA(INDEX(USGS!D:D,MATCH($H101,USGS!C:C,0)),I100),AVERAGEIF(CNRFC!AI:AI,$H101,CNRFC!AE:AE),AVERAGEIF(Ensemble!AR:AR,$H101,Ensemble!AT:AT),"-") -> 316 | M101: =CHOOSE($A101+1,_xlfn.IFNA(INDEX(USGS!K:K,MATCH($H101,USGS!J:J,0)),I100),AVERAGEIF(CNRFC!Q:Q,$H101,CNRFC!M:M),AVERAGEIF(Ensemble!CM:CM,$H101,Ensemble!CO:CO),"-") -> 999 | N101: =CHOOSE($A101+1,_xlfn.IFNA(INDEX(USGS!R:R,MATCH($H101,USGS!Q:Q,0)),I100),AVERAGEIF(CNRFC!Z:Z,$H101,CNRFC!V:V),AVERAGEIF(Ensemble!EH:EH,$H101,Ensemble!EJ:EJ),"-") -> 439 | O101: 1754 | P101: 1687 | Q101: 1843.666667 | R101: =IF(AND(J101>Control!$F$6,P101>Control!$F$7,U100=1),1,0) -> 0 | S101: =IF(AND(T100>0,T100<Control!$F$8),0,IF(AND(K101<Control!$F$6-500,Q101<Control!$F$7),1,0))*(1-R101) -> 1 | T101: =IF(AND(T100<Control!$F$8,T100>0),T100+1,IF(AND(R101=1,U100=1),1,0)) -> 0 | U101: 0 | V101: =IF(A101<3,IF(AND(T101>0,OR(I101>Control!$F$9,SUM(V95:V100)>0)),MAX(I101-Control!$F$10,0),0),0) -> 0 | W101: =CHOOSE($W$1+1,99999,IF(AND(G101>=Control!$F$4,G101<=Control!$F$5),IF(T101<>0,V101,99999),0)) -> 99999 | X101: =INDEX(Control!$D$15:$D$26,D101) -> 3250 | Y101: 2100 | Z101: =CHOOSE($A101+1,IF(ISBLANK(INDEX(CDEC!G:G,MATCH($H101,CDEC!J:J,0))),Z100,_xlfn.IFNA(INDEX(CDEC!G:G,MATCH($H101,CDEC!J:J,0)),Z100)),AVERAGEIF(CNRFC!BA:BA,$H101,CNRFC!AW:AW),AVERAGEIF(Ensemble!JT:JT,$H101,Ensemble!JW:JW),"-") -> 7260 | AA101: =INDEX(Control!$E$15:$E$26,D101) -> 4000 | AB101: 3260 | AC101: =CHOOSE($A101+1,_xlfn.IFNA(INDEX(USGS!AH:AH,MATCH($H101,USGS!AE:AE,0)),I100),AVERAGEIF(CNRFC!H:H,$H101,CNRFC!D:D),AVERAGEIF(Ensemble!HY:HY,$H101,Ensemble!IA:IA),"-") -> 11000 | AD101: =INDEX(Control!$F$15:$F$26,D101) -> 10700 | AE101: 300 | AF101: 35000 | AG101: 300 | AH101: 300 | AI101: =MIN(INDEX(Control!$G$15:$G$26,D101),AG101) -> 300 | AJ101: =MIN(MAX(AH101-AI101,0),INDEX(Control!$H$15:$H$26,D101)) -> 0 | AK101: 300 | AL101: 2023-01-30 | AP101: 300 | AQ101: 0
A102: 0 | B102: 2023 | C102: 4 | D102: 1 | E102: 31 | F102: 1.31 | G102: 4.31 | H102: 2023-01-31 | I102: =CHOOSE($A102+1,_xlfn.IFNA(INDEX(USGS!Y:Y,MATCH($H102,USGS!X:X,0)),I101),AVERAGEIF(CNRFC!AR:AR,$H102,CNRFC!AN:AN),AVERAGEIF(Ensemble!GC:GC,$H102,Ensemble!GF:GF),"-") -> 5200 | J102: 5126.666667 | K102: 5353.333333 | L102: =CHOOSE($A102+1,_xlfn.IFNA(INDEX(USGS!D:D,MATCH($H102,USGS!C:C,0)),I101),AVERAGEIF(CNRFC!AI:AI,$H102,CNRFC!AE:AE),AVERAGEIF(Ensemble!AR:AR,$H102,Ensemble!AT:AT),"-") -> 296 | M102: =CHOOSE($A102+1,_xlfn.IFNA(INDEX(USGS!K:K,MATCH($H102,USGS!J:J,0)),I101),AVERAGEIF(CNRFC!Q:Q,$H102,CNRFC!M:M),AVERAGEIF(Ensemble!CM:CM,$H102,Ensemble!CO:CO),"-") -> 957 | N102: =CHOOSE($A102+1,_xlfn.IFNA(INDEX(USGS!R:R,MATCH($H102,USGS!Q:Q,0)),I101),AVERAGEIF(CNRFC!Z:Z,$H102,CNRFC!V:V),AVERAGEIF(Ensemble!EH:EH,$H102,Ensemble!EJ:EJ),"-") -> 424 | O102: 1677 | P102: 1628 | Q102: 1765.333333 | R102: =IF(AND(J102>Control!$F$6,P102>Control!$F$7,U101=1),1,0) -> 0 | S102: =IF(AND(T101>0,T101<Control!$F$8),0,IF(AND(K102<Control!$F$6-500,Q102<Control!$F$7),1,0))*(1-R102) -> 1 | T102: =IF(AND(T101<Control!$F$8,T101>0),T101+1,IF(AND(R102=1,U101=1),1,0)) -> 0 | U102: =IF(F102=9.01,1,IF(SUM(S96:S102)=7,1,U101))*(1-R102) -> 1 | V102: =IF(A102<3,IF(AND(T102>0,OR(I102>Control!$F$9,SUM(V96:V101)>0)),MAX(I102-Control!$F$10,0),0),0) -> 0 | W102: =CHOOSE($W$1+1,99999,IF(AND(G102>=Control!$F$4,G102<=Control!$F$5),IF(T102<>0,V102,99999),0)) -> 99999 | X102: =INDEX(Control!$D$15:$D$26,D102) -> 3250 | Y102: 1950 | Z102: =CHOOSE($A102+1,IF(ISBLANK(INDEX(CDEC!G:G,MATCH($H102,CDEC!J:J,0))),Z101,_xlfn.IFNA(INDEX(CDEC!G:G,MATCH($H102,CDEC!J:J,0)),Z101)),AVERAGEIF(CNRFC!BA:BA,$H102,CNRFC!AW:AW),AVERAGEIF(Ensemble!JT:JT,$H102,Ensemble!JW:JW),"-") -> 7008 | AA102: =INDEX(Control!$E$15:$E$26,D102) -> 4000 | AB102: 3008 | AC102: =CHOOSE($A102+1,_xlfn.IFNA(INDEX(USGS!AH:AH,MATCH($H102,USGS!AE:AE,0)),I101),AVERAGEIF(CNRFC!H:H,$H102,CNRFC!D:D),AVERAGEIF(Ensemble!HY:HY,$H102,Ensemble!IA:IA),"-") -> 10400 | AD102: =INDEX(Control!$F$15:$F$26,D102) -> 10700 | AE102: 0 | AF102: 35000 | AG102: 0 | AH102: 0 | AI102: =MIN(INDEX(Control!$G$15:$G$26,D102),AG102) -> 0 | AJ102: =MIN(MAX(AH102-AI102,0),INDEX(Control!$H$15:$H$26,D102)) -> 0 | AK102: 0 | AL102: 2023-01-31 | AP102: 0 | AQ102: 0
A103: 0 | B103: 2023 | C103: 5 | D103: 2 | E103: 1 | F103: 2.01 | G103: 5.01 | H103: 2023-02-01 | I103: =CHOOSE($A103+1,_xlfn.IFNA(INDEX(USGS!Y:Y,MATCH($H103,USGS!X:X,0)),I102),AVERAGEIF(CNRFC!AR:AR,$H103,CNRFC!AN:AN),AVERAGEIF(Ensemble!GC:GC,$H103,Ensemble!GF:GF),"-") -> 5130 | J103: 5073.333333 | K103: 5226.666667 | L103: =CHOOSE($A103+1,_xlfn.IFNA(INDEX(USGS!D:D,MATCH($H103,USGS!C:C,0)),I102),AVERAGEIF(CNRFC!AI:AI,$H103,CNRFC!AE:AE),AVERAGEIF(Ensemble!AR:AR,$H103,Ensemble!AT:AT),"-") -> 284 | M103: =CHOOSE($A103+1,_xlfn.IFNA(INDEX(USGS!K:K,MATCH($H103,USGS!J:J,0)),I102),AVERAGEIF(CNRFC!Q:Q,$H103,CNRFC!M:M),AVERAGEIF(Ensemble!CM:CM,$H103,Ensemble!CO:CO),"-") -> 929 | N103: =CHOOSE($A103+1,_xlfn.IFNA(INDEX(USGS!R:R,MATCH($H103,USGS!Q:Q,0)),I102),AVERAGEIF(CNRFC!Z:Z,$H103,CNRFC!V:V),AVERAGEIF(Ensemble!EH:EH,$H103,Ensemble!EJ:EJ),"-") -> 417 | O103: 1630 | P103: 1587.333333 | Q103: 1687 | R103: =IF(AND(J103>Control!$F$6,P103>Control!$F$7,U102=1),1,0) -> 0 | S103: =IF(AND(T102>0,T102<Control!$F$8),0,IF(AND(K103<Control!$F$6-500,Q103<Control!$F$7),1,0))*(1-R103) -> 1 | T103: =IF(AND(T102<Control!$F$8,T102>0),T102+1,IF(AND(R103=1,U102=1),1,0)) -> 0 | U103: 1 | V103: =IF(A103<3,IF(AND(T103>0,OR(I103>Control!$F$9,SUM(V97:V102)>0)),MAX(I103-Control!$F$10,0),0),0) -> 0 | W103: =CHOOSE($W$1+1,99999,IF(AND(G103>=Control!$F$4,G103<=Control!$F$5),IF(T103<>0,V103,99999),0)) -> 99999 | X103: =INDEX(Control!$D$15:$D$26,D103) -> 3250 | Y103: 1880 | Z103: =CHOOSE($A103+1,IF(ISBLANK(INDEX(CDEC!G:G,MATCH($H103,CDEC!J:J,0))),Z102,_xlfn.IFNA(INDEX(CDEC!G:G,MATCH($H103,CDEC!J:J,0)),Z102)),AVERAGEIF(CNRFC!BA:BA,$H103,CNRFC!AW:AW),AVERAGEIF(Ensemble!JT:JT,$H103,Ensemble!JW:JW),"-") -> 6783 | AA103: =INDEX(Control!$E$15:$E$26,D103) -> 4000 | AB103: 2783 | AC103: =CHOOSE($A103+1,_xlfn.IFNA(INDEX(USGS!AH:AH,MATCH($H103,USGS!AE:AE,0)),I102),AVERAGEIF(CNRFC!H:H,$H103,CNRFC!D:D),AVERAGEIF(Ensemble!HY:HY,$H103,Ensemble!IA:IA),"-") -> 9850 | AD103: =INDEX(Control!$F$15:$F$26,D103) -> 10700 | AE103: 0 | AF103: 35000 | AG103: 0 | AH103: 0 | AI103: =MIN(INDEX(Control!$G$15:$G$26,D103),AG103) -> 0 | AJ103: =MIN(MAX(AH103-AI103,0),INDEX(Control!$H$15:$H$26,D103)) -> 0 | AK103: 0 | AL103: 2023-02-01 | AP103: 0 | AQ103: 0
A104: 0 | B104: 2023 | C104: 5 | D104: 2 | E104: 2 | F104: 2.02 | G104: 5.02 | H104: 2023-02-02 | I104: =CHOOSE($A104+1,_xlfn.IFNA(INDEX(USGS!Y:Y,MATCH($H104,USGS!X:X,0)),I103),AVERAGEIF(CNRFC!AR:AR,$H104,CNRFC!AN:AN),AVERAGEIF(Ensemble!GC:GC,$H104,Ensemble!GF:GF),"-") -> 5050 | J104: 5070 | K104: 5126.666667 | L104: =CHOOSE($A104+1,_xlfn.IFNA(INDEX(USGS!D:D,MATCH($H104,USGS!C:C,0)),I103),AVERAGEIF(CNRFC!AI:AI,$H104,CNRFC!AE:AE),AVERAGEIF(Ensemble!AR:AR,$H104,Ensemble!AT:AT),"-") -> 271 | M104: =CHOOSE($A104+1,_xlfn.IFNA(INDEX(USGS!K:K,MATCH($H104,USGS!J:J,0)),I103),AVERAGEIF(CNRFC!Q:Q,$H104,CNRFC!M:M),AVERAGEIF(Ensemble!CM:CM,$H104,Ensemble!CO:CO),"-") -> 899 | N104: =CHOOSE($A104+1,_xlfn.IFNA(INDEX(USGS!R:R,MATCH($H104,USGS!Q:Q,0)),I103),AVERAGEIF(CNRFC!Z:Z,$H104,CNRFC!V:V),AVERAGEIF(Ensemble!EH:EH,$H104,Ensemble!EJ:EJ),"-") -> 407 | O104: 1577 | P104: 1566 | Q104: 1628 | R104: =IF(AND(J104>Control!$F$6,P104>Control!$F$7,U103=1),1,0) -> 0 | S104: =IF(AND(T103>0,T103<Control!$F$8),0,IF(AND(K104<Control!$F$6-500,Q104<Control!$F$7),1,0))*(1-R104) -> 1 | T104: =IF(AND(T103<Control!$F$8,T103>0),T103+1,IF(AND(R104=1,U103=1),1,0)) -> 0 | U104: 1 | V104: =IF(A104<3,IF(AND(T104>0,OR(I104>Control!$F$9,SUM(V98:V103)>0)),MAX(I104-Control!$F$10,0),0),0) -> 0 | W104: =CHOOSE($W$1+1,99999,IF(AND(G104>=Control!$F$4,G104<=Control!$F$5),IF(T104<>0,V104,99999),0)) -> 99999 | X104: =INDEX(Control!$D$15:$D$26,D104) -> 3250 | Y104: 1800 | Z104: =CHOOSE($A104+1,IF(ISBLANK(INDEX(CDEC!G:G,MATCH($H104,CDEC!J:J,0))),Z103,_xlfn.IFNA(INDEX(CDEC!G:G,MATCH($H104,CDEC!J:J,0)),Z103)),AVERAGEIF(CNRFC!BA:BA,$H104,CNRFC!AW:AW),AVERAGEIF(Ensemble!JT:JT,$H104,Ensemble!JW:JW),"-") -> 6641 | AA104: =INDEX(Control!$E$15:$E$26,D104) -> 4000 | AB104: 2641 | AC104: =CHOOSE($A104+1,_xlfn.IFNA(INDEX(USGS!AH:AH,MATCH($H104,USGS!AE:AE,0)),I103),AVERAGEIF(CNRFC!H:H,$H104,CNRFC!D:D),AVERAGEIF(Ensemble!HY:HY,$H104,Ensemble!IA:IA),"-") -> 9460 | AD104: =INDEX(Control!$F$15:$F$26,D104) -> 10700 | AE104: 0 | AF104: 35000 | AG104: 0 | AH104: 0 | AI104: =MIN(INDEX(Control!$G$15:$G$26,D104),AG104) -> 0 | AJ104: =MIN(MAX(AH104-AI104,0),INDEX(Control!$H$15:$H$26,D104)) -> 0 | AK104: 0 | AL104: 2023-02-02 | AP104: 0 | AQ104: 0
A105: 0 | B105: 2023 | C105: 5 | D105: 2 | E105: 3 | F105: 2.03 | G105: 5.03 | H105: 2023-02-03 | I105: =CHOOSE($A105+1,_xlfn.IFNA(INDEX(USGS!Y:Y,MATCH($H105,USGS!X:X,0)),I104),AVERAGEIF(CNRFC!AR:AR,$H105,CNRFC!AN:AN),AVERAGEIF(Ensemble!GC:GC,$H105,Ensemble!GF:GF),"-") -> 5040 | J105: 5583.333333 | K105: 5073.333333 | L105: =CHOOSE($A105+1,_xlfn.IFNA(INDEX(USGS!D:D,MATCH($H105,USGS!C:C,0)),I104),AVERAGEIF(CNRFC!AI:AI,$H105,CNRFC!AE:AE),AVERAGEIF(Ensemble!AR:AR,$H105,Ensemble!AT:AT),"-") -> 281 | M105: =CHOOSE($A105+1,_xlfn.IFNA(INDEX(USGS!K:K,MATCH($H105,USGS!J:J,0)),I104),AVERAGEIF(CNRFC!Q:Q,$H105,CNRFC!M:M),AVERAGEIF(Ensemble!CM:CM,$H105,Ensemble!CO:CO),"-") -> 881 | N105: =CHOOSE($A105+1,_xlfn.IFNA(INDEX(USGS!R:R,MATCH($H105,USGS!Q:Q,0)),I104),AVERAGEIF(CNRFC!Z:Z,$H105,CNRFC!V:V),AVERAGEIF(Ensemble!EH:EH,$H105,Ensemble!EJ:EJ),"-") -> 393 | O105: 1555 | P105: 1925.666667 | Q105: 1587.333333 | R105: =IF(AND(J105>Control!$F$6,P105>Control!$F$7,U104=1),1,0) -> 0 | S105: =IF(AND(T104>0,T104<Control!$F$8),0,IF(AND(K105<Control!$F$6-500,Q105<Control!$F$7),1,0))*(1-R105) -> 1 | T105: =IF(AND(T104<Control!$F$8,T104>0),T104+1,IF(AND(R105=1,U104=1),1,0)) -> 0 | U105: 1 | V105: =IF(A105<3,IF(AND(T105>0,OR(I105>Control!$F$9,SUM(V99:V104)>0)),MAX(I105-Control!$F$10,0),0),0) -> 0 | W105: =CHOOSE($W$1+1,99999,IF(AND(G105>=Control!$F$4,G105<=Control!$F$5),IF(T105<>0,V105,99999),0)) -> 99999 | X105: =INDEX(Control!$D$15:$D$26,D105) -> 3250 | Y105: 1790 | Z105: =CHOOSE($A105+1,IF(ISBLANK(INDEX(CDEC!G:G,MATCH($H105,CDEC!J:J,0))),Z104,_xlfn.IFNA(INDEX(CDEC!G:G,MATCH($H105,CDEC!J:J,0)),Z104)),AVERAGEIF(CNRFC!BA:BA,$H105,CNRFC!AW:AW),AVERAGEIF(Ensemble!JT:JT,$H105,Ensemble!JW:JW),"-") -> 6559 | AA105: =INDEX(Control!$E$15:$E$26,D105) -> 4000 | AB105: 2559 | AC105: =CHOOSE($A105+1,_xlfn.IFNA(INDEX(USGS!AH:AH,MATCH($H105,USGS!AE:AE,0)),I104),AVERAGEIF(CNRFC!H:H,$H105,CNRFC!D:D),AVERAGEIF(Ensemble!HY:HY,$H105,Ensemble!IA:IA),"-") -> 9220 | AD105: =INDEX(Control!$F$15:$F$26,D105) -> 10700 | AE105: 0 | AF105: 35000 | AG105: 0 | AH105: 0 | AI105: =MIN(INDEX(Control!$G$15:$G$26,D105),AG105) -> 0 | AJ105: =MIN(MAX(AH105-AI105,0),INDEX(Control!$H$15:$H$26,D105)) -> 0 | AK105: 0 | AL105: 2023-02-03 | AP105: 0 | AQ105: 0
A106: 0 | B106: 2023 | C106: 5 | D106: 2 | E106: 4 | F106: 2.04 | G106: 5.04 | H106: 2023-02-04 | I106: =CHOOSE($A106+1,_xlfn.IFNA(INDEX(USGS!Y:Y,MATCH($H106,USGS!X:X,0)),I105),AVERAGEIF(CNRFC!AR:AR,$H106,CNRFC!AN:AN),AVERAGEIF(Ensemble!GC:GC,$H106,Ensemble!GF:GF),"-") -> 5120 | J106: 6060 | K106: 5070 | L106: =CHOOSE($A106+1,_xlfn.IFNA(INDEX(USGS!D:D,MATCH($H106,USGS!C:C,0)),I105),AVERAGEIF(CNRFC!AI:AI,$H106,CNRFC!AE:AE),AVERAGEIF(Ensemble!AR:AR,$H106,Ensemble!AT:AT),"-") -> 304 | M106: =CHOOSE($A106+1,_xlfn.IFNA(INDEX(USGS!K:K,MATCH($H106,USGS!J:J,0)),I105),AVERAGEIF(CNRFC!Q:Q,$H106,CNRFC!M:M),AVERAGEIF(Ensemble!CM:CM,$H106,Ensemble!CO:CO),"-") -> 866 | N106: =CHOOSE($A106+1,_xlfn.IFNA(INDEX(USGS!R:R,MATCH($H106,USGS!Q:Q,0)),I105),AVERAGEIF(CNRFC!Z:Z,$H106,CNRFC!V:V),AVERAGEIF(Ensemble!EH:EH,$H106,Ensemble!EJ:EJ),"-") -> 396 | O106: 1566 | P106: 2150 | Q106: 1566 | R106: =IF(AND(J106>Control!$F$6,P106>Control!$F$7,U105=1),1,0) -> 0 | S106: =IF(AND(T105>0,T105<Control!$F$8),0,IF(AND(K106<Control!$F$6-500,Q106<Control!$F$7),1,0))*(1-R106) -> 1 | T106: =IF(AND(T105<Control!$F$8,T105>0),T105+1,IF(AND(R106=1,U105=1),1,0)) -> 0 | U106: 1 | V106: =IF(A106<3,IF(AND(T106>0,OR(I106>Control!$F$9,SUM(V100:V105)>0)),MAX(I106-Control!$F$10,0),0),0) -> 0 | W106: =CHOOSE($W$1+1,99999,IF(AND(G106>=Control!$F$4,G106<=Control!$F$5),IF(T106<>0,V106,99999),0)) -> 99999 | X106: =INDEX(Control!$D$15:$D$26,D106) -> 3250 | Y106: 1870 | Z106: =CHOOSE($A106+1,IF(ISBLANK(INDEX(CDEC!G:G,MATCH($H106,CDEC!J:J,0))),Z105,_xlfn.IFNA(INDEX(CDEC!G:G,MATCH($H106,CDEC!J:J,0)),Z105)),AVERAGEIF(CNRFC!BA:BA,$H106,CNRFC!AW:AW),AVERAGEIF(Ensemble!JT:JT,$H106,Ensemble!JW:JW),"-") -> 6531 | AA106: =INDEX(Control!$E$15:$E$26,D106) -> 4000 | AB106: 2531 | AC106: =CHOOSE($A106+1,_xlfn.IFNA(INDEX(USGS!AH:AH,MATCH($H106,USGS!AE:AE,0)),I105),AVERAGEIF(CNRFC!H:H,$H106,CNRFC!D:D),AVERAGEIF(Ensemble!HY:HY,$H106,Ensemble!IA:IA),"-") -> 9130 | AD106: =INDEX(Control!$F$15:$F$26,D106) -> 10700 | AE106: 0 | AF106: 35000 | AG106: 0 | AH106: 0 | AI106: =MIN(INDEX(Control!$G$15:$G$26,D106),AG106) -> 0 | AJ106: =MIN(MAX(AH106-AI106,0),INDEX(Control!$H$15:$H$26,D106)) -> 0 | AK106: 0 | AL106: 2023-02-04 | AP106: 0 | AQ106: 0
A107: 0 | B107: 2023 | C107: 5 | D107: 2 | E107: 5 | F107: 2.05 | G107: 5.05 | H107: 2023-02-05 | I107: =CHOOSE($A107+1,_xlfn.IFNA(INDEX(USGS!Y:Y,MATCH($H107,USGS!X:X,0)),I106),AVERAGEIF(CNRFC!AR:AR,$H107,CNRFC!AN:AN),AVERAGEIF(Ensemble!GC:GC,$H107,Ensemble!GF:GF),"-") -> 6590 | J107: 6250 | K107: 5583.333333 | L107: =CHOOSE($A107+1,_xlfn.IFNA(INDEX(USGS!D:D,MATCH($H107,USGS!C:C,0)),I106),AVERAGEIF(CNRFC!AI:AI,$H107,CNRFC!AE:AE),AVERAGEIF(Ensemble!AR:AR,$H107,Ensemble!AT:AT),"-") -> 1140 | M107: =CHOOSE($A107+1,_xlfn.IFNA(INDEX(USGS!K:K,MATCH($H107,USGS!J:J,0)),I106),AVERAGEIF(CNRFC!Q:Q,$H107,CNRFC!M:M),AVERAGEIF(Ensemble!CM:CM,$H107,Ensemble!CO:CO),"-") -> 1040 | N107: =CHOOSE($A107+1,_xlfn.IFNA(INDEX(USGS!R:R,MATCH($H107,USGS!Q:Q,0)),I106),AVERAGEIF(CNRFC!Z:Z,$H107,CNRFC!V:V),AVERAGEIF(Ensemble!EH:EH,$H107,Ensemble!EJ:EJ),"-") -> 476 | O107: 2656 | P107: 2244.333333 | Q107: 1925.666667 | R107: =IF(AND(J107>Control!$F$6,P107>Control!$F$7,U106=1),1,0) -> 0 | S107: =IF(AND(T106>0,T106<Control!$F$8),0,IF(AND(K107<Control!$F$6-500,Q107<Control!$F$7),1,0))*(1-R107) -> 1 | T107: =IF(AND(T106<Control!$F$8,T106>0),T106+1,IF(AND(R107=1,U106=1),1,0)) -> 0 | U107: 1 | V107: =IF(A107<3,IF(AND(T107>0,OR(I107>Control!$F$9,SUM(V101:V106)>0)),MAX(I107-Control!$F$10,0),0),0) -> 0 | W107: =CHOOSE($W$1+1,99999,IF(AND(G107>=Control!$F$4,G107<=Control!$F$5),IF(T107<>0,V107,99999),0)) -> 99999 | X107: =INDEX(Control!$D$15:$D$26,D107) -> 3250 | Y107: 3340 | Z107: =CHOOSE($A107+1,IF(ISBLANK(INDEX(CDEC!G:G,MATCH($H107,CDEC!J:J,0))),Z106,_xlfn.IFNA(INDEX(CDEC!G:G,MATCH($H107,CDEC!J:J,0)),Z106)),AVERAGEIF(CNRFC!BA:BA,$H107,CNRFC!AW:AW),AVERAGEIF(Ensemble!JT:JT,$H107,Ensemble!JW:JW),"-") -> 6932 | AA107: =INDEX(Control!$E$15:$E$26,D107) -> 4000 | AB107: 2932 | AC107: =CHOOSE($A107+1,_xlfn.IFNA(INDEX(USGS!AH:AH,MATCH($H107,USGS!AE:AE,0)),I106),AVERAGEIF(CNRFC!H:H,$H107,CNRFC!D:D),AVERAGEIF(Ensemble!HY:HY,$H107,Ensemble!IA:IA),"-") -> 9120 | AD107: =INDEX(Control!$F$15:$F$26,D107) -> 10700 | AE107: 0 | AF107: 35000 | AG107: 0 | AH107: 0 | AI107: =MIN(INDEX(Control!$G$15:$G$26,D107),AG107) -> 0 | AJ107: =MIN(MAX(AH107-AI107,0),INDEX(Control!$H$15:$H$26,D107)) -> 0 | AK107: 0 | AL107: 2023-02-05 | AP107: 0 | AQ107: 0
A108: 0 | B108: 2023 | C108: 5 | D108: 2 | E108: 6 | F108: 2.06 | G108: 5.06 | H108: 2023-02-06 | I108: =CHOOSE($A108+1,_xlfn.IFNA(INDEX(USGS!Y:Y,MATCH($H108,USGS!X:X,0)),I107),AVERAGEIF(CNRFC!AR:AR,$H108,CNRFC!AN:AN),AVERAGEIF(Ensemble!GC:GC,$H108,Ensemble!GF:GF),"-") -> 6470 | J108: 5833.333333 | K108: 6060 | L108: =CHOOSE($A108+1,_xlfn.IFNA(INDEX(USGS!D:D,MATCH($H108,USGS!C:C,0)),I107),AVERAGEIF(CNRFC!AI:AI,$H108,CNRFC!AE:AE),AVERAGEIF(Ensemble!AR:AR,$H108,Ensemble!AT:AT),"-") -> 707 | M108: =CHOOSE($A108+1,_xlfn.IFNA(INDEX(USGS!K:K,MATCH($H108,USGS!J:J,0)),I107),AVERAGEIF(CNRFC!Q:Q,$H108,CNRFC!M:M),AVERAGEIF(Ensemble!CM:CM,$H108,Ensemble!CO:CO),"-") -> 1060 | N108: =CHOOSE($A108+1,_xlfn.IFNA(INDEX(USGS!R:R,MATCH($H108,USGS!Q:Q,0)),I107),AVERAGEIF(CNRFC!Z:Z,$H108,CNRFC!V:V),AVERAGEIF(Ensemble!EH:EH,$H108,Ensemble!EJ:EJ),"-") -> 461 | O108: 2228 | P108: 1927.333333 | Q108: 2150 | R108: =IF(AND(J108>Control!$F$6,P108>Control!$F$7,U107=1),1,0) -> 0 | S108: =IF(AND(T107>0,T107<Control!$F$8),0,IF(AND(K108<Control!$F$6-500,Q108<Control!$F$7),1,0))*(1-R108) -> 1 | T108: =IF(AND(T107<Control!$F$8,T107>0),T107+1,IF(AND(R108=1,U107=1),1,0)) -> 0 | U108: 1 | V108: =IF(A108<3,IF(AND(T108>0,OR(I108>Control!$F$9,SUM(V102:V107)>0)),MAX(I108-Control!$F$10,0),0),0) -> 0 | W108: =CHOOSE($W$1+1,99999,IF(AND(G108>=Control!$F$4,G108<=Control!$F$5),IF(T108<>0,V108,99999),0)) -> 99999 | X108: =INDEX(Control!$D$15:$D$26,D108) -> 3250 | Y108: 3220 | Z108: =CHOOSE($A108+1,IF(ISBLANK(INDEX(CDEC!G:G,MATCH($H108,CDEC!J:J,0))),Z107,_xlfn.IFNA(INDEX(CDEC!G:G,MATCH($H108,CDEC!J:J,0)),Z107)),AVERAGEIF(CNRFC!BA:BA,$H108,CNRFC!AW:AW),AVERAGEIF(Ensemble!JT:JT,$H108,Ensemble!JW:JW),"-") -> 8518 | AA108: =INDEX(Control!$E$15:$E$26,D108) -> 4000 | AB108: 4518 | AC108: =CHOOSE($A108+1,_xlfn.IFNA(INDEX(USGS!AH:AH,MATCH($H108,USGS!AE:AE,0)),I107),AVERAGEIF(CNRFC!H:H,$H108,CNRFC!D:D),AVERAGEIF(Ensemble!HY:HY,$H108,Ensemble!IA:IA),"-") -> 9300 | AD108: =INDEX(Control!$F$15:$F$26,D108) -> 10700 | AE108: 0 | AF108: 35000 | AG108: 0 | AH108: 0 | AI108: =MIN(INDEX(Control!$G$15:$G$26,D108),AG108) -> 0 | AJ108: =MIN(MAX(AH108-AI108,0),INDEX(Control!$H$15:$H$26,D108)) -> 0 | AK108: 0 | AL108: 2023-02-06 | AP108: 0 | AQ108: 0
A109: 0 | B109: 2023 | C109: 5 | D109: 2 | E109: 7 | F109: 2.07 | G109: 5.07 | H109: 2023-02-07 | I109: =CHOOSE($A109+1,_xlfn.IFNA(INDEX(USGS!Y:Y,MATCH($H109,USGS!X:X,0)),I108),AVERAGEIF(CNRFC!AR:AR,$H109,CNRFC!AN:AN),AVERAGEIF(Ensemble!GC:GC,$H109,Ensemble!GF:GF),"-") -> 5690 | J109: 5423.333333 | K109: 6250 | L109: =CHOOSE($A109+1,_xlfn.IFNA(INDEX(USGS!D:D,MATCH($H109,USGS!C:C,0)),I108),AVERAGEIF(CNRFC!AI:AI,$H109,CNRFC!AE:AE),AVERAGEIF(Ensemble!AR:AR,$H109,Ensemble!AT:AT),"-") -> 480 | M109: =CHOOSE($A109+1,_xlfn.IFNA(INDEX(USGS!K:K,MATCH($H109,USGS!J:J,0)),I108),AVERAGEIF(CNRFC!Q:Q,$H109,CNRFC!M:M),AVERAGEIF(Ensemble!CM:CM,$H109,Ensemble!CO:CO),"-") -> 949 | N109: =CHOOSE($A109+1,_xlfn.IFNA(INDEX(USGS!R:R,MATCH($H109,USGS!Q:Q,0)),I108),AVERAGEIF(CNRFC!Z:Z,$H109,CNRFC!V:V),AVERAGEIF(Ensemble!EH:EH,$H109,Ensemble!EJ:EJ),"-") -> 420 | O109: 1849 | P109: 1724 | Q109: 2244.333333 | R109: =IF(AND(J109>Control!$F$6,P109>Control!$F$7,U108=1),1,0) -> 0 | S109: =IF(AND(T108>0,T108<Control!$F$8),0,IF(AND(K109<Control!$F$6-500,Q109<Control!$F$7),1,0))*(1-R109) -> 1 | T109: =IF(AND(T108<Control!$F$8,T108>0),T108+1,IF(AND(R109=1,U108=1),1,0)) -> 0 | U109: 1 | V109: =IF(A109<3,IF(AND(T109>0,OR(I109>Control!$F$9,SUM(V103:V108)>0)),MAX(I109-Control!$F$10,0),0),0) -> 0 | W109: =CHOOSE($W$1+1,99999,IF(AND(G109>=Control!$F$4,G109<=Control!$F$5),IF(T109<>0,V109,99999),0)) -> 99999 | X109: =INDEX(Control!$D$15:$D$26,D109) -> 3250 | Y109: 2440 | Z109: =CHOOSE($A109+1,IF(ISBLANK(INDEX(CDEC!G:G,MATCH($H109,CDEC!J:J,0))),Z108,_xlfn.IFNA(INDEX(CDEC!G:G,MATCH($H109,CDEC!J:J,0)),Z108)),AVERAGEIF(CNRFC!BA:BA,$H109,CNRFC!AW:AW),AVERAGEIF(Ensemble!JT:JT,$H109,Ensemble!JW:JW),"-") -> 7562 | AA109: =INDEX(Control!$E$15:$E$26,D109) -> 4000 | AB109: 3562 | AC109: =CHOOSE($A109+1,_xlfn.IFNA(INDEX(USGS!AH:AH,MATCH($H109,USGS!AE:AE,0)),I108),AVERAGEIF(CNRFC!H:H,$H109,CNRFC!D:D),AVERAGEIF(Ensemble!HY:HY,$H109,Ensemble!IA:IA),"-") -> 10200 | AD109: =INDEX(Control!$F$15:$F$26,D109) -> 10700 | AE109: 0 | AF109: 35000 | AG109: 0 | AH109: 0 | AI109: =MIN(INDEX(Control!$G$15:$G$26,D109),AG109) -> 0 | AJ109: =MIN(MAX(AH109-AI109,0),INDEX(Control!$H$15:$H$26,D109)) -> 0 | AK109: 0 | AL109: 2023-02-07 | AP109: 0 | AQ109: 0
A110: 0 | B110: 2023 | C110: 5 | D110: 2 | E110: 8 | F110: 2.08 | G110: 5.08 | H110: 2023-02-08 | I110: =CHOOSE($A110+1,_xlfn.IFNA(INDEX(USGS!Y:Y,MATCH($H110,USGS!X:X,0)),I109),AVERAGEIF(CNRFC!AR:AR,$H110,CNRFC!AN:AN),AVERAGEIF(Ensemble!GC:GC,$H110,Ensemble!GF:GF),"-") -> 5340 | J110: 5246.666667 | K110: 5833.333333 | L110: =CHOOSE($A110+1,_xlfn.IFNA(INDEX(USGS!D:D,MATCH($H110,USGS!C:C,0)),I109),AVERAGEIF(CNRFC!AI:AI,$H110,CNRFC!AE:AE),AVERAGEIF(Ensemble!AR:AR,$H110,Ensemble!AT:AT),"-") -> 409 | M110: =CHOOSE($A110+1,_xlfn.IFNA(INDEX(USGS!K:K,MATCH($H110,USGS!J:J,0)),I109),AVERAGEIF(CNRFC!Q:Q,$H110,CNRFC!M:M),AVERAGEIF(Ensemble!CM:CM,$H110,Ensemble!CO:CO),"-") -> 901 | N110: =CHOOSE($A110+1,_xlfn.IFNA(INDEX(USGS!R:R,MATCH($H110,USGS!Q:Q,0)),I109),AVERAGEIF(CNRFC!Z:Z,$H110,CNRFC!V:V),AVERAGEIF(Ensemble!EH:EH,$H110,Ensemble!EJ:EJ),"-") -> 395 | O110: 1705 | P110: 1631.333333 | Q110: 1927.333333 | R110: =IF(AND(J110>Control!$F$6,P110>Control!$F$7,U109=1),1,0) -> 0 | S110: =IF(AND(T109>0,T109<Control!$F$8),0,IF(AND(K110<Control!$F$6-500,Q110<Control!$F$7),1,0))*(1-R110) -> 1 | T110: =IF(AND(T109<Control!$F$8,T109>0),T109+1,IF(AND(R110=1,U109=1),1,0)) -> 0 | U110: 1 | V110: =IF(A110<3,IF(AND(T110>0,OR(I110>Control!$F$9,SUM(V104:V109)>0)),MAX(I110-Control!$F$10,0),0),0) -> 0 | W110: =CHOOSE($W$1+1,99999,IF(AND(G110>=Control!$F$4,G110<=Control!$F$5),IF(T110<>0,V110,99999),0)) -> 99999 | X110: =INDEX(Control!$D$15:$D$26,D110) -> 3250 | Y110: 2090 | Z110: =CHOOSE($A110+1,IF(ISBLANK(INDEX(CDEC!G:G,MATCH($H110,CDEC!J:J,0))),Z109,_xlfn.IFNA(INDEX(CDEC!G:G,MATCH($H110,CDEC!J:J,0)),Z109)),AVERAGEIF(CNRFC!BA:BA,$H110,CNRFC!AW:AW),AVERAGEIF(Ensemble!JT:JT,$H110,Ensemble!JW:JW),"-") -> 6988 | AA110: =INDEX(Control!$E$15:$E$26,D110) -> 4000 | AB110: 2988 | AC110: =CHOOSE($A110+1,_xlfn.IFNA(INDEX(USGS!AH:AH,MATCH($H110,USGS!AE:AE,0)),I109),AVERAGEIF(CNRFC!H:H,$H110,CNRFC!D:D),AVERAGEIF(Ensemble!HY:HY,$H110,Ensemble!IA:IA),"-") -> 10000 | AD110: =INDEX(Control!$F$15:$F$26,D110) -> 10700 | AE110: 0 | AF110: 35000 | AG110: 0 | AH110: 0 | AI110: =MIN(INDEX(Control!$G$15:$G$26,D110),AG110) -> 0 | AJ110: =MIN(MAX(AH110-AI110,0),INDEX(Control!$H$15:$H$26,D110)) -> 0 | AK110: 0 | AL110: 2023-02-08 | AP110: 0 | AQ110: 0
A111: =IF(H111>TODAY()+29,3,IF(H111>TODAY()+4,2,IF(H111>=TODAY(),1,0))) -> 0 | B111: 2023 | C111: 5 | D111: 2 | E111: 9 | F111: 2.09 | G111: 5.09 | H111: 2023-02-09 | I111: =CHOOSE($A111+1,_xlfn.IFNA(INDEX(USGS!Y:Y,MATCH($H111,USGS!X:X,0)),I110),AVERAGEIF(CNRFC!AR:AR,$H111,CNRFC!AN:AN),AVERAGEIF(Ensemble!GC:GC,$H111,Ensemble!GF:GF),"-") -> 5240 | J111: 5183.333333 | K111: 5423.333333 | L111: =CHOOSE($A111+1,_xlfn.IFNA(INDEX(USGS!D:D,MATCH($H111,USGS!C:C,0)),I110),AVERAGEIF(CNRFC!AI:AI,$H111,CNRFC!AE:AE),AVERAGEIF(Ensemble!AR:AR,$H111,Ensemble!AT:AT),"-") -> 367 | M111: =CHOOSE($A111+1,_xlfn.IFNA(INDEX(USGS!K:K,MATCH($H111,USGS!J:J,0)),I110),AVERAGEIF(CNRFC!Q:Q,$H111,CNRFC!M:M),AVERAGEIF(Ensemble!CM:CM,$H111,Ensemble!CO:CO),"-") -> 868 | N111: =CHOOSE($A111+1,_xlfn.IFNA(INDEX(USGS!R:R,MATCH($H111,USGS!Q:Q,0)),I110),AVERAGEIF(CNRFC!Z:Z,$H111,CNRFC!V:V),AVERAGEIF(Ensemble!EH:EH,$H111,Ensemble!EJ:EJ),"-") -> 383 | O111: 1618 | P111: 1589 | Q111: 1724 | R111: =IF(AND(J111>Control!$F$6,P111>Control!$F$7,U110=1),1,0) -> 0 | S111: =IF(AND(T110>0,T110<Control!$F$8),0,IF(AND(K111<Control!$F$6-500,Q111<Control!$F$7),1,0))*(1-R111) -> 1 | T111: =IF(AND(T110<Control!$F$8,T110>0),T110+1,IF(AND(R111=1,U110=1),1,0)) -> 0 | U111: 1 | V111: =IF(A111<3,IF(AND(T111>0,OR(I111>Control!$F$9,SUM(V105:V110)>0)),MAX(I111-Control!$F$10,0),0),0) -> 0 | W111: =CHOOSE($W$1+1,99999,IF(AND(G111>=Control!$F$4,G111<=Control!$F$5),IF(T111<>0,V111,99999),0)) -> 99999 | X111: =INDEX(Control!$D$15:$D$26,D111) -> 3250 | Y111: 1990 | Z111: =CHOOSE($A111+1,IF(ISBLANK(INDEX(CDEC!G:G,MATCH($H111,CDEC!J:J,0))),Z110,_xlfn.IFNA(INDEX(CDEC!G:G,MATCH($H111,CDEC!J:J,0)),Z110)),AVERAGEIF(CNRFC!BA:BA,$H111,CNRFC!AW:AW),AVERAGEIF(Ensemble!JT:JT,$H111,Ensemble!JW:JW),"-") -> 6673 | AA111: =INDEX(Control!$E$15:$E$26,D111) -> 4000 | AB111: 2673 | AC111: =CHOOSE($A111+1,_xlfn.IFNA(INDEX(USGS!AH:AH,MATCH($H111,USGS!AE:AE,0)),I110),AVERAGEIF(CNRFC!H:H,$H111,CNRFC!D:D),AVERAGEIF(Ensemble!HY:HY,$H111,Ensemble!IA:IA),"-") -> 9540 | AD111: =INDEX(Control!$F$15:$F$26,D111) -> 10700 | AE111: 0 | AF111: 35000 | AG111: 0 | AH111: 0 | AI111: =MIN(INDEX(Control!$G$15:$G$26,D111),AG111) -> 0 | AJ111: =MIN(MAX(AH111-AI111,0),INDEX(Control!$H$15:$H$26,D111)) -> 0 | AK111: 0 | AL111: 2023-02-09 | AP111: 0 | AQ111: 0
A112: =IF(H112>TODAY()+29,3,IF(H112>TODAY()+4,2,IF(H112>=TODAY(),1,0))) -> 0 | B112: 2023 | C112: 5 | D112: 2 | E112: 10 | F112: 2.1 | G112: 5.1 | H112: 2023-02-10 | I112: =CHOOSE($A112+1,_xlfn.IFNA(INDEX(USGS!Y:Y,MATCH($H112,USGS!X:X,0)),I111),AVERAGEIF(CNRFC!AR:AR,$H112,CNRFC!AN:AN),AVERAGEIF(Ensemble!GC:GC,$H112,Ensemble!GF:GF),"-") -> 5160 | J112: 5133.333333 | K112: 5246.666667 | L112: =CHOOSE($A112+1,_xlfn.IFNA(INDEX(USGS!D:D,MATCH($H112,USGS!C:C,0)),I111),AVERAGEIF(CNRFC!AI:AI,$H112,CNRFC!AE:AE),AVERAGEIF(Ensemble!AR:AR,$H112,Ensemble!AT:AT),"-") -> 340 | M112: =CHOOSE($A112+1,_xlfn.IFNA(INDEX(USGS!K:K,MATCH($H112,USGS!J:J,0)),I111),AVERAGEIF(CNRFC!Q:Q,$H112,CNRFC!M:M),AVERAGEIF(Ensemble!CM:CM,$H112,Ensemble!CO:CO),"-") -> 850 | N112: =CHOOSE($A112+1,_xlfn.IFNA(INDEX(USGS!R:R,MATCH($H112,USGS!Q:Q,0)),I111),AVERAGEIF(CNRFC!Z:Z,$H112,CNRFC!V:V),AVERAGEIF(Ensemble!EH:EH,$H112,Ensemble!EJ:EJ),"-") -> 381 | O112: =IF(A112>2,"-",SUM(L112:N112)) -> 1571 | P112: 1559.666667 | Q112: 1631.333333 | R112: =IF(AND(J112>Control!$F$6,P112>Control!$F$7,U111=1),1,0) -> 0 | S112: =IF(AND(T111>0,T111<Control!$F$8),0,IF(AND(K112<Control!$F$6-500,Q112<Control!$F$7),1,0))*(1-R112) -> 1 | T112: =IF(AND(T111<Control!$F$8,T111>0),T111+1,IF(AND(R112=1,U111=1),1,0)) -> 0 | U112: 1 | V112: =IF(A112<3,IF(AND(T112>0,OR(I112>Control!$F$9,SUM(V106:V111)>0)),MAX(I112-Control!$F$10,0),0),0) -> 0 | W112: =CHOOSE($W$1+1,99999,IF(AND(G112>=Control!$F$4,G112<=Control!$F$5),IF(T112<>0,V112,99999),0)) -> 99999 | X112: =INDEX(Control!$D$15:$D$26,D112) -> 3250 | Y112: 1910 | Z112: =CHOOSE($A112+1,IF(ISBLANK(INDEX(CDEC!G:G,MATCH($H112,CDEC!J:J,0))),Z111,_xlfn.IFNA(INDEX(CDEC!G:G,MATCH($H112,CDEC!J:J,0)),Z111)),AVERAGEIF(CNRFC!BA:BA,$H112,CNRFC!AW:AW),AVERAGEIF(Ensemble!JT:JT,$H112,Ensemble!JW:JW),"-") -> 6506 | AA112: =INDEX(Control!$E$15:$E$26,D112) -> 4000 | AB112: 2506 | AC112: =CHOOSE($A112+1,_xlfn.IFNA(INDEX(USGS!AH:AH,MATCH($H112,USGS!AE:AE,0)),I111),AVERAGEIF(CNRFC!H:H,$H112,CNRFC!D:D),AVERAGEIF(Ensemble!HY:HY,$H112,Ensemble!IA:IA),"-") -> 9200 | AD112: =INDEX(Control!$F$15:$F$26,D112) -> 10700 | AE112: 0 | AF112: =IF(AL112="#N/A",NA(),35000) -> 35000 | AG112: 0 | AH112: 0 | AI112: =MIN(INDEX(Control!$G$15:$G$26,D112),AG112) -> 0 | AJ112: =MIN(MAX(AH112-AI112,0),INDEX(Control!$H$15:$H$26,D112)) -> 0 | AK112: 0 | AL112: 2023-02-10 | AP112: 0 | AQ112: 0
A113: =IF(H113>TODAY()+29,3,IF(H113>TODAY()+4,2,IF(H113>=TODAY(),1,0))) -> 0 | B113: 2023 | C113: 5 | D113: 2 | E113: 11 | F113: 2.11 | G113: 5.11 | H113: 2023-02-11 | I113: =CHOOSE($A113+1,_xlfn.IFNA(INDEX(USGS!Y:Y,MATCH($H113,USGS!X:X,0)),I112),AVERAGEIF(CNRFC!AR:AR,$H113,CNRFC!AN:AN),AVERAGEIF(Ensemble!GC:GC,$H113,Ensemble!GF:GF),"-") -> 5150 | J113: 5073.333333 | K113: 5183.333333 | L113: =CHOOSE($A113+1,_xlfn.IFNA(INDEX(USGS!D:D,MATCH($H113,USGS!C:C,0)),I112),AVERAGEIF(CNRFC!AI:AI,$H113,CNRFC!AE:AE),AVERAGEIF(Ensemble!AR:AR,$H113,Ensemble!AT:AT),"-") -> 336 | M113: =CHOOSE($A113+1,_xlfn.IFNA(INDEX(USGS!K:K,MATCH($H113,USGS!J:J,0)),I112),AVERAGEIF(CNRFC!Q:Q,$H113,CNRFC!M:M),AVERAGEIF(Ensemble!CM:CM,$H113,Ensemble!CO:CO),"-") -> 860 | N113: =CHOOSE($A113+1,_xlfn.IFNA(INDEX(USGS!R:R,MATCH($H113,USGS!Q:Q,0)),I112),AVERAGEIF(CNRFC!Z:Z,$H113,CNRFC!V:V),AVERAGEIF(Ensemble!EH:EH,$H113,Ensemble!EJ:EJ),"-") -> 382 | O113: =IF(A113>2,"-",SUM(L113:N113)) -> 1578 | P113: 1521.333333 | Q113: 1589 | R113: =IF(AND(J113>Control!$F$6,P113>Control!$F$7,U112=1),1,0) -> 0 | S113: =IF(AND(T112>0,T112<Control!$F$8),0,IF(AND(K113<Control!$F$6-500,Q113<Control!$F$7),1,0))*(1-R113) -> 1 | T113: =IF(AND(T112<Control!$F$8,T112>0),T112+1,IF(AND(R113=1,U112=1),1,0)) -> 0 | U113: 1 | V113: =IF(A113<3,IF(AND(T113>0,OR(I113>Control!$F$9,SUM(V107:V112)>0)),MAX(I113-Control!$F$10,0),0),0) -> 0 | W113: =CHOOSE($W$1+1,99999,IF(AND(G113>=Control!$F$4,G113<=Control!$F$5),IF(T113<>0,V113,99999),0)) -> 99999 | X113: =INDEX(Control!$D$15:$D$26,D113) -> 3250 | Y113: 1900 | Z113: =CHOOSE($A113+1,IF(ISBLANK(INDEX(CDEC!G:G,MATCH($H113,CDEC!J:J,0))),Z112,_xlfn.IFNA(INDEX(CDEC!G:G,MATCH($H113,CDEC!J:J,0)),Z112)),AVERAGEIF(CNRFC!BA:BA,$H113,CNRFC!AW:AW),AVERAGEIF(Ensemble!JT:JT,$H113,Ensemble!JW:JW),"-") -> 6409 | AA113: =INDEX(Control!$E$15:$E$26,D113) -> 4000 | AB113: 2409 | AC113: =CHOOSE($A113+1,_xlfn.IFNA(INDEX(USGS!AH:AH,MATCH($H113,USGS!AE:AE,0)),I112),AVERAGEIF(CNRFC!H:H,$H113,CNRFC!D:D),AVERAGEIF(Ensemble!HY:HY,$H113,Ensemble!IA:IA),"-") -> 8990 | AD113: =INDEX(Control!$F$15:$F$26,D113) -> 10700 | AE113: 0 | AF113: =IF(AL113="#N/A",NA(),35000) -> 35000 | AG113: 0 | AH113: 0 | AI113: =MIN(INDEX(Control!$G$15:$G$26,D113),AG113) -> 0 | AJ113: =MIN(MAX(AH113-AI113,0),INDEX(Control!$H$15:$H$26,D113)) -> 0 | AK113: 0 | AL113: 2023-02-11 | AP113: 0 | AQ113: 0
A114: 0 | B114: 2023 | C114: 5 | D114: 2 | E114: 12 | F114: 2.12 | G114: 5.12 | H114: 2023-02-12 | I114: =CHOOSE($A114+1,_xlfn.IFNA(INDEX(USGS!Y:Y,MATCH($H114,USGS!X:X,0)),I113),AVERAGEIF(CNRFC!AR:AR,$H114,CNRFC!AN:AN),AVERAGEIF(Ensemble!GC:GC,$H114,Ensemble!GF:GF),"-") -> 5090 | J114: 5016.666667 | K114: 5133.333333 | L114: =CHOOSE($A114+1,_xlfn.IFNA(INDEX(USGS!D:D,MATCH($H114,USGS!C:C,0)),I113),AVERAGEIF(CNRFC!AI:AI,$H114,CNRFC!AE:AE),AVERAGEIF(Ensemble!AR:AR,$H114,Ensemble!AT:AT),"-") -> 321 | M114: =CHOOSE($A114+1,_xlfn.IFNA(INDEX(USGS!K:K,MATCH($H114,USGS!J:J,0)),I113),AVERAGEIF(CNRFC!Q:Q,$H114,CNRFC!M:M),AVERAGEIF(Ensemble!CM:CM,$H114,Ensemble!CO:CO),"-") -> 834 | N114: =CHOOSE($A114+1,_xlfn.IFNA(INDEX(USGS!R:R,MATCH($H114,USGS!Q:Q,0)),I113),AVERAGEIF(CNRFC!Z:Z,$H114,CNRFC!V:V),AVERAGEIF(Ensemble!EH:EH,$H114,Ensemble!EJ:EJ),"-") -> 375 | O114: 1530 | P114: 5975.333333 | Q114: 1559.666667 | R114: =IF(AND(J114>Control!$F$6,P114>Control!$F$7,U113=1),1,0) -> 0 | S114: =IF(AND(T113>0,T113<Control!$F$8),0,IF(AND(K114<Control!$F$6-500,Q114<Control!$F$7),1,0))*(1-R114) -> 1 | T114: =IF(AND(T113<Control!$F$8,T113>0),T113+1,IF(AND(R114=1,U113=1),1,0)) -> 0 | U114: 1 | V114: =IF(A114<3,IF(AND(T114>0,OR(I114>Control!$F$9,SUM(V108:V113)>0)),MAX(I114-Control!$F$10,0),0),0) -> 0 | W114: =CHOOSE($W$1+1,99999,IF(AND(G114>=Control!$F$4,G114<=Control!$F$5),IF(T114<>0,V114,99999),0)) -> 99999 | X114: =INDEX(Control!$D$15:$D$26,D114) -> 3250 | Y114: 1840 | Z114: =CHOOSE($A114+1,IF(ISBLANK(INDEX(CDEC!G:G,MATCH($H114,CDEC!J:J,0))),Z113,_xlfn.IFNA(INDEX(CDEC!G:G,MATCH($H114,CDEC!J:J,0)),Z113)),AVERAGEIF(CNRFC!BA:BA,$H114,CNRFC!AW:AW),AVERAGEIF(Ensemble!JT:JT,$H114,Ensemble!JW:JW),"-") -> 6383 | AA114: =INDEX(Control!$E$15:$E$26,D114) -> 4000 | AB114: 2383 | AC114: =CHOOSE($A114+1,_xlfn.IFNA(INDEX(USGS!AH:AH,MATCH($H114,USGS!AE:AE,0)),I113),AVERAGEIF(CNRFC!H:H,$H114,CNRFC!D:D),AVERAGEIF(Ensemble!HY:HY,$H114,Ensemble!IA:IA),"-") -> 8830 | AD114: =INDEX(Control!$F$15:$F$26,D114) -> 10700 | AE114: 0 | AF114: 35000 | AG114: 0 | AH114: 0 | AI114: =MIN(INDEX(Control!$G$15:$G$26,D114),AG114) -> 0 | AJ114: =MIN(MAX(AH114-AI114,0),INDEX(Control!$H$15:$H$26,D114)) -> 0 | AK114: 0 | AL114: 2023-02-12 | AP114: 0 | AQ114: 0
A115: 0 | B115: 2023 | C115: 5 | D115: 2 | E115: 13 | F115: 2.13 | G115: 5.13 | H115: 2023-02-13 | I115: =CHOOSE($A115+1,_xlfn.IFNA(INDEX(USGS!Y:Y,MATCH($H115,USGS!X:X,0)),I114),AVERAGEIF(CNRFC!AR:AR,$H115,CNRFC!AN:AN),AVERAGEIF(Ensemble!GC:GC,$H115,Ensemble!GF:GF),"-") -> 4980 | J115: 4980 | K115: 5073.333333 | L115: =CHOOSE($A115+1,_xlfn.IFNA(INDEX(USGS!D:D,MATCH($H115,USGS!C:C,0)),I114),AVERAGEIF(CNRFC!AI:AI,$H115,CNRFC!AE:AE),AVERAGEIF(Ensemble!AR:AR,$H115,Ensemble!AT:AT),"-") -> 293 | M115: =CHOOSE($A115+1,_xlfn.IFNA(INDEX(USGS!K:K,MATCH($H115,USGS!J:J,0)),I114),AVERAGEIF(CNRFC!Q:Q,$H115,CNRFC!M:M),AVERAGEIF(Ensemble!CM:CM,$H115,Ensemble!CO:CO),"-") -> 801 | N115: =CHOOSE($A115+1,_xlfn.IFNA(INDEX(USGS!R:R,MATCH($H115,USGS!Q:Q,0)),I114),AVERAGEIF(CNRFC!Z:Z,$H115,CNRFC!V:V),AVERAGEIF(Ensemble!EH:EH,$H115,Ensemble!EJ:EJ),"-") -> 362 | O115: 1456 | P115: 10445.33333 | Q115: 1521.333333 | R115: =IF(AND(J115>Control!$F$6,P115>Control!$F$7,U114=1),1,0) -> 0 | S115: =IF(AND(T114>0,T114<Control!$F$8),0,IF(AND(K115<Control!$F$6-500,Q115<Control!$F$7),1,0))*(1-R115) -> 1 | T115: =IF(AND(T114<Control!$F$8,T114>0),T114+1,IF(AND(R115=1,U114=1),1,0)) -> 0 | U115: 1 | V115: =IF(A115<3,IF(AND(T115>0,OR(I115>Control!$F$9,SUM(V109:V114)>0)),MAX(I115-Control!$F$10,0),0),0) -> 0 | W115: =CHOOSE($W$1+1,99999,IF(AND(G115>=Control!$F$4,G115<=Control!$F$5),IF(T115<>0,V115,99999),0)) -> 99999 | X115: =INDEX(Control!$D$15:$D$26,D115) -> 3250 | Y115: 1730 | Z115: =CHOOSE($A115+1,IF(ISBLANK(INDEX(CDEC!G:G,MATCH($H115,CDEC!J:J,0))),Z114,_xlfn.IFNA(INDEX(CDEC!G:G,MATCH($H115,CDEC!J:J,0)),Z114)),AVERAGEIF(CNRFC!BA:BA,$H115,CNRFC!AW:AW),AVERAGEIF(Ensemble!JT:JT,$H115,Ensemble!JW:JW),"-") -> 6215 | AA115: =INDEX(Control!$E$15:$E$26,D115) -> 4000 | AB115: 2215 | AC115: =CHOOSE($A115+1,_xlfn.IFNA(INDEX(USGS!AH:AH,MATCH($H115,USGS!AE:AE,0)),I114),AVERAGEIF(CNRFC!H:H,$H115,CNRFC!D:D),AVERAGEIF(Ensemble!HY:HY,$H115,Ensemble!IA:IA),"-") -> 8690 | AD115: =INDEX(Control!$F$15:$F$26,D115) -> 10700 | AE115: 0 | AF115: 35000 | AG115: 0 | AH115: 0 | AI115: =MIN(INDEX(Control!$G$15:$G$26,D115),AG115) -> 0 | AJ115: =MIN(MAX(AH115-AI115,0),INDEX(Control!$H$15:$H$26,D115)) -> 0 | AK115: 0 | AL115: 2023-02-13 | AP115: 0 | AQ115: 0
A116: 0 | B116: 2023 | C116: 5 | D116: 2 | E116: 14 | F116: 2.14 | G116: 5.14 | H116: 2023-02-14 | I116: =CHOOSE($A116+1,_xlfn.IFNA(INDEX(USGS!Y:Y,MATCH($H116,USGS!X:X,0)),I115),AVERAGEIF(CNRFC!AR:AR,$H116,CNRFC!AN:AN),AVERAGEIF(Ensemble!GC:GC,$H116,Ensemble!GF:GF),"-") -> 4980 | J116: 4918.388889 | K116: 5016.666667 | L116: =CHOOSE($A116+1,_xlfn.IFNA(INDEX(USGS!D:D,MATCH($H116,USGS!C:C,0)),I115),AVERAGEIF(CNRFC!AI:AI,$H116,CNRFC!AE:AE),AVERAGEIF(Ensemble!AR:AR,$H116,Ensemble!AT:AT),"-") -> 4980 | M116: =CHOOSE($A116+1,_xlfn.IFNA(INDEX(USGS!K:K,MATCH($H116,USGS!J:J,0)),I115),AVERAGEIF(CNRFC!Q:Q,$H116,CNRFC!M:M),AVERAGEIF(Ensemble!CM:CM,$H116,Ensemble!CO:CO),"-") -> 4980 | N116: =CHOOSE($A116+1,_xlfn.IFNA(INDEX(USGS!R:R,MATCH($H116,USGS!Q:Q,0)),I115),AVERAGEIF(CNRFC!Z:Z,$H116,CNRFC!V:V),AVERAGEIF(Ensemble!EH:EH,$H116,Ensemble!EJ:EJ),"-") -> 4980 | O116: 14940 | P116: 10394.56944 | Q116: 5975.333333 | R116: =IF(AND(J116>Control!$F$6,P116>Control!$F$7,U115=1),1,0) -> 0 | S116: =IF(AND(T115>0,T115<Control!$F$8),0,IF(AND(K116<Control!$F$6-500,Q116<Control!$F$7),1,0))*(1-R116) -> 0 | T116: =IF(AND(T115<Control!$F$8,T115>0),T115+1,IF(AND(R116=1,U115=1),1,0)) -> 0 | U116: 1 | V116: =IF(A116<3,IF(AND(T116>0,OR(I116>Control!$F$9,SUM(V110:V115)>0)),MAX(I116-Control!$F$10,0),0),0) -> 0 | W116: =CHOOSE($W$1+1,99999,IF(AND(G116>=Control!$F$4,G116<=Control!$F$5),IF(T116<>0,V116,99999),0)) -> 99999 | X116: =INDEX(Control!$D$15:$D$26,D116) -> 3250 | Y116: 1730 | Z116: =CHOOSE($A116+1,IF(ISBLANK(INDEX(CDEC!G:G,MATCH($H116,CDEC!J:J,0))),Z115,_xlfn.IFNA(INDEX(CDEC!G:G,MATCH($H116,CDEC!J:J,0)),Z115)),AVERAGEIF(CNRFC!BA:BA,$H116,CNRFC!AW:AW),AVERAGEIF(Ensemble!JT:JT,$H116,Ensemble!JW:JW),"-") -> 6215 | AA116: =INDEX(Control!$E$15:$E$26,D116) -> 4000 | AB116: 2215 | AC116: =CHOOSE($A116+1,_xlfn.IFNA(INDEX(USGS!AH:AH,MATCH($H116,USGS!AE:AE,0)),I115),AVERAGEIF(CNRFC!H:H,$H116,CNRFC!D:D),AVERAGEIF(Ensemble!HY:HY,$H116,Ensemble!IA:IA),"-") -> 4980 | AD116: =INDEX(Control!$F$15:$F$26,D116) -> 10700 | AE116: 0 | AF116: 35000 | AG116: 0 | AH116: 0 | AI116: =MIN(INDEX(Control!$G$15:$G$26,D116),AG116) -> 0 | AJ116: =MIN(MAX(AH116-AI116,0),INDEX(Control!$H$15:$H$26,D116)) -> 0 | AK116: 0 | AL116: 2023-02-14 | AP116: 0 | AQ116: 0
A117: 0 | B117: 2023 | C117: 5 | D117: 2 | E117: 15 | F117: 2.15 | G117: 5.15 | H117: 2023-02-15 | I117: =CHOOSE($A117+1,_xlfn.IFNA(INDEX(USGS!Y:Y,MATCH($H117,USGS!X:X,0)),I116),AVERAGEIF(CNRFC!AR:AR,$H117,CNRFC!AN:AN),AVERAGEIF(Ensemble!GC:GC,$H117,Ensemble!GF:GF),"-") -> 4980 | J117: 4843.5 | K117: 4980 | L117: =CHOOSE($A117+1,_xlfn.IFNA(INDEX(USGS!D:D,MATCH($H117,USGS!C:C,0)),I116),AVERAGEIF(CNRFC!AI:AI,$H117,CNRFC!AE:AE),AVERAGEIF(Ensemble!AR:AR,$H117,Ensemble!AT:AT),"-") -> 4980 | M117: =CHOOSE($A117+1,_xlfn.IFNA(INDEX(USGS!K:K,MATCH($H117,USGS!J:J,0)),I116),AVERAGEIF(CNRFC!Q:Q,$H117,CNRFC!M:M),AVERAGEIF(Ensemble!CM:CM,$H117,Ensemble!CO:CO),"-") -> 4980 | N117: =CHOOSE($A117+1,_xlfn.IFNA(INDEX(USGS!R:R,MATCH($H117,USGS!Q:Q,0)),I116),AVERAGEIF(CNRFC!Z:Z,$H117,CNRFC!V:V),AVERAGEIF(Ensemble!EH:EH,$H117,Ensemble!EJ:EJ),"-") -> 4980 | O117: 14940 | P117: 5837.888889 | Q117: 10445.33333 | R117: =IF(AND(J117>Control!$F$6,P117>Control!$F$7,U116=1),1,0) -> 0 | S117: =IF(AND(T116>0,T116<Control!$F$8),0,IF(AND(K117<Control!$F$6-500,Q117<Control!$F$7),1,0))*(1-R117) -> 0 | T117: =IF(AND(T116<Control!$F$8,T116>0),T116+1,IF(AND(R117=1,U116=1),1,0)) -> 0 | U117: 1 | V117: =IF(A117<3,IF(AND(T117>0,OR(I117>Control!$F$9,SUM(V111:V116)>0)),MAX(I117-Control!$F$10,0),0),0) -> 0 | W117: =CHOOSE($W$1+1,99999,IF(AND(G117>=Control!$F$4,G117<=Control!$F$5),IF(T117<>0,V117,99999),0)) -> 99999 | X117: =INDEX(Control!$D$15:$D$26,D117) -> 3250 | Y117: 1730 | Z117: =CHOOSE($A117+1,IF(ISBLANK(INDEX(CDEC!G:G,MATCH($H117,CDEC!J:J,0))),Z116,_xlfn.IFNA(INDEX(CDEC!G:G,MATCH($H117,CDEC!J:J,0)),Z116)),AVERAGEIF(CNRFC!BA:BA,$H117,CNRFC!AW:AW),AVERAGEIF(Ensemble!JT:JT,$H117,Ensemble!JW:JW),"-") -> 6215 | AA117: =INDEX(Control!$E$15:$E$26,D117) -> 4000 | AB117: 2215 | AC117: =CHOOSE($A117+1,_xlfn.IFNA(INDEX(USGS!AH:AH,MATCH($H117,USGS!AE:AE,0)),I116),AVERAGEIF(CNRFC!H:H,$H117,CNRFC!D:D),AVERAGEIF(Ensemble!HY:HY,$H117,Ensemble!IA:IA),"-") -> 4980 | AD117: =INDEX(Control!$F$15:$F$26,D117) -> 10700 | AE117: 0 | AF117: 35000 | AG117: 0 | AH117: 0 | AI117: =MIN(INDEX(Control!$G$15:$G$26,D117),AG117) -> 0 | AJ117: =MIN(MAX(AH117-AI117,0),INDEX(Control!$H$15:$H$26,D117)) -> 0 | AK117: 0 | AL117: 2023-02-15 | AP117: 0 | AQ117: 0
A118: 1 | B118: 2023 | C118: 5 | D118: 2 | E118: 16 | F118: 2.16 | G118: 5.16 | H118: 2023-02-16 | I118: =CHOOSE($A118+1,_xlfn.IFNA(INDEX(USGS!Y:Y,MATCH($H118,USGS!X:X,0)),I117),AVERAGEIF(CNRFC!AR:AR,$H118,CNRFC!AN:AN),AVERAGEIF(Ensemble!GC:GC,$H118,Ensemble!GF:GF),"-") -> 4795.166667 | J118: 4763.5 | K118: 4918.388889 | L118: =CHOOSE($A118+1,_xlfn.IFNA(INDEX(USGS!D:D,MATCH($H118,USGS!C:C,0)),I117),AVERAGEIF(CNRFC!AI:AI,$H118,CNRFC!AE:AE),AVERAGEIF(Ensemble!AR:AR,$H118,Ensemble!AT:AT),"-") -> 251.5 | M118: =CHOOSE($A118+1,_xlfn.IFNA(INDEX(USGS!K:K,MATCH($H118,USGS!J:J,0)),I117),AVERAGEIF(CNRFC!Q:Q,$H118,CNRFC!M:M),AVERAGEIF(Ensemble!CM:CM,$H118,Ensemble!CO:CO),"-") -> 718.0416667 | N118: =CHOOSE($A118+1,_xlfn.IFNA(INDEX(USGS!R:R,MATCH($H118,USGS!Q:Q,0)),I117),AVERAGEIF(CNRFC!Z:Z,$H118,CNRFC!V:V),AVERAGEIF(Ensemble!EH:EH,$H118,Ensemble!EJ:EJ),"-") -> 334.1666667 | O118: 1303.708333 | P118: 1275.138889 | Q118: 10394.56944 | R118: =IF(AND(J118>Control!$F$6,P118>Control!$F$7,U117=1),1,0) -> 0 | S118: =IF(AND(T117>0,T117<Control!$F$8),0,IF(AND(K118<Control!$F$6-500,Q118<Control!$F$7),1,0))*(1-R118) -> 0 | T118: =IF(AND(T117<Control!$F$8,T117>0),T117+1,IF(AND(R118=1,U117=1),1,0)) -> 0 | U118: 1 | V118: =IF(A118<3,IF(AND(T118>0,OR(I118>Control!$F$9,SUM(V112:V117)>0)),MAX(I118-Control!$F$10,0),0),0) -> 0 | W118: =CHOOSE($W$1+1,99999,IF(AND(G118>=Control!$F$4,G118<=Control!$F$5),IF(T118<>0,V118,99999),0)) -> 99999 | X118: =INDEX(Control!$D$15:$D$26,D118) -> 3250 | Y118: 1545.166667 | Z118: =CHOOSE($A118+1,IF(ISBLANK(INDEX(CDEC!G:G,MATCH($H118,CDEC!J:J,0))),Z117,_xlfn.IFNA(INDEX(CDEC!G:G,MATCH($H118,CDEC!J:J,0)),Z117)),AVERAGEIF(CNRFC!BA:BA,$H118,CNRFC!AW:AW),AVERAGEIF(Ensemble!JT:JT,$H118,Ensemble!JW:JW),"-") -> 5806 | AA118: =INDEX(Control!$E$15:$E$26,D118) -> 4000 | AB118: 1806 | AC118: =CHOOSE($A118+1,_xlfn.IFNA(INDEX(USGS!AH:AH,MATCH($H118,USGS!AE:AE,0)),I117),AVERAGEIF(CNRFC!H:H,$H118,CNRFC!D:D),AVERAGEIF(Ensemble!HY:HY,$H118,Ensemble!IA:IA),"-") -> 8060.75 | AD118: =INDEX(Control!$F$15:$F$26,D118) -> 10700 | AE118: 0 | AF118: 35000 | AG118: 0 | AH118: 0 | AI118: =MIN(INDEX(Control!$G$15:$G$26,D118),AG118) -> 0 | AJ118: =MIN(MAX(AH118-AI118,0),INDEX(Control!$H$15:$H$26,D118)) -> 0 | AK118: 0 | AL118: 2023-02-16 | AM118: 30000 | AN118: <--- Observed Forecast ---> | AO118: 50000 | AP118: 0 | AQ118: 0
A119: 1 | B119: 2023 | C119: 5 | D119: 2 | E119: 17 | F119: 2.17 | G119: 5.17 | H119: 2023-02-17 | I119: =CHOOSE($A119+1,_xlfn.IFNA(INDEX(USGS!Y:Y,MATCH($H119,USGS!X:X,0)),I118),AVERAGEIF(CNRFC!AR:AR,$H119,CNRFC!AN:AN),AVERAGEIF(Ensemble!GC:GC,$H119,Ensemble!GF:GF),"-") -> 4755.333333 | J119: 4745.111111 | K119: 4843.5 | L119: =CHOOSE($A119+1,_xlfn.IFNA(INDEX(USGS!D:D,MATCH($H119,USGS!C:C,0)),I118),AVERAGEIF(CNRFC!AI:AI,$H119,CNRFC!AE:AE),AVERAGEIF(Ensemble!AR:AR,$H119,Ensemble!AT:AT),"-") -> 246 | M119: =CHOOSE($A119+1,_xlfn.IFNA(INDEX(USGS!K:K,MATCH($H119,USGS!J:J,0)),I118),AVERAGEIF(CNRFC!Q:Q,$H119,CNRFC!M:M),AVERAGEIF(Ensemble!CM:CM,$H119,Ensemble!CO:CO),"-") -> 698.9583333 | N119: =CHOOSE($A119+1,_xlfn.IFNA(INDEX(USGS!R:R,MATCH($H119,USGS!Q:Q,0)),I118),AVERAGEIF(CNRFC!Z:Z,$H119,CNRFC!V:V),AVERAGEIF(Ensemble!EH:EH,$H119,Ensemble!EJ:EJ),"-") -> 325 | O119: 1269.958333 | P119: 1261.036111 | Q119: 5837.888889 | R119: =IF(AND(J119>Control!$F$6,P119>Control!$F$7,U118=1),1,0) -> 0 | S119: =IF(AND(T118>0,T118<Control!$F$8),0,IF(AND(K119<Control!$F$6-500,Q119<Control!$F$7),1,0))*(1-R119) -> 0 | T119: =IF(AND(T118<Control!$F$8,T118>0),T118+1,IF(AND(R119=1,U118=1),1,0)) -> 0 | U119: 1 | V119: =IF(A119<3,IF(AND(T119>0,OR(I119>Control!$F$9,SUM(V113:V118)>0)),MAX(I119-Control!$F$10,0),0),0) -> 0 | W119: =CHOOSE($W$1+1,99999,IF(AND(G119>=Control!$F$4,G119<=Control!$F$5),IF(T119<>0,V119,99999),0)) -> 99999 | X119: =INDEX(Control!$D$15:$D$26,D119) -> 3250 | Y119: 1505.333333 | Z119: =CHOOSE($A119+1,IF(ISBLANK(INDEX(CDEC!G:G,MATCH($H119,CDEC!J:J,0))),Z118,_xlfn.IFNA(INDEX(CDEC!G:G,MATCH($H119,CDEC!J:J,0)),Z118)),AVERAGEIF(CNRFC!BA:BA,$H119,CNRFC!AW:AW),AVERAGEIF(Ensemble!JT:JT,$H119,Ensemble!JW:JW),"-") -> 5743.5 | AA119: =INDEX(Control!$E$15:$E$26,D119) -> 4000 | AB119: 1743.5 | AC119: =CHOOSE($A119+1,_xlfn.IFNA(INDEX(USGS!AH:AH,MATCH($H119,USGS!AE:AE,0)),I118),AVERAGEIF(CNRFC!H:H,$H119,CNRFC!D:D),AVERAGEIF(Ensemble!HY:HY,$H119,Ensemble!IA:IA),"-") -> 7873.041667 | AD119: =INDEX(Control!$F$15:$F$26,D119) -> 10700 | AE119: 0 | AF119: 35000 | AG119: 0 | AH119: 0 | AI119: =MIN(INDEX(Control!$G$15:$G$26,D119),AG119) -> 0 | AJ119: =MIN(MAX(AH119-AI119,0),INDEX(Control!$H$15:$H$26,D119)) -> 0 | AK119: 0 | AL119: 2023-02-17 | AP119: 0 | AQ119: 0
A120: 1 | B120: 2023 | C120: 5 | D120: 2 | E120: 18 | F120: 2.18 | G120: 5.18 | H120: 2023-02-18 | I120: =CHOOSE($A120+1,_xlfn.IFNA(INDEX(USGS!Y:Y,MATCH($H120,USGS!X:X,0)),I119),AVERAGEIF(CNRFC!AR:AR,$H120,CNRFC!AN:AN),AVERAGEIF(Ensemble!GC:GC,$H120,Ensemble!GF:GF),"-") -> 4740 | K120: 4763.5 | L120: =CHOOSE($A120+1,_xlfn.IFNA(INDEX(USGS!D:D,MATCH($H120,USGS!C:C,0)),I119),AVERAGEIF(CNRFC!AI:AI,$H120,CNRFC!AE:AE),AVERAGEIF(Ensemble!AR:AR,$H120,Ensemble!AT:AT),"-") -> 241.75 | M120: =CHOOSE($A120+1,_xlfn.IFNA(INDEX(USGS!K:K,MATCH($H120,USGS!J:J,0)),I119),AVERAGEIF(CNRFC!Q:Q,$H120,CNRFC!M:M),AVERAGEIF(Ensemble!CM:CM,$H120,Ensemble!CO:CO),"-") -> 692.875 | N120: =CHOOSE($A120+1,_xlfn.IFNA(INDEX(USGS!R:R,MATCH($H120,USGS!Q:Q,0)),I119),AVERAGEIF(CNRFC!Z:Z,$H120,CNRFC!V:V),AVERAGEIF(Ensemble!EH:EH,$H120,Ensemble!EJ:EJ),"-") -> 317.125 | O120: 1251.75 | Q120: 1275.138889 | R120: =IF(AND(J120>Control!$F$6,P120>Control!$F$7,U119=1),1,0) ->  | S120: =IF(AND(T119>0,T119<Control!$F$8),0,IF(AND(K120<Control!$F$6-500,Q120<Control!$F$7),1,0))*(1-R120) ->  | T120: =IF(AND(T119<Control!$F$8,T119>0),T119+1,IF(AND(R120=1,U119=1),1,0)) ->  | V120: =IF(A120<3,IF(AND(T120>0,OR(I120>Control!$F$9,SUM(V114:V119)>0)),MAX(I120-Control!$F$10,0),0),0) ->  | W120: =CHOOSE($W$1+1,99999,IF(AND(G120>=Control!$F$4,G120<=Control!$F$5),IF(T120<>0,V120,99999),0)) ->  | X120: =INDEX(Control!$D$15:$D$26,D120) -> 3250 | Y120: 1490 | Z120: =CHOOSE($A120+1,IF(ISBLANK(INDEX(CDEC!G:G,MATCH($H120,CDEC!J:J,0))),Z119,_xlfn.IFNA(INDEX(CDEC!G:G,MATCH($H120,CDEC!J:J,0)),Z119)),AVERAGEIF(CNRFC!BA:BA,$H120,CNRFC!AW:AW),AVERAGEIF(Ensemble!JT:JT,$H120,Ensemble!JW:JW),"-") -> 5702.291667 | AA120: =INDEX(Control!$E$15:$E$26,D120) -> 4000 | AB120: 1702.291667 | AC120: =CHOOSE($A120+1,_xlfn.IFNA(INDEX(USGS!AH:AH,MATCH($H120,USGS!AE:AE,0)),I119),AVERAGEIF(CNRFC!H:H,$H120,CNRFC!D:D),AVERAGEIF(Ensemble!HY:HY,$H120,Ensemble!IA:IA),"-") -> 7724.208333 | AD120: =INDEX(Control!$F$15:$F$26,D120) -> 10700 | AE120: 0 | AF120: 35000 | AI120: =MIN(INDEX(Control!$G$15:$G$26,D120),AG120) ->  | AJ120: =MIN(MAX(AH120-AI120,0),INDEX(Control!$H$15:$H$26,D120)) ->  | AL120: 2023-02-18
A121: 1 | B121: 2023 | C121: 5 | D121: 2 | E121: 19 | F121: 2.19 | G121: 5.19 | H121: 2023-02-19 | I121: =CHOOSE($A121+1,_xlfn.IFNA(INDEX(USGS!Y:Y,MATCH($H121,USGS!X:X,0)),I120),AVERAGEIF(CNRFC!AR:AR,$H121,CNRFC!AN:AN),AVERAGEIF(Ensemble!GC:GC,$H121,Ensemble!GF:GF),"-") -> 4740 | K121: 4745.111111 | L121: =CHOOSE($A121+1,_xlfn.IFNA(INDEX(USGS!D:D,MATCH($H121,USGS!C:C,0)),I120),AVERAGEIF(CNRFC!AI:AI,$H121,CNRFC!AE:AE),AVERAGEIF(Ensemble!AR:AR,$H121,Ensemble!AT:AT),"-") -> 240.4 | M121: =CHOOSE($A121+1,_xlfn.IFNA(INDEX(USGS!K:K,MATCH($H121,USGS!J:J,0)),I120),AVERAGEIF(CNRFC!Q:Q,$H121,CNRFC!M:M),AVERAGEIF(Ensemble!CM:CM,$H121,Ensemble!CO:CO),"-") -> 707 | N121: =CHOOSE($A121+1,_xlfn.IFNA(INDEX(USGS!R:R,MATCH($H121,USGS!Q:Q,0)),I120),AVERAGEIF(CNRFC!Z:Z,$H121,CNRFC!V:V),AVERAGEIF(Ensemble!EH:EH,$H121,Ensemble!EJ:EJ),"-") -> 314 | O121: 1261.4 | Q121: 1261.036111 | R121: =IF(AND(J121>Control!$F$6,P121>Control!$F$7,U120=1),1,0) ->  | S121: =IF(AND(T120>0,T120<Control!$F$8),0,IF(AND(K121<Control!$F$6-500,Q121<Control!$F$7),1,0))*(1-R121) ->  | T121: =IF(AND(T120<Control!$F$8,T120>0),T120+1,IF(AND(R121=1,U120=1),1,0)) ->  | V121: =IF(A121<3,IF(AND(T121>0,OR(I121>Control!$F$9,SUM(V115:V120)>0)),MAX(I121-Control!$F$10,0),0),0) ->  | W121: =CHOOSE($W$1+1,99999,IF(AND(G121>=Control!$F$4,G121<=Control!$F$5),IF(T121<>0,V121,99999),0)) ->  | X121: =INDEX(Control!$D$15:$D$26,D121) -> 3250 | Y121: 1490 | Z121: =CHOOSE($A121+1,IF(ISBLANK(INDEX(CDEC!G:G,MATCH($H121,CDEC!J:J,0))),Z120,_xlfn.IFNA(INDEX(CDEC!G:G,MATCH($H121,CDEC!J:J,0)),Z120)),AVERAGEIF(CNRFC!BA:BA,$H121,CNRFC!AW:AW),AVERAGEIF(Ensemble!JT:JT,$H121,Ensemble!JW:JW),"-") -> 5684 | AA121: =INDEX(Control!$E$15:$E$26,D121) -> 4000 | AB121: 1684 | AC121: =CHOOSE($A121+1,_xlfn.IFNA(INDEX(USGS!AH:AH,MATCH($H121,USGS!AE:AE,0)),I120),AVERAGEIF(CNRFC!H:H,$H121,CNRFC!D:D),AVERAGEIF(Ensemble!HY:HY,$H121,Ensemble!IA:IA),"-") -> 7646.8 | AD121: =INDEX(Control!$F$15:$F$26,D121) -> 10700 | AE121: 0 | AF121: 35000 | AI121: =MIN(INDEX(Control!$G$15:$G$26,D121),AG121) ->  | AJ121: =MIN(MAX(AH121-AI121,0),INDEX(Control!$H$15:$H$26,D121)) ->  | AL121: 2023-02-19
A122: 1 | B122: 2023 | C122: 5 | D122: 2 | E122: 20 | F122: 2.2 | G122: 5.2 | H122: 2023-02-20 | I122: =CHOOSE($A122+1,_xlfn.IFNA(INDEX(USGS!Y:Y,MATCH($H122,USGS!X:X,0)),I121),AVERAGEIF(CNRFC!AR:AR,$H122,CNRFC!AN:AN),AVERAGEIF(Ensemble!GC:GC,$H122,Ensemble!GF:GF),"-") ->  | L122: =CHOOSE($A122+1,_xlfn.IFNA(INDEX(USGS!D:D,MATCH($H122,USGS!C:C,0)),I121),AVERAGEIF(CNRFC!AI:AI,$H122,CNRFC!AE:AE),AVERAGEIF(Ensemble!AR:AR,$H122,Ensemble!AT:AT),"-") ->  | M122: =CHOOSE($A122+1,_xlfn.IFNA(INDEX(USGS!K:K,MATCH($H122,USGS!J:J,0)),I121),AVERAGEIF(CNRFC!Q:Q,$H122,CNRFC!M:M),AVERAGEIF(Ensemble!CM:CM,$H122,Ensemble!CO:CO),"-") ->  | N122: =CHOOSE($A122+1,_xlfn.IFNA(INDEX(USGS!R:R,MATCH($H122,USGS!Q:Q,0)),I121),AVERAGEIF(CNRFC!Z:Z,$H122,CNRFC!V:V),AVERAGEIF(Ensemble!EH:EH,$H122,Ensemble!EJ:EJ),"-") ->  | R122: =IF(AND(J122>Control!$F$6,P122>Control!$F$7,U121=1),1,0) ->  | S122: =IF(AND(T121>0,T121<Control!$F$8),0,IF(AND(K122<Control!$F$6-500,Q122<Control!$F$7),1,0))*(1-R122) ->  | T122: =IF(AND(T121<Control!$F$8,T121>0),T121+1,IF(AND(R122=1,U121=1),1,0)) ->  | V122: =IF(A122<3,IF(AND(T122>0,OR(I122>Control!$F$9,SUM(V116:V121)>0)),MAX(I122-Control!$F$10,0),0),0) ->  | W122: =CHOOSE($W$1+1,99999,IF(AND(G122>=Control!$F$4,G122<=Control!$F$5),IF(T122<>0,V122,99999),0)) ->  | X122: =INDEX(Control!$D$15:$D$26,D122) -> 3250 | Z122: =CHOOSE($A122+1,IF(ISBLANK(INDEX(CDEC!G:G,MATCH($H122,CDEC!J:J,0))),Z121,_xlfn.IFNA(INDEX(CDEC!G:G,MATCH($H122,CDEC!J:J,0)),Z121)),AVERAGEIF(CNRFC!BA:BA,$H122,CNRFC!AW:AW),AVERAGEIF(Ensemble!JT:JT,$H122,Ensemble!JW:JW),"-") ->  | AA122: =INDEX(Control!$E$15:$E$26,D122) -> 4000 | AC122: =CHOOSE($A122+1,_xlfn.IFNA(INDEX(USGS!AH:AH,MATCH($H122,USGS!AE:AE,0)),I121),AVERAGEIF(CNRFC!H:H,$H122,CNRFC!D:D),AVERAGEIF(Ensemble!HY:HY,$H122,Ensemble!IA:IA),"-") ->  | AD122: =INDEX(Control!$F$15:$F$26,D122) -> 10700 | AF122: 35000 | AI122: =MIN(INDEX(Control!$G$15:$G$26,D122),AG122) ->  | AJ122: =MIN(MAX(AH122-AI122,0),INDEX(Control!$H$15:$H$26,D122)) ->  | AL122: 2023-02-20
A123: 2 | B123: 2023 | C123: 5 | D123: 2 | E123: 21 | F123: 2.21 | G123: 5.21 | H123: 2023-02-21 | I123: =CHOOSE($A123+1,_xlfn.IFNA(INDEX(USGS!Y:Y,MATCH($H123,USGS!X:X,0)),I122),AVERAGEIF(CNRFC!AR:AR,$H123,CNRFC!AN:AN),AVERAGEIF(Ensemble!GC:GC,$H123,Ensemble!GF:GF),"-") -> 4934.948333 | J123: 4947.54 | L123: =CHOOSE($A123+1,_xlfn.IFNA(INDEX(USGS!D:D,MATCH($H123,USGS!C:C,0)),I122),AVERAGEIF(CNRFC!AI:AI,$H123,CNRFC!AE:AE),AVERAGEIF(Ensemble!AR:AR,$H123,Ensemble!AT:AT),"-") -> 254.9016667 | M123: =CHOOSE($A123+1,_xlfn.IFNA(INDEX(USGS!K:K,MATCH($H123,USGS!J:J,0)),I122),AVERAGEIF(CNRFC!Q:Q,$H123,CNRFC!M:M),AVERAGEIF(Ensemble!CM:CM,$H123,Ensemble!CO:CO),"-") -> 897.5139583 | N123: =CHOOSE($A123+1,_xlfn.IFNA(INDEX(USGS!R:R,MATCH($H123,USGS!Q:Q,0)),I122),AVERAGEIF(CNRFC!Z:Z,$H123,CNRFC!V:V),AVERAGEIF(Ensemble!EH:EH,$H123,Ensemble!EJ:EJ),"-") -> 311.1641667 | O123: 1463.579792 | P123: 1467.166944 | R123: =IF(AND(J123>Control!$F$6,P123>Control!$F$7,U122=1),1,0) ->  | S123: =IF(AND(T122>0,T122<Control!$F$8),0,IF(AND(K123<Control!$F$6-500,Q123<Control!$F$7),1,0))*(1-R123) ->  | T123: =IF(AND(T122<Control!$F$8,T122>0),T122+1,IF(AND(R123=1,U122=1),1,0)) ->  | V123: =IF(A123<3,IF(AND(T123>0,OR(I123>Control!$F$9,SUM(V117:V122)>0)),MAX(I123-Control!$F$10,0),0),0) ->  | W123: =CHOOSE($W$1+1,99999,IF(AND(G123>=Control!$F$4,G123<=Control!$F$5),IF(T123<>0,V123,99999),0)) ->  | X123: =INDEX(Control!$D$15:$D$26,D123) -> 3250 | Y123: 1684.948333 | Z123: =CHOOSE($A123+1,IF(ISBLANK(INDEX(CDEC!G:G,MATCH($H123,CDEC!J:J,0))),Z122,_xlfn.IFNA(INDEX(CDEC!G:G,MATCH($H123,CDEC!J:J,0)),Z122)),AVERAGEIF(CNRFC!BA:BA,$H123,CNRFC!AW:AW),AVERAGEIF(Ensemble!JT:JT,$H123,Ensemble!JW:JW),"-") -> 6232.791667 | AA123: =INDEX(Control!$E$15:$E$26,D123) -> 4000 | AB123: 2232.791667 | AC123: =CHOOSE($A123+1,_xlfn.IFNA(INDEX(USGS!AH:AH,MATCH($H123,USGS!AE:AE,0)),I122),AVERAGEIF(CNRFC!H:H,$H123,CNRFC!D:D),AVERAGEIF(Ensemble!HY:HY,$H123,Ensemble!IA:IA),"-") -> 7595.196458 | AD123: =INDEX(Control!$F$15:$F$26,D123) -> 10700 | AE123: 0 | AF123: 35000 | AI123: =MIN(INDEX(Control!$G$15:$G$26,D123),AG123) ->  | AJ123: =MIN(MAX(AH123-AI123,0),INDEX(Control!$H$15:$H$26,D123)) ->  | AL123: 2023-02-21
A124: 2 | B124: 2023 | C124: 5 | D124: 2 | E124: 22 | F124: 2.22 | G124: 5.22 | H124: 2023-02-22 | I124: =CHOOSE($A124+1,_xlfn.IFNA(INDEX(USGS!Y:Y,MATCH($H124,USGS!X:X,0)),I123),AVERAGEIF(CNRFC!AR:AR,$H124,CNRFC!AN:AN),AVERAGEIF(Ensemble!GC:GC,$H124,Ensemble!GF:GF),"-") -> 4954.780417 | J124: 4964.223611 | L124: =CHOOSE($A124+1,_xlfn.IFNA(INDEX(USGS!D:D,MATCH($H124,USGS!C:C,0)),I123),AVERAGEIF(CNRFC!AI:AI,$H124,CNRFC!AE:AE),AVERAGEIF(Ensemble!AR:AR,$H124,Ensemble!AT:AT),"-") -> 252.6872917 | M124: =CHOOSE($A124+1,_xlfn.IFNA(INDEX(USGS!K:K,MATCH($H124,USGS!J:J,0)),I123),AVERAGEIF(CNRFC!Q:Q,$H124,CNRFC!M:M),AVERAGEIF(Ensemble!CM:CM,$H124,Ensemble!CO:CO),"-") -> 909.348125 | N124: =CHOOSE($A124+1,_xlfn.IFNA(INDEX(USGS!R:R,MATCH($H124,USGS!Q:Q,0)),I123),AVERAGEIF(CNRFC!Z:Z,$H124,CNRFC!V:V),AVERAGEIF(Ensemble!EH:EH,$H124,Ensemble!EJ:EJ),"-") -> 310.8510417 | O124: 1472.886458 | P124: 1468.722014 | R124: =IF(AND(J124>Control!$F$6,P124>Control!$F$7,U123=1),1,0) ->  | S124: =IF(AND(T123>0,T123<Control!$F$8),0,IF(AND(K124<Control!$F$6-500,Q124<Control!$F$7),1,0))*(1-R124) ->  | T124: =IF(AND(T123<Control!$F$8,T123>0),T123+1,IF(AND(R124=1,U123=1),1,0)) ->  | V124: =IF(A124<3,IF(AND(T124>0,OR(I124>Control!$F$9,SUM(V118:V123)>0)),MAX(I124-Control!$F$10,0),0),0) ->  | W124: =CHOOSE($W$1+1,99999,IF(AND(G124>=Control!$F$4,G124<=Control!$F$5),IF(T124<>0,V124,99999),0)) ->  | X124: =INDEX(Control!$D$15:$D$26,D124) -> 3250 | Y124: 1704.780417 | Z124: =CHOOSE($A124+1,IF(ISBLANK(INDEX(CDEC!G:G,MATCH($H124,CDEC!J:J,0))),Z123,_xlfn.IFNA(INDEX(CDEC!G:G,MATCH($H124,CDEC!J:J,0)),Z123)),AVERAGEIF(CNRFC!BA:BA,$H124,CNRFC!AW:AW),AVERAGEIF(Ensemble!JT:JT,$H124,Ensemble!JW:JW),"-") -> 6234.583333 | AA124: =INDEX(Control!$E$15:$E$26,D124) -> 4000 | AB124: 2234.583333 | AC124: =CHOOSE($A124+1,_xlfn.IFNA(INDEX(USGS!AH:AH,MATCH($H124,USGS!AE:AE,0)),I123),AVERAGEIF(CNRFC!H:H,$H124,CNRFC!D:D),AVERAGEIF(Ensemble!HY:HY,$H124,Ensemble!IA:IA),"-") -> 7611.482917 | AD124: =INDEX(Control!$F$15:$F$26,D124) -> 10700 | AE124: 0 | AF124: 35000 | AI124: =MIN(INDEX(Control!$G$15:$G$26,D124),AG124) ->  | AJ124: =MIN(MAX(AH124-AI124,0),INDEX(Control!$H$15:$H$26,D124)) ->  | AL124: 2023-02-22
A125: 2 | B125: 2023 | C125: 5 | D125: 2 | E125: 23 | F125: 2.23 | G125: 5.23 | H125: 2023-02-23 | I125: =CHOOSE($A125+1,_xlfn.IFNA(INDEX(USGS!Y:Y,MATCH($H125,USGS!X:X,0)),I124),AVERAGEIF(CNRFC!AR:AR,$H125,CNRFC!AN:AN),AVERAGEIF(Ensemble!GC:GC,$H125,Ensemble!GF:GF),"-") -> 4952.89125 | J125: 5122.79875 | K125: 4947.54 | L125: =CHOOSE($A125+1,_xlfn.IFNA(INDEX(USGS!D:D,MATCH($H125,USGS!C:C,0)),I124),AVERAGEIF(CNRFC!AI:AI,$H125,CNRFC!AE:AE),AVERAGEIF(Ensemble!AR:AR,$H125,Ensemble!AT:AT),"-") -> 250.6652083 | M125: =CHOOSE($A125+1,_xlfn.IFNA(INDEX(USGS!K:K,MATCH($H125,USGS!J:J,0)),I124),AVERAGEIF(CNRFC!Q:Q,$H125,CNRFC!M:M),AVERAGEIF(Ensemble!CM:CM,$H125,Ensemble!CO:CO),"-") -> 904.683125 | N125: =CHOOSE($A125+1,_xlfn.IFNA(INDEX(USGS!R:R,MATCH($H125,USGS!Q:Q,0)),I124),AVERAGEIF(CNRFC!Z:Z,$H125,CNRFC!V:V),AVERAGEIF(Ensemble!EH:EH,$H125,Ensemble!EJ:EJ),"-") -> 309.68625 | O125: 1465.034583 | P125: 1545.62125 | Q125: 1467.166944 | R125: =IF(AND(J125>Control!$F$6,P125>Control!$F$7,U124=1),1,0) ->  | S125: =IF(AND(T124>0,T124<Control!$F$8),0,IF(AND(K125<Control!$F$6-500,Q125<Control!$F$7),1,0))*(1-R125) ->  | T125: =IF(AND(T124<Control!$F$8,T124>0),T124+1,IF(AND(R125=1,U124=1),1,0)) ->  | V125: =IF(A125<3,IF(AND(T125>0,OR(I125>Control!$F$9,SUM(V119:V124)>0)),MAX(I125-Control!$F$10,0),0),0) ->  | W125: =CHOOSE($W$1+1,99999,IF(AND(G125>=Control!$F$4,G125<=Control!$F$5),IF(T125<>0,V125,99999),0)) ->  | X125: =INDEX(Control!$D$15:$D$26,D125) -> 3250 | Y125: 1702.89125 | Z125: =CHOOSE($A125+1,IF(ISBLANK(INDEX(CDEC!G:G,MATCH($H125,CDEC!J:J,0))),Z124,_xlfn.IFNA(INDEX(CDEC!G:G,MATCH($H125,CDEC!J:J,0)),Z124)),AVERAGEIF(CNRFC!BA:BA,$H125,CNRFC!AW:AW),AVERAGEIF(Ensemble!JT:JT,$H125,Ensemble!JW:JW),"-") -> 6500 | AA125: =INDEX(Control!$E$15:$E$26,D125) -> 4000 | AB125: 2500 | AC125: =CHOOSE($A125+1,_xlfn.IFNA(INDEX(USGS!AH:AH,MATCH($H125,USGS!AE:AE,0)),I124),AVERAGEIF(CNRFC!H:H,$H125,CNRFC!D:D),AVERAGEIF(Ensemble!HY:HY,$H125,Ensemble!IA:IA),"-") -> 7616.513333 | AD125: =INDEX(Control!$F$15:$F$26,D125) -> 10700 | AE125: 0 | AF125: 35000 | AI125: =MIN(INDEX(Control!$G$15:$G$26,D125),AG125) ->  | AJ125: =MIN(MAX(AH125-AI125,0),INDEX(Control!$H$15:$H$26,D125)) ->  | AL125: 2023-02-23
A126: 2 | B126: 2023 | C126: 5 | D126: 2 | E126: 24 | F126: 2.24 | G126: 5.24 | H126: 2023-02-24 | I126: =CHOOSE($A126+1,_xlfn.IFNA(INDEX(USGS!Y:Y,MATCH($H126,USGS!X:X,0)),I125),AVERAGEIF(CNRFC!AR:AR,$H126,CNRFC!AN:AN),AVERAGEIF(Ensemble!GC:GC,$H126,Ensemble!GF:GF),"-") -> 4984.999167 | J126: 5395.875556 | K126: 4964.223611 | L126: =CHOOSE($A126+1,_xlfn.IFNA(INDEX(USGS!D:D,MATCH($H126,USGS!C:C,0)),I125),AVERAGEIF(CNRFC!AI:AI,$H126,CNRFC!AE:AE),AVERAGEIF(Ensemble!AR:AR,$H126,Ensemble!AT:AT),"-") -> 263.5770833 | M126: =CHOOSE($A126+1,_xlfn.IFNA(INDEX(USGS!K:K,MATCH($H126,USGS!J:J,0)),I125),AVERAGEIF(CNRFC!Q:Q,$H126,CNRFC!M:M),AVERAGEIF(Ensemble!CM:CM,$H126,Ensemble!CO:CO),"-") -> 893.2683333 | N126: =CHOOSE($A126+1,_xlfn.IFNA(INDEX(USGS!R:R,MATCH($H126,USGS!Q:Q,0)),I125),AVERAGEIF(CNRFC!Z:Z,$H126,CNRFC!V:V),AVERAGEIF(Ensemble!EH:EH,$H126,Ensemble!EJ:EJ),"-") -> 311.3995833 | O126: 1468.245 | P126: 1689.127083 | Q126: 1468.722014 | R126: =IF(AND(J126>Control!$F$6,P126>Control!$F$7,U125=1),1,0) ->  | S126: =IF(AND(T125>0,T125<Control!$F$8),0,IF(AND(K126<Control!$F$6-500,Q126<Control!$F$7),1,0))*(1-R126) ->  | T126: =IF(AND(T125<Control!$F$8,T125>0),T125+1,IF(AND(R126=1,U125=1),1,0)) ->  | V126: =IF(A126<3,IF(AND(T126>0,OR(I126>Control!$F$9,SUM(V120:V125)>0)),MAX(I126-Control!$F$10,0),0),0) ->  | W126: =CHOOSE($W$1+1,99999,IF(AND(G126>=Control!$F$4,G126<=Control!$F$5),IF(T126<>0,V126,99999),0)) ->  | X126: =INDEX(Control!$D$15:$D$26,D126) -> 3250 | Y126: 1734.999167 | Z126: =CHOOSE($A126+1,IF(ISBLANK(INDEX(CDEC!G:G,MATCH($H126,CDEC!J:J,0))),Z125,_xlfn.IFNA(INDEX(CDEC!G:G,MATCH($H126,CDEC!J:J,0)),Z125)),AVERAGEIF(CNRFC!BA:BA,$H126,CNRFC!AW:AW),AVERAGEIF(Ensemble!JT:JT,$H126,Ensemble!JW:JW),"-") -> 6471.458333 | AA126: =INDEX(Control!$E$15:$E$26,D126) -> 4000 | AB126: 2471.458333 | AC126: =CHOOSE($A126+1,_xlfn.IFNA(INDEX(USGS!AH:AH,MATCH($H126,USGS!AE:AE,0)),I125),AVERAGEIF(CNRFC!H:H,$H126,CNRFC!D:D),AVERAGEIF(Ensemble!HY:HY,$H126,Ensemble!IA:IA),"-") -> 7618.599583 | AD126: =INDEX(Control!$F$15:$F$26,D126) -> 10700 | AE126: 0 | AF126: 35000 | AI126: =MIN(INDEX(Control!$G$15:$G$26,D126),AG126) ->  | AJ126: =MIN(MAX(AH126-AI126,0),INDEX(Control!$H$15:$H$26,D126)) ->  | AL126: 2023-02-24
A127: 2 | B127: 2023 | C127: 5 | D127: 2 | E127: 25 | F127: 2.25 | G127: 5.25 | H127: 2023-02-25 | I127: =CHOOSE($A127+1,_xlfn.IFNA(INDEX(USGS!Y:Y,MATCH($H127,USGS!X:X,0)),I126),AVERAGEIF(CNRFC!AR:AR,$H127,CNRFC!AN:AN),AVERAGEIF(Ensemble!GC:GC,$H127,Ensemble!GF:GF),"-") -> 5430.505833 | J127: 5683.403333 | K127: 5122.79875 | L127: =CHOOSE($A127+1,_xlfn.IFNA(INDEX(USGS!D:D,MATCH($H127,USGS!C:C,0)),I126),AVERAGEIF(CNRFC!AI:AI,$H127,CNRFC!AE:AE),AVERAGEIF(Ensemble!AR:AR,$H127,Ensemble!AT:AT),"-") -> 463.67375 | M127: =CHOOSE($A127+1,_xlfn.IFNA(INDEX(USGS!K:K,MATCH($H127,USGS!J:J,0)),I126),AVERAGEIF(CNRFC!Q:Q,$H127,CNRFC!M:M),AVERAGEIF(Ensemble!CM:CM,$H127,Ensemble!CO:CO),"-") -> 924.604375 | N127: =CHOOSE($A127+1,_xlfn.IFNA(INDEX(USGS!R:R,MATCH($H127,USGS!Q:Q,0)),I126),AVERAGEIF(CNRFC!Z:Z,$H127,CNRFC!V:V),AVERAGEIF(Ensemble!EH:EH,$H127,Ensemble!EJ:EJ),"-") -> 315.3060417 | O127: 1703.584167 | P127: 1872.720208 | Q127: 1545.62125 | R127: =IF(AND(J127>Control!$F$6,P127>Control!$F$7,U126=1),1,0) ->  | S127: =IF(AND(T126>0,T126<Control!$F$8),0,IF(AND(K127<Control!$F$6-500,Q127<Control!$F$7),1,0))*(1-R127) ->  | T127: =IF(AND(T126<Control!$F$8,T126>0),T126+1,IF(AND(R127=1,U126=1),1,0)) ->  | V127: =IF(A127<3,IF(AND(T127>0,OR(I127>Control!$F$9,SUM(V121:V126)>0)),MAX(I127-Control!$F$10,0),0),0) ->  | W127: =CHOOSE($W$1+1,99999,IF(AND(G127>=Control!$F$4,G127<=Control!$F$5),IF(T127<>0,V127,99999),0)) ->  | X127: =INDEX(Control!$D$15:$D$26,D127) -> 3250 | Y127: 2180.505833 | Z127: =CHOOSE($A127+1,IF(ISBLANK(INDEX(CDEC!G:G,MATCH($H127,CDEC!J:J,0))),Z126,_xlfn.IFNA(INDEX(CDEC!G:G,MATCH($H127,CDEC!J:J,0)),Z126)),AVERAGEIF(CNRFC!BA:BA,$H127,CNRFC!AW:AW),AVERAGEIF(Ensemble!JT:JT,$H127,Ensemble!JW:JW),"-") -> 6771.208333 | AA127: =INDEX(Control!$E$15:$E$26,D127) -> 4000 | AB127: 2771.208333 | AC127: =CHOOSE($A127+1,_xlfn.IFNA(INDEX(USGS!AH:AH,MATCH($H127,USGS!AE:AE,0)),I126),AVERAGEIF(CNRFC!H:H,$H127,CNRFC!D:D),AVERAGEIF(Ensemble!HY:HY,$H127,Ensemble!IA:IA),"-") -> 7621.947083 | AD127: =INDEX(Control!$F$15:$F$26,D127) -> 10700 | AE127: 0 | AF127: 35000 | AI127: =MIN(INDEX(Control!$G$15:$G$26,D127),AG127) ->  | AJ127: =MIN(MAX(AH127-AI127,0),INDEX(Control!$H$15:$H$26,D127)) ->  | AL127: 2023-02-25
A128: 2 | B128: 2023 | C128: 5 | D128: 2 | E128: 26 | F128: 2.26 | G128: 5.26 | H128: 2023-02-26 | I128: =CHOOSE($A128+1,_xlfn.IFNA(INDEX(USGS!Y:Y,MATCH($H128,USGS!X:X,0)),I127),AVERAGEIF(CNRFC!AR:AR,$H128,CNRFC!AN:AN),AVERAGEIF(Ensemble!GC:GC,$H128,Ensemble!GF:GF),"-") -> 5772.121667 | J128: 5750.100833 | K128: 5395.875556 | L128: =CHOOSE($A128+1,_xlfn.IFNA(INDEX(USGS!D:D,MATCH($H128,USGS!C:C,0)),I127),AVERAGEIF(CNRFC!AI:AI,$H128,CNRFC!AE:AE),AVERAGEIF(Ensemble!AR:AR,$H128,Ensemble!AT:AT),"-") -> 590.7285417 | M128: =CHOOSE($A128+1,_xlfn.IFNA(INDEX(USGS!K:K,MATCH($H128,USGS!J:J,0)),I127),AVERAGEIF(CNRFC!Q:Q,$H128,CNRFC!M:M),AVERAGEIF(Ensemble!CM:CM,$H128,Ensemble!CO:CO),"-") -> 970.43 | N128: =CHOOSE($A128+1,_xlfn.IFNA(INDEX(USGS!R:R,MATCH($H128,USGS!Q:Q,0)),I127),AVERAGEIF(CNRFC!Z:Z,$H128,CNRFC!V:V),AVERAGEIF(Ensemble!EH:EH,$H128,Ensemble!EJ:EJ),"-") -> 334.3935417 | O128: 1895.552083 | P128: 1985.127153 | Q128: 1689.127083 | R128: =IF(AND(J128>Control!$F$6,P128>Control!$F$7,U127=1),1,0) ->  | S128: =IF(AND(T127>0,T127<Control!$F$8),0,IF(AND(K128<Control!$F$6-500,Q128<Control!$F$7),1,0))*(1-R128) ->  | T128: =IF(AND(T127<Control!$F$8,T127>0),T127+1,IF(AND(R128=1,U127=1),1,0)) ->  | V128: =IF(A128<3,IF(AND(T128>0,OR(I128>Control!$F$9,SUM(V122:V127)>0)),MAX(I128-Control!$F$10,0),0),0) ->  | W128: =CHOOSE($W$1+1,99999,IF(AND(G128>=Control!$F$4,G128<=Control!$F$5),IF(T128<>0,V128,99999),0)) ->  | X128: =INDEX(Control!$D$15:$D$26,D128) -> 3250 | Y128: 2522.121667 | Z128: =CHOOSE($A128+1,IF(ISBLANK(INDEX(CDEC!G:G,MATCH($H128,CDEC!J:J,0))),Z127,_xlfn.IFNA(INDEX(CDEC!G:G,MATCH($H128,CDEC!J:J,0)),Z127)),AVERAGEIF(CNRFC!BA:BA,$H128,CNRFC!AW:AW),AVERAGEIF(Ensemble!JT:JT,$H128,Ensemble!JW:JW),"-") -> 7333.666667 | AA128: =INDEX(Control!$E$15:$E$26,D128) -> 4000 | AB128: 3333.666667 | AC128: =CHOOSE($A128+1,_xlfn.IFNA(INDEX(USGS!AH:AH,MATCH($H128,USGS!AE:AE,0)),I127),AVERAGEIF(CNRFC!H:H,$H128,CNRFC!D:D),AVERAGEIF(Ensemble!HY:HY,$H128,Ensemble!IA:IA),"-") -> 7828.089583 | AD128: =INDEX(Control!$F$15:$F$26,D128) -> 10700 | AE128: 0 | AF128: 35000 | AI128: =MIN(INDEX(Control!$G$15:$G$26,D128),AG128) ->  | AJ128: =MIN(MAX(AH128-AI128,0),INDEX(Control!$H$15:$H$26,D128)) ->  | AL128: 2023-02-26
A129: 2 | B129: 2023 | C129: 5 | D129: 2 | E129: 27 | F129: 2.27 | G129: 5.27 | H129: 2023-02-27 | I129: =CHOOSE($A129+1,_xlfn.IFNA(INDEX(USGS!Y:Y,MATCH($H129,USGS!X:X,0)),I128),AVERAGEIF(CNRFC!AR:AR,$H129,CNRFC!AN:AN),AVERAGEIF(Ensemble!GC:GC,$H129,Ensemble!GF:GF),"-") -> 5847.5825 | J129: 5806.065694 | K129: 5683.403333 | L129: =CHOOSE($A129+1,_xlfn.IFNA(INDEX(USGS!D:D,MATCH($H129,USGS!C:C,0)),I128),AVERAGEIF(CNRFC!AI:AI,$H129,CNRFC!AE:AE),AVERAGEIF(Ensemble!AR:AR,$H129,Ensemble!AT:AT),"-") -> 644.196875 | M129: =CHOOSE($A129+1,_xlfn.IFNA(INDEX(USGS!K:K,MATCH($H129,USGS!J:J,0)),I128),AVERAGEIF(CNRFC!Q:Q,$H129,CNRFC!M:M),AVERAGEIF(Ensemble!CM:CM,$H129,Ensemble!CO:CO),"-") -> 1035.430625 | N129: =CHOOSE($A129+1,_xlfn.IFNA(INDEX(USGS!R:R,MATCH($H129,USGS!Q:Q,0)),I128),AVERAGEIF(CNRFC!Z:Z,$H129,CNRFC!V:V),AVERAGEIF(Ensemble!EH:EH,$H129,Ensemble!EJ:EJ),"-") -> 339.396875 | O129: 2019.024375 | P129: 2063.189722 | Q129: 1872.720208 | R129: =IF(AND(J129>Control!$F$6,P129>Control!$F$7,U128=1),1,0) ->  | S129: =IF(AND(T128>0,T128<Control!$F$8),0,IF(AND(K129<Control!$F$6-500,Q129<Control!$F$7),1,0))*(1-R129) ->  | T129: =IF(AND(T128<Control!$F$8,T128>0),T128+1,IF(AND(R129=1,U128=1),1,0)) ->  | V129: =IF(A129<3,IF(AND(T129>0,OR(I129>Control!$F$9,SUM(V123:V128)>0)),MAX(I129-Control!$F$10,0),0),0) ->  | W129: =CHOOSE($W$1+1,99999,IF(AND(G129>=Control!$F$4,G129<=Control!$F$5),IF(T129<>0,V129,99999),0)) ->  | X129: =INDEX(Control!$D$15:$D$26,D129) -> 3250 | Y129: 2597.5825 | Z129: =CHOOSE($A129+1,IF(ISBLANK(INDEX(CDEC!G:G,MATCH($H129,CDEC!J:J,0))),Z128,_xlfn.IFNA(INDEX(CDEC!G:G,MATCH($H129,CDEC!J:J,0)),Z128)),AVERAGEIF(CNRFC!BA:BA,$H129,CNRFC!AW:AW),AVERAGEIF(Ensemble!JT:JT,$H129,Ensemble!JW:JW),"-") -> 7597.708333 | AA129: =INDEX(Control!$E$15:$E$26,D129) -> 4000 | AB129: 3597.708333 | AC129: =CHOOSE($A129+1,_xlfn.IFNA(INDEX(USGS!AH:AH,MATCH($H129,USGS!AE:AE,0)),I128),AVERAGEIF(CNRFC!H:H,$H129,CNRFC!D:D),AVERAGEIF(Ensemble!HY:HY,$H129,Ensemble!IA:IA),"-") -> 8201.168542 | AD129: =INDEX(Control!$F$15:$F$26,D129) -> 10700 | AE129: 0 | AF129: 35000 | AI129: =MIN(INDEX(Control!$G$15:$G$26,D129),AG129) ->  | AJ129: =MIN(MAX(AH129-AI129,0),INDEX(Control!$H$15:$H$26,D129)) ->  | AL129: 2023-02-27
A130: 2 | B130: 2023 | C130: 5 | D130: 2 | E130: 28 | F130: 2.28 | G130: 5.28 | H130: 2023-02-28 | I130: =CHOOSE($A130+1,_xlfn.IFNA(INDEX(USGS!Y:Y,MATCH($H130,USGS!X:X,0)),I129),AVERAGEIF(CNRFC!AR:AR,$H130,CNRFC!AN:AN),AVERAGEIF(Ensemble!GC:GC,$H130,Ensemble!GF:GF),"-") -> 5630.598333 | J130: 6215.86125 | K130: 5750.100833 | L130: =CHOOSE($A130+1,_xlfn.IFNA(INDEX(USGS!D:D,MATCH($H130,USGS!C:C,0)),I129),AVERAGEIF(CNRFC!AI:AI,$H130,CNRFC!AE:AE),AVERAGEIF(Ensemble!AR:AR,$H130,Ensemble!AT:AT),"-") -> 634.303125 | M130: =CHOOSE($A130+1,_xlfn.IFNA(INDEX(USGS!K:K,MATCH($H130,USGS!J:J,0)),I129),AVERAGEIF(CNRFC!Q:Q,$H130,CNRFC!M:M),AVERAGEIF(Ensemble!CM:CM,$H130,Ensemble!CO:CO),"-") -> 1052.91 | N130: =CHOOSE($A130+1,_xlfn.IFNA(INDEX(USGS!R:R,MATCH($H130,USGS!Q:Q,0)),I129),AVERAGEIF(CNRFC!Z:Z,$H130,CNRFC!V:V),AVERAGEIF(Ensemble!EH:EH,$H130,Ensemble!EJ:EJ),"-") -> 353.591875 | O130: 2040.805 | P130: 2253.347222 | Q130: 1985.127153 | R130: =IF(AND(J130>Control!$F$6,P130>Control!$F$7,U129=1),1,0) ->  | S130: =IF(AND(T129>0,T129<Control!$F$8),0,IF(AND(K130<Control!$F$6-500,Q130<Control!$F$7),1,0))*(1-R130) ->  | T130: =IF(AND(T129<Control!$F$8,T129>0),T129+1,IF(AND(R130=1,U129=1),1,0)) ->  | V130: =IF(A130<3,IF(AND(T130>0,OR(I130>Control!$F$9,SUM(V124:V129)>0)),MAX(I130-Control!$F$10,0),0),0) ->  | W130: =CHOOSE($W$1+1,99999,IF(AND(G130>=Control!$F$4,G130<=Control!$F$5),IF(T130<>0,V130,99999),0)) ->  | X130: =INDEX(Control!$D$15:$D$26,D130) -> 3250 | Y130: 2380.598333 | Z130: =CHOOSE($A130+1,IF(ISBLANK(INDEX(CDEC!G:G,MATCH($H130,CDEC!J:J,0))),Z129,_xlfn.IFNA(INDEX(CDEC!G:G,MATCH($H130,CDEC!J:J,0)),Z129)),AVERAGEIF(CNRFC!BA:BA,$H130,CNRFC!AW:AW),AVERAGEIF(Ensemble!JT:JT,$H130,Ensemble!JW:JW),"-") -> 7499.625 | AA130: =INDEX(Control!$E$15:$E$26,D130) -> 4000 | AB130: 3499.625 | AC130: =CHOOSE($A130+1,_xlfn.IFNA(INDEX(USGS!AH:AH,MATCH($H130,USGS!AE:AE,0)),I129),AVERAGEIF(CNRFC!H:H,$H130,CNRFC!D:D),AVERAGEIF(Ensemble!HY:HY,$H130,Ensemble!IA:IA),"-") -> 8403.310625 | AD130: =INDEX(Control!$F$15:$F$26,D130) -> 10700 | AE130: 0 | AF130: 35000 | AI130: =MIN(INDEX(Control!$G$15:$G$26,D130),AG130) ->  | AJ130: =MIN(MAX(AH130-AI130,0),INDEX(Control!$H$15:$H$26,D130)) ->  | AL130: 2023-02-28
A131: 2 | B131: 2023 | C131: 6 | D131: 3 | E131: 1 | F131: 3.01 | G131: 6.01 | H131: 2023-03-01 | I131: =CHOOSE($A131+1,_xlfn.IFNA(INDEX(USGS!Y:Y,MATCH($H131,USGS!X:X,0)),I130),AVERAGEIF(CNRFC!AR:AR,$H131,CNRFC!AN:AN),AVERAGEIF(Ensemble!GC:GC,$H131,Ensemble!GF:GF),"-") -> 5940.01625 | J131: 6691.146111 | K131: 5806.065694 | L131: =CHOOSE($A131+1,_xlfn.IFNA(INDEX(USGS!D:D,MATCH($H131,USGS!C:C,0)),I130),AVERAGEIF(CNRFC!AI:AI,$H131,CNRFC!AE:AE),AVERAGEIF(Ensemble!AR:AR,$H131,Ensemble!AT:AT),"-") -> 588.4939583 | M131: =CHOOSE($A131+1,_xlfn.IFNA(INDEX(USGS!K:K,MATCH($H131,USGS!J:J,0)),I130),AVERAGEIF(CNRFC!Q:Q,$H131,CNRFC!M:M),AVERAGEIF(Ensemble!CM:CM,$H131,Ensemble!CO:CO),"-") -> 1178.290417 | N131: =CHOOSE($A131+1,_xlfn.IFNA(INDEX(USGS!R:R,MATCH($H131,USGS!Q:Q,0)),I130),AVERAGEIF(CNRFC!Z:Z,$H131,CNRFC!V:V),AVERAGEIF(Ensemble!EH:EH,$H131,Ensemble!EJ:EJ),"-") -> 362.9554167 | O131: 2129.739792 | P131: 2394.315417 | Q131: 2063.189722 | R131: =IF(AND(J131>Control!$F$6,P131>Control!$F$7,U130=1),1,0) ->  | S131: =IF(AND(T130>0,T130<Control!$F$8),0,IF(AND(K131<Control!$F$6-500,Q131<Control!$F$7),1,0))*(1-R131) ->  | T131: =IF(AND(T130<Control!$F$8,T130>0),T130+1,IF(AND(R131=1,U130=1),1,0)) ->  | V131: =IF(A131<3,IF(AND(T131>0,OR(I131>Control!$F$9,SUM(V125:V130)>0)),MAX(I131-Control!$F$10,0),0),0) ->  | W131: =CHOOSE($W$1+1,99999,IF(AND(G131>=Control!$F$4,G131<=Control!$F$5),IF(T131<>0,V131,99999),0)) ->  | X131: =INDEX(Control!$D$15:$D$26,D131) -> 3250 | Y131: 2690.01625 | Z131: =CHOOSE($A131+1,IF(ISBLANK(INDEX(CDEC!G:G,MATCH($H131,CDEC!J:J,0))),Z130,_xlfn.IFNA(INDEX(CDEC!G:G,MATCH($H131,CDEC!J:J,0)),Z130)),AVERAGEIF(CNRFC!BA:BA,$H131,CNRFC!AW:AW),AVERAGEIF(Ensemble!JT:JT,$H131,Ensemble!JW:JW),"-") -> 7545.833333 | AA131: =INDEX(Control!$E$15:$E$26,D131) -> 4000 | AB131: 3545.833333 | AC131: =CHOOSE($A131+1,_xlfn.IFNA(INDEX(USGS!AH:AH,MATCH($H131,USGS!AE:AE,0)),I130),AVERAGEIF(CNRFC!H:H,$H131,CNRFC!D:D),AVERAGEIF(Ensemble!HY:HY,$H131,Ensemble!IA:IA),"-") -> 8253.502708 | AD131: =INDEX(Control!$F$15:$F$26,D131) -> 10700 | AE131: 0 | AF131: 35000 | AI131: =MIN(INDEX(Control!$G$15:$G$26,D131),AG131) ->  | AJ131: =MIN(MAX(AH131-AI131,0),INDEX(Control!$H$15:$H$26,D131)) ->  | AL131: 2023-03-01
A132: 2 | B132: 2023 | C132: 6 | D132: 3 | E132: 2 | F132: 3.02 | G132: 6.02 | H132: 2023-03-02 | I132: =CHOOSE($A132+1,_xlfn.IFNA(INDEX(USGS!Y:Y,MATCH($H132,USGS!X:X,0)),I131),AVERAGEIF(CNRFC!AR:AR,$H132,CNRFC!AN:AN),AVERAGEIF(Ensemble!GC:GC,$H132,Ensemble!GF:GF),"-") -> 7076.969167 | J132: 6951.710139 | K132: 6215.86125 | L132: =CHOOSE($A132+1,_xlfn.IFNA(INDEX(USGS!D:D,MATCH($H132,USGS!C:C,0)),I131),AVERAGEIF(CNRFC!AI:AI,$H132,CNRFC!AE:AE),AVERAGEIF(Ensemble!AR:AR,$H132,Ensemble!AT:AT),"-") -> 775.346875 | M132: =CHOOSE($A132+1,_xlfn.IFNA(INDEX(USGS!K:K,MATCH($H132,USGS!J:J,0)),I131),AVERAGEIF(CNRFC!Q:Q,$H132,CNRFC!M:M),AVERAGEIF(Ensemble!CM:CM,$H132,Ensemble!CO:CO),"-") -> 1428.215208 | N132: =CHOOSE($A132+1,_xlfn.IFNA(INDEX(USGS!R:R,MATCH($H132,USGS!Q:Q,0)),I131),AVERAGEIF(CNRFC!Z:Z,$H132,CNRFC!V:V),AVERAGEIF(Ensemble!EH:EH,$H132,Ensemble!EJ:EJ),"-") -> 385.9347917 | O132: 2589.496875 | P132: 2467.435972 | Q132: 2253.347222 | R132: =IF(AND(J132>Control!$F$6,P132>Control!$F$7,U131=1),1,0) ->  | S132: =IF(AND(T131>0,T131<Control!$F$8),0,IF(AND(K132<Control!$F$6-500,Q132<Control!$F$7),1,0))*(1-R132) ->  | T132: =IF(AND(T131<Control!$F$8,T131>0),T131+1,IF(AND(R132=1,U131=1),1,0)) ->  | V132: =IF(A132<3,IF(AND(T132>0,OR(I132>Control!$F$9,SUM(V126:V131)>0)),MAX(I132-Control!$F$10,0),0),0) ->  | W132: =CHOOSE($W$1+1,99999,IF(AND(G132>=Control!$F$4,G132<=Control!$F$5),IF(T132<>0,V132,99999),0)) ->  | X132: =INDEX(Control!$D$15:$D$26,D132) -> 3250 | Y132: 3826.969167 | Z132: =CHOOSE($A132+1,IF(ISBLANK(INDEX(CDEC!G:G,MATCH($H132,CDEC!J:J,0))),Z131,_xlfn.IFNA(INDEX(CDEC!G:G,MATCH($H132,CDEC!J:J,0)),Z131)),AVERAGEIF(CNRFC!BA:BA,$H132,CNRFC!AW:AW),AVERAGEIF(Ensemble!JT:JT,$H132,Ensemble!JW:JW),"-") -> 8319.5 | AA132: =INDEX(Control!$E$15:$E$26,D132) -> 4000 | AB132: 4319.5 | AC132: =CHOOSE($A132+1,_xlfn.IFNA(INDEX(USGS!AH:AH,MATCH($H132,USGS!AE:AE,0)),I131),AVERAGEIF(CNRFC!H:H,$H132,CNRFC!D:D),AVERAGEIF(Ensemble!HY:HY,$H132,Ensemble!IA:IA),"-") -> 8217.791042 | AD132: =INDEX(Control!$F$15:$F$26,D132) -> 10700 | AE132: 0 | AF132: 35000 | AI132: =MIN(INDEX(Control!$G$15:$G$26,D132),AG132) ->  | AJ132: =MIN(MAX(AH132-AI132,0),INDEX(Control!$H$15:$H$26,D132)) ->  | AL132: 2023-03-02
A133: 2 | B133: 2023 | C133: 6 | D133: 3 | E133: 3 | F133: 3.03 | G133: 6.03 | H133: 2023-03-03 | I133: =CHOOSE($A133+1,_xlfn.IFNA(INDEX(USGS!Y:Y,MATCH($H133,USGS!X:X,0)),I132),AVERAGEIF(CNRFC!AR:AR,$H133,CNRFC!AN:AN),AVERAGEIF(Ensemble!GC:GC,$H133,Ensemble!GF:GF),"-") -> 7056.452917 | J133: 6765.731944 | K133: 6691.146111 | L133: =CHOOSE($A133+1,_xlfn.IFNA(INDEX(USGS!D:D,MATCH($H133,USGS!C:C,0)),I132),AVERAGEIF(CNRFC!AI:AI,$H133,CNRFC!AE:AE),AVERAGEIF(Ensemble!AR:AR,$H133,Ensemble!AT:AT),"-") -> 712.4345833 | M133: =CHOOSE($A133+1,_xlfn.IFNA(INDEX(USGS!K:K,MATCH($H133,USGS!J:J,0)),I132),AVERAGEIF(CNRFC!Q:Q,$H133,CNRFC!M:M),AVERAGEIF(Ensemble!CM:CM,$H133,Ensemble!CO:CO),"-") -> 1379.040417 | N133: =CHOOSE($A133+1,_xlfn.IFNA(INDEX(USGS!R:R,MATCH($H133,USGS!Q:Q,0)),I132),AVERAGEIF(CNRFC!Z:Z,$H133,CNRFC!V:V),AVERAGEIF(Ensemble!EH:EH,$H133,Ensemble!EJ:EJ),"-") -> 372.2345833 | O133: 2463.709583 | P133: 2401.164653 | Q133: 2394.315417 | R133: =IF(AND(J133>Control!$F$6,P133>Control!$F$7,U132=1),1,0) ->  | S133: =IF(AND(T132>0,T132<Control!$F$8),0,IF(AND(K133<Control!$F$6-500,Q133<Control!$F$7),1,0))*(1-R133) ->  | T133: =IF(AND(T132<Control!$F$8,T132>0),T132+1,IF(AND(R133=1,U132=1),1,0)) ->  | V133: =IF(A133<3,IF(AND(T133>0,OR(I133>Control!$F$9,SUM(V127:V132)>0)),MAX(I133-Control!$F$10,0),0),0) ->  | W133: =CHOOSE($W$1+1,99999,IF(AND(G133>=Control!$F$4,G133<=Control!$F$5),IF(T133<>0,V133,99999),0)) ->  | X133: =INDEX(Control!$D$15:$D$26,D133) -> 3250 | Y133: 3806.452917 | Z133: =CHOOSE($A133+1,IF(ISBLANK(INDEX(CDEC!G:G,MATCH($H133,CDEC!J:J,0))),Z132,_xlfn.IFNA(INDEX(CDEC!G:G,MATCH($H133,CDEC!J:J,0)),Z132)),AVERAGEIF(CNRFC!BA:BA,$H133,CNRFC!AW:AW),AVERAGEIF(Ensemble!JT:JT,$H133,Ensemble!JW:JW),"-") -> 9827.791667 | AA133: =INDEX(Control!$E$15:$E$26,D133) -> 4000 | AB133: 5827.791667 | AC133: =CHOOSE($A133+1,_xlfn.IFNA(INDEX(USGS!AH:AH,MATCH($H133,USGS!AE:AE,0)),I132),AVERAGEIF(CNRFC!H:H,$H133,CNRFC!D:D),AVERAGEIF(Ensemble!HY:HY,$H133,Ensemble!IA:IA),"-") -> 8792.366875 | AD133: =INDEX(Control!$F$15:$F$26,D133) -> 10700 | AE133: 0 | AF133: 35000 | AI133: =MIN(INDEX(Control!$G$15:$G$26,D133),AG133) ->  | AJ133: =MIN(MAX(AH133-AI133,0),INDEX(Control!$H$15:$H$26,D133)) ->  | AL133: 2023-03-03
A134: 2 | B134: 2023 | C134: 6 | D134: 3 | E134: 4 | F134: 3.04 | G134: 6.04 | H134: 2023-03-04 | I134: =CHOOSE($A134+1,_xlfn.IFNA(INDEX(USGS!Y:Y,MATCH($H134,USGS!X:X,0)),I133),AVERAGEIF(CNRFC!AR:AR,$H134,CNRFC!AN:AN),AVERAGEIF(Ensemble!GC:GC,$H134,Ensemble!GF:GF),"-") -> 6721.708333 | J134: 6535.680972 | K134: 6951.710139 | L134: =CHOOSE($A134+1,_xlfn.IFNA(INDEX(USGS!D:D,MATCH($H134,USGS!C:C,0)),I133),AVERAGEIF(CNRFC!AI:AI,$H134,CNRFC!AE:AE),AVERAGEIF(Ensemble!AR:AR,$H134,Ensemble!AT:AT),"-") -> 676.9897917 | M134: =CHOOSE($A134+1,_xlfn.IFNA(INDEX(USGS!K:K,MATCH($H134,USGS!J:J,0)),I133),AVERAGEIF(CNRFC!Q:Q,$H134,CNRFC!M:M),AVERAGEIF(Ensemble!CM:CM,$H134,Ensemble!CO:CO),"-") -> 1299.024375 | N134: =CHOOSE($A134+1,_xlfn.IFNA(INDEX(USGS!R:R,MATCH($H134,USGS!Q:Q,0)),I133),AVERAGEIF(CNRFC!Z:Z,$H134,CNRFC!V:V),AVERAGEIF(Ensemble!EH:EH,$H134,Ensemble!EJ:EJ),"-") -> 373.0872917 | O134: 2349.101458 | P134: 2375.945278 | Q134: 2467.435972 | R134: =IF(AND(J134>Control!$F$6,P134>Control!$F$7,U133=1),1,0) ->  | S134: =IF(AND(T133>0,T133<Control!$F$8),0,IF(AND(K134<Control!$F$6-500,Q134<Control!$F$7),1,0))*(1-R134) ->  | T134: =IF(AND(T133<Control!$F$8,T133>0),T133+1,IF(AND(R134=1,U133=1),1,0)) ->  | V134: =IF(A134<3,IF(AND(T134>0,OR(I134>Control!$F$9,SUM(V128:V133)>0)),MAX(I134-Control!$F$10,0),0),0) ->  | W134: =CHOOSE($W$1+1,99999,IF(AND(G134>=Control!$F$4,G134<=Control!$F$5),IF(T134<>0,V134,99999),0)) ->  | X134: =INDEX(Control!$D$15:$D$26,D134) -> 3250 | Y134: 3471.708333 | Z134: =CHOOSE($A134+1,IF(ISBLANK(INDEX(CDEC!G:G,MATCH($H134,CDEC!J:J,0))),Z133,_xlfn.IFNA(INDEX(CDEC!G:G,MATCH($H134,CDEC!J:J,0)),Z133)),AVERAGEIF(CNRFC!BA:BA,$H134,CNRFC!AW:AW),AVERAGEIF(Ensemble!JT:JT,$H134,Ensemble!JW:JW),"-") -> 8924.583333 | AA134: =INDEX(Control!$E$15:$E$26,D134) -> 4000 | AB134: 4924.583333 | AC134: =CHOOSE($A134+1,_xlfn.IFNA(INDEX(USGS!AH:AH,MATCH($H134,USGS!AE:AE,0)),I133),AVERAGEIF(CNRFC!H:H,$H134,CNRFC!D:D),AVERAGEIF(Ensemble!HY:HY,$H134,Ensemble!IA:IA),"-") -> 9593.621875 | AD134: =INDEX(Control!$F$15:$F$26,D134) -> 10700 | AE134: 0 | AF134: 35000 | AI134: =MIN(INDEX(Control!$G$15:$G$26,D134),AG134) ->  | AJ134: =MIN(MAX(AH134-AI134,0),INDEX(Control!$H$15:$H$26,D134)) ->  | AL134: 2023-03-04
A135: 2 | B135: 2023 | C135: 6 | D135: 3 | E135: 5 | F135: 3.05 | G135: 6.05 | H135: 2023-03-05 | I135: =CHOOSE($A135+1,_xlfn.IFNA(INDEX(USGS!Y:Y,MATCH($H135,USGS!X:X,0)),I134),AVERAGEIF(CNRFC!AR:AR,$H135,CNRFC!AN:AN),AVERAGEIF(Ensemble!GC:GC,$H135,Ensemble!GF:GF),"-") -> 6519.034583 | J135: 6467.699306 | K135: 6765.731944 | L135: =CHOOSE($A135+1,_xlfn.IFNA(INDEX(USGS!D:D,MATCH($H135,USGS!C:C,0)),I134),AVERAGEIF(CNRFC!AI:AI,$H135,CNRFC!AE:AE),AVERAGEIF(Ensemble!AR:AR,$H135,Ensemble!AT:AT),"-") -> 721.8960417 | M135: =CHOOSE($A135+1,_xlfn.IFNA(INDEX(USGS!K:K,MATCH($H135,USGS!J:J,0)),I134),AVERAGEIF(CNRFC!Q:Q,$H135,CNRFC!M:M),AVERAGEIF(Ensemble!CM:CM,$H135,Ensemble!CO:CO),"-") -> 1295.861667 | N135: =CHOOSE($A135+1,_xlfn.IFNA(INDEX(USGS!R:R,MATCH($H135,USGS!Q:Q,0)),I134),AVERAGEIF(CNRFC!Z:Z,$H135,CNRFC!V:V),AVERAGEIF(Ensemble!EH:EH,$H135,Ensemble!EJ:EJ),"-") -> 372.9252083 | O135: 2390.682917 | P135: 2418.785069 | Q135: 2401.164653 | R135: =IF(AND(J135>Control!$F$6,P135>Control!$F$7,U134=1),1,0) ->  | S135: =IF(AND(T134>0,T134<Control!$F$8),0,IF(AND(K135<Control!$F$6-500,Q135<Control!$F$7),1,0))*(1-R135) ->  | T135: =IF(AND(T134<Control!$F$8,T134>0),T134+1,IF(AND(R135=1,U134=1),1,0)) ->  | V135: =IF(A135<3,IF(AND(T135>0,OR(I135>Control!$F$9,SUM(V129:V134)>0)),MAX(I135-Control!$F$10,0),0),0) ->  | W135: =CHOOSE($W$1+1,99999,IF(AND(G135>=Control!$F$4,G135<=Control!$F$5),IF(T135<>0,V135,99999),0)) ->  | X135: =INDEX(Control!$D$15:$D$26,D135) -> 3250 | Y135: 3269.034583 | Z135: =CHOOSE($A135+1,IF(ISBLANK(INDEX(CDEC!G:G,MATCH($H135,CDEC!J:J,0))),Z134,_xlfn.IFNA(INDEX(CDEC!G:G,MATCH($H135,CDEC!J:J,0)),Z134)),AVERAGEIF(CNRFC!BA:BA,$H135,CNRFC!AW:AW),AVERAGEIF(Ensemble!JT:JT,$H135,Ensemble!JW:JW),"-") -> 8818.916667 | AA135: =INDEX(Control!$E$15:$E$26,D135) -> 4000 | AB135: 4818.916667 | AC135: =CHOOSE($A135+1,_xlfn.IFNA(INDEX(USGS!AH:AH,MATCH($H135,USGS!AE:AE,0)),I134),AVERAGEIF(CNRFC!H:H,$H135,CNRFC!D:D),AVERAGEIF(Ensemble!HY:HY,$H135,Ensemble!IA:IA),"-") -> 9435.531667 | AD135: =INDEX(Control!$F$15:$F$26,D135) -> 10700 | AE135: 0 | AF135: 35000 | AI135: =MIN(INDEX(Control!$G$15:$G$26,D135),AG135) ->  | AJ135: =MIN(MAX(AH135-AI135,0),INDEX(Control!$H$15:$H$26,D135)) ->  | AL135: 2023-03-05
A136: 2 | B136: 2023 | C136: 6 | D136: 3 | E136: 6 | F136: 3.06 | G136: 6.06 | H136: 2023-03-06 | I136: =CHOOSE($A136+1,_xlfn.IFNA(INDEX(USGS!Y:Y,MATCH($H136,USGS!X:X,0)),I135),AVERAGEIF(CNRFC!AR:AR,$H136,CNRFC!AN:AN),AVERAGEIF(Ensemble!GC:GC,$H136,Ensemble!GF:GF),"-") -> 6366.3 | J136: 6473.982778 | K136: 6535.680972 | L136: =CHOOSE($A136+1,_xlfn.IFNA(INDEX(USGS!D:D,MATCH($H136,USGS!C:C,0)),I135),AVERAGEIF(CNRFC!AI:AI,$H136,CNRFC!AE:AE),AVERAGEIF(Ensemble!AR:AR,$H136,Ensemble!AT:AT),"-") -> 645.8841667 | M136: =CHOOSE($A136+1,_xlfn.IFNA(INDEX(USGS!K:K,MATCH($H136,USGS!J:J,0)),I135),AVERAGEIF(CNRFC!Q:Q,$H136,CNRFC!M:M),AVERAGEIF(Ensemble!CM:CM,$H136,Ensemble!CO:CO),"-") -> 1366.029375 | N136: =CHOOSE($A136+1,_xlfn.IFNA(INDEX(USGS!R:R,MATCH($H136,USGS!Q:Q,0)),I135),AVERAGEIF(CNRFC!Z:Z,$H136,CNRFC!V:V),AVERAGEIF(Ensemble!EH:EH,$H136,Ensemble!EJ:EJ),"-") -> 376.1379167 | O136: 2388.051458 | P136: 2416.53375 | Q136: 2375.945278 | R136: =IF(AND(J136>Control!$F$6,P136>Control!$F$7,U135=1),1,0) ->  | S136: =IF(AND(T135>0,T135<Control!$F$8),0,IF(AND(K136<Control!$F$6-500,Q136<Control!$F$7),1,0))*(1-R136) ->  | T136: =IF(AND(T135<Control!$F$8,T135>0),T135+1,IF(AND(R136=1,U135=1),1,0)) ->  | V136: =IF(A136<3,IF(AND(T136>0,OR(I136>Control!$F$9,SUM(V130:V135)>0)),MAX(I136-Control!$F$10,0),0),0) ->  | W136: =CHOOSE($W$1+1,99999,IF(AND(G136>=Control!$F$4,G136<=Control!$F$5),IF(T136<>0,V136,99999),0)) ->  | X136: =INDEX(Control!$D$15:$D$26,D136) -> 3250 | Y136: 3116.3 | Z136: =CHOOSE($A136+1,IF(ISBLANK(INDEX(CDEC!G:G,MATCH($H136,CDEC!J:J,0))),Z135,_xlfn.IFNA(INDEX(CDEC!G:G,MATCH($H136,CDEC!J:J,0)),Z135)),AVERAGEIF(CNRFC!BA:BA,$H136,CNRFC!AW:AW),AVERAGEIF(Ensemble!JT:JT,$H136,Ensemble!JW:JW),"-") -> 8574.166667 | AA136: =INDEX(Control!$E$15:$E$26,D136) -> 4000 | AB136: 4574.166667 | AC136: =CHOOSE($A136+1,_xlfn.IFNA(INDEX(USGS!AH:AH,MATCH($H136,USGS!AE:AE,0)),I135),AVERAGEIF(CNRFC!H:H,$H136,CNRFC!D:D),AVERAGEIF(Ensemble!HY:HY,$H136,Ensemble!IA:IA),"-") -> 9006.362292 | AD136: =INDEX(Control!$F$15:$F$26,D136) -> 10700 | AE136: 0 | AF136: 35000 | AI136: =MIN(INDEX(Control!$G$15:$G$26,D136),AG136) ->  | AJ136: =MIN(MAX(AH136-AI136,0),INDEX(Control!$H$15:$H$26,D136)) ->  | AL136: 2023-03-06
A137: 2 | B137: 2023 | C137: 6 | D137: 3 | E137: 7 | F137: 3.07 | G137: 6.07 | H137: 2023-03-07 | I137: =CHOOSE($A137+1,_xlfn.IFNA(INDEX(USGS!Y:Y,MATCH($H137,USGS!X:X,0)),I136),AVERAGEIF(CNRFC!AR:AR,$H137,CNRFC!AN:AN),AVERAGEIF(Ensemble!GC:GC,$H137,Ensemble!GF:GF),"-") -> 6517.763333 | J137: 6497.867778 | K137: 6467.699306 | L137: =CHOOSE($A137+1,_xlfn.IFNA(INDEX(USGS!D:D,MATCH($H137,USGS!C:C,0)),I136),AVERAGEIF(CNRFC!AI:AI,$H137,CNRFC!AE:AE),AVERAGEIF(Ensemble!AR:AR,$H137,Ensemble!AT:AT),"-") -> 692.9047917 | M137: =CHOOSE($A137+1,_xlfn.IFNA(INDEX(USGS!K:K,MATCH($H137,USGS!J:J,0)),I136),AVERAGEIF(CNRFC!Q:Q,$H137,CNRFC!M:M),AVERAGEIF(Ensemble!CM:CM,$H137,Ensemble!CO:CO),"-") -> 1399.352083 | N137: =CHOOSE($A137+1,_xlfn.IFNA(INDEX(USGS!R:R,MATCH($H137,USGS!Q:Q,0)),I136),AVERAGEIF(CNRFC!Z:Z,$H137,CNRFC!V:V),AVERAGEIF(Ensemble!EH:EH,$H137,Ensemble!EJ:EJ),"-") -> 385.3639583 | O137: 2477.620833 | P137: 2370.295 | Q137: 2418.785069 | R137: =IF(AND(J137>Control!$F$6,P137>Control!$F$7,U136=1),1,0) ->  | S137: =IF(AND(T136>0,T136<Control!$F$8),0,IF(AND(K137<Control!$F$6-500,Q137<Control!$F$7),1,0))*(1-R137) ->  | T137: =IF(AND(T136<Control!$F$8,T136>0),T136+1,IF(AND(R137=1,U136=1),1,0)) ->  | V137: =IF(A137<3,IF(AND(T137>0,OR(I137>Control!$F$9,SUM(V131:V136)>0)),MAX(I137-Control!$F$10,0),0),0) ->  | W137: =CHOOSE($W$1+1,99999,IF(AND(G137>=Control!$F$4,G137<=Control!$F$5),IF(T137<>0,V137,99999),0)) ->  | X137: =INDEX(Control!$D$15:$D$26,D137) -> 3250 | Y137: 3267.763333 | Z137: =CHOOSE($A137+1,IF(ISBLANK(INDEX(CDEC!G:G,MATCH($H137,CDEC!J:J,0))),Z136,_xlfn.IFNA(INDEX(CDEC!G:G,MATCH($H137,CDEC!J:J,0)),Z136)),AVERAGEIF(CNRFC!BA:BA,$H137,CNRFC!AW:AW),AVERAGEIF(Ensemble!JT:JT,$H137,Ensemble!JW:JW),"-") -> 8517.416667 | AA137: =INDEX(Control!$E$15:$E$26,D137) -> 4000 | AB137: 4517.416667 | AC137: =CHOOSE($A137+1,_xlfn.IFNA(INDEX(USGS!AH:AH,MATCH($H137,USGS!AE:AE,0)),I136),AVERAGEIF(CNRFC!H:H,$H137,CNRFC!D:D),AVERAGEIF(Ensemble!HY:HY,$H137,Ensemble!IA:IA),"-") -> 8767.792917 | AD137: =INDEX(Control!$F$15:$F$26,D137) -> 10700 | AE137: 0 | AF137: 35000 | AI137: =MIN(INDEX(Control!$G$15:$G$26,D137),AG137) ->  | AJ137: =MIN(MAX(AH137-AI137,0),INDEX(Control!$H$15:$H$26,D137)) ->  | AL137: 2023-03-07
A138: 2 | B138: 2023 | C138: 6 | D138: 3 | E138: 8 | F138: 3.08 | G138: 6.08 | H138: 2023-03-08 | I138: =CHOOSE($A138+1,_xlfn.IFNA(INDEX(USGS!Y:Y,MATCH($H138,USGS!X:X,0)),I137),AVERAGEIF(CNRFC!AR:AR,$H138,CNRFC!AN:AN),AVERAGEIF(Ensemble!GC:GC,$H138,Ensemble!GF:GF),"-") -> 6537.885 | J138: 6571.965556 | K138: 6473.982778 | L138: =CHOOSE($A138+1,_xlfn.IFNA(INDEX(USGS!D:D,MATCH($H138,USGS!C:C,0)),I137),AVERAGEIF(CNRFC!AI:AI,$H138,CNRFC!AE:AE),AVERAGEIF(Ensemble!AR:AR,$H138,Ensemble!AT:AT),"-") -> 645.5360417 | M138: =CHOOSE($A138+1,_xlfn.IFNA(INDEX(USGS!K:K,MATCH($H138,USGS!J:J,0)),I137),AVERAGEIF(CNRFC!Q:Q,$H138,CNRFC!M:M),AVERAGEIF(Ensemble!CM:CM,$H138,Ensemble!CO:CO),"-") -> 1352.852292 | N138: =CHOOSE($A138+1,_xlfn.IFNA(INDEX(USGS!R:R,MATCH($H138,USGS!Q:Q,0)),I137),AVERAGEIF(CNRFC!Z:Z,$H138,CNRFC!V:V),AVERAGEIF(Ensemble!EH:EH,$H138,Ensemble!EJ:EJ),"-") -> 385.540625 | O138: 2383.928958 | P138: 2282.542222 | Q138: 2416.53375 | R138: =IF(AND(J138>Control!$F$6,P138>Control!$F$7,U137=1),1,0) ->  | S138: =IF(AND(T137>0,T137<Control!$F$8),0,IF(AND(K138<Control!$F$6-500,Q138<Control!$F$7),1,0))*(1-R138) ->  | T138: =IF(AND(T137<Control!$F$8,T137>0),T137+1,IF(AND(R138=1,U137=1),1,0)) ->  | V138: =IF(A138<3,IF(AND(T138>0,OR(I138>Control!$F$9,SUM(V132:V137)>0)),MAX(I138-Control!$F$10,0),0),0) ->  | W138: =CHOOSE($W$1+1,99999,IF(AND(G138>=Control!$F$4,G138<=Control!$F$5),IF(T138<>0,V138,99999),0)) ->  | X138: =INDEX(Control!$D$15:$D$26,D138) -> 3250 | Y138: 3287.885 | Z138: =CHOOSE($A138+1,IF(ISBLANK(INDEX(CDEC!G:G,MATCH($H138,CDEC!J:J,0))),Z137,_xlfn.IFNA(INDEX(CDEC!G:G,MATCH($H138,CDEC!J:J,0)),Z137)),AVERAGEIF(CNRFC!BA:BA,$H138,CNRFC!AW:AW),AVERAGEIF(Ensemble!JT:JT,$H138,Ensemble!JW:JW),"-") -> 8643.791667 | AA138: =INDEX(Control!$E$15:$E$26,D138) -> 4000 | AB138: 4643.791667 | AC138: =CHOOSE($A138+1,_xlfn.IFNA(INDEX(USGS!AH:AH,MATCH($H138,USGS!AE:AE,0)),I137),AVERAGEIF(CNRFC!H:H,$H138,CNRFC!D:D),AVERAGEIF(Ensemble!HY:HY,$H138,Ensemble!IA:IA),"-") -> 8602.760417 | AD138: =INDEX(Control!$F$15:$F$26,D138) -> 10700 | AE138: 0 | AF138: 35000 | AI138: =MIN(INDEX(Control!$G$15:$G$26,D138),AG138) ->  | AJ138: =MIN(MAX(AH138-AI138,0),INDEX(Control!$H$15:$H$26,D138)) ->  | AL138: 2023-03-08
A139: 2 | B139: =IF(D139>9,YEAR(H139)+1,YEAR(H139)) -> 2023 | C139: 6 | D139: 3 | E139: 9 | F139: 3.09 | G139: 6.09 | H139: 2023-03-09 | I139: =CHOOSE($A139+1,_xlfn.IFNA(INDEX(USGS!Y:Y,MATCH($H139,USGS!X:X,0)),I138),AVERAGEIF(CNRFC!AR:AR,$H139,CNRFC!AN:AN),AVERAGEIF(Ensemble!GC:GC,$H139,Ensemble!GF:GF),"-") -> 6437.955 | J139: 6600.455278 | K139: 6497.867778 | L139: =CHOOSE($A139+1,_xlfn.IFNA(INDEX(USGS!D:D,MATCH($H139,USGS!C:C,0)),I138),AVERAGEIF(CNRFC!AI:AI,$H139,CNRFC!AE:AE),AVERAGEIF(Ensemble!AR:AR,$H139,Ensemble!AT:AT),"-") -> 561.070625 | M139: =CHOOSE($A139+1,_xlfn.IFNA(INDEX(USGS!K:K,MATCH($H139,USGS!J:J,0)),I138),AVERAGEIF(CNRFC!Q:Q,$H139,CNRFC!M:M),AVERAGEIF(Ensemble!CM:CM,$H139,Ensemble!CO:CO),"-") -> 1304.544167 | N139: =CHOOSE($A139+1,_xlfn.IFNA(INDEX(USGS!R:R,MATCH($H139,USGS!Q:Q,0)),I138),AVERAGEIF(CNRFC!Z:Z,$H139,CNRFC!V:V),AVERAGEIF(Ensemble!EH:EH,$H139,Ensemble!EJ:EJ),"-") -> 383.7204167 | O139: 2249.335208 | P139: 2239.852222 | Q139: 2370.295 | R139: =IF(AND(J139>Control!$F$6,P139>Control!$F$7,U138=1),1,0) ->  | S139: =IF(AND(T138>0,T138<Control!$F$8),0,IF(AND(K139<Control!$F$6-500,Q139<Control!$F$7),1,0))*(1-R139) ->  | T139: =IF(AND(T138<Control!$F$8,T138>0),T138+1,IF(AND(R139=1,U138=1),1,0)) ->  | V139: =IF(A139<3,IF(AND(T139>0,OR(I139>Control!$F$9,SUM(V133:V138)>0)),MAX(I139-Control!$F$10,0),0),0) ->  | W139: =CHOOSE($W$1+1,99999,IF(AND(G139>=Control!$F$4,G139<=Control!$F$5),IF(T139<>0,V139,99999),0)) ->  | X139: =INDEX(Control!$D$15:$D$26,D139) -> 3250 | Y139: 3187.955 | Z139: =CHOOSE($A139+1,IF(ISBLANK(INDEX(CDEC!G:G,MATCH($H139,CDEC!J:J,0))),Z138,_xlfn.IFNA(INDEX(CDEC!G:G,MATCH($H139,CDEC!J:J,0)),Z138)),AVERAGEIF(CNRFC!BA:BA,$H139,CNRFC!AW:AW),AVERAGEIF(Ensemble!JT:JT,$H139,Ensemble!JW:JW),"-") -> 8602.375 | AA139: =INDEX(Control!$E$15:$E$26,D139) -> 4000 | AB139: 4602.375 | AC139: =CHOOSE($A139+1,_xlfn.IFNA(INDEX(USGS!AH:AH,MATCH($H139,USGS!AE:AE,0)),I138),AVERAGEIF(CNRFC!H:H,$H139,CNRFC!D:D),AVERAGEIF(Ensemble!HY:HY,$H139,Ensemble!IA:IA),"-") -> 8507.249375 | AD139: =INDEX(Control!$F$15:$F$26,D139) -> 10700 | AE139: 0 | AF139: 35000 | AI139: =MIN(INDEX(Control!$G$15:$G$26,D139),AG139) ->  | AJ139: =MIN(MAX(AH139-AI139,0),INDEX(Control!$H$15:$H$26,D139)) ->  | AL139: 2023-03-09
A140: 2 | B140: 2023 | C140: =IF(D140>9,D140-9,D140+3) -> 6 | D140: =MONTH(H140) -> 3 | E140: =DAY(H140) -> 10 | F140: =D140+E140/100 -> 3.1 | G140: =C140+E140/100 -> 6.1 | H140: 2023-03-10 | I140: =CHOOSE($A140+1,_xlfn.IFNA(INDEX(USGS!Y:Y,MATCH($H140,USGS!X:X,0)),I139),AVERAGEIF(CNRFC!AR:AR,$H140,CNRFC!AN:AN),AVERAGEIF(Ensemble!GC:GC,$H140,Ensemble!GF:GF),"-") -> 6740.056667 | J140: =IF(A140>2,"-",AVERAGE(I140:I142)) -> 6522.712307 | K140: 6571.965556 | L140: =CHOOSE($A140+1,_xlfn.IFNA(INDEX(USGS!D:D,MATCH($H140,USGS!C:C,0)),I139),AVERAGEIF(CNRFC!AI:AI,$H140,CNRFC!AE:AE),AVERAGEIF(Ensemble!AR:AR,$H140,Ensemble!AT:AT),"-") -> 537.23 | M140: =CHOOSE($A140+1,_xlfn.IFNA(INDEX(USGS!K:K,MATCH($H140,USGS!J:J,0)),I139),AVERAGEIF(CNRFC!Q:Q,$H140,CNRFC!M:M),AVERAGEIF(Ensemble!CM:CM,$H140,Ensemble!CO:CO),"-") -> 1274.929375 | N140: =CHOOSE($A140+1,_xlfn.IFNA(INDEX(USGS!R:R,MATCH($H140,USGS!Q:Q,0)),I139),AVERAGEIF(CNRFC!Z:Z,$H140,CNRFC!V:V),AVERAGEIF(Ensemble!EH:EH,$H140,Ensemble!EJ:EJ),"-") -> 402.203125 | O140: 2214.3625 | P140: =IF(A140>2,"-",AVERAGE(O140:O142)) -> 2212.744254 | Q140: 2282.542222 | R140: =IF(AND(J140>Control!$F$6,P140>Control!$F$7,U139=1),1,0) ->  | S140: =IF(AND(T139>0,T139<Control!$F$8),0,IF(AND(K140<Control!$F$6-500,Q140<Control!$F$7),1,0))*(1-R140) ->  | T140: =IF(AND(T139<Control!$F$8,T139>0),T139+1,IF(AND(R140=1,U139=1),1,0)) ->  | V140: =IF(A140<3,IF(AND(T140>0,OR(I140>Control!$F$9,SUM(V134:V139)>0)),MAX(I140-Control!$F$10,0),0),0) ->  | W140: =CHOOSE($W$1+1,99999,IF(AND(G140>=Control!$F$4,G140<=Control!$F$5),IF(T140<>0,V140,99999),0)) ->  | X140: =INDEX(Control!$D$15:$D$26,D140) -> 3250 | Y140: =IF(A140>2,"-",MAX(I140-X140,0)) -> 3490.056667 | Z140: =CHOOSE($A140+1,IF(ISBLANK(INDEX(CDEC!G:G,MATCH($H140,CDEC!J:J,0))),Z139,_xlfn.IFNA(INDEX(CDEC!G:G,MATCH($H140,CDEC!J:J,0)),Z139)),AVERAGEIF(CNRFC!BA:BA,$H140,CNRFC!AW:AW),AVERAGEIF(Ensemble!JT:JT,$H140,Ensemble!JW:JW),"-") -> 8746.125 | AA140: =INDEX(Control!$E$15:$E$26,D140) -> 4000 | AB140: =IF(A140>2,"-",MAX(Z140-AA140,0)) -> 4746.125 | AC140: =CHOOSE($A140+1,_xlfn.IFNA(INDEX(USGS!AH:AH,MATCH($H140,USGS!AE:AE,0)),I139),AVERAGEIF(CNRFC!H:H,$H140,CNRFC!D:D),AVERAGEIF(Ensemble!HY:HY,$H140,Ensemble!IA:IA),"-") -> 8628.25875 | AD140: =INDEX(Control!$F$15:$F$26,D140) -> 10700 | AE140: 0 | AF140: 35000 | AG140: =MIN(W140,Y140,AE140)*MAX(MIN(AF140,1),0) ->  | AH140: =MIN(W140,AB140,AE140)*MAX(MIN(AF140,1),0) ->  | AI140: =MIN(INDEX(Control!$G$15:$G$26,D140),AG140) ->  | AJ140: =MIN(MAX(AH140-AI140,0),INDEX(Control!$H$15:$H$26,D140)) ->  | AL140: =IF(A140=3,NA(),H140) -> 2023-03-10 | AN140: =IF(AO140=50000,"<--- Observed Forecast --->","") ->  | AO140: =IF(AL140=TODAY(),50000,NA()) ->  | AP140: =MAX(AG140:AH140) ->  | AQ140: =MIN(T140,1)*50000 -> 
A141: 2 | B141: 2023 | C141: 6 | D141: 3 | E141: 11 | F141: 3.11 | G141: 6.11 | H141: =H140+1 -> 2023-03-11 | I141: =CHOOSE($A141+1,_xlfn.IFNA(INDEX(USGS!Y:Y,MATCH($H141,USGS!X:X,0)),I140),AVERAGEIF(CNRFC!AR:AR,$H141,CNRFC!AN:AN),AVERAGEIF(Ensemble!GC:GC,$H141,Ensemble!GF:GF),"-") -> 6623.354167 | J141: 6388.694251 | K141: 6600.455278 | L141: =CHOOSE($A141+1,_xlfn.IFNA(INDEX(USGS!D:D,MATCH($H141,USGS!C:C,0)),I140),AVERAGEIF(CNRFC!AI:AI,$H141,CNRFC!AE:AE),AVERAGEIF(Ensemble!AR:AR,$H141,Ensemble!AT:AT),"-") -> 518.8816667 | M141: =CHOOSE($A141+1,_xlfn.IFNA(INDEX(USGS!K:K,MATCH($H141,USGS!J:J,0)),I140),AVERAGEIF(CNRFC!Q:Q,$H141,CNRFC!M:M),AVERAGEIF(Ensemble!CM:CM,$H141,Ensemble!CO:CO),"-") -> 1337.28 | N141: =CHOOSE($A141+1,_xlfn.IFNA(INDEX(USGS!R:R,MATCH($H141,USGS!Q:Q,0)),I140),AVERAGEIF(CNRFC!Z:Z,$H141,CNRFC!V:V),AVERAGEIF(Ensemble!EH:EH,$H141,Ensemble!EJ:EJ),"-") -> 399.6972917 | O141: 2255.858958 | P141: 2214.165713 | Q141: 2239.852222 | R141: =IF(AND(J141>Control!$F$6,P141>Control!$F$7,U140=1),1,0) ->  | S141: =IF(AND(T140>0,T140<Control!$F$8),0,IF(AND(K141<Control!$F$6-500,Q141<Control!$F$7),1,0))*(1-R141) ->  | T141: =IF(AND(T140<Control!$F$8,T140>0),T140+1,IF(AND(R141=1,U140=1),1,0)) ->  | V141: =IF(A141<3,IF(AND(T141>0,OR(I141>Control!$F$9,SUM(V135:V140)>0)),MAX(I141-Control!$F$10,0),0),0) ->  | W141: =CHOOSE($W$1+1,99999,IF(AND(G141>=Control!$F$4,G141<=Control!$F$5),IF(T141<>0,V141,99999),0)) ->  | X141: =INDEX(Control!$D$15:$D$26,D141) -> 3250 | Y141: 3373.354167 | Z141: =CHOOSE($A141+1,IF(ISBLANK(INDEX(CDEC!G:G,MATCH($H141,CDEC!J:J,0))),Z140,_xlfn.IFNA(INDEX(CDEC!G:G,MATCH($H141,CDEC!J:J,0)),Z140)),AVERAGEIF(CNRFC!BA:BA,$H141,CNRFC!AW:AW),AVERAGEIF(Ensemble!JT:JT,$H141,Ensemble!JW:JW),"-") -> 9372 | AA141: =INDEX(Control!$E$15:$E$26,D141) -> 4000 | AB141: 5372 | AC141: =CHOOSE($A141+1,_xlfn.IFNA(INDEX(USGS!AH:AH,MATCH($H141,USGS!AE:AE,0)),I140),AVERAGEIF(CNRFC!H:H,$H141,CNRFC!D:D),AVERAGEIF(Ensemble!HY:HY,$H141,Ensemble!IA:IA),"-") -> 8756.573542 | AD141: =INDEX(Control!$F$15:$F$26,D141) -> 10700 | AE141: 0 | AF141: 35000 | AI141: =MIN(INDEX(Control!$G$15:$G$26,D141),AG141) ->  | AJ141: =MIN(MAX(AH141-AI141,0),INDEX(Control!$H$15:$H$26,D141)) ->  | AL141: 2023-03-11
A142: 2 | B142: 2023 | C142: 6 | D142: 3 | E142: 12 | F142: 3.12 | G142: 6.12 | H142: 2023-03-12 | I142: =CHOOSE($A142+1,_xlfn.IFNA(INDEX(USGS!Y:Y,MATCH($H142,USGS!X:X,0)),I141),AVERAGEIF(CNRFC!AR:AR,$H142,CNRFC!AN:AN),AVERAGEIF(Ensemble!GC:GC,$H142,Ensemble!GF:GF),"-") -> 6204.726087 | J142: 6451.487585 | K142: =IF(A142>2,"-",AVERAGE(I140:I142)) -> 6522.712307 | L142: =CHOOSE($A142+1,_xlfn.IFNA(INDEX(USGS!D:D,MATCH($H142,USGS!C:C,0)),I141),AVERAGEIF(CNRFC!AI:AI,$H142,CNRFC!AE:AE),AVERAGEIF(Ensemble!AR:AR,$H142,Ensemble!AT:AT),"-") -> 500.1921739 | M142: =CHOOSE($A142+1,_xlfn.IFNA(INDEX(USGS!K:K,MATCH($H142,USGS!J:J,0)),I141),AVERAGEIF(CNRFC!Q:Q,$H142,CNRFC!M:M),AVERAGEIF(Ensemble!CM:CM,$H142,Ensemble!CO:CO),"-") -> 1268.08087 | N142: =CHOOSE($A142+1,_xlfn.IFNA(INDEX(USGS!R:R,MATCH($H142,USGS!Q:Q,0)),I141),AVERAGEIF(CNRFC!Z:Z,$H142,CNRFC!V:V),AVERAGEIF(Ensemble!EH:EH,$H142,Ensemble!EJ:EJ),"-") -> 399.7382609 | O142: 2168.011304 | P142: 2214.264115 | Q142: =IF(A142>2,"-",AVERAGE(O140:O142)) -> 2212.744254 | R142: =IF(AND(J142>Control!$F$6,P142>Control!$F$7,U141=1),1,0) ->  | S142: =IF(AND(T141>0,T141<Control!$F$8),0,IF(AND(K142<Control!$F$6-500,Q142<Control!$F$7),1,0))*(1-R142) ->  | T142: =IF(AND(T141<Control!$F$8,T141>0),T141+1,IF(AND(R142=1,U141=1),1,0)) ->  | V142: =IF(A142<3,IF(AND(T142>0,OR(I142>Control!$F$9,SUM(V136:V141)>0)),MAX(I142-Control!$F$10,0),0),0) ->  | W142: =CHOOSE($W$1+1,99999,IF(AND(G142>=Control!$F$4,G142<=Control!$F$5),IF(T142<>0,V142,99999),0)) ->  | X142: =INDEX(Control!$D$15:$D$26,D142) -> 3250 | Y142: 2954.726087 | Z142: =CHOOSE($A142+1,IF(ISBLANK(INDEX(CDEC!G:G,MATCH($H142,CDEC!J:J,0))),Z141,_xlfn.IFNA(INDEX(CDEC!G:G,MATCH($H142,CDEC!J:J,0)),Z141)),AVERAGEIF(CNRFC!BA:BA,$H142,CNRFC!AW:AW),AVERAGEIF(Ensemble!JT:JT,$H142,Ensemble!JW:JW),"-") -> 8514.434783 | AA142: =INDEX(Control!$E$15:$E$26,D142) -> 4000 | AB142: 4514.434783 | AC142: =CHOOSE($A142+1,_xlfn.IFNA(INDEX(USGS!AH:AH,MATCH($H142,USGS!AE:AE,0)),I141),AVERAGEIF(CNRFC!H:H,$H142,CNRFC!D:D),AVERAGEIF(Ensemble!HY:HY,$H142,Ensemble!IA:IA),"-") -> 9121.256957 | AD142: =INDEX(Control!$F$15:$F$26,D142) -> 10700 | AE142: 0 | AF142: 35000 | AI142: =MIN(INDEX(Control!$G$15:$G$26,D142),AG142) ->  | AJ142: =MIN(MAX(AH142-AI142,0),INDEX(Control!$H$15:$H$26,D142)) ->  | AL142: 2023-03-12
A143: 2 | B143: 2023 | C143: 6 | D143: 3 | E143: 13 | F143: 3.13 | G143: 6.13 | H143: 2023-03-13 | I143: =CHOOSE($A143+1,_xlfn.IFNA(INDEX(USGS!Y:Y,MATCH($H143,USGS!X:X,0)),I142),AVERAGEIF(CNRFC!AR:AR,$H143,CNRFC!AN:AN),AVERAGEIF(Ensemble!GC:GC,$H143,Ensemble!GF:GF),"-") -> 6338.0025 | J143: 6797.729861 | K143: 6388.694251 | L143: =CHOOSE($A143+1,_xlfn.IFNA(INDEX(USGS!D:D,MATCH($H143,USGS!C:C,0)),I142),AVERAGEIF(CNRFC!AI:AI,$H143,CNRFC!AE:AE),AVERAGEIF(Ensemble!AR:AR,$H143,Ensemble!AT:AT),"-") -> 490.6175 | M143: =CHOOSE($A143+1,_xlfn.IFNA(INDEX(USGS!K:K,MATCH($H143,USGS!J:J,0)),I142),AVERAGEIF(CNRFC!Q:Q,$H143,CNRFC!M:M),AVERAGEIF(Ensemble!CM:CM,$H143,Ensemble!CO:CO),"-") -> 1311.618333 | N143: =CHOOSE($A143+1,_xlfn.IFNA(INDEX(USGS!R:R,MATCH($H143,USGS!Q:Q,0)),I142),AVERAGEIF(CNRFC!Z:Z,$H143,CNRFC!V:V),AVERAGEIF(Ensemble!EH:EH,$H143,Ensemble!EJ:EJ),"-") -> 416.3910417 | O143: 2218.626875 | P143: 2262.380139 | Q143: 2214.165713 | R143: =IF(AND(J143>Control!$F$6,P143>Control!$F$7,U142=1),1,0) ->  | S143: =IF(AND(T142>0,T142<Control!$F$8),0,IF(AND(K143<Control!$F$6-500,Q143<Control!$F$7),1,0))*(1-R143) ->  | T143: =IF(AND(T142<Control!$F$8,T142>0),T142+1,IF(AND(R143=1,U142=1),1,0)) ->  | V143: =IF(A143<3,IF(AND(T143>0,OR(I143>Control!$F$9,SUM(V137:V142)>0)),MAX(I143-Control!$F$10,0),0),0) ->  | W143: =CHOOSE($W$1+1,99999,IF(AND(G143>=Control!$F$4,G143<=Control!$F$5),IF(T143<>0,V143,99999),0)) ->  | X143: =INDEX(Control!$D$15:$D$26,D143) -> 3250 | Y143: 3088.0025 | Z143: =CHOOSE($A143+1,IF(ISBLANK(INDEX(CDEC!G:G,MATCH($H143,CDEC!J:J,0))),Z142,_xlfn.IFNA(INDEX(CDEC!G:G,MATCH($H143,CDEC!J:J,0)),Z142)),AVERAGEIF(CNRFC!BA:BA,$H143,CNRFC!AW:AW),AVERAGEIF(Ensemble!JT:JT,$H143,Ensemble!JW:JW),"-") -> 8236.291667 | AA143: =INDEX(Control!$E$15:$E$26,D143) -> 4000 | AB143: 4236.291667 | AC143: =CHOOSE($A143+1,_xlfn.IFNA(INDEX(USGS!AH:AH,MATCH($H143,USGS!AE:AE,0)),I142),AVERAGEIF(CNRFC!H:H,$H143,CNRFC!D:D),AVERAGEIF(Ensemble!HY:HY,$H143,Ensemble!IA:IA),"-") -> 8752.954792 | AD143: =INDEX(Control!$F$15:$F$26,D143) -> 10700 | AE143: 0 | AF143: 35000 | AI143: =MIN(INDEX(Control!$G$15:$G$26,D143),AG143) ->  | AJ143: =MIN(MAX(AH143-AI143,0),INDEX(Control!$H$15:$H$26,D143)) ->  | AL143: 2023-03-13
A144: 2 | B144: 2023 | C144: 6 | D144: 3 | E144: 14 | F144: 3.14 | G144: 6.14 | H144: 2023-03-14 | I144: =CHOOSE($A144+1,_xlfn.IFNA(INDEX(USGS!Y:Y,MATCH($H144,USGS!X:X,0)),I143),AVERAGEIF(CNRFC!AR:AR,$H144,CNRFC!AN:AN),AVERAGEIF(Ensemble!GC:GC,$H144,Ensemble!GF:GF),"-") -> 6811.734167 | J144: 7245.675139 | K144: 6451.487585 | L144: =CHOOSE($A144+1,_xlfn.IFNA(INDEX(USGS!D:D,MATCH($H144,USGS!C:C,0)),I143),AVERAGEIF(CNRFC!AI:AI,$H144,CNRFC!AE:AE),AVERAGEIF(Ensemble!AR:AR,$H144,Ensemble!AT:AT),"-") -> 512.5416667 | M144: =CHOOSE($A144+1,_xlfn.IFNA(INDEX(USGS!K:K,MATCH($H144,USGS!J:J,0)),I143),AVERAGEIF(CNRFC!Q:Q,$H144,CNRFC!M:M),AVERAGEIF(Ensemble!CM:CM,$H144,Ensemble!CO:CO),"-") -> 1324.495208 | N144: =CHOOSE($A144+1,_xlfn.IFNA(INDEX(USGS!R:R,MATCH($H144,USGS!Q:Q,0)),I143),AVERAGEIF(CNRFC!Z:Z,$H144,CNRFC!V:V),AVERAGEIF(Ensemble!EH:EH,$H144,Ensemble!EJ:EJ),"-") -> 419.1172917 | O144: 2256.154167 | P144: 2349.897847 | Q144: 2214.264115 | R144: =IF(AND(J144>Control!$F$6,P144>Control!$F$7,U143=1),1,0) ->  | S144: =IF(AND(T143>0,T143<Control!$F$8),0,IF(AND(K144<Control!$F$6-500,Q144<Control!$F$7),1,0))*(1-R144) ->  | T144: =IF(AND(T143<Control!$F$8,T143>0),T143+1,IF(AND(R144=1,U143=1),1,0)) ->  | V144: =IF(A144<3,IF(AND(T144>0,OR(I144>Control!$F$9,SUM(V138:V143)>0)),MAX(I144-Control!$F$10,0),0),0) ->  | W144: =CHOOSE($W$1+1,99999,IF(AND(G144>=Control!$F$4,G144<=Control!$F$5),IF(T144<>0,V144,99999),0)) ->  | X144: =INDEX(Control!$D$15:$D$26,D144) -> 3250 | Y144: 3561.734167 | Z144: =CHOOSE($A144+1,IF(ISBLANK(INDEX(CDEC!G:G,MATCH($H144,CDEC!J:J,0))),Z143,_xlfn.IFNA(INDEX(CDEC!G:G,MATCH($H144,CDEC!J:J,0)),Z143)),AVERAGEIF(CNRFC!BA:BA,$H144,CNRFC!AW:AW),AVERAGEIF(Ensemble!JT:JT,$H144,Ensemble!JW:JW),"-") -> 8992.125 | AA144: =INDEX(Control!$E$15:$E$26,D144) -> 4000 | AB144: 4992.125 | AC144: =CHOOSE($A144+1,_xlfn.IFNA(INDEX(USGS!AH:AH,MATCH($H144,USGS!AE:AE,0)),I143),AVERAGEIF(CNRFC!H:H,$H144,CNRFC!D:D),AVERAGEIF(Ensemble!HY:HY,$H144,Ensemble!IA:IA),"-") -> 8552.143542 | AD144: =INDEX(Control!$F$15:$F$26,D144) -> 10700 | AE144: 0 | AF144: 35000 | AI144: =MIN(INDEX(Control!$G$15:$G$26,D144),AG144) ->  | AJ144: =MIN(MAX(AH144-AI144,0),INDEX(Control!$H$15:$H$26,D144)) ->  | AL144: 2023-03-14
